Workbook

Sheet PLAN UNOSA
A1: ASORTIMAN | B1: KC BEOGRAD | D1: KC LAJKOVAC | F1: KC NIŠ | H1: Izvoz Makedonija | J1: Izvoz Crna Gora | L1: Izvoz BIH - Majop | N1: Izvoz Bosna | P1: Delhaize
A3: Pile GRILL - svj. | B3: 2085.8437 | D3: 816.5022813 | F3: 900.410624 | H3: 0 | J3: 443.0067786 | L3: 308.0260109 | N3: 1560 | P3: 1069.479087
A4: Rasjek - svj. | B4: 2128.488094 | D4: 1009.538272 | F4: 630.935554 | H4: 0 | J4: 1073.837764 | L4: 325.6561145 | N4: 800.3667432 | P4: 1852.917615
A5: Iznutrice svj. | B5: 210.1220787 | D5: 93.53452348 | F5: 129.4723777 | H5: 0 | J5: 73.70988566 | L5: 0.1324244585 | N5: 51.11111111 | P5: 273.0766437
A6: Pile GRILL - smrz. | B6: 466.667587 | D6: 318.6646435 | F6: 497.7927871 | H6: 0 | J6: 0 | L6: 0 | N6: 0 | P6: 0
A7: Rasjek - smrz. | B7: 821.9247015 | D7: 259.9712157 | F7: 454.7785902 | H7: 0 | J7: 0 | L7: 0 | N7: 0 | P7: 0
A8: Iznutrice smrz. | B8: 38.04974603 | D8: 15.24972301 | F8: 65.56767253 | H8: 0 | J8: 0 | L8: 0 | N8: 0 | P8: 0
A9: Marinirani asortiman | B9: 49.6202015 | D9: 6.350849562 | F9: 5.848110979 | H9: 0 | J9: 2.038164233 | L9: 22.41584479 | N9: 71.85547904 | P9: 15.63776585
A10: Prerađevine | B10: 1481.481481 | D10: 818.5185185 | F10: 1174.074074 | H10: 74.07407407 | J10: 185.1851852 | L10: 982.3018593 | N10: 5466.148148 | P10: 92.59259259
H11: 0 | J11: 0 | L11: 0 | N11: 0
A12: Mliječni asortiman | B12: 120.3877418 | D12: 85.69370898 | F12: 115.237616 | P12: 0
A13: Fermenti i deserti | B13: 57.64600659 | D13: 54.25016264 | F13: 130.8497335 | H13: 0 | J13: 0 | L13: 0 | N13: 0 | P13: 0
A14: Sirevi i namazi | B14: 10.47278161 | D14: 11.09490616 | F14: 19.66363895 | H14: 0 | J14: 0 | L14: 0 | N14: 0 | P14: 0
A15: Sokovi | B15: 14.10762273 | D15: 16.89579146 | F15: 9.737326556 | H15: 0 | J15: 0 | L15: 0 | N15: 0 | P15: 0
H16: 0 | J16: 0 | L16: 0 | N16: 0
A17: Svježe meso Cekin | B17: 0 | D17: 0 | F17: 0 | P17: 0
A18: Panirani proizvodi | B18: 24.06539686 | D18: 18.60975983 | F18: 10.58634553 | H18: 0 | J18: 0 | L18: 0 | N18: 0 | P18: 0
A19: Prerađevine Cekin | B19: 1.615463571 | D19: 0.7189356352 | F19: 1.021498867 | H19: 0 | J19: 0 | L19: 0 | N19: 0 | P19: 0
A20: Marinirano | B20: 0 | D20: 0 | F20: 0 | H20: 0 | J20: 0 | L20: 0 | N20: 0 | P20: 0
A21: Prerađevine Vindon | B21: 6.313191524 | D21: 2.576413183 | F21: 2.320241959 | H21: 0 | J21: 0 | L21: 0 | N21: 0 | P21: 0
A22: Svježe meso Vindon | B22: 0 | D22: 0 | F22: 0 | H22: 0 | J22: 0 | L22: 0 | N22: 0 | P22: 0
A23: Smrznuto meso Vindon | B23: 10.18508351 | D23: 13.22253977 | F23: 13.0738582 | H23: 0 | J23: 0 | L23: 0 | N23: 0 | P23: 0
B24: 0 | D24: 0 | F24: 0 | H24: 0 | J24: 0 | L24: 0 | N24: 0 | P24: 0
A25: MESNI ASORTIMAN RH | H25: 0 | J25: 0 | L25: 0 | N25: 0
A28: ASORTIMAN | B28: Beograd | D28: Lajkovac | F28: Niš
A30: Pile GRILL - svj. | B30: =+B3+J3 -> 2528.850479 | D30: =+D3+L3 -> 1124.528292 | F30: =+F3+N3 -> 2460.410624
A31: Rasjek - svj. | B31: =+B4+J4 -> 3202.325858 | D31: 1335.194386 | F31: 1431.302297
A32: Iznutrice svj. | B32: 283.8319643 | D32: 93.66694793 | F32: 180.5834888
A33: Pile GRILL - smrz. | B33: 466.667587 | D33: 318.6646435 | F33: 497.7927871
A34: Rasjek - smrz. | B34: 821.9247015 | D34: 259.9712157 | F34: 454.7785902
A35: Iznutrice smrz. | B35: 38.04974603 | D35: 15.24972301 | F35: 65.56767253
A36: Marinirani asortiman | B36: 51.65836573 | D36: 28.76669435 | F36: 77.70359002
A37: Prerađevine | B37: 1666.666667 | D37: 1800.820378 | F37: 6640.222222
B38: =SUM(B30:B37) -> 9059.975368 | D38: =SUM(D30:D37) -> 4976.862281 | F38: =SUM(F30:F37) -> 11808.36127

Sheet Podaci
A2: 2013-08-01 | B2: PRVI DAN MESECA
A3: 2013-08-08 | B3: TEKUĆI DAN
A4: 2013-08-31 | B4: POSLEDNJI DAN MESECA
A6: Lista praznika
A7: 2013-01-01 | B7: NOVA GODINA
A8: 2013-01-02 | B8: NOVA GODINA
A9: 2013-01-07 | B9: BOŽIĆ
A10: 2013-05-06 | B10: USKRS
A11: 2013-05-01 | B11: 1.MAJ
A18: 1 | B18: SIJEČANJ | C18: JANUAR | D18: I
A19: 2 | B19: VELJAČA | C19: FEBRUAR | D19: II
A20: 3 | B20: OŽUJAK | C20: MART | D20: III
A21: 4 | B21: TRAVANJ | C21: APRIL | D21: IV
A22: 5 | B22: SVIBANJ | C22: MAJ | D22: V
A23: 6 | B23: LIPANJ | C23: JUN | D23: VI
A24: 7 | B24: SRPANJ | C24: JUL | D24: VII
A25: 8 | B25: KOLOVOZ | C25: AVGUST | D25: VIII
A26: 9 | B26: RUJAN | C26: SEPTEMBAR | D26: IX
A27: 10 | B27: LISTOPAD | C27: OKTPBAR | D27: X
A28: 11 | B28: STUDENI | C28: NOVEMBAR | D28: XI
A29: 12 | B29: PROSINAC | C29: DECEMBAR | D29: XII
A31: Datum | C31: =A3 -> 2013-08-08
A32: Dan: | B32: =DAY(A3) -> 8
A33: Mesec: | B33: =MONTH(A3) -> 8 | C33: =VLOOKUP(B33,A18:B29,2) -> KOLOVOZ | D33: =VLOOKUP(B33,A18:C29,3) -> AVGUST | E33: =VLOOKUP(B33,A18:D29,4) -> VIII
A34: Godina: | B34: =YEAR(A3) -> 2013

Sheet Privremena baza
A1: PROIZVOD | B1: SIFRA_REFERENTA | C1: IME_PREZIME_REFERENTA | D1: DOSTAVNO_MESTO | E1: KP | F1: UKUPNA_TEZINA | G1: KC | H1: GRUPA | J1: SIFRA_REFERENTA | K1: KC | L1: PROIZVOD | M1: GRUPA
A2: 1 | B2: 1 | C2: Lajkovac | D2: FF | E2: 0 | F2: 0 | G2: =INDEX($J$1:$K$37, MATCH(B2,$J$1:$J$37,), MATCH("KC",$J$1:$K$1,)) -> Lajkovac | H2: =INDEX($L$1:$M$161, MATCH(A2,$L$1:$L$161,), MATCH("GRUPA",$L$1:$M$1,)) -> 1. Sveži proizvodi | J2: 807 | K2: Lajkovac | L2: 1 | M2: 1. Sveži proizvodi
A3: 2 | B3: 1 | C3: Lajkovac | D3: FF | E3: 0 | F3: 0 | G3: =INDEX($J$1:$K$37, MATCH(B3,$J$1:$J$37,), MATCH("KC",$J$1:$K$1,)) -> Lajkovac | H3: =INDEX($L$1:$M$161, MATCH(A3,$L$1:$L$161,), MATCH("GRUPA",$L$1:$M$1,)) -> 1. Sveži proizvodi | J3: 128 | K3: Beograd | L3: 2 | M3: 1. Sveži proizvodi
A4: 3 | B4: 1 | C4: Lajkovac | D4: FF | E4: 0 | F4: 0 | G4: Lajkovac | H4: 1. Sveži proizvodi | J4: 131 | K4: Beograd | L4: 3 | M4: 1. Sveži proizvodi
A5: 4 | B5: 1 | C5: Lajkovac | D5: FF | E5: 0 | F5: 0 | G5: Lajkovac | H5: 1. Sveži proizvodi | J5: 113 | K5: Lajkovac | L5: 4 | M5: 1. Sveži proizvodi
A6: 5 | B6: 1 | C6: Lajkovac | D6: FF | E6: 0 | F6: 0 | G6: Lajkovac | H6: 1. Sveži proizvodi | J6: 114 | K6: Lajkovac | L6: 5 | M6: 1. Sveži proizvodi
A7: 6 | B7: 1 | C7: Lajkovac | D7: FF | E7: 0 | F7: 0 | G7: Lajkovac | H7: 1. Sveži proizvodi | J7: 115 | K7: Lajkovac | L7: 6 | M7: 1. Sveži proizvodi
A8: 7 | B8: 1 | C8: Lajkovac | D8: FF | E8: 0 | F8: 0 | G8: Lajkovac | H8: 1. Sveži proizvodi | J8: 126 | K8: Beograd | L8: 7 | M8: 1. Sveži proizvodi
A9: 8 | B9: 1 | C9: Lajkovac | D9: FF | E9: 0 | F9: 0 | G9: Lajkovac | H9: 1. Sveži proizvodi | J9: 1 | K9: Lajkovac | L9: 8 | M9: 1. Sveži proizvodi
A10: 9 | B10: 1 | C10: Lajkovac | D10: FF | E10: 0 | F10: 0 | G10: Lajkovac | H10: 1. Sveži proizvodi | J10: 2 | K10: Beograd | L10: 9 | M10: 1. Sveži proizvodi
A11: 10 | B11: 1 | C11: Lajkovac | D11: FF | E11: 0 | F11: 0 | G11: Lajkovac | H11: 1. Sveži proizvodi | J11: 103 | K11: Lajkovac | L11: 10 | M11: 1. Sveži proizvodi
A12: 11 | B12: 1 | C12: Lajkovac | D12: FF | E12: 0 | F12: 0 | G12: Lajkovac | H12: 1. Sveži proizvodi | J12: 0 | K12: Lajkovac | L12: 11 | M12: 1. Sveži proizvodi
A13: 12 | B13: 1 | C13: Lajkovac | D13: FF | E13: 0 | F13: 0 | G13: Lajkovac | H13: 1. Sveži proizvodi | J13: 102 | K13: Beograd | L13: 12 | M13: 1. Sveži proizvodi
A14: 13 | B14: 1 | C14: Lajkovac | D14: FF | E14: 0 | F14: 0 | G14: Lajkovac | H14: 1. Sveži proizvodi | J14: 141 | K14: Beograd | L14: 13 | M14: 1. Sveži proizvodi
A15: 14 | B15: 1 | C15: Lajkovac | D15: FF | E15: 0 | F15: 0 | G15: Lajkovac | H15: 1. Sveži proizvodi | J15: 142 | K15: Beograd | L15: 14 | M15: 1. Sveži proizvodi
A16: 15 | B16: 1 | C16: Lajkovac | D16: FF | E16: 0 | F16: 0 | G16: Lajkovac | H16: 1. Sveži proizvodi | J16: 151 | K16: Beograd | L16: 15 | M16: 1. Sveži proizvodi
A17: 16 | B17: 1 | C17: Lajkovac | D17: FF | E17: 0 | F17: 0 | G17: Lajkovac | H17: 1. Sveži proizvodi | J17: 153 | K17: Lajkovac | L17: 16 | M17: 1. Sveži proizvodi
A18: 17 | B18: 1 | C18: Lajkovac | D18: FF | E18: 0 | F18: 0 | G18: Lajkovac | H18: 1. Sveži proizvodi | J18: 154 | K18: Lajkovac | L18: 17 | M18: 1. Sveži proizvodi
A19: 18 | B19: 1 | C19: Lajkovac | D19: FF | E19: 0 | F19: 0 | G19: Lajkovac | H19: 1. Sveži proizvodi | J19: 146 | K19: Niš | L19: 18 | M19: 1. Sveži proizvodi
A20: 19 | B20: 1 | C20: Lajkovac | D20: FF | E20: 0 | F20: 0 | G20: Lajkovac | H20: 1. Sveži proizvodi | J20: 3 | K20: Niš | L20: 19 | M20: 1. Sveži proizvodi
A21: 20 | B21: 1 | C21: Lajkovac | D21: FF | E21: 0 | F21: 0 | G21: Lajkovac | H21: 1. Sveži proizvodi | J21: 166 | K21: Niš | L21: 20 | M21: 1. Sveži proizvodi
A22: 21 | B22: 1 | C22: Lajkovac | D22: FF | E22: 0 | F22: 0 | G22: Lajkovac | H22: 1. Sveži proizvodi | J22: 109 | K22: Lajkovac | L22: 21 | M22: 1. Sveži proizvodi
A23: 22 | B23: 1 | C23: Lajkovac | D23: FF | E23: 0 | F23: 0 | G23: Lajkovac | H23: 1. Sveži proizvodi | J23: 4 | K23: Izvoz Crna Gora | L23: 22 | M23: 1. Sveži proizvodi
A24: 23 | B24: 1 | C24: Lajkovac | D24: FF | E24: 0 | F24: 0 | G24: Lajkovac | H24: 1. Sveži proizvodi | J24: 178 | K24: Lajkovac | L24: 23 | M24: 1. Sveži proizvodi
A25: 24 | B25: 1 | C25: Lajkovac | D25: FF | E25: 0 | F25: 0 | G25: Lajkovac | H25: 1. Sveži proizvodi | J25: 5 | K25: Lajkovac | L25: 24 | M25: 1. Sveži proizvodi
A26: 25 | B26: 1 | C26: Lajkovac | D26: FF | E26: 0 | F26: 0 | G26: Lajkovac | H26: 1. Sveži proizvodi | J26: 182 | K26: Niš | L26: 25 | M26: 1. Sveži proizvodi
A27: 26 | B27: 1 | C27: Lajkovac | D27: FF | E27: 0 | F27: 0 | G27: Lajkovac | H27: 1. Sveži proizvodi | J27: 195 | K27: Lajkovac | L27: 26 | M27: 1. Sveži proizvodi
A28: 27 | B28: 1 | C28: Lajkovac | D28: FF | E28: 0 | F28: 0 | G28: Lajkovac | H28: 1. Sveži proizvodi | J28: 196 | K28: Lajkovac | L28: 27 | M28: 1. Sveži proizvodi
A29: 28 | B29: 1 | C29: Lajkovac | D29: FF | E29: 0 | F29: 0 | G29: Lajkovac | H29: 1. Sveži proizvodi | J29: 193 | K29: Beograd | L29: 28 | M29: 1. Sveži proizvodi
A30: 29 | B30: 1 | C30: Lajkovac | D30: FF | E30: 0 | F30: 0 | G30: Lajkovac | H30: 1. Sveži proizvodi | J30: 210 | K30: Beograd | L30: 29 | M30: 1. Sveži proizvodi
A31: 30 | B31: 1 | C31: Lajkovac | D31: FF | E31: 0 | F31: 0 | G31: Lajkovac | H31: 1. Sveži proizvodi | J31: 209 | K31: Beograd | L31: 30 | M31: 1. Sveži proizvodi
A32: 31 | B32: 1 | C32: Lajkovac | D32: FF | E32: 0 | F32: 0 | G32: Lajkovac | H32: 1. Sveži proizvodi | J32: 9 | K32: Izvoz Makedonija | L32: 31 | M32: 1. Sveži proizvodi
A33: 32 | B33: 1 | C33: Lajkovac | D33: FF | E33: 0 | F33: 0 | G33: Lajkovac | H33: 1. Sveži proizvodi | J33: 212 | K33: Beograd | L33: 32 | M33: 1. Sveži proizvodi
A34: 33 | B34: 1 | C34: Lajkovac | D34: FF | E34: 0 | F34: 0 | G34: Lajkovac | H34: 1. Sveži proizvodi | J34: 808 | K34: Lajkovac | L34: 33 | M34: 1. Sveži proizvodi
A35: 34 | B35: 1 | C35: Lajkovac | D35: FF | E35: 0 | F35: 0 | G35: Lajkovac | H35: 1. Sveži proizvodi | J35: 10 | K35: Izvoz BIH | L35: 34 | M35: 1. Sveži proizvodi
A36: 37 | B36: 1 | C36: Lajkovac | D36: FF | E36: 0 | F36: 0 | G36: Lajkovac | H36: 1. Sveži proizvodi | J36: 11 | K36: Izvoz BIH Majop | L36: 37 | M36: 1. Sveži proizvodi
A37: 38 | B37: 1 | C37: Lajkovac | D37: FF | E37: 0 | F37: 0 | G37: Lajkovac | H37: 1. Sveži proizvodi | J37: 217 | K37: Beograd | L37: 38 | M37: 1. Sveži proizvodi
A38: 39 | B38: 1 | C38: Lajkovac | D38: FF | E38: 0 | F38: 0 | G38: Lajkovac | H38: 1. Sveži proizvodi | L38: 39 | M38: 1. Sveži proizvodi
A39: 40 | B39: 1 | C39: Lajkovac | D39: FF | E39: 0 | F39: 0 | G39: Lajkovac | H39: 1. Sveži proizvodi | L39: 40 | M39: 1. Sveži proizvodi
A40: 41 | B40: 1 | C40: Lajkovac | D40: FF | E40: 0 | F40: 0 | G40: Lajkovac | H40: 1. Sveži proizvodi | L40: 41 | M40: 1. Sveži proizvodi
A41: 42 | B41: 1 | C41: Lajkovac | D41: FF | E41: 0 | F41: 0 | G41: Lajkovac | H41: 1. Sveži proizvodi | L41: 42 | M41: 1. Sveži proizvodi
A42: 43 | B42: 1 | C42: Lajkovac | D42: FF | E42: 0 | F42: 0 | G42: Lajkovac | H42: 1. Sveži proizvodi | L42: 43 | M42: 1. Sveži proizvodi
A43: 44 | B43: 1 | C43: Lajkovac | D43: FF | E43: 0 | F43: 0 | G43: Lajkovac | H43: 1. Sveži proizvodi | L43: 44 | M43: 1. Sveži proizvodi
A44: 45 | B44: 1 | C44: Lajkovac | D44: FF | E44: 0 | F44: 0 | G44: Lajkovac | H44: 1. Sveži proizvodi | L44: 45 | M44: 1. Sveži proizvodi
A45: 46 | B45: 1 | C45: Lajkovac | D45: FF | E45: 0 | F45: 0 | G45: Lajkovac | H45: 1. Sveži proizvodi | L45: 46 | M45: 1. Sveži proizvodi
A46: 47 | B46: 1 | C46: Lajkovac | D46: FF | E46: 0 | F46: 0 | G46: Lajkovac | H46: 1. Sveži proizvodi | L46: 47 | M46: 1. Sveži proizvodi
A47: 48 | B47: 1 | C47: Lajkovac | D47: FF | E47: 0 | F47: 0 | G47: Lajkovac | H47: 1. Sveži proizvodi | L47: 48 | M47: 1. Sveži proizvodi
A48: 49 | B48: 1 | C48: Lajkovac | D48: FF | E48: 0 | F48: 0 | G48: Lajkovac | H48: 1. Sveži proizvodi | L48: 49 | M48: 1. Sveži proizvodi
A49: 50 | B49: 1 | C49: Lajkovac | D49: FF | E49: 0 | F49: 0 | G49: Lajkovac | H49: 1. Sveži proizvodi | L49: 50 | M49: 1. Sveži proizvodi
A50: 51 | B50: 1 | C50: Lajkovac | D50: FF | E50: 0 | F50: 0 | G50: Lajkovac | H50: 1. Sveži proizvodi | L50: 51 | M50: 1. Sveži proizvodi
A51: 52 | B51: 1 | C51: Lajkovac | D51: FF | E51: 0 | F51: 0 | G51: Lajkovac | H51: 1. Sveži proizvodi | L51: 52 | M51: 1. Sveži proizvodi
A52: 53 | B52: 1 | C52: Lajkovac | D52: FF | E52: 0 | F52: 0 | G52: Lajkovac | H52: 1. Sveži proizvodi | L52: 53 | M52: 1. Sveži proizvodi
A53: 54 | B53: 1 | C53: Lajkovac | D53: FF | E53: 0 | F53: 0 | G53: Lajkovac | H53: 1. Sveži proizvodi | L53: 54 | M53: 1. Sveži proizvodi
A54: 55 | B54: 1 | C54: Lajkovac | D54: FF | E54: 0 | F54: 0 | G54: Lajkovac | H54: 1. Sveži proizvodi | L54: 55 | M54: 1. Sveži proizvodi
A55: 56 | B55: 1 | C55: Lajkovac | D55: FF | E55: 0 | F55: 0 | G55: Lajkovac | H55: 1. Sveži proizvodi | L55: 56 | M55: 1. Sveži proizvodi
A56: 57 | B56: 1 | C56: Lajkovac | D56: FF | E56: 0 | F56: 0 | G56: Lajkovac | H56: 1. Sveži proizvodi | L56: 57 | M56: 1. Sveži proizvodi
A57: 58 | B57: 1 | C57: Lajkovac | D57: FF | E57: 0 | F57: 0 | G57: Lajkovac | H57: 1. Sveži proizvodi | L57: 58 | M57: 1. Sveži proizvodi
A58: 59 | B58: 1 | C58: Lajkovac | D58: FF | E58: 0 | F58: 0 | G58: Lajkovac | H58: 1. Sveži proizvodi | L58: 59 | M58: 1. Sveži proizvodi
A59: 61 | B59: 1 | C59: Lajkovac | D59: FF | E59: 0 | F59: 0 | G59: Lajkovac | H59: 1. Sveži proizvodi | L59: 61 | M59: 1. Sveži proizvodi
A60: 62 | B60: 1 | C60: Lajkovac | D60: FF | E60: 0 | F60: 0 | G60: Lajkovac | H60: 1. Sveži proizvodi | L60: 62 | M60: 1. Sveži proizvodi
A61: 63 | B61: 1 | C61: Lajkovac | D61: FF | E61: 0 | F61: 0 | G61: Lajkovac | H61: 1. Sveži proizvodi | L61: 63 | M61: 1. Sveži proizvodi
A62: 64 | B62: 1 | C62: Lajkovac | D62: FF | E62: 0 | F62: 0 | G62: Lajkovac | H62: 1. Sveži proizvodi | L62: 64 | M62: 1. Sveži proizvodi
A63: 65 | B63: 1 | C63: Lajkovac | D63: FF | E63: 0 | F63: 0 | G63: Lajkovac | H63: 1. Sveži proizvodi | L63: 65 | M63: 1. Sveži proizvodi
A64: 66 | B64: 1 | C64: Lajkovac | D64: FF | E64: 0 | F64: 0 | G64: Lajkovac | H64: 1. Sveži proizvodi | L64: 66 | M64: 1. Sveži proizvodi
A65: 67 | B65: 1 | C65: Lajkovac | D65: FF | E65: 0 | F65: 0 | G65: Lajkovac | H65: 1. Sveži proizvodi | L65: 67 | M65: 1. Sveži proizvodi
A66: 68 | B66: 1 | C66: Lajkovac | D66: FF | E66: 0 | F66: 0 | G66: Lajkovac | H66: 1. Sveži proizvodi | L66: 68 | M66: 1. Sveži proizvodi
A67: 69 | B67: 1 | C67: Lajkovac | D67: FF | E67: 0 | F67: 0 | G67: =INDEX($J$1:$K$37, MATCH(B67,$J$1:$J$37,), MATCH("KC",$J$1:$K$1,)) -> Lajkovac | H67: =INDEX($L$1:$M$161, MATCH(A67,$L$1:$L$161,), MATCH("GRUPA",$L$1:$M$1,)) -> 1. Sveži proizvodi | L67: 69 | M67: 1. Sveži proizvodi
A68: 71 | B68: 1 | C68: Lajkovac | D68: FF | E68: 0 | F68: 0 | G68: Lajkovac | H68: 1. Sveži proizvodi | L68: 71 | M68: 1. Sveži proizvodi
A69: 72 | B69: 1 | C69: Lajkovac | D69: FF | E69: 0 | F69: 0 | G69: Lajkovac | H69: 1. Sveži proizvodi | L69: 72 | M69: 1. Sveži proizvodi
A70: 73 | B70: 1 | C70: Lajkovac | D70: FF | E70: 0 | F70: 0 | G70: Lajkovac | H70: 1. Sveži proizvodi | L70: 73 | M70: 1. Sveži proizvodi
A71: 74 | B71: 1 | C71: Lajkovac | D71: FF | E71: 0 | F71: 0 | G71: Lajkovac | H71: 1. Sveži proizvodi | L71: 74 | M71: 1. Sveži proizvodi
A72: 75 | B72: 1 | C72: Lajkovac | D72: FF | E72: 0 | F72: 0 | G72: Lajkovac | H72: 1. Sveži proizvodi | L72: 75 | M72: 1. Sveži proizvodi
A73: 76 | B73: 1 | C73: Lajkovac | D73: FF | E73: 0 | F73: 0 | G73: Lajkovac | H73: 1. Sveži proizvodi | L73: 76 | M73: 1. Sveži proizvodi
A74: 77 | B74: 1 | C74: Lajkovac | D74: FF | E74: 0 | F74: 0 | G74: Lajkovac | H74: 1. Sveži proizvodi | L74: 77 | M74: 1. Sveži proizvodi
A75: 78 | B75: 1 | C75: Lajkovac | D75: FF | E75: 0 | F75: 0 | G75: Lajkovac | H75: 1. Sveži proizvodi | L75: 78 | M75: 1. Sveži proizvodi
A76: 80 | B76: 1 | C76: Lajkovac | D76: FF | E76: 0 | F76: 0 | G76: Lajkovac | H76: 1. Sveži proizvodi | L76: 80 | M76: 1. Sveži proizvodi
A77: 82 | B77: 1 | C77: Lajkovac | D77: FF | E77: 0 | F77: 0 | G77: Lajkovac | H77: 1. Sveži proizvodi | L77: 82 | M77: 1. Sveži proizvodi
A78: 89 | B78: 1 | C78: Lajkovac | D78: FF | E78: 0 | F78: 0 | G78: Lajkovac | H78: 1. Sveži proizvodi | L78: 89 | M78: 1. Sveži proizvodi
A79: 90 | B79: 1 | C79: Lajkovac | D79: FF | E79: 0 | F79: 0 | G79: Lajkovac | H79: 1. Sveži proizvodi | L79: 90 | M79: 1. Sveži proizvodi
A80: 92 | B80: 1 | C80: Lajkovac | D80: FF | E80: 0 | F80: 0 | G80: Lajkovac | H80: 1. Sveži proizvodi | L80: 92 | M80: 1. Sveži proizvodi
A81: 93 | B81: 1 | C81: Lajkovac | D81: FF | E81: 0 | F81: 0 | G81: Lajkovac | H81: 1. Sveži proizvodi | L81: 93 | M81: 1. Sveži proizvodi
A82: 94 | B82: 1 | C82: Lajkovac | D82: FF | E82: 0 | F82: 0 | G82: Lajkovac | H82: 1. Sveži proizvodi | L82: 94 | M82: 1. Sveži proizvodi
A83: 95 | B83: 1 | C83: Lajkovac | D83: FF | E83: 0 | F83: 0 | G83: Lajkovac | H83: 1. Sveži proizvodi | L83: 95 | M83: 1. Sveži proizvodi
A84: 96 | B84: 1 | C84: Lajkovac | D84: FF | E84: 0 | F84: 0 | G84: Lajkovac | H84: 1. Sveži proizvodi | L84: 96 | M84: 1. Sveži proizvodi
A85: 97 | B85: 1 | C85: Lajkovac | D85: FF | E85: 0 | F85: 0 | G85: Lajkovac | H85: 1. Sveži proizvodi | L85: 97 | M85: 1. Sveži proizvodi
A86: 98 | B86: 1 | C86: Lajkovac | D86: FF | E86: 0 | F86: 0 | G86: Lajkovac | H86: 1. Sveži proizvodi | L86: 98 | M86: 1. Sveži proizvodi
A87: 99 | B87: 1 | C87: Lajkovac | D87: FF | E87: 0 | F87: 0 | G87: Lajkovac | H87: 1. Sveži proizvodi | L87: 99 | M87: 1. Sveži proizvodi
A88: 151 | B88: 1 | C88: Lajkovac | D88: FF | E88: 0 | F88: 0 | G88: Lajkovac | H88: 2. Smrznuti proizvodi | L88: 151 | M88: 2. Smrznuti proizvodi
A89: 152 | B89: 1 | C89: Lajkovac | D89: FF | E89: 0 | F89: 0 | G89: Lajkovac | H89: 2. Smrznuti proizvodi | L89: 152 | M89: 2. Smrznuti proizvodi
A90: 153 | B90: 1 | C90: Lajkovac | D90: FF | E90: 0 | F90: 0 | G90: Lajkovac | H90: 2. Smrznuti proizvodi | L90: 153 | M90: 2. Smrznuti proizvodi
A91: 154 | B91: 1 | C91: Lajkovac | D91: FF | E91: 0 | F91: 0 | G91: Lajkovac | H91: 2. Smrznuti proizvodi | L91: 154 | M91: 2. Smrznuti proizvodi
A92: 155 | B92: 1 | C92: Lajkovac | D92: FF | E92: 0 | F92: 0 | G92: Lajkovac | H92: 2. Smrznuti proizvodi | L92: 155 | M92: 2. Smrznuti proizvodi
A93: 156 | B93: 1 | C93: Lajkovac | D93: FF | E93: 0 | F93: 0 | G93: Lajkovac | H93: 2. Smrznuti proizvodi | L93: 156 | M93: 2. Smrznuti proizvodi
A94: 157 | B94: 1 | C94: Lajkovac | D94: FF | E94: 0 | F94: 0 | G94: Lajkovac | H94: 2. Smrznuti proizvodi | L94: 157 | M94: 2. Smrznuti proizvodi
A95: 158 | B95: 1 | C95: Lajkovac | D95: FF | E95: 0 | F95: 0 | G95: Lajkovac | H95: 2. Smrznuti proizvodi | L95: 158 | M95: 2. Smrznuti proizvodi
A96: 159 | B96: 1 | C96: Lajkovac | D96: FF | E96: 0 | F96: 0 | G96: Lajkovac | H96: 2. Smrznuti proizvodi | L96: 159 | M96: 2. Smrznuti proizvodi
A97: 160 | B97: 1 | C97: Lajkovac | D97: FF | E97: 0 | F97: 0 | G97: Lajkovac | H97: 2. Smrznuti proizvodi | L97: 160 | M97: 2. Smrznuti proizvodi
A98: 161 | B98: 1 | C98: Lajkovac | D98: FF | E98: 0 | F98: 0 | G98: Lajkovac | H98: 2. Smrznuti proizvodi | L98: 161 | M98: 2. Smrznuti proizvodi
A99: 162 | B99: 1 | C99: Lajkovac | D99: FF | E99: 0 | F99: 0 | G99: Lajkovac | H99: 2. Smrznuti proizvodi | L99: 162 | M99: 2. Smrznuti proizvodi
A100: 163 | B100: 1 | C100: Lajkovac | D100: FF | E100: 0 | F100: 0 | G100: Lajkovac | H100: 2. Smrznuti proizvodi | L100: 163 | M100: 2. Smrznuti proizvodi
A101: 164 | B101: 1 | C101: Lajkovac | D101: FF | E101: 0 | F101: 0 | G101: Lajkovac | H101: 2. Smrznuti proizvodi | L101: 164 | M101: 2. Smrznuti proizvodi
A102: 165 | B102: 1 | C102: Lajkovac | D102: FF | E102: 0 | F102: 0 | G102: Lajkovac | H102: 2. Smrznuti proizvodi | L102: 165 | M102: 2. Smrznuti proizvodi
A103: 166 | B103: 1 | C103: Lajkovac | D103: FF | E103: 0 | F103: 0 | G103: Lajkovac | H103: 2. Smrznuti proizvodi | L103: 166 | M103: 2. Smrznuti proizvodi
A104: 171 | B104: 1 | C104: Lajkovac | D104: FF | E104: 0 | F104: 0 | G104: Lajkovac | H104: 2. Smrznuti proizvodi | L104: 171 | M104: 2. Smrznuti proizvodi
A105: 172 | B105: 1 | C105: Lajkovac | D105: FF | E105: 0 | F105: 0 | G105: Lajkovac | H105: 2. Smrznuti proizvodi | L105: 172 | M105: 2. Smrznuti proizvodi
A106: 301 | B106: 1 | C106: Lajkovac | D106: FF | E106: 0 | F106: 0 | G106: Lajkovac | H106: 3. Prepađevine | L106: 301 | M106: 3. Prepađevine
A107: 302 | B107: 1 | C107: Lajkovac | D107: FF | E107: 0 | F107: 0 | G107: Lajkovac | H107: 3. Prepađevine | L107: 302 | M107: 3. Prepađevine
A108: 303 | B108: 1 | C108: Lajkovac | D108: FF | E108: 0 | F108: 0 | G108: Lajkovac | H108: 3. Prepađevine | L108: 303 | M108: 3. Prepađevine
A109: 304 | B109: 1 | C109: Lajkovac | D109: FF | E109: 0 | F109: 0 | G109: Lajkovac | H109: 3. Prepađevine | L109: 304 | M109: 3. Prepađevine
A110: 305 | B110: 1 | C110: Lajkovac | D110: FF | E110: 0 | F110: 0 | G110: Lajkovac | H110: 3. Prepađevine | L110: 305 | M110: 3. Prepađevine
A111: 306 | B111: 1 | C111: Lajkovac | D111: FF | E111: 0 | F111: 0 | G111: Lajkovac | H111: 3. Prepađevine | L111: 306 | M111: 3. Prepađevine
A112: 307 | B112: 1 | C112: Lajkovac | D112: FF | E112: 0 | F112: 0 | G112: Lajkovac | H112: 3. Prepađevine | L112: 307 | M112: 3. Prepađevine
A113: 308 | B113: 1 | C113: Lajkovac | D113: FF | E113: 0 | F113: 0 | G113: Lajkovac | H113: 3. Prepađevine | L113: 308 | M113: 3. Prepađevine
A114: 309 | B114: 1 | C114: Lajkovac | D114: FF | E114: 0 | F114: 0 | G114: Lajkovac | H114: 3. Prepađevine | L114: 309 | M114: 3. Prepađevine
A115: 310 | B115: 1 | C115: Lajkovac | D115: FF | E115: 0 | F115: 0 | G115: Lajkovac | H115: 3. Prepađevine | L115: 310 | M115: 3. Prepađevine
A116: 311 | B116: 1 | C116: Lajkovac | D116: FF | E116: 0 | F116: 0 | G116: Lajkovac | H116: 3. Prepađevine | L116: 311 | M116: 3. Prepađevine
A117: 312 | B117: 1 | C117: Lajkovac | D117: FF | E117: 0 | F117: 0 | G117: Lajkovac | H117: 3. Prepađevine | L117: 312 | M117: 3. Prepađevine
A118: 313 | B118: 1 | C118: Lajkovac | D118: FF | E118: 0 | F118: 0 | G118: Lajkovac | H118: 3. Prepađevine | L118: 313 | M118: 3. Prepađevine
A119: 314 | B119: 1 | C119: Lajkovac | D119: FF | E119: 0 | F119: 0 | G119: Lajkovac | H119: 3. Prepađevine | L119: 314 | M119: 3. Prepađevine
A120: 315 | B120: 1 | C120: Lajkovac | D120: FF | E120: 0 | F120: 0 | G120: Lajkovac | H120: 3. Prepađevine | L120: 315 | M120: 3. Prepađevine
A121: 316 | B121: 1 | C121: Lajkovac | D121: FF | E121: 0 | F121: 0 | G121: Lajkovac | H121: 3. Prepađevine | L121: 316 | M121: 3. Prepađevine
A122: 317 | B122: 1 | C122: Lajkovac | D122: FF | E122: 0 | F122: 0 | G122: Lajkovac | H122: 3. Prepađevine | L122: 317 | M122: 3. Prepađevine
A123: 318 | B123: 1 | C123: Lajkovac | D123: FF | E123: 0 | F123: 0 | G123: Lajkovac | H123: 3. Prepađevine | L123: 318 | M123: 3. Prepađevine
A124: 319 | B124: 1 | C124: Lajkovac | D124: FF | E124: 0 | F124: 0 | G124: Lajkovac | H124: 3. Prepađevine | L124: 319 | M124: 3. Prepađevine
A125: 321 | B125: 1 | C125: Lajkovac | D125: FF | E125: 0 | F125: 0 | G125: Lajkovac | H125: 3. Prepađevine | L125: 321 | M125: 3. Prepađevine
A126: 322 | B126: 1 | C126: Lajkovac | D126: FF | E126: 0 | F126: 0 | G126: Lajkovac | H126: 3. Prepađevine | L126: 322 | M126: 3. Prepađevine
A127: 323 | B127: 1 | C127: Lajkovac | D127: FF | E127: 0 | F127: 0 | G127: Lajkovac | H127: 3. Prepađevine | L127: 323 | M127: 3. Prepađevine
A128: 324 | B128: 1 | C128: Lajkovac | D128: FF | E128: 0 | F128: 0 | G128: Lajkovac | H128: 3. Prepađevine | L128: 324 | M128: 3. Prepađevine
A129: 326 | B129: 1 | C129: Lajkovac | D129: FF | E129: 0 | F129: 0 | G129: Lajkovac | H129: 3. Prepađevine | L129: 326 | M129: 3. Prepađevine
A130: 327 | B130: 1 | C130: Lajkovac | D130: FF | E130: 0 | F130: 0 | G130: Lajkovac | H130: 3. Prepađevine | L130: 327 | M130: 3. Prepađevine
A131: 330 | B131: 1 | C131: Lajkovac | D131: FF | E131: 0 | F131: 0 | G131: =INDEX($J$1:$K$37, MATCH(B131,$J$1:$J$37,), MATCH("KC",$J$1:$K$1,)) -> Lajkovac | H131: =INDEX($L$1:$M$161, MATCH(A131,$L$1:$L$161,), MATCH("GRUPA",$L$1:$M$1,)) -> 3. Prepađevine | L131: 330 | M131: 3. Prepađevine
A132: 335 | B132: 1 | C132: Lajkovac | D132: FF | E132: 0 | F132: 0 | G132: Lajkovac | H132: 3. Prepađevine | L132: 335 | M132: 3. Prepađevine
A133: 336 | B133: 1 | C133: Lajkovac | D133: FF | E133: 0 | F133: 0 | G133: Lajkovac | H133: 3. Prepađevine | L133: 336 | M133: 3. Prepađevine
A134: 337 | B134: 1 | C134: Lajkovac | D134: FF | E134: 0 | F134: 0 | G134: Lajkovac | H134: 3. Prepađevine | L134: 337 | M134: 3. Prepađevine
A135: 338 | B135: 1 | C135: Lajkovac | D135: FF | E135: 0 | F135: 0 | G135: Lajkovac | H135: 3. Prepađevine | L135: 338 | M135: 3. Prepađevine
A136: 339 | B136: 1 | C136: Lajkovac | D136: FF | E136: 0 | F136: 0 | G136: Lajkovac | H136: 3. Prepađevine | L136: 339 | M136: 3. Prepađevine
A137: 351 | B137: 1 | C137: Lajkovac | D137: FF | E137: 0 | F137: 0 | G137: Lajkovac | H137: 3. Prepađevine | L137: 351 | M137: 3. Prepađevine
A138: 352 | B138: 1 | C138: Lajkovac | D138: FF | E138: 0 | F138: 0 | G138: Lajkovac | H138: 3. Prepađevine | L138: 352 | M138: 3. Prepađevine
A139: 353 | B139: 1 | C139: Lajkovac | D139: FF | E139: 0 | F139: 0 | G139: Lajkovac | H139: 3. Prepađevine | L139: 353 | M139: 3. Prepađevine
A140: 354 | B140: 1 | C140: Lajkovac | D140: FF | E140: 0 | F140: 0 | G140: Lajkovac | H140: 3. Prepađevine | L140: 354 | M140: 3. Prepađevine
A141: 355 | B141: 1 | C141: Lajkovac | D141: FF | E141: 0 | F141: 0 | G141: Lajkovac | H141: 3. Prepađevine | L141: 355 | M141: 3. Prepađevine
A142: 356 | B142: 1 | C142: Lajkovac | D142: FF | E142: 0 | F142: 0 | G142: Lajkovac | H142: 3. Prepađevine | L142: 356 | M142: 3. Prepađevine
A143: 357 | B143: 1 | C143: Lajkovac | D143: FF | E143: 0 | F143: 0 | G143: Lajkovac | H143: 3. Prepađevine | L143: 357 | M143: 3. Prepađevine
A144: 360 | B144: 1 | C144: Lajkovac | D144: FF | E144: 0 | F144: 0 | G144: Lajkovac | H144: 3. Prepađevine | L144: 360 | M144: 3. Prepađevine
A145: 361 | B145: 1 | C145: Lajkovac | D145: FF | E145: 0 | F145: 0 | G145: Lajkovac | H145: 3. Prepađevine | L145: 361 | M145: 3. Prepađevine
A146: 362 | B146: 1 | C146: Lajkovac | D146: FF | E146: 0 | F146: 0 | G146: Lajkovac | H146: 3. Prepađevine | L146: 362 | M146: 3. Prepađevine
A147: 364 | B147: 1 | C147: Lajkovac | D147: FF | E147: 0 | F147: 0 | G147: Lajkovac | H147: 3. Prepađevine | L147: 364 | M147: 3. Prepađevine
A148: 365 | B148: 1 | C148: Lajkovac | D148: FF | E148: 0 | F148: 0 | G148: Lajkovac | H148: 3. Prepađevine | L148: 365 | M148: 3. Prepađevine
A149: 366 | B149: 1 | C149: Lajkovac | D149: FF | E149: 0 | F149: 0 | G149: Lajkovac | H149: 3. Prepađevine | L149: 366 | M149: 3. Prepađevine
A150: 367 | B150: 1 | C150: Lajkovac | D150: FF | E150: 0 | F150: 0 | G150: Lajkovac | H150: 3. Prepađevine | L150: 367 | M150: 3. Prepađevine
A151: 368 | B151: 1 | C151: Lajkovac | D151: FF | E151: 0 | F151: 0 | G151: Lajkovac | H151: 3. Prepađevine | L151: 368 | M151: 3. Prepađevine
A152: 369 | B152: 1 | C152: Lajkovac | D152: FF | E152: 0 | F152: 0 | G152: Lajkovac | H152: 3. Prepađevine | L152: 369 | M152: 3. Prepađevine
A153: 370 | B153: 1 | C153: Lajkovac | D153: FF | E153: 0 | F153: 0 | G153: Lajkovac | H153: 3. Prepađevine | L153: 370 | M153: 3. Prepađevine
A154: 371 | B154: 1 | C154: Lajkovac | D154: FF | E154: 0 | F154: 0 | G154: Lajkovac | H154: 3. Prepađevine | L154: 371 | M154: 3. Prepađevine
A155: 372 | B155: 1 | C155: Lajkovac | D155: FF | E155: 0 | F155: 0 | G155: Lajkovac | H155: 3. Prepađevine | L155: 372 | M155: 3. Prepađevine
A156: 373 | B156: 1 | C156: Lajkovac | D156: FF | E156: 0 | F156: 0 | G156: Lajkovac | H156: 3. Prepađevine | L156: 373 | M156: 3. Prepađevine
A157: 374 | B157: 1 | C157: Lajkovac | D157: FF | E157: 0 | F157: 0 | G157: Lajkovac | H157: 3. Prepađevine | L157: 374 | M157: 3. Prepađevine
A158: 375 | B158: 1 | C158: Lajkovac | D158: FF | E158: 0 | F158: 0 | G158: Lajkovac | H158: 3. Prepađevine | L158: 375 | M158: 3. Prepađevine
A159: 376 | B159: 1 | C159: Lajkovac | D159: FF | E159: 0 | F159: 0 | G159: Lajkovac | H159: 3. Prepađevine | L159: 376 | M159: 3. Prepađevine
A160: 377 | B160: 1 | C160: Lajkovac | D160: FF | E160: 0 | F160: 0 | G160: Lajkovac | H160: 3. Prepađevine | L160: 377 | M160: 3. Prepađevine
A161: 378 | B161: 1 | C161: Lajkovac | D161: FF | E161: 0 | F161: 0 | G161: Lajkovac | H161: 3. Prepađevine | L161: 378 | M161: 3. Prepađevine
A162: 401 | B162: 1 | C162: Lajkovac | D162: FF | E162: 0 | F162: 0 | G162: Lajkovac
A163: 802 | B163: 1 | C163: Lajkovac | D163: FF | E163: 0 | F163: 0 | G163: Lajkovac
A164: 2050 | B164: 1 | C164: Lajkovac | D164: FF | E164: 0 | F164: 0 | G164: Lajkovac
A165: 2065 | B165: 1 | C165: Lajkovac | D165: FF | E165: 0 | F165: 0 | G165: Lajkovac
A166: 2185 | B166: 1 | C166: Lajkovac | D166: FF | E166: 0 | F166: 0 | G166: Lajkovac
A167: 2320 | B167: 1 | C167: Lajkovac | D167: FF | E167: 0 | F167: 0 | G167: Lajkovac
A168: 2330 | B168: 1 | C168: Lajkovac | D168: FF | E168: 0 | F168: 0 | G168: Lajkovac
A169: 2335 | B169: 1 | C169: Lajkovac | D169: FF | E169: 0 | F169: 0 | G169: Lajkovac
A170: 2600 | B170: 1 | C170: Lajkovac | D170: FF | E170: 0 | F170: 0 | G170: Lajkovac
A171: 2660 | B171: 1 | C171: Lajkovac | D171: FF | E171: 0 | F171: 0 | G171: Lajkovac
A172: 3049 | B172: 1 | C172: Lajkovac | D172: FF | E172: 0 | F172: 0 | G172: Lajkovac
A173: 3051 | B173: 1 | C173: Lajkovac | D173: FF | E173: 0 | F173: 0 | G173: Lajkovac
A174: 3052 | B174: 1 | C174: Lajkovac | D174: FF | E174: 0 | F174: 0 | G174: Lajkovac
A175: 3054 | B175: 1 | C175: Lajkovac | D175: FF | E175: 0 | F175: 0 | G175: Lajkovac
A176: 3055 | B176: 1 | C176: Lajkovac | D176: FF | E176: 0 | F176: 0 | G176: Lajkovac
A177: 3062 | B177: 1 | C177: Lajkovac | D177: FF | E177: 0 | F177: 0 | G177: Lajkovac
A178: 3068 | B178: 1 | C178: Lajkovac | D178: FF | E178: 0 | F178: 0 | G178: Lajkovac
A179: 3087 | B179: 1 | C179: Lajkovac | D179: FF | E179: 0 | F179: 0 | G179: Lajkovac
A180: 3092 | B180: 1 | C180: Lajkovac | D180: FF | E180: 0 | F180: 0 | G180: Lajkovac
A181: 3127 | B181: 1 | C181: Lajkovac | D181: FF | E181: 0 | F181: 0 | G181: Lajkovac
A182: 3130 | B182: 1 | C182: Lajkovac | D182: FF | E182: 0 | F182: 0 | G182: Lajkovac
A183: 3135 | B183: 1 | C183: Lajkovac | D183: FF | E183: 0 | F183: 0 | G183: Lajkovac
A184: 3154 | B184: 1 | C184: Lajkovac | D184: FF | E184: 0 | F184: 0 | G184: Lajkovac
A185: 3162 | B185: 1 | C185: Lajkovac | D185: FF | E185: 0 | F185: 0 | G185: Lajkovac
A186: 3182 | B186: 1 | C186: Lajkovac | D186: FF | E186: 0 | F186: 0 | G186: Lajkovac
A187: 3195 | B187: 1 | C187: Lajkovac | D187: FF | E187: 0 | F187: 0 | G187: Lajkovac
A188: 3196 | B188: 1 | C188: Lajkovac | D188: FF | E188: 0 | F188: 0 | G188: Lajkovac
A189: 3225 | B189: 1 | C189: Lajkovac | D189: FF | E189: 0 | F189: 0 | G189: Lajkovac
A190: 3228 | B190: 1 | C190: Lajkovac | D190: FF | E190: 0 | F190: 0 | G190: Lajkovac
A191: 3358 | B191: 1 | C191: Lajkovac | D191: FF | E191: 0 | F191: 0 | G191: Lajkovac
A192: 3395 | B192: 1 | C192: Lajkovac | D192: FF | E192: 0 | F192: 0 | G192: Lajkovac
A193: 3550 | B193: 1 | C193: Lajkovac | D193: FF | E193: 0 | F193: 0 | G193: Lajkovac
A194: 3552 | B194: 1 | C194: Lajkovac | D194: FF | E194: 0 | F194: 0 | G194: Lajkovac
A195: 3645 | B195: 1 | C195: Lajkovac | D195: FF | E195: 0 | F195: 0 | G195: =INDEX($J$1:$K$37, MATCH(B195,$J$1:$J$37,), MATCH("KC",$J$1:$K$1,)) -> Lajkovac | H195: =INDEX($L$1:$M$161, MATCH(A195,$L$1:$L$161,), MATCH("GRUPA",$L$1:$M$1,)) -> 
A196: 3648 | B196: 1 | C196: Lajkovac | D196: FF | E196: 0 | F196: 0 | G196: Lajkovac
A197: 4000 | B197: 1 | C197: Lajkovac | D197: FF | E197: 0 | F197: 0 | G197: Lajkovac
A198: 4008 | B198: 1 | C198: Lajkovac | D198: FF | E198: 0 | F198: 0 | G198: Lajkovac
A199: 4010 | B199: 1 | C199: Lajkovac | D199: FF | E199: 0 | F199: 0 | G199: Lajkovac
A200: 4018 | B200: 1 | C200: Lajkovac | D200: FF | E200: 0 | F200: 0 | G200: Lajkovac
... 1908 more rows

Sheet KUMULATIV
E1: COPY | N1: PASTE | W1: DNEVNI PLAN
E3: DNEVNA PRODAJA KUMULATIV | I3: PLAN KUMULATIV | N3: DNEVNA PRODAJA DO DANA | R3: PLAN | W3: DNEVNI PLAN
A4: KC | B4: RB | C4: PR/P | D4: KUPAC | E4: 1. Sveži proizvodi | F4: 2. Smrznuti proizvodi | G4: 3. Prepađevine | H4: Grand Total | I4: 1. Sveži proizvodi | J4: 2. Smrznuti proizvodi | K4: 3. Prepađevine | L4: Grand Total | N4: 1. Sveži proizvodi | O4: 2. Smrznuti proizvodi | P4: 3. Prepađevine | Q4: Grand Total | R4: 1. Sveži proizvodi | S4: 2. Smrznuti proizvodi | T4: 3. Prepađevine | U4: Grand Total | W4: 1. Sveži proizvodi | X4: 2. Smrznuti proizvodi | Y4: 3. Prepađevine | Z4: Grand Total
A5: =PRORAČUNI!A3 ->  | B5: 1 | C5: PR | D5: =PRORAČUNI!B3 ->  | E5: =IFERROR(+N5+PRORAČUNI!L3,0) -> 14981.999 | F5: =IFERROR(+O5+PRORAČUNI!M3,0) -> 0 | G5: =IFERROR(+P5+PRORAČUNI!N3,0) -> 281.808 | H5: =IFERROR(+Q5+PRORAČUNI!O3,0) -> 15263.807 | I5: =IFERROR(+R5+PRORAČUNI!P3,0) -> 0 | J5: =IFERROR(+S5+PRORAČUNI!Q3,0) -> 0 | K5: =IFERROR(+T5+PRORAČUNI!R3,0) -> 0 | L5: =IFERROR(+U5+PRORAČUNI!S3,0) -> 0 | N5: 14981.999 | O5: 0 | P5: 281.808 | Q5: 15263.807 | R5: 12423.96993 | S5: 0 | T5: 1764.105337 | U5: 14188.07527 | W5: =$Z5*PRORAČUNI!H3 ->  | X5: =$Z5*PRORAČUNI!I3 ->  | Y5: =$Z5*PRORAČUNI!J3 ->  | Z5: ='PLAN UNOSA'!$B$38*PRORAČUNI!K3 -> 
A6: =$A$5 ->  | B6: 2 | C6: PR | D6: =PRORAČUNI!B4 ->  | E6: =IFERROR(+N6+PRORAČUNI!L4,0) -> 8777.584 | F6: =IFERROR(+O6+PRORAČUNI!M4,0) -> 0 | G6: =IFERROR(+P6+PRORAČUNI!N4,0) -> 1250.073 | H6: =IFERROR(+Q6+PRORAČUNI!O4,0) -> 10027.657 | I6: =IFERROR(+R6+PRORAČUNI!P4,0) -> 0 | J6: =IFERROR(+S6+PRORAČUNI!Q4,0) -> 0 | K6: =IFERROR(+T6+PRORAČUNI!R4,0) -> 0 | L6: =IFERROR(+U6+PRORAČUNI!S4,0) -> 0 | N6: 8777.584 | O6: 0 | P6: 1250.073 | Q6: 10027.657 | R6: 7672.8424 | S6: 0 | T6: 106.9944784 | U6: 7779.836878 | W6: =$Z6*PRORAČUNI!H4 ->  | X6: =$Z6*PRORAČUNI!I4 ->  | Y6: =$Z6*PRORAČUNI!J4 ->  | Z6: ='PLAN UNOSA'!$B$38*PRORAČUNI!K4 -> 
A7: =$A$5 ->  | B7: 3 | C7: PR | D7: =PRORAČUNI!B5 ->  | E7: =IFERROR(+N7+PRORAČUNI!L5,0) -> 2999.917 | F7: =IFERROR(+O7+PRORAČUNI!M5,0) -> 27.403 | G7: =IFERROR(+P7+PRORAČUNI!N5,0) -> 530.49 | H7: =IFERROR(+Q7+PRORAČUNI!O5,0) -> 3557.81 | I7: =IFERROR(+R7+PRORAČUNI!P5,0) -> 0 | J7: =IFERROR(+S7+PRORAČUNI!Q5,0) -> 0 | K7: =IFERROR(+T7+PRORAČUNI!R5,0) -> 0 | L7: =IFERROR(+U7+PRORAČUNI!S5,0) -> 0 | N7: 2999.917 | O7: 27.403 | P7: 530.49 | Q7: 3557.81 | R7: 4252.654088 | S7: 90.63227403 | T7: 885.8233072 | U7: 5229.109669 | W7: =$Z7*PRORAČUNI!H5 ->  | X7: =$Z7*PRORAČUNI!I5 ->  | Y7: =$Z7*PRORAČUNI!J5 ->  | Z7: ='PLAN UNOSA'!$B$38*PRORAČUNI!K5 -> 
B8: 4 | C8: PR | D8: =PRORAČUNI!B6 ->  | E8: =IFERROR(+N8+PRORAČUNI!L6,0) -> 4341.214 | F8: =IFERROR(+O8+PRORAČUNI!M6,0) -> 0 | G8: =IFERROR(+P8+PRORAČUNI!N6,0) -> 0 | H8: =IFERROR(+Q8+PRORAČUNI!O6,0) -> 4341.214 | I8: =IFERROR(+R8+PRORAČUNI!P6,0) -> 0 | J8: =IFERROR(+S8+PRORAČUNI!Q6,0) -> 0 | K8: =IFERROR(+T8+PRORAČUNI!R6,0) -> 0 | L8: =IFERROR(+U8+PRORAČUNI!S6,0) -> 0 | N8: 4341.214 | O8: 0 | P8: 0 | Q8: 4341.214 | R8: 4057.26851 | S8: 0 | T8: 0 | U8: 4057.26851 | W8: =$Z8*PRORAČUNI!H6 ->  | X8: =$Z8*PRORAČUNI!I6 ->  | Y8: =$Z8*PRORAČUNI!J6 ->  | Z8: ='PLAN UNOSA'!$B$38*PRORAČUNI!K6 -> 
B9: 5 | C9: PR | D9: =PRORAČUNI!B7 ->  | E9: =IFERROR(+N9+PRORAČUNI!L7,0) -> 1162.277 | F9: =IFERROR(+O9+PRORAČUNI!M7,0) -> 0 | G9: =IFERROR(+P9+PRORAČUNI!N7,0) -> 260.5 | H9: =IFERROR(+Q9+PRORAČUNI!O7,0) -> 1422.777 | I9: =IFERROR(+R9+PRORAČUNI!P7,0) -> 0 | J9: =IFERROR(+S9+PRORAČUNI!Q7,0) -> 0 | K9: =IFERROR(+T9+PRORAČUNI!R7,0) -> 0 | L9: =IFERROR(+U9+PRORAČUNI!S7,0) -> 0 | N9: 1162.277 | O9: 0 | P9: 260.5 | Q9: 1422.777 | R9: 3114.413315 | S9: 38.24960468 | T9: 619.7873694 | U9: 3772.450289 | W9: =$Z9*PRORAČUNI!H7 ->  | X9: =$Z9*PRORAČUNI!I7 ->  | Y9: =$Z9*PRORAČUNI!J7 ->  | Z9: ='PLAN UNOSA'!$B$38*PRORAČUNI!K7 -> 
B10: 6 | C10: PR | D10: =PRORAČUNI!B8 ->  | E10: =IFERROR(+N10+PRORAČUNI!L8,0) -> 3121.599 | F10: =IFERROR(+O10+PRORAČUNI!M8,0) -> 0 | G10: =IFERROR(+P10+PRORAČUNI!N8,0) -> 441.65 | H10: =IFERROR(+Q10+PRORAČUNI!O8,0) -> 3563.249 | I10: =IFERROR(+R10+PRORAČUNI!P8,0) -> 0 | J10: =IFERROR(+S10+PRORAČUNI!Q8,0) -> 0 | K10: =IFERROR(+T10+PRORAČUNI!R8,0) -> 0 | L10: =IFERROR(+U10+PRORAČUNI!S8,0) -> 0 | N10: 3121.599 | O10: 0 | P10: 441.65 | Q10: 3563.249 | R10: 2683.3189 | S10: 0 | T10: 269.559039 | U10: 2952.877939 | W10: =$Z10*PRORAČUNI!H8 ->  | X10: =$Z10*PRORAČUNI!I8 ->  | Y10: =$Z10*PRORAČUNI!J8 ->  | Z10: ='PLAN UNOSA'!$B$38*PRORAČUNI!K8 -> 
B11: 7 | C11: PR | D11: =PRORAČUNI!B9 ->  | E11: =IFERROR(+N11+PRORAČUNI!L9,0) -> 115.361 | F11: =IFERROR(+O11+PRORAČUNI!M9,0) -> 0 | G11: =IFERROR(+P11+PRORAČUNI!N9,0) -> 1604.839 | H11: =IFERROR(+Q11+PRORAČUNI!O9,0) -> 1720.2 | I11: =IFERROR(+R11+PRORAČUNI!P9,0) -> 0 | J11: =IFERROR(+S11+PRORAČUNI!Q9,0) -> 0 | K11: =IFERROR(+T11+PRORAČUNI!R9,0) -> 0 | L11: =IFERROR(+U11+PRORAČUNI!S9,0) -> 0 | N11: 115.361 | O11: 0 | P11: 1604.839 | Q11: 1720.2 | R11: 1817.678529 | S11: 0 | T11: 832.1798549 | U11: 2649.858384 | W11: =$Z11*PRORAČUNI!H9 ->  | X11: =$Z11*PRORAČUNI!I9 ->  | Y11: =$Z11*PRORAČUNI!J9 ->  | Z11: ='PLAN UNOSA'!$B$38*PRORAČUNI!K9 -> 
B12: 8 | C12: PR | D12: =PRORAČUNI!B10 ->  | E12: =IFERROR(+N12+PRORAČUNI!L10,0) -> 1530.921 | F12: =IFERROR(+O12+PRORAČUNI!M10,0) -> 0 | G12: =IFERROR(+P12+PRORAČUNI!N10,0) -> 13.285 | H12: =IFERROR(+Q12+PRORAČUNI!O10,0) -> 1544.206 | I12: =IFERROR(+R12+PRORAČUNI!P10,0) -> 0 | J12: =IFERROR(+S12+PRORAČUNI!Q10,0) -> 0 | K12: =IFERROR(+T12+PRORAČUNI!R10,0) -> 0 | L12: =IFERROR(+U12+PRORAČUNI!S10,0) -> 0 | N12: 1530.921 | O12: 0 | P12: 13.285 | Q12: 1544.206 | R12: 1849.679516 | S12: 0 | T12: 20.06453453 | U12: 1869.744051 | W12: =$Z12*PRORAČUNI!H10 ->  | X12: =$Z12*PRORAČUNI!I10 ->  | Y12: =$Z12*PRORAČUNI!J10 ->  | Z12: ='PLAN UNOSA'!$B$38*PRORAČUNI!K10 -> 
B13: 9 | C13: PR | D13: =PRORAČUNI!B11 ->  | E13: =IFERROR(+N13+PRORAČUNI!L11,0) -> 0 | F13: =IFERROR(+O13+PRORAČUNI!M11,0) -> 1012.721 | G13: =IFERROR(+P13+PRORAČUNI!N11,0) -> 0 | H13: =IFERROR(+Q13+PRORAČUNI!O11,0) -> 1012.721 | I13: =IFERROR(+R13+PRORAČUNI!P11,0) -> 0 | J13: =IFERROR(+S13+PRORAČUNI!Q11,0) -> 0 | K13: =IFERROR(+T13+PRORAČUNI!R11,0) -> 0 | L13: =IFERROR(+U13+PRORAČUNI!S11,0) -> 0 | N13: 0 | O13: 1012.721 | P13: 0 | Q13: 1012.721 | R13: 0 | S13: 1062.211917 | T13: 0 | U13: 1062.211917 | W13: =$Z13*PRORAČUNI!H11 ->  | X13: =$Z13*PRORAČUNI!I11 ->  | Y13: =$Z13*PRORAČUNI!J11 ->  | Z13: ='PLAN UNOSA'!$B$38*PRORAČUNI!K11 -> 
B14: 10 | C14: PR | D14: =PRORAČUNI!B12 ->  | E14: =IFERROR(+N14+PRORAČUNI!L12,0) -> 322.241 | F14: =IFERROR(+O14+PRORAČUNI!M12,0) -> 0 | G14: =IFERROR(+P14+PRORAČUNI!N12,0) -> 13 | H14: =IFERROR(+Q14+PRORAČUNI!O12,0) -> 335.241 | I14: =IFERROR(+R14+PRORAČUNI!P12,0) -> 0 | J14: =IFERROR(+S14+PRORAČUNI!Q12,0) -> 0 | K14: =IFERROR(+T14+PRORAČUNI!R12,0) -> 0 | L14: =IFERROR(+U14+PRORAČUNI!S12,0) -> 0 | N14: 322.241 | O14: 0 | P14: 13 | Q14: 335.241 | R14: 986.5180995 | S14: 0 | T14: 0 | U14: 986.5180995 | W14: =$Z14*PRORAČUNI!H12 ->  | X14: =$Z14*PRORAČUNI!I12 ->  | Y14: =$Z14*PRORAČUNI!J12 ->  | Z14: ='PLAN UNOSA'!$B$38*PRORAČUNI!K12 -> 
B15: 11 | C15: PR | D15: =PRORAČUNI!B13 ->  | E15: =IFERROR(+N15+PRORAČUNI!L13,0) -> 0 | F15: =IFERROR(+O15+PRORAČUNI!M13,0) -> 169.795 | G15: =IFERROR(+P15+PRORAČUNI!N13,0) -> 390.635 | H15: =IFERROR(+Q15+PRORAČUNI!O13,0) -> 560.43 | I15: =IFERROR(+R15+PRORAČUNI!P13,0) -> 0 | J15: =IFERROR(+S15+PRORAČUNI!Q13,0) -> 0 | K15: =IFERROR(+T15+PRORAČUNI!R13,0) -> 0 | L15: =IFERROR(+U15+PRORAČUNI!S13,0) -> 0 | N15: 0 | O15: 169.795 | P15: 390.635 | Q15: 560.43 | R15: 0 | S15: 154.1190063 | T15: 473.6718627 | U15: 627.790869 | W15: =$Z15*PRORAČUNI!H13 ->  | X15: =$Z15*PRORAČUNI!I13 ->  | Y15: =$Z15*PRORAČUNI!J13 ->  | Z15: ='PLAN UNOSA'!$B$38*PRORAČUNI!K13 -> 
B16: 12 | C16: PR | D16: =PRORAČUNI!B14 ->  | E16: =IFERROR(+N16+PRORAČUNI!L14,0) -> 0 | F16: =IFERROR(+O16+PRORAČUNI!M14,0) -> 0 | G16: =IFERROR(+P16+PRORAČUNI!N14,0) -> 0 | H16: =IFERROR(+Q16+PRORAČUNI!O14,0) -> 0 | I16: =IFERROR(+R16+PRORAČUNI!P14,0) -> 0 | J16: =IFERROR(+S16+PRORAČUNI!Q14,0) -> 0 | K16: =IFERROR(+T16+PRORAČUNI!R14,0) -> 0 | L16: =IFERROR(+U16+PRORAČUNI!S14,0) -> 0 | N16: 0 | O16: 0 | P16: 0 | Q16: 0 | R16: 283.2763966 | S16: 175.1177432 | T16: 125.5373559 | U16: 583.9314958 | W16: =$Z16*PRORAČUNI!H14 ->  | X16: =$Z16*PRORAČUNI!I14 ->  | Y16: =$Z16*PRORAČUNI!J14 ->  | Z16: ='PLAN UNOSA'!$B$38*PRORAČUNI!K14 -> 
B17: 13 | C17: PR | D17: =PRORAČUNI!B15 ->  | E17: =IFERROR(+N17+PRORAČUNI!L15,0) -> 451.243 | F17: =IFERROR(+O17+PRORAČUNI!M15,0) -> 476.608 | G17: =IFERROR(+P17+PRORAČUNI!N15,0) -> 111.786 | H17: =IFERROR(+Q17+PRORAČUNI!O15,0) -> 1039.637 | I17: =IFERROR(+R17+PRORAČUNI!P15,0) -> 0 | J17: =IFERROR(+S17+PRORAČUNI!Q15,0) -> 0 | K17: =IFERROR(+T17+PRORAČUNI!R15,0) -> 0 | L17: =IFERROR(+U17+PRORAČUNI!S15,0) -> 0 | N17: 451.243 | O17: 476.608 | P17: 111.786 | Q17: 1039.637 | R17: 196.0214986 | S17: 285.3936402 | T17: 59.2333788 | U17: 540.6485177 | W17: =$Z17*PRORAČUNI!H15 ->  | X17: =$Z17*PRORAČUNI!I15 ->  | Y17: =$Z17*PRORAČUNI!J15 ->  | Z17: ='PLAN UNOSA'!$B$38*PRORAČUNI!K15 -> 
B18: 14 | C18: PR | D18: =PRORAČUNI!B16 ->  | E18: =IFERROR(+N18+PRORAČUNI!L16,0) -> 0 | F18: =IFERROR(+O18+PRORAČUNI!M16,0) -> 0 | G18: =IFERROR(+P18+PRORAČUNI!N16,0) -> 0 | H18: =IFERROR(+Q18+PRORAČUNI!O16,0) -> 0 | I18: =IFERROR(+R18+PRORAČUNI!P16,0) -> 0 | J18: =IFERROR(+S18+PRORAČUNI!Q16,0) -> 0 | K18: =IFERROR(+T18+PRORAČUNI!R16,0) -> 0 | L18: =IFERROR(+U18+PRORAČUNI!S16,0) -> 0 | N18: 0 | O18: 0 | P18: 0 | Q18: 0 | R18: 499.2700504 | S18: 3.640852328 | T18: 0 | U18: 502.9109027 | W18: =$Z18*PRORAČUNI!H16 ->  | X18: =$Z18*PRORAČUNI!I16 ->  | Y18: =$Z18*PRORAČUNI!J16 ->  | Z18: ='PLAN UNOSA'!$B$38*PRORAČUNI!K16 -> 
B19: 15 | C19: PR | D19: =PRORAČUNI!B17 ->  | E19: =IFERROR(+N19+PRORAČUNI!L17,0) -> 190.82 | F19: =IFERROR(+O19+PRORAČUNI!M17,0) -> 0 | G19: =IFERROR(+P19+PRORAČUNI!N17,0) -> 227.617 | H19: =IFERROR(+Q19+PRORAČUNI!O17,0) -> 418.437 | I19: =IFERROR(+R19+PRORAČUNI!P17,0) -> 0 | J19: =IFERROR(+S19+PRORAČUNI!Q17,0) -> 0 | K19: =IFERROR(+T19+PRORAČUNI!R17,0) -> 0 | L19: =IFERROR(+U19+PRORAČUNI!S17,0) -> 0 | N19: 190.82 | O19: 0 | P19: 227.617 | Q19: 418.437 | R19: 274.3279603 | S19: 0 | T19: 224.7088648 | U19: 499.0368251 | W19: =$Z19*PRORAČUNI!H17 ->  | X19: =$Z19*PRORAČUNI!I17 ->  | Y19: =$Z19*PRORAČUNI!J17 ->  | Z19: ='PLAN UNOSA'!$B$38*PRORAČUNI!K17 -> 
B20: 16 | C20: PR | D20: =PRORAČUNI!B18 ->  | E20: =IFERROR(+N20+PRORAČUNI!L18,0) -> 122.769 | F20: =IFERROR(+O20+PRORAČUNI!M18,0) -> 0 | G20: =IFERROR(+P20+PRORAČUNI!N18,0) -> 158.82 | H20: =IFERROR(+Q20+PRORAČUNI!O18,0) -> 281.589 | I20: =IFERROR(+R20+PRORAČUNI!P18,0) -> 0 | J20: =IFERROR(+S20+PRORAČUNI!Q18,0) -> 0 | K20: =IFERROR(+T20+PRORAČUNI!R18,0) -> 0 | L20: =IFERROR(+U20+PRORAČUNI!S18,0) -> 0 | N20: 122.769 | O20: 0 | P20: 158.82 | Q20: 281.589 | R20: 335.7478673 | S20: 3.127561434 | T20: 101.1078971 | U20: 439.9833258 | W20: =$Z20*PRORAČUNI!H18 ->  | X20: =$Z20*PRORAČUNI!I18 ->  | Y20: =$Z20*PRORAČUNI!J18 ->  | Z20: ='PLAN UNOSA'!$B$38*PRORAČUNI!K18 -> 
B21: 17 | C21: PR | D21: =PRORAČUNI!B19 ->  | E21: =IFERROR(+N21+PRORAČUNI!L19,0) -> 204.776 | F21: =IFERROR(+O21+PRORAČUNI!M19,0) -> 0 | G21: =IFERROR(+P21+PRORAČUNI!N19,0) -> 40.911 | H21: =IFERROR(+Q21+PRORAČUNI!O19,0) -> 245.687 | I21: =IFERROR(+R21+PRORAČUNI!P19,0) -> 0 | J21: =IFERROR(+S21+PRORAČUNI!Q19,0) -> 0 | K21: =IFERROR(+T21+PRORAČUNI!R19,0) -> 0 | L21: =IFERROR(+U21+PRORAČUNI!S19,0) -> 0 | N21: 204.776 | O21: 0 | P21: 40.911 | Q21: 245.687 | R21: 323.8062099 | S21: 0 | T21: 59.94574068 | U21: 383.7519506 | W21: =$Z21*PRORAČUNI!H19 ->  | X21: =$Z21*PRORAČUNI!I19 ->  | Y21: =$Z21*PRORAČUNI!J19 ->  | Z21: ='PLAN UNOSA'!$B$38*PRORAČUNI!K19 -> 
B22: 18 | C22: PR | D22: =PRORAČUNI!B20 ->  | E22: =IFERROR(+N22+PRORAČUNI!L20,0) -> 0 | F22: =IFERROR(+O22+PRORAČUNI!M20,0) -> 0 | G22: =IFERROR(+P22+PRORAČUNI!N20,0) -> 0 | H22: =IFERROR(+Q22+PRORAČUNI!O20,0) -> 0 | I22: =IFERROR(+R22+PRORAČUNI!P20,0) -> 0 | J22: =IFERROR(+S22+PRORAČUNI!Q20,0) -> 0 | K22: =IFERROR(+T22+PRORAČUNI!R20,0) -> 0 | L22: =IFERROR(+U22+PRORAČUNI!S20,0) -> 0 | N22: 0 | O22: 0 | P22: 0 | Q22: 0 | R22: 343.1401669 | S22: 0 | T22: 0 | U22: 343.1401669 | W22: =$Z22*PRORAČUNI!H20 ->  | X22: =$Z22*PRORAČUNI!I20 ->  | Y22: =$Z22*PRORAČUNI!J20 ->  | Z22: ='PLAN UNOSA'!$B$38*PRORAČUNI!K20 -> 
B23: 19 | C23: PR | D23: =PRORAČUNI!B21 ->  | E23: =IFERROR(+N23+PRORAČUNI!L21,0) -> 10.173 | F23: =IFERROR(+O23+PRORAČUNI!M21,0) -> 0 | G23: =IFERROR(+P23+PRORAČUNI!N21,0) -> 216.564 | H23: =IFERROR(+Q23+PRORAČUNI!O21,0) -> 226.737 | I23: =IFERROR(+R23+PRORAČUNI!P21,0) -> 0 | J23: =IFERROR(+S23+PRORAČUNI!Q21,0) -> 0 | K23: =IFERROR(+T23+PRORAČUNI!R21,0) -> 0 | L23: =IFERROR(+U23+PRORAČUNI!S21,0) -> 0 | N23: 10.173 | O23: 0 | P23: 216.564 | Q23: 226.737 | R23: 53.60409349 | S23: 0 | T23: 279.1284337 | U23: 332.7325272 | W23: =$Z23*PRORAČUNI!H21 ->  | X23: =$Z23*PRORAČUNI!I21 ->  | Y23: =$Z23*PRORAČUNI!J21 ->  | Z23: ='PLAN UNOSA'!$B$38*PRORAČUNI!K21 -> 
B24: 20 | C24: PR | D24: =PRORAČUNI!B22 ->  | E24: =IFERROR(+N24+PRORAČUNI!L22,0) -> 0 | F24: =IFERROR(+O24+PRORAČUNI!M22,0) -> 0 | G24: =IFERROR(+P24+PRORAČUNI!N22,0) -> 0 | H24: =IFERROR(+Q24+PRORAČUNI!O22,0) -> 0 | I24: =IFERROR(+R24+PRORAČUNI!P22,0) -> 0 | J24: =IFERROR(+S24+PRORAČUNI!Q22,0) -> 0 | K24: =IFERROR(+T24+PRORAČUNI!R22,0) -> 0 | L24: =IFERROR(+U24+PRORAČUNI!S22,0) -> 0 | N24: 0 | O24: 0 | P24: 0 | Q24: 0 | R24: 303.2570091 | S24: 0 | T24: 0 | U24: 303.2570091 | W24: =$Z24*PRORAČUNI!H22 ->  | X24: =$Z24*PRORAČUNI!I22 ->  | Y24: =$Z24*PRORAČUNI!J22 ->  | Z24: ='PLAN UNOSA'!$B$38*PRORAČUNI!K22 -> 
A25: =PRORAČUNI!A23 ->  | B25: 1 | C25: PR | D25: =PRORAČUNI!B23 ->  | E25: =IFERROR(+N25+PRORAČUNI!L23,0) -> 1614.508 | F25: =IFERROR(+O25+PRORAČUNI!M23,0) -> 11.108 | G25: =IFERROR(+P25+PRORAČUNI!N23,0) -> 257.81 | H25: =IFERROR(+Q25+PRORAČUNI!O23,0) -> 1883.426 | I25: =IFERROR(+R25+PRORAČUNI!P23,0) -> 0 | J25: =IFERROR(+S25+PRORAČUNI!Q23,0) -> 0 | K25: =IFERROR(+T25+PRORAČUNI!R23,0) -> 0 | L25: =IFERROR(+U25+PRORAČUNI!S23,0) -> 0 | N25: 1614.508 | O25: 11.108 | P25: 257.81 | Q25: 1883.426 | R25: 2546.012648 | S25: 30.74235141 | T25: 295.8365228 | U25: 2872.591523 | W25: =$Z25*PRORAČUNI!H23 ->  | X25: =$Z25*PRORAČUNI!I23 ->  | Y25: =$Z25*PRORAČUNI!J23 ->  | Z25: ='PLAN UNOSA'!$D$38*PRORAČUNI!K23 -> 
A26: =$A$25 ->  | B26: 2 | C26: PR | D26: =PRORAČUNI!B24 ->  | E26: =IFERROR(+N26+PRORAČUNI!L24,0) -> 2145.773 | F26: =IFERROR(+O26+PRORAČUNI!M24,0) -> 0 | G26: =IFERROR(+P26+PRORAČUNI!N24,0) -> 199.153 | H26: =IFERROR(+Q26+PRORAČUNI!O24,0) -> 2344.926 | I26: =IFERROR(+R26+PRORAČUNI!P24,0) -> 0 | J26: =IFERROR(+S26+PRORAČUNI!Q24,0) -> 0 | K26: =IFERROR(+T26+PRORAČUNI!R24,0) -> 0 | L26: =IFERROR(+U26+PRORAČUNI!S24,0) -> 0 | N26: 2145.773 | O26: 0 | P26: 199.153 | Q26: 2344.926 | R26: 2756.280462 | S26: 0 | T26: 8.879039848 | U26: 2765.159502 | W26: =$Z26*PRORAČUNI!H24 ->  | X26: =$Z26*PRORAČUNI!I24 ->  | Y26: =$Z26*PRORAČUNI!J24 ->  | Z26: ='PLAN UNOSA'!$D$38*PRORAČUNI!K24 -> 
A27: =$A$25 ->  | B27: 3 | C27: PR | D27: =PRORAČUNI!B25 ->  | E27: =IFERROR(+N27+PRORAČUNI!L25,0) -> 652.574 | F27: =IFERROR(+O27+PRORAČUNI!M25,0) -> 0 | G27: =IFERROR(+P27+PRORAČUNI!N25,0) -> 717.711 | H27: =IFERROR(+Q27+PRORAČUNI!O25,0) -> 1370.285 | I27: =IFERROR(+R27+PRORAČUNI!P25,0) -> 0 | J27: =IFERROR(+S27+PRORAČUNI!Q25,0) -> 0 | K27: =IFERROR(+T27+PRORAČUNI!R25,0) -> 0 | L27: =IFERROR(+U27+PRORAČUNI!S25,0) -> 0 | N27: 652.574 | O27: 0 | P27: 717.711 | Q27: 1370.285 | R27: 1077.756861 | S27: 0 | T27: 1019.48419 | U27: 2097.241051 | W27: =$Z27*PRORAČUNI!H25 ->  | X27: =$Z27*PRORAČUNI!I25 ->  | Y27: =$Z27*PRORAČUNI!J25 ->  | Z27: ='PLAN UNOSA'!$D$38*PRORAČUNI!K25 -> 
B28: 4 | C28: PR | D28: =PRORAČUNI!B26 ->  | E28: =IFERROR(+N28+PRORAČUNI!L26,0) -> 1041.574 | F28: =IFERROR(+O28+PRORAČUNI!M26,0) -> 91.924 | G28: =IFERROR(+P28+PRORAČUNI!N26,0) -> 390.85 | H28: =IFERROR(+Q28+PRORAČUNI!O26,0) -> 1524.348 | I28: =IFERROR(+R28+PRORAČUNI!P26,0) -> 0 | J28: =IFERROR(+S28+PRORAČUNI!Q26,0) -> 0 | K28: =IFERROR(+T28+PRORAČUNI!R26,0) -> 0 | L28: =IFERROR(+U28+PRORAČUNI!S26,0) -> 0 | N28: 1041.574 | O28: 91.924 | P28: 390.85 | Q28: 1524.348 | R28: 1356.5341 | S28: 322.767118 | T28: 276.8079616 | U28: 1956.10918 | W28: =$Z28*PRORAČUNI!H26 ->  | X28: =$Z28*PRORAČUNI!I26 ->  | Y28: =$Z28*PRORAČUNI!J26 ->  | Z28: ='PLAN UNOSA'!$D$38*PRORAČUNI!K26 -> 
B29: 5 | C29: PR | D29: =PRORAČUNI!B27 ->  | E29: =IFERROR(+N29+PRORAČUNI!L27,0) -> 650.307 | F29: =IFERROR(+O29+PRORAČUNI!M27,0) -> 0 | G29: =IFERROR(+P29+PRORAČUNI!N27,0) -> 114.201 | H29: =IFERROR(+Q29+PRORAČUNI!O27,0) -> 764.508 | I29: =IFERROR(+R29+PRORAČUNI!P27,0) -> 0 | J29: =IFERROR(+S29+PRORAČUNI!Q27,0) -> 0 | K29: =IFERROR(+T29+PRORAČUNI!R27,0) -> 0 | L29: =IFERROR(+U29+PRORAČUNI!S27,0) -> 0 | N29: 650.307 | O29: 0 | P29: 114.201 | Q29: 764.508 | R29: 1231.400701 | S29: 23.60983427 | T29: 72.22304476 | U29: 1327.23358 | W29: =$Z29*PRORAČUNI!H27 ->  | X29: =$Z29*PRORAČUNI!I27 ->  | Y29: =$Z29*PRORAČUNI!J27 ->  | Z29: ='PLAN UNOSA'!$D$38*PRORAČUNI!K27 -> 
B30: 6 | C30: PR | D30: =PRORAČUNI!B28 ->  | E30: =IFERROR(+N30+PRORAČUNI!L28,0) -> 414.009 | F30: =IFERROR(+O30+PRORAČUNI!M28,0) -> 108.146 | G30: =IFERROR(+P30+PRORAČUNI!N28,0) -> 349.32 | H30: =IFERROR(+Q30+PRORAČUNI!O28,0) -> 871.475 | I30: =IFERROR(+R30+PRORAČUNI!P28,0) -> 0 | J30: =IFERROR(+S30+PRORAČUNI!Q28,0) -> 0 | K30: =IFERROR(+T30+PRORAČUNI!R28,0) -> 0 | L30: =IFERROR(+U30+PRORAČUNI!S28,0) -> 0 | N30: 414.009 | O30: 108.146 | P30: 349.32 | Q30: 871.475 | R30: 675.6008458 | S30: 261.2771189 | T30: 309.4485582 | U30: 1246.326523 | W30: =$Z30*PRORAČUNI!H28 ->  | X30: =$Z30*PRORAČUNI!I28 ->  | Y30: =$Z30*PRORAČUNI!J28 ->  | Z30: ='PLAN UNOSA'!$D$38*PRORAČUNI!K28 -> 
B31: 7 | C31: PR | D31: =PRORAČUNI!B29 ->  | E31: =IFERROR(+N31+PRORAČUNI!L29,0) -> 0 | F31: =IFERROR(+O31+PRORAČUNI!M29,0) -> 0 | G31: =IFERROR(+P31+PRORAČUNI!N29,0) -> 0 | H31: =IFERROR(+Q31+PRORAČUNI!O29,0) -> 0 | I31: =IFERROR(+R31+PRORAČUNI!P29,0) -> 0 | J31: =IFERROR(+S31+PRORAČUNI!Q29,0) -> 0 | K31: =IFERROR(+T31+PRORAČUNI!R29,0) -> 0 | L31: =IFERROR(+U31+PRORAČUNI!S29,0) -> 0 | N31: 0 | O31: 0 | P31: 0 | Q31: 0 | R31: 820.3871427 | S31: 89.83937136 | T31: 234.7418747 | U31: 1144.968389 | W31: =$Z31*PRORAČUNI!H29 ->  | X31: =$Z31*PRORAČUNI!I29 ->  | Y31: =$Z31*PRORAČUNI!J29 ->  | Z31: ='PLAN UNOSA'!$D$38*PRORAČUNI!K29 -> 
B32: 8 | C32: PR | D32: =PRORAČUNI!B30 ->  | E32: =IFERROR(+N32+PRORAČUNI!L30,0) -> 73.782 | F32: =IFERROR(+O32+PRORAČUNI!M30,0) -> 0 | G32: =IFERROR(+P32+PRORAČUNI!N30,0) -> 35.4 | H32: =IFERROR(+Q32+PRORAČUNI!O30,0) -> 109.182 | I32: =IFERROR(+R32+PRORAČUNI!P30,0) -> 0 | J32: =IFERROR(+S32+PRORAČUNI!Q30,0) -> 0 | K32: =IFERROR(+T32+PRORAČUNI!R30,0) -> 0 | L32: =IFERROR(+U32+PRORAČUNI!S30,0) -> 0 | N32: 73.782 | O32: 0 | P32: 35.4 | Q32: 109.182 | R32: 688.0595406 | S32: 2.895813172 | T32: 40.98222094 | U32: 731.9375747 | W32: =$Z32*PRORAČUNI!H30 ->  | X32: =$Z32*PRORAČUNI!I30 ->  | Y32: =$Z32*PRORAČUNI!J30 ->  | Z32: ='PLAN UNOSA'!$D$38*PRORAČUNI!K30 -> 
B33: 9 | C33: PR | D33: =PRORAČUNI!B31 ->  | E33: =IFERROR(+N33+PRORAČUNI!L31,0) -> 283.636 | F33: =IFERROR(+O33+PRORAČUNI!M31,0) -> 0 | G33: =IFERROR(+P33+PRORAČUNI!N31,0) -> 0 | H33: =IFERROR(+Q33+PRORAČUNI!O31,0) -> 283.636 | I33: =IFERROR(+R33+PRORAČUNI!P31,0) -> 0 | J33: =IFERROR(+S33+PRORAČUNI!Q31,0) -> 0 | K33: =IFERROR(+T33+PRORAČUNI!R31,0) -> 0 | L33: =IFERROR(+U33+PRORAČUNI!S31,0) -> 0 | N33: 283.636 | O33: 0 | P33: 0 | Q33: 283.636 | R33: 552.5843968 | S33: 0 | T33: 1.869271547 | U33: 554.4536684 | W33: =$Z33*PRORAČUNI!H31 ->  | X33: =$Z33*PRORAČUNI!I31 ->  | Y33: =$Z33*PRORAČUNI!J31 ->  | Z33: ='PLAN UNOSA'!$D$38*PRORAČUNI!K31 -> 
B34: 10 | C34: PR | D34: =PRORAČUNI!B32 ->  | E34: =IFERROR(+N34+PRORAČUNI!L32,0) -> 97.597 | F34: =IFERROR(+O34+PRORAČUNI!M32,0) -> 0 | G34: =IFERROR(+P34+PRORAČUNI!N32,0) -> 70.705 | H34: =IFERROR(+Q34+PRORAČUNI!O32,0) -> 168.302 | I34: =IFERROR(+R34+PRORAČUNI!P32,0) -> 0 | J34: =IFERROR(+S34+PRORAČUNI!Q32,0) -> 0 | K34: =IFERROR(+T34+PRORAČUNI!R32,0) -> 0 | L34: =IFERROR(+U34+PRORAČUNI!S32,0) -> 0 | N34: 97.597 | O34: 0 | P34: 70.705 | Q34: 168.302 | R34: 430.4686252 | S34: 0 | T34: 100.3418736 | U34: 530.8104987 | W34: =$Z34*PRORAČUNI!H32 ->  | X34: =$Z34*PRORAČUNI!I32 ->  | Y34: =$Z34*PRORAČUNI!J32 ->  | Z34: ='PLAN UNOSA'!$D$38*PRORAČUNI!K32 -> 
B35: 11 | C35: PR | D35: =PRORAČUNI!B33 ->  | E35: =IFERROR(+N35+PRORAČUNI!L33,0) -> 297.78 | F35: =IFERROR(+O35+PRORAČUNI!M33,0) -> 0 | G35: =IFERROR(+P35+PRORAČUNI!N33,0) -> 43.5 | H35: =IFERROR(+Q35+PRORAČUNI!O33,0) -> 341.28 | I35: =IFERROR(+R35+PRORAČUNI!P33,0) -> 0 | J35: =IFERROR(+S35+PRORAČUNI!Q33,0) -> 0 | K35: =IFERROR(+T35+PRORAČUNI!R33,0) -> 0 | L35: =IFERROR(+U35+PRORAČUNI!S33,0) -> 0 | N35: 297.78 | O35: 0 | P35: 43.5 | Q35: 341.28 | R35: 377.9639029 | S35: 0 | T35: 149.7404896 | U35: 527.7043925 | W35: =$Z35*PRORAČUNI!H33 ->  | X35: =$Z35*PRORAČUNI!I33 ->  | Y35: =$Z35*PRORAČUNI!J33 ->  | Z35: ='PLAN UNOSA'!$D$38*PRORAČUNI!K33 -> 
B36: 12 | C36: PR | D36: =PRORAČUNI!B34 ->  | E36: =IFERROR(+N36+PRORAČUNI!L34,0) -> 190.897 | F36: =IFERROR(+O36+PRORAČUNI!M34,0) -> 0 | G36: =IFERROR(+P36+PRORAČUNI!N34,0) -> 11.25 | H36: =IFERROR(+Q36+PRORAČUNI!O34,0) -> 202.147 | I36: =IFERROR(+R36+PRORAČUNI!P34,0) -> 0 | J36: =IFERROR(+S36+PRORAČUNI!Q34,0) -> 0 | K36: =IFERROR(+T36+PRORAČUNI!R34,0) -> 0 | L36: =IFERROR(+U36+PRORAČUNI!S34,0) -> 0 | N36: 190.897 | O36: 0 | P36: 11.25 | Q36: 202.147 | R36: 349.407353 | S36: 54.86561227 | T36: 21.88605436 | U36: 426.1590196 | W36: =$Z36*PRORAČUNI!H34 ->  | X36: =$Z36*PRORAČUNI!I34 ->  | Y36: =$Z36*PRORAČUNI!J34 ->  | Z36: ='PLAN UNOSA'!$D$38*PRORAČUNI!K34 -> 
B37: 13 | C37: PR | D37: =PRORAČUNI!B35 ->  | E37: =IFERROR(+N37+PRORAČUNI!L35,0) -> 18.081 | F37: =IFERROR(+O37+PRORAČUNI!M35,0) -> 0 | G37: =IFERROR(+P37+PRORAČUNI!N35,0) -> 0 | H37: =IFERROR(+Q37+PRORAČUNI!O35,0) -> 18.081 | I37: =IFERROR(+R37+PRORAČUNI!P35,0) -> 0 | J37: =IFERROR(+S37+PRORAČUNI!Q35,0) -> 0 | K37: =IFERROR(+T37+PRORAČUNI!R35,0) -> 0 | L37: =IFERROR(+U37+PRORAČUNI!S35,0) -> 0 | N37: 18.081 | O37: 0 | P37: 0 | Q37: 18.081 | R37: 359.2876993 | S37: 0 | T37: 21.64086824 | U37: 380.9285676 | W37: =$Z37*PRORAČUNI!H35 ->  | X37: =$Z37*PRORAČUNI!I35 ->  | Y37: =$Z37*PRORAČUNI!J35 ->  | Z37: ='PLAN UNOSA'!$D$38*PRORAČUNI!K35 -> 
B38: 14 | C38: PR | D38: =PRORAČUNI!B36 ->  | E38: =IFERROR(+N38+PRORAČUNI!L36,0) -> 93.895 | F38: =IFERROR(+O38+PRORAČUNI!M36,0) -> 24.318 | G38: =IFERROR(+P38+PRORAČUNI!N36,0) -> 92.361 | H38: =IFERROR(+Q38+PRORAČUNI!O36,0) -> 210.574 | I38: =IFERROR(+R38+PRORAČUNI!P36,0) -> 0 | J38: =IFERROR(+S38+PRORAČUNI!Q36,0) -> 0 | K38: =IFERROR(+T38+PRORAČUNI!R36,0) -> 0 | L38: =IFERROR(+U38+PRORAČUNI!S36,0) -> 0 | N38: 93.895 | O38: 24.318 | P38: 92.361 | Q38: 210.574 | R38: 224.8711863 | S38: 63.34556264 | T38: 81.5260977 | U38: 369.7428466 | W38: =$Z38*PRORAČUNI!H36 ->  | X38: =$Z38*PRORAČUNI!I36 ->  | Y38: =$Z38*PRORAČUNI!J36 ->  | Z38: ='PLAN UNOSA'!$D$38*PRORAČUNI!K36 -> 
B39: 15 | C39: PR | D39: =PRORAČUNI!B37 ->  | E39: =IFERROR(+N39+PRORAČUNI!L37,0) -> 0 | F39: =IFERROR(+O39+PRORAČUNI!M37,0) -> 0 | G39: =IFERROR(+P39+PRORAČUNI!N37,0) -> 0 | H39: =IFERROR(+Q39+PRORAČUNI!O37,0) -> 0 | I39: =IFERROR(+R39+PRORAČUNI!P37,0) -> 0 | J39: =IFERROR(+S39+PRORAČUNI!Q37,0) -> 0 | K39: =IFERROR(+T39+PRORAČUNI!R37,0) -> 0 | L39: =IFERROR(+U39+PRORAČUNI!S37,0) -> 0 | N39: 0 | O39: 0 | P39: 0 | Q39: 0 | R39: 118.1342232 | S39: 58.05832807 | T39: 191.8729357 | U39: 368.065487 | W39: =$Z39*PRORAČUNI!H37 ->  | X39: =$Z39*PRORAČUNI!I37 ->  | Y39: =$Z39*PRORAČUNI!J37 ->  | Z39: ='PLAN UNOSA'!$D$38*PRORAČUNI!K37 -> 
B40: 16 | C40: PR | D40: =PRORAČUNI!B38 ->  | E40: =IFERROR(+N40+PRORAČUNI!L38,0) -> 0 | F40: =IFERROR(+O40+PRORAČUNI!M38,0) -> 0 | G40: =IFERROR(+P40+PRORAČUNI!N38,0) -> 0 | H40: =IFERROR(+Q40+PRORAČUNI!O38,0) -> 0 | I40: =IFERROR(+R40+PRORAČUNI!P38,0) -> 0 | J40: =IFERROR(+S40+PRORAČUNI!Q38,0) -> 0 | K40: =IFERROR(+T40+PRORAČUNI!R38,0) -> 0 | L40: =IFERROR(+U40+PRORAČUNI!S38,0) -> 0 | N40: 0 | O40: 0 | P40: 0 | Q40: 0 | R40: 353.4770687 | S40: 7.671801974 | T40: 3.598347728 | U40: 364.7472184 | W40: =$Z40*PRORAČUNI!H38 ->  | X40: =$Z40*PRORAČUNI!I38 ->  | Y40: =$Z40*PRORAČUNI!J38 ->  | Z40: ='PLAN UNOSA'!$D$38*PRORAČUNI!K38 -> 
B41: 17 | C41: PR | D41: =PRORAČUNI!B39 ->  | E41: =IFERROR(+N41+PRORAČUNI!L39,0) -> 217.595 | F41: =IFERROR(+O41+PRORAČUNI!M39,0) -> 123.068 | G41: =IFERROR(+P41+PRORAČUNI!N39,0) -> 0 | H41: =IFERROR(+Q41+PRORAČUNI!O39,0) -> 340.663 | I41: =IFERROR(+R41+PRORAČUNI!P39,0) -> 0 | J41: =IFERROR(+S41+PRORAČUNI!Q39,0) -> 0 | K41: =IFERROR(+T41+PRORAČUNI!R39,0) -> 0 | L41: =IFERROR(+U41+PRORAČUNI!S39,0) -> 0 | N41: 217.595 | O41: 123.068 | P41: 0 | Q41: 340.663 | R41: 205.1407136 | S41: 125.9639786 | T41: 0 | U41: 331.1046922 | W41: =$Z41*PRORAČUNI!H39 ->  | X41: =$Z41*PRORAČUNI!I39 ->  | Y41: =$Z41*PRORAČUNI!J39 ->  | Z41: ='PLAN UNOSA'!$D$38*PRORAČUNI!K39 -> 
B42: 18 | C42: PR | D42: =PRORAČUNI!B40 ->  | E42: =IFERROR(+N42+PRORAČUNI!L40,0) -> 0 | F42: =IFERROR(+O42+PRORAČUNI!M40,0) -> 0 | G42: =IFERROR(+P42+PRORAČUNI!N40,0) -> 0 | H42: =IFERROR(+Q42+PRORAČUNI!O40,0) -> 0 | I42: =IFERROR(+R42+PRORAČUNI!P40,0) -> 0 | J42: =IFERROR(+S42+PRORAČUNI!Q40,0) -> 0 | K42: =IFERROR(+T42+PRORAČUNI!R40,0) -> 0 | L42: =IFERROR(+U42+PRORAČUNI!S40,0) -> 0 | N42: 0 | O42: 0 | P42: 0 | Q42: 0 | R42: 236.915526 | S42: 0 | T42: 73.43184036 | U42: 310.3473663 | W42: =$Z42*PRORAČUNI!H40 ->  | X42: =$Z42*PRORAČUNI!I40 ->  | Y42: =$Z42*PRORAČUNI!J40 ->  | Z42: ='PLAN UNOSA'!$D$38*PRORAČUNI!K40 -> 
B43: 19 | C43: PR | D43: =PRORAČUNI!B41 ->  | E43: =IFERROR(+N43+PRORAČUNI!L41,0) -> 18.712 | F43: =IFERROR(+O43+PRORAČUNI!M41,0) -> 13.376 | G43: =IFERROR(+P43+PRORAČUNI!N41,0) -> 65.194 | H43: =IFERROR(+Q43+PRORAČUNI!O41,0) -> 97.282 | I43: =IFERROR(+R43+PRORAČUNI!P41,0) -> 0 | J43: =IFERROR(+S43+PRORAČUNI!Q41,0) -> 0 | K43: =IFERROR(+T43+PRORAČUNI!R41,0) -> 0 | L43: =IFERROR(+U43+PRORAČUNI!S41,0) -> 0 | N43: 18.712 | O43: 13.376 | P43: 65.194 | Q43: 97.282 | R43: 171.629971 | S43: 36.01712417 | T43: 81.91116764 | U43: 289.5582628 | W43: =$Z43*PRORAČUNI!H41 ->  | X43: =$Z43*PRORAČUNI!I41 ->  | Y43: =$Z43*PRORAČUNI!J41 ->  | Z43: ='PLAN UNOSA'!$D$38*PRORAČUNI!K41 -> 
B44: 20 | C44: PR | D44: =PRORAČUNI!B42 ->  | E44: =IFERROR(+N44+PRORAČUNI!L42,0) -> 6.152 | F44: =IFERROR(+O44+PRORAČUNI!M42,0) -> 149.04 | G44: =IFERROR(+P44+PRORAČUNI!N42,0) -> 42 | H44: =IFERROR(+Q44+PRORAČUNI!O42,0) -> 197.192 | I44: =IFERROR(+R44+PRORAČUNI!P42,0) -> 0 | J44: =IFERROR(+S44+PRORAČUNI!Q42,0) -> 0 | K44: =IFERROR(+T44+PRORAČUNI!R42,0) -> 0 | L44: =IFERROR(+U44+PRORAČUNI!S42,0) -> 0 | N44: 6.152 | O44: 149.04 | P44: 42 | Q44: 197.192 | R44: 3.260944214 | S44: 237.0594599 | T44: 37.52562631 | U44: 277.8460304 | W44: =$Z44*PRORAČUNI!H42 ->  | X44: =$Z44*PRORAČUNI!I42 ->  | Y44: =$Z44*PRORAČUNI!J42 ->  | Z44: ='PLAN UNOSA'!$D$38*PRORAČUNI!K42 -> 
A45: =PRORAČUNI!A43 ->  | B45: 1 | C45: PR | D45: =PRORAČUNI!B43 ->  | E45: =IFERROR(+N45+PRORAČUNI!L43,0) -> 173.837 | F45: =IFERROR(+O45+PRORAČUNI!M43,0) -> 60 | G45: =IFERROR(+P45+PRORAČUNI!N43,0) -> 474.298 | H45: =IFERROR(+Q45+PRORAČUNI!O43,0) -> 708.135 | I45: =IFERROR(+R45+PRORAČUNI!P43,0) -> 0 | J45: =IFERROR(+S45+PRORAČUNI!Q43,0) -> 0 | K45: =IFERROR(+T45+PRORAČUNI!R43,0) -> 0 | L45: =IFERROR(+U45+PRORAČUNI!S43,0) -> 0 | N45: 173.837 | O45: 60 | P45: 474.298 | Q45: 708.135 | R45: 4553.886804 | S45: 128.891916 | T45: 2134.530142 | U45: 6817.308862 | W45: =$Z45*PRORAČUNI!H43 ->  | X45: =$Z45*PRORAČUNI!I43 ->  | Y45: =$Z45*PRORAČUNI!J43 ->  | Z45: ='PLAN UNOSA'!$F$38*PRORAČUNI!K43 -> 
A46: =$A$45 ->  | B46: 2 | C46: PR | D46: =PRORAČUNI!B44 ->  | E46: =IFERROR(+N46+PRORAČUNI!L44,0) -> 1327.643 | F46: =IFERROR(+O46+PRORAČUNI!M44,0) -> 0 | G46: =IFERROR(+P46+PRORAČUNI!N44,0) -> 323.41 | H46: =IFERROR(+Q46+PRORAČUNI!O44,0) -> 1651.053 | I46: =IFERROR(+R46+PRORAČUNI!P44,0) -> 0 | J46: =IFERROR(+S46+PRORAČUNI!Q44,0) -> 0 | K46: =IFERROR(+T46+PRORAČUNI!R44,0) -> 0 | L46: =IFERROR(+U46+PRORAČUNI!S44,0) -> 0 | N46: 1327.643 | O46: 0 | P46: 323.41 | Q46: 1651.053 | R46: 6176.49091 | S46: 0 | T46: 166.5762401 | U46: 6343.067151 | W46: =$Z46*PRORAČUNI!H44 ->  | X46: =$Z46*PRORAČUNI!I44 ->  | Y46: =$Z46*PRORAČUNI!J44 ->  | Z46: ='PLAN UNOSA'!$F$38*PRORAČUNI!K44 -> 
A47: =$A$45 ->  | B47: 3 | C47: PR | D47: =PRORAČUNI!B45 ->  | E47: =IFERROR(+N47+PRORAČUNI!L45,0) -> 9453.68 | F47: =IFERROR(+O47+PRORAČUNI!M45,0) -> 0 | G47: =IFERROR(+P47+PRORAČUNI!N45,0) -> 0 | H47: =IFERROR(+Q47+PRORAČUNI!O45,0) -> 9453.68 | I47: =IFERROR(+R47+PRORAČUNI!P45,0) -> 0 | J47: =IFERROR(+S47+PRORAČUNI!Q45,0) -> 0 | K47: =IFERROR(+T47+PRORAČUNI!R45,0) -> 0 | L47: =IFERROR(+U47+PRORAČUNI!S45,0) -> 0 | N47: 9453.68 | O47: 0 | P47: 0 | Q47: 9453.68 | R47: 5601.769013 | S47: 0 | T47: 0 | U47: 5601.769013 | W47: =$Z47*PRORAČUNI!H45 ->  | X47: =$Z47*PRORAČUNI!I45 ->  | Y47: =$Z47*PRORAČUNI!J45 ->  | Z47: ='PLAN UNOSA'!$F$38*PRORAČUNI!K45 -> 
B48: 4 | C48: PR | D48: =PRORAČUNI!B46 ->  | E48: =IFERROR(+N48+PRORAČUNI!L46,0) -> 28.513 | F48: =IFERROR(+O48+PRORAČUNI!M46,0) -> 146.698 | G48: =IFERROR(+P48+PRORAČUNI!N46,0) -> 1262.919 | H48: =IFERROR(+Q48+PRORAČUNI!O46,0) -> 1438.13 | I48: =IFERROR(+R48+PRORAČUNI!P46,0) -> 0 | J48: =IFERROR(+S48+PRORAČUNI!Q46,0) -> 0 | K48: =IFERROR(+T48+PRORAČUNI!R46,0) -> 0 | L48: =IFERROR(+U48+PRORAČUNI!S46,0) -> 0 | N48: 28.513 | O48: 146.698 | P48: 1262.919 | Q48: 1438.13 | R48: 129.9261078 | S48: 961.1100042 | T48: 3822.818602 | U48: 4913.854714 | W48: =$Z48*PRORAČUNI!H46 ->  | X48: =$Z48*PRORAČUNI!I46 ->  | Y48: =$Z48*PRORAČUNI!J46 ->  | Z48: ='PLAN UNOSA'!$F$38*PRORAČUNI!K46 -> 
B49: 5 | C49: PR | D49: =PRORAČUNI!B47 ->  | E49: =IFERROR(+N49+PRORAČUNI!L47,0) -> 157.21 | F49: =IFERROR(+O49+PRORAČUNI!M47,0) -> 40.267 | G49: =IFERROR(+P49+PRORAČUNI!N47,0) -> 104.4 | H49: =IFERROR(+Q49+PRORAČUNI!O47,0) -> 301.877 | I49: =IFERROR(+R49+PRORAČUNI!P47,0) -> 0 | J49: =IFERROR(+S49+PRORAČUNI!Q47,0) -> 0 | K49: =IFERROR(+T49+PRORAČUNI!R47,0) -> 0 | L49: =IFERROR(+U49+PRORAČUNI!S47,0) -> 0 | N49: 157.21 | O49: 40.267 | P49: 104.4 | Q49: 301.877 | R49: 2019.414275 | S49: 830.7052259 | T49: 347.7497351 | U49: 3197.869236 | W49: =$Z49*PRORAČUNI!H47 ->  | X49: =$Z49*PRORAČUNI!I47 ->  | Y49: =$Z49*PRORAČUNI!J47 ->  | Z49: ='PLAN UNOSA'!$F$38*PRORAČUNI!K47 -> 
B50: 6 | C50: PR | D50: =PRORAČUNI!B48 ->  | E50: =IFERROR(+N50+PRORAČUNI!L48,0) -> 0 | F50: =IFERROR(+O50+PRORAČUNI!M48,0) -> 0 | G50: =IFERROR(+P50+PRORAČUNI!N48,0) -> 0 | H50: =IFERROR(+Q50+PRORAČUNI!O48,0) -> 0 | I50: =IFERROR(+R50+PRORAČUNI!P48,0) -> 0 | J50: =IFERROR(+S50+PRORAČUNI!Q48,0) -> 0 | K50: =IFERROR(+T50+PRORAČUNI!R48,0) -> 0 | L50: =IFERROR(+U50+PRORAČUNI!S48,0) -> 0 | N50: 0 | O50: 0 | P50: 0 | Q50: 0 | R50: 2418.689158 | S50: 0 | T50: 405.618365 | U50: 2824.307523 | W50: =$Z50*PRORAČUNI!H48 ->  | X50: =$Z50*PRORAČUNI!I48 ->  | Y50: =$Z50*PRORAČUNI!J48 ->  | Z50: ='PLAN UNOSA'!$F$38*PRORAČUNI!K48 -> 
B51: 7 | C51: PR | D51: =PRORAČUNI!B49 ->  | E51: =IFERROR(+N51+PRORAČUNI!L49,0) -> 234.06 | F51: =IFERROR(+O51+PRORAČUNI!M49,0) -> 0 | G51: =IFERROR(+P51+PRORAČUNI!N49,0) -> 36.05 | H51: =IFERROR(+Q51+PRORAČUNI!O49,0) -> 270.11 | I51: =IFERROR(+R51+PRORAČUNI!P49,0) -> 0 | J51: =IFERROR(+S51+PRORAČUNI!Q49,0) -> 0 | K51: =IFERROR(+T51+PRORAČUNI!R49,0) -> 0 | L51: =IFERROR(+U51+PRORAČUNI!S49,0) -> 0 | N51: 234.06 | O51: 0 | P51: 36.05 | Q51: 270.11 | R51: 2352.435011 | S51: 0 | T51: 344.7569465 | U51: 2697.191958 | W51: =$Z51*PRORAČUNI!H49 ->  | X51: =$Z51*PRORAČUNI!I49 ->  | Y51: =$Z51*PRORAČUNI!J49 ->  | Z51: ='PLAN UNOSA'!$F$38*PRORAČUNI!K49 -> 
B52: 8 | C52: PR | D52: =PRORAČUNI!B50 ->  | E52: =IFERROR(+N52+PRORAČUNI!L50,0) -> 0 | F52: =IFERROR(+O52+PRORAČUNI!M50,0) -> 0 | G52: =IFERROR(+P52+PRORAČUNI!N50,0) -> 0 | H52: =IFERROR(+Q52+PRORAČUNI!O50,0) -> 0 | I52: =IFERROR(+R52+PRORAČUNI!P50,0) -> 0 | J52: =IFERROR(+S52+PRORAČUNI!Q50,0) -> 0 | K52: =IFERROR(+T52+PRORAČUNI!R50,0) -> 0 | L52: =IFERROR(+U52+PRORAČUNI!S50,0) -> 0 | N52: 0 | O52: 0 | P52: 0 | Q52: 0 | R52: 1724.963843 | S52: 690.8719559 | T52: 0 | U52: 2415.835799 | W52: =$Z52*PRORAČUNI!H50 ->  | X52: =$Z52*PRORAČUNI!I50 ->  | Y52: =$Z52*PRORAČUNI!J50 ->  | Z52: ='PLAN UNOSA'!$F$38*PRORAČUNI!K50 -> 
B53: 9 | C53: PR | D53: =PRORAČUNI!B51 ->  | E53: =IFERROR(+N53+PRORAČUNI!L51,0) -> 37.691 | F53: =IFERROR(+O53+PRORAČUNI!M51,0) -> 183.926 | G53: =IFERROR(+P53+PRORAČUNI!N51,0) -> 535.14 | H53: =IFERROR(+Q53+PRORAČUNI!O51,0) -> 756.757 | I53: =IFERROR(+R53+PRORAČUNI!P51,0) -> 0 | J53: =IFERROR(+S53+PRORAČUNI!Q51,0) -> 0 | K53: =IFERROR(+T53+PRORAČUNI!R51,0) -> 0 | L53: =IFERROR(+U53+PRORAČUNI!S51,0) -> 0 | N53: 37.691 | O53: 183.926 | P53: 535.14 | Q53: 756.757 | R53: 596.7626985 | S53: 203.496448 | T53: 1393.31654 | U53: 2193.575686 | W53: =$Z53*PRORAČUNI!H51 ->  | X53: =$Z53*PRORAČUNI!I51 ->  | Y53: =$Z53*PRORAČUNI!J51 ->  | Z53: ='PLAN UNOSA'!$F$38*PRORAČUNI!K51 -> 
B54: 10 | C54: PR | D54: =PRORAČUNI!B52 ->  | E54: =IFERROR(+N54+PRORAČUNI!L52,0) -> 323.896 | F54: =IFERROR(+O54+PRORAČUNI!M52,0) -> 156.018 | G54: =IFERROR(+P54+PRORAČUNI!N52,0) -> 158.235 | H54: =IFERROR(+Q54+PRORAČUNI!O52,0) -> 638.149 | I54: =IFERROR(+R54+PRORAČUNI!P52,0) -> 0 | J54: =IFERROR(+S54+PRORAČUNI!Q52,0) -> 0 | K54: =IFERROR(+T54+PRORAČUNI!R52,0) -> 0 | L54: =IFERROR(+U54+PRORAČUNI!S52,0) -> 0 | N54: 323.896 | O54: 156.018 | P54: 158.235 | Q54: 638.149 | R54: 1476.070547 | S54: 242.3313379 | T54: 402.2533992 | U54: 2120.655284 | W54: =$Z54*PRORAČUNI!H52 ->  | X54: =$Z54*PRORAČUNI!I52 ->  | Y54: =$Z54*PRORAČUNI!J52 ->  | Z54: ='PLAN UNOSA'!$F$38*PRORAČUNI!K52 -> 
B55: 11 | C55: PR | D55: =PRORAČUNI!B53 ->  | E55: =IFERROR(+N55+PRORAČUNI!L53,0) -> 247.537 | F55: =IFERROR(+O55+PRORAČUNI!M53,0) -> 0 | G55: =IFERROR(+P55+PRORAČUNI!N53,0) -> 169.9 | H55: =IFERROR(+Q55+PRORAČUNI!O53,0) -> 417.437 | I55: =IFERROR(+R55+PRORAČUNI!P53,0) -> 0 | J55: =IFERROR(+S55+PRORAČUNI!Q53,0) -> 0 | K55: =IFERROR(+T55+PRORAČUNI!R53,0) -> 0 | L55: =IFERROR(+U55+PRORAČUNI!S53,0) -> 0 | N55: 247.537 | O55: 0 | P55: 169.9 | Q55: 417.437 | R55: 1245.479811 | S55: 20.90121375 | T55: 635.4460826 | U55: 1901.827108 | W55: =$Z55*PRORAČUNI!H53 ->  | X55: =$Z55*PRORAČUNI!I53 ->  | Y55: =$Z55*PRORAČUNI!J53 ->  | Z55: ='PLAN UNOSA'!$F$38*PRORAČUNI!K53 -> 
B56: 12 | C56: PR | D56: =PRORAČUNI!B54 ->  | E56: =IFERROR(+N56+PRORAČUNI!L54,0) -> 0 | F56: =IFERROR(+O56+PRORAČUNI!M54,0) -> 0 | G56: =IFERROR(+P56+PRORAČUNI!N54,0) -> 429 | H56: =IFERROR(+Q56+PRORAČUNI!O54,0) -> 429 | I56: =IFERROR(+R56+PRORAČUNI!P54,0) -> 0 | J56: =IFERROR(+S56+PRORAČUNI!Q54,0) -> 0 | K56: =IFERROR(+T56+PRORAČUNI!R54,0) -> 0 | L56: =IFERROR(+U56+PRORAČUNI!S54,0) -> 0 | N56: 0 | O56: 0 | P56: 429 | Q56: 429 | R56: 0 | S56: 289.3431497 | T56: 1519.614194 | U56: 1808.957343 | W56: =$Z56*PRORAČUNI!H54 ->  | X56: =$Z56*PRORAČUNI!I54 ->  | Y56: =$Z56*PRORAČUNI!J54 ->  | Z56: ='PLAN UNOSA'!$F$38*PRORAČUNI!K54 -> 
B57: 13 | C57: PR | D57: =PRORAČUNI!B55 ->  | E57: =IFERROR(+N57+PRORAČUNI!L55,0) -> 75.017 | F57: =IFERROR(+O57+PRORAČUNI!M55,0) -> 79.078 | G57: =IFERROR(+P57+PRORAČUNI!N55,0) -> 59.2 | H57: =IFERROR(+Q57+PRORAČUNI!O55,0) -> 213.295 | I57: =IFERROR(+R57+PRORAČUNI!P55,0) -> 0 | J57: =IFERROR(+S57+PRORAČUNI!Q55,0) -> 0 | K57: =IFERROR(+T57+PRORAČUNI!R55,0) -> 0 | L57: =IFERROR(+U57+PRORAČUNI!S55,0) -> 0 | N57: 75.017 | O57: 79.078 | P57: 59.2 | Q57: 213.295 | R57: 969.7150947 | S57: 277.9439848 | T57: 345.7395385 | U57: 1593.398618 | W57: =$Z57*PRORAČUNI!H55 ->  | X57: =$Z57*PRORAČUNI!I55 ->  | Y57: =$Z57*PRORAČUNI!J55 ->  | Z57: ='PLAN UNOSA'!$F$38*PRORAČUNI!K55 -> 
B58: 14 | C58: PR | D58: =PRORAČUNI!B56 ->  | E58: =IFERROR(+N58+PRORAČUNI!L56,0) -> 0 | F58: =IFERROR(+O58+PRORAČUNI!M56,0) -> 53.67 | G58: =IFERROR(+P58+PRORAČUNI!N56,0) -> 441.418 | H58: =IFERROR(+Q58+PRORAČUNI!O56,0) -> 495.088 | I58: =IFERROR(+R58+PRORAČUNI!P56,0) -> 0 | J58: =IFERROR(+S58+PRORAČUNI!Q56,0) -> 0 | K58: =IFERROR(+T58+PRORAČUNI!R56,0) -> 0 | L58: =IFERROR(+U58+PRORAČUNI!S56,0) -> 0 | N58: 0 | O58: 53.67 | P58: 441.418 | Q58: 495.088 | R58: 0 | S58: 518.4868955 | T58: 974.8651942 | U58: 1493.35209 | W58: =$Z58*PRORAČUNI!H56 ->  | X58: =$Z58*PRORAČUNI!I56 ->  | Y58: =$Z58*PRORAČUNI!J56 ->  | Z58: ='PLAN UNOSA'!$F$38*PRORAČUNI!K56 -> 
B59: 15 | C59: PR | D59: =PRORAČUNI!B57 ->  | E59: =IFERROR(+N59+PRORAČUNI!L57,0) -> 0 | F59: =IFERROR(+O59+PRORAČUNI!M57,0) -> 0 | G59: =IFERROR(+P59+PRORAČUNI!N57,0) -> 0 | H59: =IFERROR(+Q59+PRORAČUNI!O57,0) -> 0 | I59: =IFERROR(+R59+PRORAČUNI!P57,0) -> 0 | J59: =IFERROR(+S59+PRORAČUNI!Q57,0) -> 0 | K59: =IFERROR(+T59+PRORAČUNI!R57,0) -> 0 | L59: =IFERROR(+U59+PRORAČUNI!S57,0) -> 0 | N59: 0 | O59: 0 | P59: 0 | Q59: 0 | R59: 1235.208157 | S59: 0 | T59: 0 | U59: 1235.208157 | W59: =$Z59*PRORAČUNI!H57 ->  | X59: =$Z59*PRORAČUNI!I57 ->  | Y59: =$Z59*PRORAČUNI!J57 ->  | Z59: ='PLAN UNOSA'!$F$38*PRORAČUNI!K57 -> 
B60: 16 | C60: PR | D60: =PRORAČUNI!B58 ->  | E60: =IFERROR(+N60+PRORAČUNI!L58,0) -> 0 | F60: =IFERROR(+O60+PRORAČUNI!M58,0) -> 409.345 | G60: =IFERROR(+P60+PRORAČUNI!N58,0) -> 0 | H60: =IFERROR(+Q60+PRORAČUNI!O58,0) -> 409.345 | I60: =IFERROR(+R60+PRORAČUNI!P58,0) -> 0 | J60: =IFERROR(+S60+PRORAČUNI!Q58,0) -> 0 | K60: =IFERROR(+T60+PRORAČUNI!R58,0) -> 0 | L60: =IFERROR(+U60+PRORAČUNI!S58,0) -> 0 | N60: 0 | O60: 409.345 | P60: 0 | Q60: 409.345 | R60: 0 | S60: 1102.158614 | T60: 0 | U60: 1102.158614 | W60: =$Z60*PRORAČUNI!H58 ->  | X60: =$Z60*PRORAČUNI!I58 ->  | Y60: =$Z60*PRORAČUNI!J58 ->  | Z60: ='PLAN UNOSA'!$F$38*PRORAČUNI!K58 -> 
B61: 17 | C61: PR | D61: =PRORAČUNI!B59 ->  | E61: =IFERROR(+N61+PRORAČUNI!L59,0) -> 0 | F61: =IFERROR(+O61+PRORAČUNI!M59,0) -> 21 | G61: =IFERROR(+P61+PRORAČUNI!N59,0) -> 271.254 | H61: =IFERROR(+Q61+PRORAČUNI!O59,0) -> 292.254 | I61: =IFERROR(+R61+PRORAČUNI!P59,0) -> 0 | J61: =IFERROR(+S61+PRORAČUNI!Q59,0) -> 0 | K61: =IFERROR(+T61+PRORAČUNI!R59,0) -> 0 | L61: =IFERROR(+U61+PRORAČUNI!S59,0) -> 0 | N61: 0 | O61: 21 | P61: 271.254 | Q61: 292.254 | R61: 406.6108378 | S61: 0 | T61: 679.5913607 | U61: 1086.202199 | W61: =$Z61*PRORAČUNI!H59 ->  | X61: =$Z61*PRORAČUNI!I59 ->  | Y61: =$Z61*PRORAČUNI!J59 ->  | Z61: ='PLAN UNOSA'!$F$38*PRORAČUNI!K59 -> 
B62: 18 | C62: PR | D62: =PRORAČUNI!B60 ->  | E62: =IFERROR(+N62+PRORAČUNI!L60,0) -> 166.875 | F62: =IFERROR(+O62+PRORAČUNI!M60,0) -> 10.803 | G62: =IFERROR(+P62+PRORAČUNI!N60,0) -> 66.1 | H62: =IFERROR(+Q62+PRORAČUNI!O60,0) -> 243.778 | I62: =IFERROR(+R62+PRORAČUNI!P60,0) -> 0 | J62: =IFERROR(+S62+PRORAČUNI!Q60,0) -> 0 | K62: =IFERROR(+T62+PRORAČUNI!R60,0) -> 0 | L62: =IFERROR(+U62+PRORAČUNI!S60,0) -> 0 | N62: 166.875 | O62: 10.803 | P62: 66.1 | Q62: 243.778 | R62: 620.7928365 | S62: 19.25770514 | T62: 375.5806926 | U62: 1015.631234 | W62: =$Z62*PRORAČUNI!H60 ->  | X62: =$Z62*PRORAČUNI!I60 ->  | Y62: =$Z62*PRORAČUNI!J60 ->  | Z62: ='PLAN UNOSA'!$F$38*PRORAČUNI!K60 -> 
B63: 19 | C63: PR | D63: =PRORAČUNI!B61 ->  | E63: =IFERROR(+N63+PRORAČUNI!L61,0) -> 0 | F63: =IFERROR(+O63+PRORAČUNI!M61,0) -> 215.174 | G63: =IFERROR(+P63+PRORAČUNI!N61,0) -> 0 | H63: =IFERROR(+Q63+PRORAČUNI!O61,0) -> 215.174 | I63: =IFERROR(+R63+PRORAČUNI!P61,0) -> 0 | J63: =IFERROR(+S63+PRORAČUNI!Q61,0) -> 0 | K63: =IFERROR(+T63+PRORAČUNI!R61,0) -> 0 | L63: =IFERROR(+U63+PRORAČUNI!S61,0) -> 0 | N63: 0 | O63: 215.174 | P63: 0 | Q63: 215.174 | R63: 0 | S63: 917.456571 | T63: 0 | U63: 917.456571 | W63: =$Z63*PRORAČUNI!H61 ->  | X63: =$Z63*PRORAČUNI!I61 ->  | Y63: =$Z63*PRORAČUNI!J61 ->  | Z63: ='PLAN UNOSA'!$F$38*PRORAČUNI!K61 -> 
B64: 20 | C64: PR | D64: =PRORAČUNI!B62 ->  | E64: =IFERROR(+N64+PRORAČUNI!L62,0) -> 136.544 | F64: =IFERROR(+O64+PRORAČUNI!M62,0) -> 0 | G64: =IFERROR(+P64+PRORAČUNI!N62,0) -> 0 | H64: =IFERROR(+Q64+PRORAČUNI!O62,0) -> 136.544 | I64: =IFERROR(+R64+PRORAČUNI!P62,0) -> 0 | J64: =IFERROR(+S64+PRORAČUNI!Q62,0) -> 0 | K64: =IFERROR(+T64+PRORAČUNI!R62,0) -> 0 | L64: =IFERROR(+U64+PRORAČUNI!S62,0) -> 0 | N64: 136.544 | O64: 0 | P64: 0 | Q64: 136.544 | R64: 745.7060783 | S64: 20.12941245 | T64: 11.52761553 | U64: 777.3631063 | W64: =$Z64*PRORAČUNI!H62 ->  | X64: =$Z64*PRORAČUNI!I62 ->  | Y64: =$Z64*PRORAČUNI!J62 ->  | Z64: ='PLAN UNOSA'!$F$38*PRORAČUNI!K62 -> 
A65: =A5 ->  | B65: =B5 -> 1 | C65: P | E65: =I5 -> 0 | F65: =J5 -> 0 | G65: 0 | H65: 0
A66: =A6 ->  | B66: 2 | C66: P | E66: =I6 -> 0 | F66: =J6 -> 0 | G66: =K6 -> 0 | H66: =L6 -> 0
A67: =A7 ->  | B67: 3 | C67: P | E67: 0 | F67: 0 | G67: 0 | H67: 0
A68: =A8 ->  | B68: 4 | C68: P | E68: 0 | F68: 0 | G68: 0 | H68: 0
A69: =A9 ->  | B69: 5 | C69: P | E69: 0 | F69: 0 | G69: 0 | H69: 0
A70: =A10 ->  | B70: 6 | C70: P | E70: 0 | F70: 0 | G70: 0 | H70: 0
A71: =A11 ->  | B71: 7 | C71: P | E71: 0 | F71: 0 | G71: 0 | H71: 0
A72: =A12 ->  | B72: 8 | C72: P | E72: 0 | F72: 0 | G72: 0 | H72: 0
A73: =A13 ->  | B73: 9 | C73: P | E73: 0 | F73: 0 | G73: 0 | H73: 0
A74: =A14 ->  | B74: 10 | C74: P | E74: 0 | F74: 0 | G74: 0 | H74: 0
A75: =A15 ->  | B75: 11 | C75: P | E75: 0 | F75: 0 | G75: 0 | H75: 0
A76: =A16 ->  | B76: 12 | C76: P | E76: 0 | F76: 0 | G76: 0 | H76: 0
A77: =A17 ->  | B77: 13 | C77: P | E77: 0 | F77: 0 | G77: 0 | H77: 0
A78: =A18 ->  | B78: 14 | C78: P | E78: 0 | F78: 0 | G78: 0 | H78: 0
A79: =A19 ->  | B79: 15 | C79: P | E79: 0 | F79: 0 | G79: 0 | H79: 0
A80: =A20 ->  | B80: 16 | C80: P | E80: 0 | F80: 0 | G80: 0 | H80: 0
A81: =A21 ->  | B81: 17 | C81: P | E81: 0 | F81: 0 | G81: 0 | H81: 0
A82: =A22 ->  | B82: 18 | C82: P | E82: 0 | F82: 0 | G82: 0 | H82: 0
A83: =A23 ->  | B83: 19 | C83: P | E83: 0 | F83: 0 | G83: 0 | H83: 0
A84: =A24 ->  | B84: 20 | C84: P | E84: 0 | F84: 0 | G84: 0 | H84: 0
A85: =A25 ->  | B85: 1 | C85: P | E85: 0 | F85: 0 | G85: 0 | H85: 0
A86: =A26 ->  | B86: 2 | C86: P | E86: 0 | F86: 0 | G86: 0 | H86: 0
A87: =A27 ->  | B87: 3 | C87: P | E87: 0 | F87: 0 | G87: 0 | H87: 0
A88: =A28 ->  | B88: 4 | C88: P | E88: 0 | F88: 0 | G88: 0 | H88: 0
A89: =A29 ->  | B89: 5 | C89: P | E89: 0 | F89: 0 | G89: 0 | H89: 0
A90: =A30 ->  | B90: 6 | C90: P | E90: 0 | F90: 0 | G90: 0 | H90: 0
A91: =A31 ->  | B91: 7 | C91: P | E91: 0 | F91: 0 | G91: 0 | H91: 0
A92: =A32 ->  | B92: 8 | C92: P | E92: 0 | F92: 0 | G92: 0 | H92: 0
A93: =A33 ->  | B93: 9 | C93: P | E93: 0 | F93: 0 | G93: 0 | H93: 0
A94: =A34 ->  | B94: 10 | C94: P | E94: 0 | F94: 0 | G94: 0 | H94: 0
A95: =A35 ->  | B95: 11 | C95: P | E95: 0 | F95: 0 | G95: 0 | H95: 0
A96: =A36 ->  | B96: 12 | C96: P | E96: 0 | F96: 0 | G96: 0 | H96: 0
A97: =A37 ->  | B97: 13 | C97: P | E97: 0 | F97: 0 | G97: 0 | H97: 0
A98: =A38 ->  | B98: 14 | C98: P | E98: 0 | F98: 0 | G98: 0 | H98: 0
A99: =A39 ->  | B99: 15 | C99: P | E99: 0 | F99: 0 | G99: 0 | H99: 0
A100: =A40 ->  | B100: 16 | C100: P | E100: 0 | F100: 0 | G100: 0 | H100: 0
A101: =A41 ->  | B101: 17 | C101: P | E101: 0 | F101: 0 | G101: 0 | H101: 0
A102: =A42 ->  | B102: 18 | C102: P | E102: 0 | F102: 0 | G102: 0 | H102: 0
A103: =A43 ->  | B103: 19 | C103: P | E103: 0 | F103: 0 | G103: 0 | H103: 0
A104: =A44 ->  | B104: 20 | C104: P | E104: 0 | F104: 0 | G104: 0 | H104: 0
A105: =A45 ->  | B105: 1 | C105: P | E105: 0 | F105: 0 | G105: 0 | H105: 0
A106: =A46 ->  | B106: 2 | C106: P | E106: 0 | F106: 0 | G106: 0 | H106: 0
A107: =A47 ->  | B107: 3 | C107: P | E107: 0 | F107: 0 | G107: 0 | H107: 0
A108: =A48 ->  | B108: 4 | C108: P | E108: 0 | F108: 0 | G108: 0 | H108: 0
A109: =A49 ->  | B109: 5 | C109: P | E109: 0 | F109: 0 | G109: 0 | H109: 0
A110: =A50 ->  | B110: 6 | C110: P | E110: 0 | F110: 0 | G110: 0 | H110: 0
A111: =A51 ->  | B111: =B51 -> 7 | C111: P | E111: 0 | F111: 0 | G111: 0 | H111: 0
A112: =A52 ->  | B112: 8 | C112: P | E112: 0 | F112: 0 | G112: 0 | H112: 0
A113: =A53 ->  | B113: 9 | C113: P | E113: 0 | F113: 0 | G113: 0 | H113: 0
A114: =A54 ->  | B114: 10 | C114: P | E114: 0 | F114: 0 | G114: 0 | H114: 0
A115: =A55 ->  | B115: 11 | C115: P | E115: 0 | F115: 0 | G115: 0 | H115: 0
A116: =A56 ->  | B116: 12 | C116: P | E116: 0 | F116: 0 | G116: 0 | H116: 0
A117: =A57 ->  | B117: 13 | C117: P | E117: 0 | F117: 0 | G117: 0 | H117: 0
A118: =A58 ->  | B118: 14 | C118: P | E118: 0 | F118: 0 | G118: 0 | H118: 0
A119: =A59 ->  | B119: 15 | C119: P | E119: 0 | F119: 0 | G119: 0 | H119: 0
A120: =A60 ->  | B120: 16 | C120: P | E120: 0 | F120: 0 | G120: 0 | H120: 0
A121: =A61 ->  | B121: 17 | C121: P | E121: 0 | F121: 0 | G121: 0 | H121: 0
A122: =A62 ->  | B122: =B62 -> 18 | C122: P | E122: 0 | F122: 0 | G122: 0 | H122: 0
A123: =A63 ->  | B123: 19 | C123: P | E123: 0 | F123: 0 | G123: 0 | H123: 0
A124: =A64 ->  | B124: 20 | C124: P | E124: 0 | F124: 0 | G124: 0 | H124: 0

Sheet KUMULATIV 2
E1: PR/P
A2: KC | B2: RB | C2: KUPAC | D2: Values | E2: PR | F2: P
A3: KC Beograd | B3: 1 | C3: DELHAIZE SERBIA DOO | D3: Sum of 1. Sveži proizvodi | E3: 16466.733 | F3: 14494.63158
D4: Sum of 2. Smrznuti proizvodi | E4: 0 | F4: 0
D5: Sum of 3. Prepađevine | E5: 332.729 | F5: 2058.122893
D6: Sum of Grand Total | E6: 16799.462 | F6: 16552.75448
B7: 2 | C7: IDEA DOO | D7: Sum of 1. Sveži proizvodi | E7: 10500.77 | F7: 8951.649467
D8: Sum of 2. Smrznuti proizvodi | E8: 0 | F8: 0
D9: Sum of 3. Prepađevine | E9: 1496.255 | F9: 124.8268915
D10: Sum of Grand Total | E10: 11997.025 | F10: 9076.476358
B11: 3 | C11: MERCATOR S | D11: Sum of 1. Sveži proizvodi | E11: 3493.502 | F11: 4961.429769
D12: Sum of 2. Smrznuti proizvodi | E12: 46.536 | F12: 105.737653
D13: Sum of 3. Prepađevine | E13: 598.557 | F13: 1033.460525
D14: Sum of Grand Total | E14: 4138.595 | F14: 6100.627947
B15: 4 | C15: ŠTRAND DOO | D15: Sum of 1. Sveži proizvodi | E15: 5020.052 | F15: 4733.479929
D16: Sum of 2. Smrznuti proizvodi | E16: 0 | F16: 0
D17: Sum of 3. Prepađevine | E17: 0 | F17: 0
D18: Sum of Grand Total | E18: 5020.052 | F18: 4733.479929
B19: 5 | C19: METRO CASH & CARRY DOO | D19: Sum of 1. Sveži proizvodi | E19: 1324.682 | F19: 3633.482201
D20: Sum of 2. Smrznuti proizvodi | E20: 0 | F20: 44.6245388
D21: Sum of 3. Prepađevine | E21: 260.5 | F21: 723.0852642
D22: Sum of Grand Total | E22: 1585.182 | F22: 4401.192004
B23: 6 | C23: UNIVEREXPORT DOO | D23: Sum of 1. Sveži proizvodi | E23: 4018.273 | F23: 3130.538716
D24: Sum of 2. Smrznuti proizvodi | E24: 0 | F24: 0
D25: Sum of 3. Prepađevine | E25: 533.9 | F25: 314.4855455
D26: Sum of Grand Total | E26: 4552.173 | F26: 3445.024262
B27: 7 | C27: AMAN DOO | D27: Sum of 1. Sveži proizvodi | E27: 127.496 | F27: 2120.62495
D28: Sum of 2. Smrznuti proizvodi | E28: 0 | F28: 0
D29: Sum of 3. Prepađevine | E29: 1841.094 | F29: 970.8764974
D30: Sum of Grand Total | E30: 1968.59 | F30: 3091.501448
B31: 8 | C31: MESO-MARKET | D31: Sum of 1. Sveži proizvodi | E31: 1782.396 | F31: 2157.959436
D32: Sum of 2. Smrznuti proizvodi | E32: 0 | F32: 0
D33: Sum of 3. Prepađevine | E33: 13.285 | F33: 23.40862362
D34: Sum of Grand Total | E34: 1795.681 | F34: 2181.368059
B35: 9 | C35: MUP UPRAVA ZA POSLOVE ISHRANE I SMEŠTAJA | D35: Sum of 1. Sveži proizvodi | E35: 0 | F35: 0
D36: Sum of 2. Smrznuti proizvodi | E36: 1251.989 | F36: 1239.247237
D37: Sum of 3. Prepađevine | E37: 0 | F37: 0
D38: Sum of Grand Total | E38: 1251.989 | F38: 1239.247237
B39: 10 | C39: ĐERIĆ STR | D39: Sum of 1. Sveži proizvodi | E39: 383.338 | F39: 1150.937783
D40: Sum of 2. Smrznuti proizvodi | E40: 0 | F40: 0
D41: Sum of 3. Prepađevine | E41: 13 | F41: 0
D42: Sum of Grand Total | E42: 396.338 | F42: 1150.937783
B43: 11 | C43: TP DOO TREND COMERCCE ŠID | D43: Sum of 1. Sveži proizvodi | E43: 0 | F43: 0
D44: Sum of 2. Smrznuti proizvodi | E44: 230.79 | F44: 179.8055073
D45: Sum of 3. Prepađevine | E45: 531.635 | F45: 552.6171732
D46: Sum of Grand Total | E46: 762.425 | F46: 732.4226805
B47: 12 | C47: VINDIJA D.O.O. LAJKOVAC - VLASTITA POTROŠNJA | D47: Sum of 1. Sveži proizvodi | E47: 0 | F47: 330.4891294
D48: Sum of 2. Smrznuti proizvodi | E48: 0 | F48: 204.3040338
D49: Sum of 3. Prepađevine | E49: 0 | F49: 146.4602486
D50: Sum of Grand Total | E50: 0 | F50: 681.2534117
B51: 13 | C51: PODUNAVLJE AD, BEOGRAD | D51: Sum of 1. Sveži proizvodi | E51: 459.229 | F51: 228.6917484
D52: Sum of 2. Smrznuti proizvodi | E52: 613.117 | F52: 332.959247
D53: Sum of 3. Prepađevine | E53: 141.649 | F53: 69.1056086
D54: Sum of Grand Total | E54: 1213.995 | F54: 630.7566039
B55: 14 | C55: POINT MARTINOVIĆ DOO | D55: Sum of 1. Sveži proizvodi | E55: 0 | F55: 582.4817255
D56: Sum of 2. Smrznuti proizvodi | E56: 0 | F56: 4.247661049
D57: Sum of 3. Prepađevine | E57: 0 | F57: 0
D58: Sum of Grand Total | E58: 0 | F58: 586.7293865
B59: 15 | C59: MIS CHILLI DOO | D59: Sum of 1. Sveži proizvodi | E59: 190.82 | F59: 320.049287
D60: Sum of 2. Smrznuti proizvodi | E60: 0 | F60: 0
D61: Sum of 3. Prepađevine | E61: 227.617 | F61: 262.1603422
D62: Sum of Grand Total | E62: 418.437 | F62: 582.2096293
B63: 16 | C63: VEROPOULOS DOO | D63: Sum of 1. Sveži proizvodi | E63: 134.984 | F63: 391.7058451
D64: Sum of 2. Smrznuti proizvodi | E64: 0 | F64: 3.648821673
D65: Sum of 3. Prepađevine | E65: 251.663 | F65: 117.9592133
D66: Sum of Grand Total | E66: 386.647 | F66: 513.3138801
B67: 17 | C67: JOVANA STR | D67: Sum of 1. Sveži proizvodi | E67: 250.93 | F67: 377.7739116
D68: Sum of 2. Smrznuti proizvodi | E68: 0 | F68: 0
D69: Sum of 3. Prepađevine | E69: 48.111 | F69: 69.93669746
D70: Sum of Grand Total | E70: 299.041 | F70: 447.710609
B71: 18 | C71: SLAVONAC STUR, ISMETA MUJEZINOVIĆA | D71: Sum of 1. Sveži proizvodi | E71: 0 | F71: 400.3301947
D72: Sum of 2. Smrznuti proizvodi | E72: 0 | F72: 0
D73: Sum of 3. Prepađevine | E73: 0 | F73: 0
D74: Sum of Grand Total | E74: 0 | F74: 400.3301947
B75: 19 | C75: MEDIUS DOO | D75: Sum of 1. Sveži proizvodi | E75: 10.173 | F75: 62.53810908
D76: Sum of 2. Smrznuti proizvodi | E76: 0 | F76: 0
D77: Sum of 3. Prepađevine | E77: 216.564 | F77: 325.6498393
D78: Sum of Grand Total | E78: 226.737 | F78: 388.1879484
B79: 20 | C79: FAMOSO | D79: Sum of 1. Sveži proizvodi | E79: 0 | F79: 353.7998439
D80: Sum of 2. Smrznuti proizvodi | E80: 0 | F80: 0
D81: Sum of 3. Prepađevine | E81: 0 | F81: 0
D82: Sum of Grand Total | E82: 0 | F82: 353.7998439
A83: KC Beograd Sum of 1. Sveži proizvodi | E83: 44163.378 | F83: 48382.59363
A84: KC Beograd Sum of 2. Smrznuti proizvodi | E84: 2142.432 | F84: 2114.574699
A85: KC Beograd Sum of 3. Prepađevine | E85: 6506.559 | F85: 6792.155363
A86: KC Beograd Sum of Grand Total | E86: 52812.369 | F86: 57289.32369
A87: KC Lajkovac | B87: 1 | C87: MERCATOR S | D87: Sum of 1. Sveži proizvodi | E87: 2022.194 | F87: 2970.34809
D88: Sum of 2. Smrznuti proizvodi | E88: 11.108 | F88: 35.86607664
D89: Sum of 3. Prepađevine | E89: 389.999 | F89: 345.14261
D90: Sum of Grand Total | E90: 2423.301 | F90: 3351.356776
B91: 2 | C91: IDEA DOO | D91: Sum of 1. Sveži proizvodi | E91: 2605.372 | F91: 3215.660539
D92: Sum of 2. Smrznuti proizvodi | E92: 0 | F92: 0
D93: Sum of 3. Prepađevine | E93: 238.653 | F93: 10.35887982
D94: Sum of Grand Total | E94: 2844.025 | F94: 3226.019419
B95: 3 | C95: FORTUNA MARKET DOO | D95: Sum of 1. Sveži proizvodi | E95: 652.574 | F95: 1257.383005
D96: Sum of 2. Smrznuti proizvodi | E96: 0 | F96: 0
D97: Sum of 3. Prepađevine | E97: 717.711 | F97: 1189.398221
D98: Sum of Grand Total | E98: 1370.285 | F98: 2446.781226
B99: 4 | C99: ES KOMERC DOO | D99: Sum of 1. Sveži proizvodi | E99: 1041.574 | F99: 1582.623117
D100: Sum of 2. Smrznuti proizvodi | E100: 91.924 | F100: 376.5616377
D101: Sum of 3. Prepađevine | E101: 390.85 | F101: 322.9426218
D102: Sum of Grand Total | E102: 1524.348 | F102: 2282.127376
B103: 5 | C103: PREHRANA DOO | D103: Sum of 1. Sveži proizvodi | E103: 787.493 | F103: 1436.634151
D104: Sum of 2. Smrznuti proizvodi | E104: 0 | F104: 27.54480665
D105: Sum of 3. Prepađevine | E105: 147.312 | F105: 84.26021889
D106: Sum of Grand Total | E106: 934.805 | F106: 1548.439177
B107: 6 | C107: EUROPROM DOO | D107: Sum of 1. Sveži proizvodi | E107: 414.009 | F107: 788.2009867
D108: Sum of 2. Smrznuti proizvodi | E108: 108.146 | F108: 304.8233054
D109: Sum of 3. Prepađevine | E109: 349.32 | F109: 361.0233179
D110: Sum of Grand Total | E110: 871.475 | F110: 1454.04761
B111: 7 | C111: TP KVIN DOO | D111: Sum of 1. Sveži proizvodi | E111: 0 | F111: 957.1183332
D112: Sum of 2. Smrznuti proizvodi | E112: 0 | F112: 104.8125999
D113: Sum of 3. Prepađevine | E113: 0 | F113: 273.8655205
D114: Sum of Grand Total | E114: 0 | F114: 1335.796454
B115: 8 | C115: DIVČIBARAC DOO, RAŽANA | D115: Sum of 1. Sveži proizvodi | E115: 73.782 | F115: 802.7361307
D116: Sum of 2. Smrznuti proizvodi | E116: 0 | F116: 3.3784487
D117: Sum of 3. Prepađevine | E117: 35.4 | F117: 47.8125911
D118: Sum of Grand Total | E118: 109.182 | F118: 853.9271705
B119: 9 | C119: KMN STKUR | D119: Sum of 1. Sveži proizvodi | E119: 283.636 | F119: 644.6817963
D120: Sum of 2. Smrznuti proizvodi | E120: 0 | F120: 0
D121: Sum of 3. Prepađevine | E121: 0 | F121: 2.180816805
D122: Sum of Grand Total | E122: 283.636 | F122: 646.8626131
B123: 10 | C123: DRAGANA SZTPR | D123: Sum of 1. Sveži proizvodi | E123: 97.597 | F123: 502.2133961
D124: Sum of 2. Smrznuti proizvodi | E124: 0 | F124: 0
D125: Sum of 3. Prepađevine | E125: 70.705 | F125: 117.0655191
D126: Sum of Grand Total | E126: 168.302 | F126: 619.2789152
B127: 11 | C127: GREEN STR | D127: Sum of 1. Sveži proizvodi | E127: 374.729 | F127: 440.9578867
D128: Sum of 2. Smrznuti proizvodi | E128: 0 | F128: 0
D129: Sum of 3. Prepađevine | E129: 60.5 | F129: 174.6972379
D130: Sum of Grand Total | E130: 435.229 | F130: 615.6551246
B131: 12 | C131: MRM KOLAREVIĆ DOO | D131: Sum of 1. Sveži proizvodi | E131: 266.354 | F131: 407.6419118
D132: Sum of 2. Smrznuti proizvodi | E132: 0 | F132: 64.00988098
D133: Sum of 3. Prepađevine | E133: 17.25 | F133: 25.53373009
D134: Sum of Grand Total | E134: 283.604 | F134: 497.1855229
B135: 13 | C135: ĐOKIĆ SZTR | D135: Sum of 1. Sveži proizvodi | E135: 24.037 | F135: 419.1689825
D136: Sum of 2. Smrznuti proizvodi | E136: 0 | F136: 0
D137: Sum of 3. Prepađevine | E137: 0 | F137: 25.24767962
D138: Sum of Grand Total | E138: 24.037 | F138: 444.4166622
B139: 14 | C139: NIKOLA TPD DOO | D139: Sum of 1. Sveži proizvodi | E139: 99.88 | F139: 262.3497173
D140: Sum of 2. Smrznuti proizvodi | E140: 24.318 | F140: 73.90315641
D141: Sum of 3. Prepađevine | E141: 140.147 | F141: 95.11378065
D142: Sum of Grand Total | E142: 264.345 | F142: 431.3666544
B143: 15 | C143: MIROPROMET DOO | D143: Sum of 1. Sveži proizvodi | E143: 0 | F143: 137.8232604
D144: Sum of 2. Smrznuti proizvodi | E144: 0 | F144: 67.73471608
D145: Sum of 3. Prepađevine | E145: 0 | F145: 223.8517583
D146: Sum of Grand Total | E146: 0 | F146: 429.4097348
B147: 16 | C147: ZORNIĆ SZTR | D147: Sum of 1. Sveži proizvodi | E147: 0 | F147: 412.3899135
D148: Sum of 2. Smrznuti proizvodi | E148: 0 | F148: 8.950435636
D149: Sum of 3. Prepađevine | E149: 0 | F149: 4.198072349
D150: Sum of Grand Total | E150: 0 | F150: 425.5384215
B151: 17 | C151: ZDRAVSTVENI CENTAR VALJEVO | D151: Sum of 1. Sveži proizvodi | E151: 217.595 | F151: 239.3308325
D152: Sum of 2. Smrznuti proizvodi | E152: 123.068 | F152: 146.9579751
D153: Sum of 3. Prepađevine | E153: 0 | F153: 0
D154: Sum of Grand Total | E154: 340.663 | F154: 386.2888076
B155: 18 | C155: DUĆAN STR LAZAREVAC | D155: Sum of 1. Sveži proizvodi | E155: 0 | F155: 276.4014469
D156: Sum of 2. Smrznuti proizvodi | E156: 0 | F156: 0
D157: Sum of 3. Prepađevine | E157: 0 | F157: 85.67048042
D158: Sum of Grand Total | E158: 0 | F158: 362.0719274
B159: 19 | C159: ŽI-NA-SA STUZR | D159: Sum of 1. Sveži proizvodi | E159: 18.712 | F159: 200.2349662
D160: Sum of 2. Smrznuti proizvodi | E160: 13.376 | F160: 42.01997819
D161: Sum of 3. Prepađevine | E161: 65.194 | F161: 95.56302892
D162: Sum of Grand Total | E162: 97.282 | F162: 337.8179733
B163: 20 | C163: METALAC-PROLETER AD | D163: Sum of 1. Sveži proizvodi | E163: 6.152 | F163: 3.804434916
D164: Sum of 2. Smrznuti proizvodi | E164: 149.04 | F164: 276.5693698
D165: Sum of 3. Prepađevine | E165: 42 | F165: 43.77989736
D166: Sum of Grand Total | E166: 197.192 | F166: 324.1537021
A167: KC Lajkovac Sum of 1. Sveži proizvodi | E167: 8985.69 | F167: 16957.7029
A168: KC Lajkovac Sum of 2. Smrznuti proizvodi | E168: 520.98 | F168: 1533.132387
A169: KC Lajkovac Sum of 3. Prepađevine | E169: 2665.041 | F169: 3527.705983
A170: KC Lajkovac Sum of Grand Total | E170: 12171.711 | F170: 22018.54127
A171: KC Niš | B171: 1 | C171: PRIMA NOVA DOO | D171: Sum of 1. Sveži proizvodi | E171: 183.41 | F171: 5312.867938
D172: Sum of 2. Smrznuti proizvodi | E172: 60 | F172: 150.373902
D173: Sum of 3. Prepađevine | E173: 474.298 | F173: 2490.285166
D174: Sum of Grand Total | E174: 717.708 | F174: 7953.527006
B175: 2 | C175: IDEA DOO | D175: Sum of 1. Sveži proizvodi | E175: 1409.719 | F175: 7205.906062
D176: Sum of 2. Smrznuti proizvodi | E176: 0 | F176: 0
D177: Sum of 3. Prepađevine | E177: 376.71 | F177: 194.3389468
D178: Sum of Grand Total | E178: 1786.429 | F178: 7400.245009
B179: 3 | C179: BIFTEK, RADOJEVIĆ MILOŠ PREDUZETNIK, NIŠ | D179: Sum of 1. Sveži proizvodi | E179: 12889.468 | F179: 6535.397182
D180: Sum of 2. Smrznuti proizvodi | E180: 0 | F180: 0
D181: Sum of 3. Prepađevine | E181: 0 | F181: 0
D182: Sum of Grand Total | E182: 12889.468 | F182: 6535.397182
B183: 4 | C183: NECA SZTR | D183: Sum of 1. Sveži proizvodi | E183: 28.513 | F183: 151.5804591
D184: Sum of 2. Smrznuti proizvodi | E184: 231.726 | F184: 1121.295005
D185: Sum of 3. Prepađevine | E185: 1844.929 | F185: 4459.955035
D186: Sum of Grand Total | E186: 2105.168 | F186: 5732.830499
B187: 5 | C187: INEX-UZOR AD | D187: Sum of 1. Sveži proizvodi | E187: 157.21 | F187: 2355.983321
D188: Sum of 2. Smrznuti proizvodi | E188: 40.267 | F188: 969.1560969
D189: Sum of 3. Prepađevine | E189: 104.4 | F189: 405.7080243
D190: Sum of Grand Total | E190: 301.877 | F190: 3730.847442
B191: 6 | C191: SAMALD-COMERC EXPORT-IMPORT DOO | D191: Sum of 1. Sveži proizvodi | E191: 0 | F191: 2821.804018
D192: Sum of 2. Smrznuti proizvodi | E192: 0 | F192: 0
D193: Sum of 3. Prepađevine | E193: 0 | F193: 473.2214259
D194: Sum of Grand Total | E194: 0 | F194: 3295.025444
B195: 7 | C195: MERCATOR S | D195: Sum of 1. Sveži proizvodi | E195: 331.547 | F195: 2744.507513
D196: Sum of 2. Smrznuti proizvodi | E196: 0 | F196: 0
D197: Sum of 3. Prepađevine | E197: 42.55 | F197: 402.2164376
D198: Sum of Grand Total | E198: 374.097 | F198: 3146.723951
B199: 8 | C199: GLIDŽIĆ NIS DOO | D199: Sum of 1. Sveži proizvodi | E199: 0 | F199: 2012.457817
D200: Sum of 2. Smrznuti proizvodi | E200: 0 | F200: 806.0172819
... 58 more rows

Sheet KUMULATIV 3
E1: PR/P
A2: KC | B2: Values | C2: RB | D2: KUPAC | E2: PR | F2: P
A3: KC Beograd | B3: Sum of 1. Sveži proizvodi | C3: 1 | D3: DELHAIZE SERBIA DOO | E3: 16466.733 | F3: 14494.63158
C4: 2 | D4: IDEA DOO | E4: 10500.77 | F4: 8951.649467
C5: 3 | D5: MERCATOR S | E5: 3493.502 | F5: 4961.429769
C6: 4 | D6: ŠTRAND DOO | E6: 5020.052 | F6: 4733.479929
C7: 5 | D7: METRO CASH & CARRY DOO | E7: 1324.682 | F7: 3633.482201
C8: 6 | D8: UNIVEREXPORT DOO | E8: 4018.273 | F8: 3130.538716
C9: 7 | D9: AMAN DOO | E9: 127.496 | F9: 2120.62495
C10: 8 | D10: MESO-MARKET | E10: 1782.396 | F10: 2157.959436
C11: 9 | D11: MUP UPRAVA ZA POSLOVE ISHRANE I SMEŠTAJA | E11: 0 | F11: 0
C12: 10 | D12: ĐERIĆ STR | E12: 383.338 | F12: 1150.937783
C13: 11 | D13: TP DOO TREND COMERCCE ŠID | E13: 0 | F13: 0
C14: 12 | D14: VINDIJA D.O.O. LAJKOVAC - VLASTITA POTROŠNJA | E14: 0 | F14: 330.4891294
C15: 13 | D15: PODUNAVLJE AD, BEOGRAD | E15: 459.229 | F15: 228.6917484
C16: 14 | D16: POINT MARTINOVIĆ DOO | E16: 0 | F16: 582.4817255
C17: 15 | D17: MIS CHILLI DOO | E17: 190.82 | F17: 320.049287
C18: 16 | D18: VEROPOULOS DOO | E18: 134.984 | F18: 391.7058451
C19: 17 | D19: JOVANA STR | E19: 250.93 | F19: 377.7739116
C20: 18 | D20: SLAVONAC STUR, ISMETA MUJEZINOVIĆA | E20: 0 | F20: 400.3301947
C21: 19 | D21: MEDIUS DOO | E21: 10.173 | F21: 62.53810908
C22: 20 | D22: FAMOSO | E22: 0 | F22: 353.7998439
B23: Sum of 2. Smrznuti proizvodi | C23: 1 | D23: DELHAIZE SERBIA DOO | E23: 0 | F23: 0
C24: 2 | D24: IDEA DOO | E24: 0 | F24: 0
C25: 3 | D25: MERCATOR S | E25: 46.536 | F25: 105.737653
C26: 4 | D26: ŠTRAND DOO | E26: 0 | F26: 0
C27: 5 | D27: METRO CASH & CARRY DOO | E27: 0 | F27: 44.6245388
C28: 6 | D28: UNIVEREXPORT DOO | E28: 0 | F28: 0
C29: 7 | D29: AMAN DOO | E29: 0 | F29: 0
C30: 8 | D30: MESO-MARKET | E30: 0 | F30: 0
C31: 9 | D31: MUP UPRAVA ZA POSLOVE ISHRANE I SMEŠTAJA | E31: 1251.989 | F31: 1239.247237
C32: 10 | D32: ĐERIĆ STR | E32: 0 | F32: 0
C33: 11 | D33: TP DOO TREND COMERCCE ŠID | E33: 230.79 | F33: 179.8055073
C34: 12 | D34: VINDIJA D.O.O. LAJKOVAC - VLASTITA POTROŠNJA | E34: 0 | F34: 204.3040338
C35: 13 | D35: PODUNAVLJE AD, BEOGRAD | E35: 613.117 | F35: 332.959247
C36: 14 | D36: POINT MARTINOVIĆ DOO | E36: 0 | F36: 4.247661049
C37: 15 | D37: MIS CHILLI DOO | E37: 0 | F37: 0
C38: 16 | D38: VEROPOULOS DOO | E38: 0 | F38: 3.648821673
C39: 17 | D39: JOVANA STR | E39: 0 | F39: 0
C40: 18 | D40: SLAVONAC STUR, ISMETA MUJEZINOVIĆA | E40: 0 | F40: 0
C41: 19 | D41: MEDIUS DOO | E41: 0 | F41: 0
C42: 20 | D42: FAMOSO | E42: 0 | F42: 0
B43: Sum of 3. Prepađevine | C43: 1 | D43: DELHAIZE SERBIA DOO | E43: 332.729 | F43: 2058.122893
C44: 2 | D44: IDEA DOO | E44: 1496.255 | F44: 124.8268915
C45: 3 | D45: MERCATOR S | E45: 598.557 | F45: 1033.460525
C46: 4 | D46: ŠTRAND DOO | E46: 0 | F46: 0
C47: 5 | D47: METRO CASH & CARRY DOO | E47: 260.5 | F47: 723.0852642
C48: 6 | D48: UNIVEREXPORT DOO | E48: 533.9 | F48: 314.4855455
C49: 7 | D49: AMAN DOO | E49: 1841.094 | F49: 970.8764974
C50: 8 | D50: MESO-MARKET | E50: 13.285 | F50: 23.40862362
C51: 9 | D51: MUP UPRAVA ZA POSLOVE ISHRANE I SMEŠTAJA | E51: 0 | F51: 0
C52: 10 | D52: ĐERIĆ STR | E52: 13 | F52: 0
C53: 11 | D53: TP DOO TREND COMERCCE ŠID | E53: 531.635 | F53: 552.6171732
C54: 12 | D54: VINDIJA D.O.O. LAJKOVAC - VLASTITA POTROŠNJA | E54: 0 | F54: 146.4602486
C55: 13 | D55: PODUNAVLJE AD, BEOGRAD | E55: 141.649 | F55: 69.1056086
C56: 14 | D56: POINT MARTINOVIĆ DOO | E56: 0 | F56: 0
C57: 15 | D57: MIS CHILLI DOO | E57: 227.617 | F57: 262.1603422
C58: 16 | D58: VEROPOULOS DOO | E58: 251.663 | F58: 117.9592133
C59: 17 | D59: JOVANA STR | E59: 48.111 | F59: 69.93669746
C60: 18 | D60: SLAVONAC STUR, ISMETA MUJEZINOVIĆA | E60: 0 | F60: 0
C61: 19 | D61: MEDIUS DOO | E61: 216.564 | F61: 325.6498393
C62: 20 | D62: FAMOSO | E62: 0 | F62: 0
B63: Sum of Grand Total | C63: 1 | D63: DELHAIZE SERBIA DOO | E63: 16799.462 | F63: 16552.75448
C64: 2 | D64: IDEA DOO | E64: 11997.025 | F64: 9076.476358
C65: 3 | D65: MERCATOR S | E65: 4138.595 | F65: 6100.627947
C66: 4 | D66: ŠTRAND DOO | E66: 5020.052 | F66: 4733.479929
C67: 5 | D67: METRO CASH & CARRY DOO | E67: 1585.182 | F67: 4401.192004
C68: 6 | D68: UNIVEREXPORT DOO | E68: 4552.173 | F68: 3445.024262
C69: 7 | D69: AMAN DOO | E69: 1968.59 | F69: 3091.501448
C70: 8 | D70: MESO-MARKET | E70: 1795.681 | F70: 2181.368059
C71: 9 | D71: MUP UPRAVA ZA POSLOVE ISHRANE I SMEŠTAJA | E71: 1251.989 | F71: 1239.247237
C72: 10 | D72: ĐERIĆ STR | E72: 396.338 | F72: 1150.937783
C73: 11 | D73: TP DOO TREND COMERCCE ŠID | E73: 762.425 | F73: 732.4226805
C74: 12 | D74: VINDIJA D.O.O. LAJKOVAC - VLASTITA POTROŠNJA | E74: 0 | F74: 681.2534117
C75: 13 | D75: PODUNAVLJE AD, BEOGRAD | E75: 1213.995 | F75: 630.7566039
C76: 14 | D76: POINT MARTINOVIĆ DOO | E76: 0 | F76: 586.7293865
C77: 15 | D77: MIS CHILLI DOO | E77: 418.437 | F77: 582.2096293
C78: 16 | D78: VEROPOULOS DOO | E78: 386.647 | F78: 513.3138801
C79: 17 | D79: JOVANA STR | E79: 299.041 | F79: 447.710609
C80: 18 | D80: SLAVONAC STUR, ISMETA MUJEZINOVIĆA | E80: 0 | F80: 400.3301947
C81: 19 | D81: MEDIUS DOO | E81: 226.737 | F81: 388.1879484
C82: 20 | D82: FAMOSO | E82: 0 | F82: 353.7998439
A83: KC Beograd Sum of 1. Sveži proizvodi | E83: 44163.378 | F83: 48382.59363
A84: KC Beograd Sum of 2. Smrznuti proizvodi | E84: 2142.432 | F84: 2114.574699
A85: KC Beograd Sum of 3. Prepađevine | E85: 6506.559 | F85: 6792.155363
A86: KC Beograd Sum of Grand Total | E86: 52812.369 | F86: 57289.32369
A87: KC Lajkovac | B87: Sum of 1. Sveži proizvodi | C87: 1 | D87: MERCATOR S | E87: 2022.194 | F87: 2970.34809
C88: 2 | D88: IDEA DOO | E88: 2605.372 | F88: 3215.660539
C89: 3 | D89: FORTUNA MARKET DOO | E89: 652.574 | F89: 1257.383005
C90: 4 | D90: ES KOMERC DOO | E90: 1041.574 | F90: 1582.623117
C91: 5 | D91: PREHRANA DOO | E91: 787.493 | F91: 1436.634151
C92: 6 | D92: EUROPROM DOO | E92: 414.009 | F92: 788.2009867
C93: 7 | D93: TP KVIN DOO | E93: 0 | F93: 957.1183332
C94: 8 | D94: DIVČIBARAC DOO, RAŽANA | E94: 73.782 | F94: 802.7361307
C95: 9 | D95: KMN STKUR | E95: 283.636 | F95: 644.6817963
C96: 10 | D96: DRAGANA SZTPR | E96: 97.597 | F96: 502.2133961
C97: 11 | D97: GREEN STR | E97: 374.729 | F97: 440.9578867
C98: 12 | D98: MRM KOLAREVIĆ DOO | E98: 266.354 | F98: 407.6419118
C99: 13 | D99: ĐOKIĆ SZTR | E99: 24.037 | F99: 419.1689825
C100: 14 | D100: NIKOLA TPD DOO | E100: 99.88 | F100: 262.3497173
C101: 15 | D101: MIROPROMET DOO | E101: 0 | F101: 137.8232604
C102: 16 | D102: ZORNIĆ SZTR | E102: 0 | F102: 412.3899135
C103: 17 | D103: ZDRAVSTVENI CENTAR VALJEVO | E103: 217.595 | F103: 239.3308325
C104: 18 | D104: DUĆAN STR LAZAREVAC | E104: 0 | F104: 276.4014469
C105: 19 | D105: ŽI-NA-SA STUZR | E105: 18.712 | F105: 200.2349662
C106: 20 | D106: METALAC-PROLETER AD | E106: 6.152 | F106: 3.804434916
B107: Sum of 2. Smrznuti proizvodi | C107: 1 | D107: MERCATOR S | E107: 11.108 | F107: 35.86607664
C108: 2 | D108: IDEA DOO | E108: 0 | F108: 0
C109: 3 | D109: FORTUNA MARKET DOO | E109: 0 | F109: 0
C110: 4 | D110: ES KOMERC DOO | E110: 91.924 | F110: 376.5616377
C111: 5 | D111: PREHRANA DOO | E111: 0 | F111: 27.54480665
C112: 6 | D112: EUROPROM DOO | E112: 108.146 | F112: 304.8233054
C113: 7 | D113: TP KVIN DOO | E113: 0 | F113: 104.8125999
C114: 8 | D114: DIVČIBARAC DOO, RAŽANA | E114: 0 | F114: 3.3784487
C115: 9 | D115: KMN STKUR | E115: 0 | F115: 0
C116: 10 | D116: DRAGANA SZTPR | E116: 0 | F116: 0
C117: 11 | D117: GREEN STR | E117: 0 | F117: 0
C118: 12 | D118: MRM KOLAREVIĆ DOO | E118: 0 | F118: 64.00988098
C119: 13 | D119: ĐOKIĆ SZTR | E119: 0 | F119: 0
C120: 14 | D120: NIKOLA TPD DOO | E120: 24.318 | F120: 73.90315641
C121: 15 | D121: MIROPROMET DOO | E121: 0 | F121: 67.73471608
C122: 16 | D122: ZORNIĆ SZTR | E122: 0 | F122: 8.950435636
C123: 17 | D123: ZDRAVSTVENI CENTAR VALJEVO | E123: 123.068 | F123: 146.9579751
C124: 18 | D124: DUĆAN STR LAZAREVAC | E124: 0 | F124: 0
C125: 19 | D125: ŽI-NA-SA STUZR | E125: 13.376 | F125: 42.01997819
C126: 20 | D126: METALAC-PROLETER AD | E126: 149.04 | F126: 276.5693698
B127: Sum of 3. Prepađevine | C127: 1 | D127: MERCATOR S | E127: 389.999 | F127: 345.14261
C128: 2 | D128: IDEA DOO | E128: 238.653 | F128: 10.35887982
C129: 3 | D129: FORTUNA MARKET DOO | E129: 717.711 | F129: 1189.398221
C130: 4 | D130: ES KOMERC DOO | E130: 390.85 | F130: 322.9426218
C131: 5 | D131: PREHRANA DOO | E131: 147.312 | F131: 84.26021889
C132: 6 | D132: EUROPROM DOO | E132: 349.32 | F132: 361.0233179
C133: 7 | D133: TP KVIN DOO | E133: 0 | F133: 273.8655205
C134: 8 | D134: DIVČIBARAC DOO, RAŽANA | E134: 35.4 | F134: 47.8125911
C135: 9 | D135: KMN STKUR | E135: 0 | F135: 2.180816805
C136: 10 | D136: DRAGANA SZTPR | E136: 70.705 | F136: 117.0655191
C137: 11 | D137: GREEN STR | E137: 60.5 | F137: 174.6972379
C138: 12 | D138: MRM KOLAREVIĆ DOO | E138: 17.25 | F138: 25.53373009
C139: 13 | D139: ĐOKIĆ SZTR | E139: 0 | F139: 25.24767962
C140: 14 | D140: NIKOLA TPD DOO | E140: 140.147 | F140: 95.11378065
C141: 15 | D141: MIROPROMET DOO | E141: 0 | F141: 223.8517583
C142: 16 | D142: ZORNIĆ SZTR | E142: 0 | F142: 4.198072349
C143: 17 | D143: ZDRAVSTVENI CENTAR VALJEVO | E143: 0 | F143: 0
C144: 18 | D144: DUĆAN STR LAZAREVAC | E144: 0 | F144: 85.67048042
C145: 19 | D145: ŽI-NA-SA STUZR | E145: 65.194 | F145: 95.56302892
C146: 20 | D146: METALAC-PROLETER AD | E146: 42 | F146: 43.77989736
B147: Sum of Grand Total | C147: 1 | D147: MERCATOR S | E147: 2423.301 | F147: 3351.356776
C148: 2 | D148: IDEA DOO | E148: 2844.025 | F148: 3226.019419
C149: 3 | D149: FORTUNA MARKET DOO | E149: 1370.285 | F149: 2446.781226
C150: 4 | D150: ES KOMERC DOO | E150: 1524.348 | F150: 2282.127376
C151: 5 | D151: PREHRANA DOO | E151: 934.805 | F151: 1548.439177
C152: 6 | D152: EUROPROM DOO | E152: 871.475 | F152: 1454.04761
C153: 7 | D153: TP KVIN DOO | E153: 0 | F153: 1335.796454
C154: 8 | D154: DIVČIBARAC DOO, RAŽANA | E154: 109.182 | F154: 853.9271705
C155: 9 | D155: KMN STKUR | E155: 283.636 | F155: 646.8626131
C156: 10 | D156: DRAGANA SZTPR | E156: 168.302 | F156: 619.2789152
C157: 11 | D157: GREEN STR | E157: 435.229 | F157: 615.6551246
C158: 12 | D158: MRM KOLAREVIĆ DOO | E158: 283.604 | F158: 497.1855229
C159: 13 | D159: ĐOKIĆ SZTR | E159: 24.037 | F159: 444.4166622
C160: 14 | D160: NIKOLA TPD DOO | E160: 264.345 | F160: 431.3666544
C161: 15 | D161: MIROPROMET DOO | E161: 0 | F161: 429.4097348
C162: 16 | D162: ZORNIĆ SZTR | E162: 0 | F162: 425.5384215
C163: 17 | D163: ZDRAVSTVENI CENTAR VALJEVO | E163: 340.663 | F163: 386.2888076
C164: 18 | D164: DUĆAN STR LAZAREVAC | E164: 0 | F164: 362.0719274
C165: 19 | D165: ŽI-NA-SA STUZR | E165: 97.282 | F165: 337.8179733
C166: 20 | D166: METALAC-PROLETER AD | E166: 197.192 | F166: 324.1537021
A167: KC Lajkovac Sum of 1. Sveži proizvodi | E167: 8985.69 | F167: 16957.7029
A168: KC Lajkovac Sum of 2. Smrznuti proizvodi | E168: 520.98 | F168: 1533.132387
A169: KC Lajkovac Sum of 3. Prepađevine | E169: 2665.041 | F169: 3527.705983
A170: KC Lajkovac Sum of Grand Total | E170: 12171.711 | F170: 22018.54127
A171: KC Niš | B171: Sum of 1. Sveži proizvodi | C171: 1 | D171: PRIMA NOVA DOO | E171: 183.41 | F171: 5312.867938
C172: 2 | D172: IDEA DOO | E172: 1409.719 | F172: 7205.906062
C173: 3 | D173: BIFTEK, RADOJEVIĆ MILOŠ PREDUZETNIK, NIŠ | E173: 12889.468 | F173: 6535.397182
C174: 4 | D174: NECA SZTR | E174: 28.513 | F174: 151.5804591
C175: 5 | D175: INEX-UZOR AD | E175: 157.21 | F175: 2355.983321
C176: 6 | D176: SAMALD-COMERC EXPORT-IMPORT DOO | E176: 0 | F176: 2821.804018
C177: 7 | D177: MERCATOR S | E177: 331.547 | F177: 2744.507513
C178: 8 | D178: GLIDŽIĆ NIS DOO | E178: 0 | F178: 2012.457817
C179: 9 | D179: TEKIJANKA DOO | E179: 37.691 | F179: 696.2231483
C180: 10 | D180: MIROČ A.D. KLADOVO | E180: 323.896 | F180: 1722.082305
C181: 11 | D181: ALF STR | E181: 247.537 | F181: 1453.05978
C182: 12 | D182: TIMOR DOO | E182: 0 | F182: 0
C183: 13 | D183: MR.CARDBOX DOO | E183: 82.231 | F183: 1131.334277
C184: 14 | D184: RIČ DOO PROKUPLJE | E184: 0 | F184: 0
C185: 15 | D185: DAKOM DOO | E185: 0 | F185: 1441.076183
C186: 16 | D186: MUP UPRAVA ZA POSLOVE ISHRANE I SMEŠTAJA | E186: 0 | F186: 0
C187: 17 | D187: KTK-KOMERC DOO | E187: 0 | F187: 474.3793108
C188: 18 | D188: METRO CASH & CARRY DOO | E188: 222.985 | F188: 724.2583092
C189: 19 | D189: PROLOM BANJA SB ZA REHABILITACIJU | E189: 0 | F189: 0
C190: 20 | D190: DVA BRATA STR | E190: 136.544 | F190: 869.9904247
B191: Sum of 2. Smrznuti proizvodi | C191: 1 | D191: PRIMA NOVA DOO | E191: 60 | F191: 150.373902
C192: 2 | D192: IDEA DOO | E192: 0 | F192: 0
C193: 3 | D193: BIFTEK, RADOJEVIĆ MILOŠ PREDUZETNIK, NIŠ | E193: 0 | F193: 0
C194: 4 | D194: NECA SZTR | E194: 231.726 | F194: 1121.295005
C195: 5 | D195: INEX-UZOR AD | E195: 40.267 | F195: 969.1560969
C196: 6 | D196: SAMALD-COMERC EXPORT-IMPORT DOO | E196: 0 | F196: 0
C197: 7 | D197: MERCATOR S | E197: 0 | F197: 0
C198: 8 | D198: GLIDŽIĆ NIS DOO | E198: 0 | F198: 806.0172819
C199: 9 | D199: TEKIJANKA DOO | E199: 183.926 | F199: 237.4125226
C200: 10 | D200: MIROČ A.D. KLADOVO | E200: 156.018 | F200: 282.7198942
... 58 more rows

Sheet PRORAČUNI
D1: PROŠLA GODINA | G1: =D1 -> PROŠLA GODINA | H1: Index | K1: Index | L1: DNEVNA PRODAJA | P1: DNEVNI PLAN | T1: INDEX
A2: KC | B2: KUPAC | D2: 1. Sveži proizvodi | E2: 2. Smrznuti proizvodi | F2: 3. Prepađevine | G2: Grand Total | H2: 1. Sveži proizvodi | I2: 2. Smrznuti proizvodi | J2: 3. Prepađevine | K2: Grand Total | L2: 1. Sveži proizvodi | M2: 2. Smrznuti proizvodi | N2: 3. Prepađevine | O2: Grand Total | P2: 1. Sveži proizvodi | Q2: 2. Smrznuti proizvodi | R2: 3. Prepađevine | S2: Grand Total | T2: 1. Sveži proizvodi | U2: 2. Smrznuti proizvodi | V2: 3. Prepađevine | W2: Grand Total
A3: =#REF! ->  | B3: =#REF! ->  | C3: =#REF! ->  | D3: =#REF! ->  | E3: =#REF! ->  | F3: =#REF! ->  | G3: =#REF! ->  | H3: =D3/$G3 ->  | I3: =E3/$G3 ->  | K3: =G3/#REF! ->  | L3: =IFERROR(INDEX(#REF!,MATCH(PRORAČUNI!$C3,#REF!,),MATCH("1. Sveži proizvodi",#REF!,)),0) -> 0 | M3: =IFERROR(INDEX(#REF!,MATCH(PRORAČUNI!$C3,#REF!,),MATCH("2. Smrznuti proizvodi",#REF!,)),0) -> 0 | N3: =IFERROR(INDEX(#REF!,MATCH(PRORAČUNI!$C3,#REF!,),MATCH("3. Prepađevine",#REF!,)),0) -> 0 | O3: =SUM(L3:N3) -> 0 | P3: =KUMULATIV!W5 ->  | Q3: =KUMULATIV!X5 ->  | R3: =KUMULATIV!Y5 ->  | S3: =KUMULATIV!Z5 ->  | T3: =IFERROR(L3/P3,0) -> 0 | U3: =IFERROR(M3/Q3,0) -> 0 | V3: 0 | W3: 0
B4: =#REF! ->  | C4: =#REF! ->  | D4: =#REF! ->  | E4: =#REF! ->  | F4: =#REF! ->  | G4: =#REF! ->  | H4: =D4/$G4 ->  | I4: =E4/$G4 ->  | J4: =F4/$G4 ->  | K4: =G4/#REF! ->  | L4: =IFERROR(INDEX(#REF!,MATCH(PRORAČUNI!$C4,#REF!,),MATCH("1. Sveži proizvodi",#REF!,)),0) -> 0 | M4: =IFERROR(INDEX(#REF!,MATCH(PRORAČUNI!$C4,#REF!,),MATCH("2. Smrznuti proizvodi",#REF!,)),0) -> 0 | N4: =IFERROR(INDEX(#REF!,MATCH(PRORAČUNI!$C4,#REF!,),MATCH("3. Prepađevine",#REF!,)),0) -> 0 | O4: =SUM(L4:N4) -> 0 | P4: =KUMULATIV!W6 ->  | Q4: =KUMULATIV!X6 ->  | R4: =KUMULATIV!Y6 ->  | S4: =KUMULATIV!Z6 ->  | T4: =IFERROR(L4/P4,0) -> 0 | U4: =IFERROR(M4/Q4,0) -> 0 | V4: =IFERROR(N4/R4,0) -> 0 | W4: =IFERROR(O4/S4,0) -> 0
B5: =#REF! ->  | C5: =#REF! ->  | D5: =#REF! ->  | E5: =#REF! ->  | F5: =#REF! ->  | G5: =#REF! ->  | K5: =G5/#REF! ->  | L5: =IFERROR(INDEX(#REF!,MATCH(PRORAČUNI!$C5,#REF!,),MATCH("1. Sveži proizvodi",#REF!,)),0) -> 0 | M5: =IFERROR(INDEX(#REF!,MATCH(PRORAČUNI!$C5,#REF!,),MATCH("2. Smrznuti proizvodi",#REF!,)),0) -> 0 | N5: =IFERROR(INDEX(#REF!,MATCH(PRORAČUNI!$C5,#REF!,),MATCH("3. Prepađevine",#REF!,)),0) -> 0 | O5: 0 | P5: =KUMULATIV!W7 ->  | Q5: =KUMULATIV!X7 ->  | R5: =KUMULATIV!Y7 ->  | S5: =KUMULATIV!Z7 ->  | T5: 0 | U5: 0 | V5: 0 | W5: 0
B6: =#REF! ->  | C6: =#REF! ->  | D6: =#REF! ->  | E6: =#REF! ->  | F6: =#REF! ->  | G6: =#REF! ->  | K6: =G6/#REF! ->  | L6: =IFERROR(INDEX(#REF!,MATCH(PRORAČUNI!$C6,#REF!,),MATCH("1. Sveži proizvodi",#REF!,)),0) -> 0 | M6: =IFERROR(INDEX(#REF!,MATCH(PRORAČUNI!$C6,#REF!,),MATCH("2. Smrznuti proizvodi",#REF!,)),0) -> 0 | N6: =IFERROR(INDEX(#REF!,MATCH(PRORAČUNI!$C6,#REF!,),MATCH("3. Prepađevine",#REF!,)),0) -> 0 | O6: 0 | P6: =KUMULATIV!W8 ->  | Q6: =KUMULATIV!X8 ->  | R6: =KUMULATIV!Y8 ->  | S6: =KUMULATIV!Z8 ->  | T6: 0 | U6: 0 | V6: 0 | W6: 0
B7: =#REF! ->  | C7: =#REF! ->  | D7: =#REF! ->  | E7: =#REF! ->  | F7: =#REF! ->  | G7: =#REF! ->  | K7: =G7/#REF! ->  | L7: =IFERROR(INDEX(#REF!,MATCH(PRORAČUNI!$C7,#REF!,),MATCH("1. Sveži proizvodi",#REF!,)),0) -> 0 | M7: =IFERROR(INDEX(#REF!,MATCH(PRORAČUNI!$C7,#REF!,),MATCH("2. Smrznuti proizvodi",#REF!,)),0) -> 0 | N7: =IFERROR(INDEX(#REF!,MATCH(PRORAČUNI!$C7,#REF!,),MATCH("3. Prepađevine",#REF!,)),0) -> 0 | O7: 0 | P7: =KUMULATIV!W9 ->  | Q7: =KUMULATIV!X9 ->  | R7: =KUMULATIV!Y9 ->  | S7: =KUMULATIV!Z9 ->  | T7: 0 | U7: 0 | V7: 0 | W7: 0
B8: =#REF! ->  | C8: =#REF! ->  | D8: =#REF! ->  | E8: =#REF! ->  | F8: =#REF! ->  | G8: =#REF! ->  | K8: =G8/#REF! ->  | L8: =IFERROR(INDEX(#REF!,MATCH(PRORAČUNI!$C8,#REF!,),MATCH("1. Sveži proizvodi",#REF!,)),0) -> 0 | M8: =IFERROR(INDEX(#REF!,MATCH(PRORAČUNI!$C8,#REF!,),MATCH("2. Smrznuti proizvodi",#REF!,)),0) -> 0 | N8: =IFERROR(INDEX(#REF!,MATCH(PRORAČUNI!$C8,#REF!,),MATCH("3. Prepađevine",#REF!,)),0) -> 0 | O8: 0 | P8: =KUMULATIV!W10 ->  | Q8: =KUMULATIV!X10 ->  | R8: =KUMULATIV!Y10 ->  | S8: =KUMULATIV!Z10 ->  | T8: 0 | U8: 0 | V8: 0 | W8: 0
B9: =#REF! ->  | C9: =#REF! ->  | D9: =#REF! ->  | E9: =#REF! ->  | F9: =#REF! ->  | G9: =#REF! ->  | K9: =G9/#REF! ->  | L9: =IFERROR(INDEX(#REF!,MATCH(PRORAČUNI!$C9,#REF!,),MATCH("1. Sveži proizvodi",#REF!,)),0) -> 0 | M9: =IFERROR(INDEX(#REF!,MATCH(PRORAČUNI!$C9,#REF!,),MATCH("2. Smrznuti proizvodi",#REF!,)),0) -> 0 | N9: =IFERROR(INDEX(#REF!,MATCH(PRORAČUNI!$C9,#REF!,),MATCH("3. Prepađevine",#REF!,)),0) -> 0 | O9: 0 | P9: =KUMULATIV!W11 ->  | Q9: =KUMULATIV!X11 ->  | R9: =KUMULATIV!Y11 ->  | S9: =KUMULATIV!Z11 ->  | T9: 0 | U9: 0 | V9: 0 | W9: 0
B10: =#REF! ->  | C10: =#REF! ->  | D10: =#REF! ->  | E10: =#REF! ->  | F10: =#REF! ->  | G10: =#REF! ->  | K10: =G10/#REF! ->  | L10: =IFERROR(INDEX(#REF!,MATCH(PRORAČUNI!$C10,#REF!,),MATCH("1. Sveži proizvodi",#REF!,)),0) -> 0 | M10: =IFERROR(INDEX(#REF!,MATCH(PRORAČUNI!$C10,#REF!,),MATCH("2. Smrznuti proizvodi",#REF!,)),0) -> 0 | N10: =IFERROR(INDEX(#REF!,MATCH(PRORAČUNI!$C10,#REF!,),MATCH("3. Prepađevine",#REF!,)),0) -> 0 | O10: 0 | P10: =KUMULATIV!W12 ->  | Q10: =KUMULATIV!X12 ->  | R10: =KUMULATIV!Y12 ->  | S10: =KUMULATIV!Z12 ->  | T10: 0 | U10: 0 | V10: 0 | W10: 0
B11: =#REF! ->  | C11: =#REF! ->  | D11: =#REF! ->  | E11: =#REF! ->  | F11: =#REF! ->  | G11: =#REF! ->  | K11: =G11/#REF! ->  | L11: =IFERROR(INDEX(#REF!,MATCH(PRORAČUNI!$C11,#REF!,),MATCH("1. Sveži proizvodi",#REF!,)),0) -> 0 | M11: =IFERROR(INDEX(#REF!,MATCH(PRORAČUNI!$C11,#REF!,),MATCH("2. Smrznuti proizvodi",#REF!,)),0) -> 0 | N11: =IFERROR(INDEX(#REF!,MATCH(PRORAČUNI!$C11,#REF!,),MATCH("3. Prepađevine",#REF!,)),0) -> 0 | O11: 0 | P11: =KUMULATIV!W13 ->  | Q11: =KUMULATIV!X13 ->  | R11: =KUMULATIV!Y13 ->  | S11: =KUMULATIV!Z13 ->  | T11: 0 | U11: 0 | V11: 0 | W11: 0
B12: =#REF! ->  | C12: =#REF! ->  | D12: =#REF! ->  | E12: =#REF! ->  | F12: =#REF! ->  | G12: =#REF! ->  | K12: =G12/#REF! ->  | L12: =IFERROR(INDEX(#REF!,MATCH(PRORAČUNI!$C12,#REF!,),MATCH("1. Sveži proizvodi",#REF!,)),0) -> 0 | M12: =IFERROR(INDEX(#REF!,MATCH(PRORAČUNI!$C12,#REF!,),MATCH("2. Smrznuti proizvodi",#REF!,)),0) -> 0 | N12: =IFERROR(INDEX(#REF!,MATCH(PRORAČUNI!$C12,#REF!,),MATCH("3. Prepađevine",#REF!,)),0) -> 0 | O12: 0 | P12: =KUMULATIV!W14 ->  | Q12: =KUMULATIV!X14 ->  | R12: =KUMULATIV!Y14 ->  | S12: =KUMULATIV!Z14 ->  | T12: 0 | U12: 0 | V12: 0 | W12: 0
B13: =#REF! ->  | C13: =#REF! ->  | D13: =#REF! ->  | E13: =#REF! ->  | F13: =#REF! ->  | G13: =#REF! ->  | K13: =G13/#REF! ->  | L13: =IFERROR(INDEX(#REF!,MATCH(PRORAČUNI!$C13,#REF!,),MATCH("1. Sveži proizvodi",#REF!,)),0) -> 0 | M13: =IFERROR(INDEX(#REF!,MATCH(PRORAČUNI!$C13,#REF!,),MATCH("2. Smrznuti proizvodi",#REF!,)),0) -> 0 | N13: =IFERROR(INDEX(#REF!,MATCH(PRORAČUNI!$C13,#REF!,),MATCH("3. Prepađevine",#REF!,)),0) -> 0 | O13: 0 | P13: =KUMULATIV!W15 ->  | Q13: =KUMULATIV!X15 ->  | R13: =KUMULATIV!Y15 ->  | S13: =KUMULATIV!Z15 ->  | T13: 0 | U13: 0 | V13: 0 | W13: 0
B14: =#REF! ->  | C14: =#REF! ->  | D14: =#REF! ->  | E14: =#REF! ->  | F14: =#REF! ->  | G14: =#REF! ->  | K14: =G14/#REF! ->  | L14: =IFERROR(INDEX(#REF!,MATCH(PRORAČUNI!$C14,#REF!,),MATCH("1. Sveži proizvodi",#REF!,)),0) -> 0 | M14: =IFERROR(INDEX(#REF!,MATCH(PRORAČUNI!$C14,#REF!,),MATCH("2. Smrznuti proizvodi",#REF!,)),0) -> 0 | N14: =IFERROR(INDEX(#REF!,MATCH(PRORAČUNI!$C14,#REF!,),MATCH("3. Prepađevine",#REF!,)),0) -> 0 | O14: 0 | P14: =KUMULATIV!W16 ->  | Q14: =KUMULATIV!X16 ->  | R14: =KUMULATIV!Y16 ->  | S14: =KUMULATIV!Z16 ->  | T14: 0 | U14: 0 | V14: 0 | W14: 0
B15: =#REF! ->  | C15: =#REF! ->  | D15: =#REF! ->  | E15: =#REF! ->  | F15: =#REF! ->  | G15: =#REF! ->  | K15: =G15/#REF! ->  | L15: =IFERROR(INDEX(#REF!,MATCH(PRORAČUNI!$C15,#REF!,),MATCH("1. Sveži proizvodi",#REF!,)),0) -> 0 | M15: =IFERROR(INDEX(#REF!,MATCH(PRORAČUNI!$C15,#REF!,),MATCH("2. Smrznuti proizvodi",#REF!,)),0) -> 0 | N15: =IFERROR(INDEX(#REF!,MATCH(PRORAČUNI!$C15,#REF!,),MATCH("3. Prepađevine",#REF!,)),0) -> 0 | O15: 0 | P15: =KUMULATIV!W17 ->  | Q15: =KUMULATIV!X17 ->  | R15: =KUMULATIV!Y17 ->  | S15: =KUMULATIV!Z17 ->  | T15: 0 | U15: 0 | V15: 0 | W15: 0
B16: =#REF! ->  | C16: =#REF! ->  | D16: =#REF! ->  | E16: =#REF! ->  | F16: =#REF! ->  | G16: =#REF! ->  | K16: =G16/#REF! ->  | L16: =IFERROR(INDEX(#REF!,MATCH(PRORAČUNI!$C16,#REF!,),MATCH("1. Sveži proizvodi",#REF!,)),0) -> 0 | M16: =IFERROR(INDEX(#REF!,MATCH(PRORAČUNI!$C16,#REF!,),MATCH("2. Smrznuti proizvodi",#REF!,)),0) -> 0 | N16: =IFERROR(INDEX(#REF!,MATCH(PRORAČUNI!$C16,#REF!,),MATCH("3. Prepađevine",#REF!,)),0) -> 0 | O16: 0 | P16: =KUMULATIV!W18 ->  | Q16: =KUMULATIV!X18 ->  | R16: =KUMULATIV!Y18 ->  | S16: =KUMULATIV!Z18 ->  | T16: 0 | U16: 0 | V16: 0 | W16: 0
B17: =#REF! ->  | C17: =#REF! ->  | D17: =#REF! ->  | E17: =#REF! ->  | F17: =#REF! ->  | G17: =#REF! ->  | K17: =G17/#REF! ->  | L17: =IFERROR(INDEX(#REF!,MATCH(PRORAČUNI!$C17,#REF!,),MATCH("1. Sveži proizvodi",#REF!,)),0) -> 0 | M17: =IFERROR(INDEX(#REF!,MATCH(PRORAČUNI!$C17,#REF!,),MATCH("2. Smrznuti proizvodi",#REF!,)),0) -> 0 | N17: =IFERROR(INDEX(#REF!,MATCH(PRORAČUNI!$C17,#REF!,),MATCH("3. Prepađevine",#REF!,)),0) -> 0 | O17: 0 | P17: =KUMULATIV!W19 ->  | Q17: =KUMULATIV!X19 ->  | R17: =KUMULATIV!Y19 ->  | S17: =KUMULATIV!Z19 ->  | T17: 0 | U17: 0 | V17: 0 | W17: 0
B18: =#REF! ->  | C18: =#REF! ->  | D18: =#REF! ->  | E18: =#REF! ->  | F18: =#REF! ->  | G18: =#REF! ->  | K18: =G18/#REF! ->  | L18: =IFERROR(INDEX(#REF!,MATCH(PRORAČUNI!$C18,#REF!,),MATCH("1. Sveži proizvodi",#REF!,)),0) -> 0 | M18: =IFERROR(INDEX(#REF!,MATCH(PRORAČUNI!$C18,#REF!,),MATCH("2. Smrznuti proizvodi",#REF!,)),0) -> 0 | N18: =IFERROR(INDEX(#REF!,MATCH(PRORAČUNI!$C18,#REF!,),MATCH("3. Prepađevine",#REF!,)),0) -> 0 | O18: 0 | P18: =KUMULATIV!W20 ->  | Q18: =KUMULATIV!X20 ->  | R18: =KUMULATIV!Y20 ->  | S18: =KUMULATIV!Z20 ->  | T18: 0 | U18: 0 | V18: 0 | W18: 0
B19: =#REF! ->  | C19: =#REF! ->  | D19: =#REF! ->  | E19: =#REF! ->  | F19: =#REF! ->  | G19: =#REF! ->  | K19: =G19/#REF! ->  | L19: =IFERROR(INDEX(#REF!,MATCH(PRORAČUNI!$C19,#REF!,),MATCH("1. Sveži proizvodi",#REF!,)),0) -> 0 | M19: =IFERROR(INDEX(#REF!,MATCH(PRORAČUNI!$C19,#REF!,),MATCH("2. Smrznuti proizvodi",#REF!,)),0) -> 0 | N19: =IFERROR(INDEX(#REF!,MATCH(PRORAČUNI!$C19,#REF!,),MATCH("3. Prepađevine",#REF!,)),0) -> 0 | O19: 0 | P19: =KUMULATIV!W21 ->  | Q19: =KUMULATIV!X21 ->  | R19: =KUMULATIV!Y21 ->  | S19: =KUMULATIV!Z21 ->  | T19: 0 | U19: 0 | V19: 0 | W19: 0
B20: =#REF! ->  | C20: =#REF! ->  | D20: =#REF! ->  | E20: =#REF! ->  | F20: =#REF! ->  | G20: =#REF! ->  | K20: =G20/#REF! ->  | L20: =IFERROR(INDEX(#REF!,MATCH(PRORAČUNI!$C20,#REF!,),MATCH("1. Sveži proizvodi",#REF!,)),0) -> 0 | M20: =IFERROR(INDEX(#REF!,MATCH(PRORAČUNI!$C20,#REF!,),MATCH("2. Smrznuti proizvodi",#REF!,)),0) -> 0 | N20: =IFERROR(INDEX(#REF!,MATCH(PRORAČUNI!$C20,#REF!,),MATCH("3. Prepađevine",#REF!,)),0) -> 0 | O20: 0 | P20: =KUMULATIV!W22 ->  | Q20: =KUMULATIV!X22 ->  | R20: =KUMULATIV!Y22 ->  | S20: =KUMULATIV!Z22 ->  | T20: 0 | U20: 0 | V20: 0 | W20: 0
B21: =#REF! ->  | C21: =#REF! ->  | D21: =#REF! ->  | E21: =#REF! ->  | F21: =#REF! ->  | G21: =#REF! ->  | K21: =G21/#REF! ->  | L21: =IFERROR(INDEX(#REF!,MATCH(PRORAČUNI!$C21,#REF!,),MATCH("1. Sveži proizvodi",#REF!,)),0) -> 0 | M21: =IFERROR(INDEX(#REF!,MATCH(PRORAČUNI!$C21,#REF!,),MATCH("2. Smrznuti proizvodi",#REF!,)),0) -> 0 | N21: =IFERROR(INDEX(#REF!,MATCH(PRORAČUNI!$C21,#REF!,),MATCH("3. Prepađevine",#REF!,)),0) -> 0 | O21: 0 | P21: =KUMULATIV!W23 ->  | Q21: =KUMULATIV!X23 ->  | R21: =KUMULATIV!Y23 ->  | S21: =KUMULATIV!Z23 ->  | T21: 0 | U21: 0 | V21: 0 | W21: 0
B22: =#REF! ->  | C22: =#REF! ->  | D22: =#REF! ->  | E22: =#REF! ->  | F22: =#REF! ->  | G22: =#REF! ->  | K22: =G22/#REF! ->  | L22: =IFERROR(INDEX(#REF!,MATCH(PRORAČUNI!$C22,#REF!,),MATCH("1. Sveži proizvodi",#REF!,)),0) -> 0 | M22: =IFERROR(INDEX(#REF!,MATCH(PRORAČUNI!$C22,#REF!,),MATCH("2. Smrznuti proizvodi",#REF!,)),0) -> 0 | N22: =IFERROR(INDEX(#REF!,MATCH(PRORAČUNI!$C22,#REF!,),MATCH("3. Prepađevine",#REF!,)),0) -> 0 | O22: 0 | P22: =KUMULATIV!W24 ->  | Q22: =KUMULATIV!X24 ->  | R22: =KUMULATIV!Y24 ->  | S22: =KUMULATIV!Z24 ->  | T22: 0 | U22: 0 | V22: 0 | W22: 0
A23: =#REF! ->  | B23: =#REF! ->  | C23: =#REF! ->  | D23: =#REF! ->  | E23: =#REF! ->  | F23: =#REF! ->  | G23: =#REF! ->  | K23: =PRORAČUNI!G23/#REF! ->  | L23: =IFERROR(INDEX(#REF!,MATCH(PRORAČUNI!$C23,#REF!,),MATCH("1. Sveži proizvodi",#REF!,)),0) -> 0 | M23: =IFERROR(INDEX(#REF!,MATCH(PRORAČUNI!$C23,#REF!,),MATCH("2. Smrznuti proizvodi",#REF!,)),0) -> 0 | N23: =IFERROR(INDEX(#REF!,MATCH(PRORAČUNI!$C23,#REF!,),MATCH("3. Prepađevine",#REF!,)),0) -> 0 | O23: =SUM(L23:N23) -> 0 | P23: =KUMULATIV!W25 ->  | Q23: =KUMULATIV!X25 ->  | R23: =KUMULATIV!Y25 ->  | S23: =KUMULATIV!Z25 ->  | T23: 0 | U23: 0 | V23: 0 | W23: 0
B24: =#REF! ->  | C24: =#REF! ->  | D24: =#REF! ->  | E24: =#REF! ->  | F24: =#REF! ->  | G24: =#REF! ->  | H24: =D24/$G24 ->  | I24: =E24/$G24 ->  | J24: =F24/$G24 ->  | K24: =PRORAČUNI!G24/#REF! ->  | L24: =IFERROR(INDEX(#REF!,MATCH(PRORAČUNI!$C24,#REF!,),MATCH("1. Sveži proizvodi",#REF!,)),0) -> 0 | M24: =IFERROR(INDEX(#REF!,MATCH(PRORAČUNI!$C24,#REF!,),MATCH("2. Smrznuti proizvodi",#REF!,)),0) -> 0 | N24: =IFERROR(INDEX(#REF!,MATCH(PRORAČUNI!$C24,#REF!,),MATCH("3. Prepađevine",#REF!,)),0) -> 0 | O24: =SUM(L24:N24) -> 0 | P24: =KUMULATIV!W26 ->  | Q24: =KUMULATIV!X26 ->  | R24: =KUMULATIV!Y26 ->  | S24: =KUMULATIV!Z26 ->  | T24: 0 | U24: 0 | V24: 0 | W24: 0
B25: =#REF! ->  | C25: =#REF! ->  | D25: =#REF! ->  | E25: =#REF! ->  | F25: =#REF! ->  | G25: =#REF! ->  | K25: =PRORAČUNI!G25/#REF! ->  | L25: =IFERROR(INDEX(#REF!,MATCH(PRORAČUNI!$C25,#REF!,),MATCH("1. Sveži proizvodi",#REF!,)),0) -> 0 | M25: =IFERROR(INDEX(#REF!,MATCH(PRORAČUNI!$C25,#REF!,),MATCH("2. Smrznuti proizvodi",#REF!,)),0) -> 0 | N25: =IFERROR(INDEX(#REF!,MATCH(PRORAČUNI!$C25,#REF!,),MATCH("3. Prepađevine",#REF!,)),0) -> 0 | O25: 0 | P25: =KUMULATIV!W27 ->  | Q25: =KUMULATIV!X27 ->  | R25: =KUMULATIV!Y27 ->  | S25: =KUMULATIV!Z27 ->  | T25: 0 | U25: 0 | V25: 0 | W25: 0
B26: =#REF! ->  | C26: =#REF! ->  | D26: =#REF! ->  | E26: =#REF! ->  | F26: =#REF! ->  | G26: =#REF! ->  | K26: =PRORAČUNI!G26/#REF! ->  | L26: =IFERROR(INDEX(#REF!,MATCH(PRORAČUNI!$C26,#REF!,),MATCH("1. Sveži proizvodi",#REF!,)),0) -> 0 | M26: =IFERROR(INDEX(#REF!,MATCH(PRORAČUNI!$C26,#REF!,),MATCH("2. Smrznuti proizvodi",#REF!,)),0) -> 0 | N26: =IFERROR(INDEX(#REF!,MATCH(PRORAČUNI!$C26,#REF!,),MATCH("3. Prepađevine",#REF!,)),0) -> 0 | O26: 0 | P26: =KUMULATIV!W28 ->  | Q26: =KUMULATIV!X28 ->  | R26: =KUMULATIV!Y28 ->  | S26: =KUMULATIV!Z28 ->  | T26: 0 | U26: 0 | V26: 0 | W26: 0
B27: =#REF! ->  | C27: =#REF! ->  | D27: =#REF! ->  | E27: =#REF! ->  | F27: =#REF! ->  | G27: =#REF! ->  | K27: =PRORAČUNI!G27/#REF! ->  | L27: =IFERROR(INDEX(#REF!,MATCH(PRORAČUNI!$C27,#REF!,),MATCH("1. Sveži proizvodi",#REF!,)),0) -> 0 | M27: =IFERROR(INDEX(#REF!,MATCH(PRORAČUNI!$C27,#REF!,),MATCH("2. Smrznuti proizvodi",#REF!,)),0) -> 0 | N27: =IFERROR(INDEX(#REF!,MATCH(PRORAČUNI!$C27,#REF!,),MATCH("3. Prepađevine",#REF!,)),0) -> 0 | O27: 0 | P27: =KUMULATIV!W29 ->  | Q27: =KUMULATIV!X29 ->  | R27: =KUMULATIV!Y29 ->  | S27: =KUMULATIV!Z29 ->  | T27: 0 | U27: 0 | V27: 0 | W27: 0
B28: =#REF! ->  | C28: =#REF! ->  | D28: =#REF! ->  | E28: =#REF! ->  | F28: =#REF! ->  | G28: =#REF! ->  | K28: =PRORAČUNI!G28/#REF! ->  | L28: =IFERROR(INDEX(#REF!,MATCH(PRORAČUNI!$C28,#REF!,),MATCH("1. Sveži proizvodi",#REF!,)),0) -> 0 | M28: =IFERROR(INDEX(#REF!,MATCH(PRORAČUNI!$C28,#REF!,),MATCH("2. Smrznuti proizvodi",#REF!,)),0) -> 0 | N28: =IFERROR(INDEX(#REF!,MATCH(PRORAČUNI!$C28,#REF!,),MATCH("3. Prepađevine",#REF!,)),0) -> 0 | O28: 0 | P28: =KUMULATIV!W30 ->  | Q28: =KUMULATIV!X30 ->  | R28: =KUMULATIV!Y30 ->  | S28: =KUMULATIV!Z30 ->  | T28: 0 | U28: 0 | V28: 0 | W28: 0
B29: =#REF! ->  | C29: =#REF! ->  | D29: =#REF! ->  | E29: =#REF! ->  | F29: =#REF! ->  | G29: =#REF! ->  | K29: =PRORAČUNI!G29/#REF! ->  | L29: =IFERROR(INDEX(#REF!,MATCH(PRORAČUNI!$C29,#REF!,),MATCH("1. Sveži proizvodi",#REF!,)),0) -> 0 | M29: =IFERROR(INDEX(#REF!,MATCH(PRORAČUNI!$C29,#REF!,),MATCH("2. Smrznuti proizvodi",#REF!,)),0) -> 0 | N29: =IFERROR(INDEX(#REF!,MATCH(PRORAČUNI!$C29,#REF!,),MATCH("3. Prepađevine",#REF!,)),0) -> 0 | O29: 0 | P29: =KUMULATIV!W31 ->  | Q29: =KUMULATIV!X31 ->  | R29: =KUMULATIV!Y31 ->  | S29: =KUMULATIV!Z31 ->  | T29: 0 | U29: 0 | V29: 0 | W29: 0
B30: =#REF! ->  | C30: =#REF! ->  | D30: =#REF! ->  | E30: =#REF! ->  | F30: =#REF! ->  | G30: =#REF! ->  | K30: =PRORAČUNI!G30/#REF! ->  | L30: =IFERROR(INDEX(#REF!,MATCH(PRORAČUNI!$C30,#REF!,),MATCH("1. Sveži proizvodi",#REF!,)),0) -> 0 | M30: =IFERROR(INDEX(#REF!,MATCH(PRORAČUNI!$C30,#REF!,),MATCH("2. Smrznuti proizvodi",#REF!,)),0) -> 0 | N30: =IFERROR(INDEX(#REF!,MATCH(PRORAČUNI!$C30,#REF!,),MATCH("3. Prepađevine",#REF!,)),0) -> 0 | O30: 0 | P30: =KUMULATIV!W32 ->  | Q30: =KUMULATIV!X32 ->  | R30: =KUMULATIV!Y32 ->  | S30: =KUMULATIV!Z32 ->  | T30: 0 | U30: 0 | V30: 0 | W30: 0
B31: =#REF! ->  | C31: =#REF! ->  | D31: =#REF! ->  | E31: =#REF! ->  | F31: =#REF! ->  | G31: =#REF! ->  | K31: =PRORAČUNI!G31/#REF! ->  | L31: =IFERROR(INDEX(#REF!,MATCH(PRORAČUNI!$C31,#REF!,),MATCH("1. Sveži proizvodi",#REF!,)),0) -> 0 | M31: =IFERROR(INDEX(#REF!,MATCH(PRORAČUNI!$C31,#REF!,),MATCH("2. Smrznuti proizvodi",#REF!,)),0) -> 0 | N31: =IFERROR(INDEX(#REF!,MATCH(PRORAČUNI!$C31,#REF!,),MATCH("3. Prepađevine",#REF!,)),0) -> 0 | O31: 0 | P31: =KUMULATIV!W33 ->  | Q31: =KUMULATIV!X33 ->  | R31: =KUMULATIV!Y33 ->  | S31: =KUMULATIV!Z33 ->  | T31: 0 | U31: 0 | V31: 0 | W31: 0
B32: =#REF! ->  | C32: =#REF! ->  | D32: =#REF! ->  | E32: =#REF! ->  | F32: =#REF! ->  | G32: =#REF! ->  | K32: =PRORAČUNI!G32/#REF! ->  | L32: =IFERROR(INDEX(#REF!,MATCH(PRORAČUNI!$C32,#REF!,),MATCH("1. Sveži proizvodi",#REF!,)),0) -> 0 | M32: =IFERROR(INDEX(#REF!,MATCH(PRORAČUNI!$C32,#REF!,),MATCH("2. Smrznuti proizvodi",#REF!,)),0) -> 0 | N32: =IFERROR(INDEX(#REF!,MATCH(PRORAČUNI!$C32,#REF!,),MATCH("3. Prepađevine",#REF!,)),0) -> 0 | O32: 0 | P32: =KUMULATIV!W34 ->  | Q32: =KUMULATIV!X34 ->  | R32: =KUMULATIV!Y34 ->  | S32: =KUMULATIV!Z34 ->  | T32: 0 | U32: 0 | V32: 0 | W32: 0
B33: =#REF! ->  | C33: =#REF! ->  | D33: =#REF! ->  | E33: =#REF! ->  | F33: =#REF! ->  | G33: =#REF! ->  | K33: =PRORAČUNI!G33/#REF! ->  | L33: =IFERROR(INDEX(#REF!,MATCH(PRORAČUNI!$C33,#REF!,),MATCH("1. Sveži proizvodi",#REF!,)),0) -> 0 | M33: =IFERROR(INDEX(#REF!,MATCH(PRORAČUNI!$C33,#REF!,),MATCH("2. Smrznuti proizvodi",#REF!,)),0) -> 0 | N33: =IFERROR(INDEX(#REF!,MATCH(PRORAČUNI!$C33,#REF!,),MATCH("3. Prepađevine",#REF!,)),0) -> 0 | O33: 0 | P33: =KUMULATIV!W35 ->  | Q33: =KUMULATIV!X35 ->  | R33: =KUMULATIV!Y35 ->  | S33: =KUMULATIV!Z35 ->  | T33: 0 | U33: 0 | V33: 0 | W33: 0
B34: =#REF! ->  | C34: =#REF! ->  | D34: =#REF! ->  | E34: =#REF! ->  | F34: =#REF! ->  | G34: =#REF! ->  | K34: =PRORAČUNI!G34/#REF! ->  | L34: =IFERROR(INDEX(#REF!,MATCH(PRORAČUNI!$C34,#REF!,),MATCH("1. Sveži proizvodi",#REF!,)),0) -> 0 | M34: =IFERROR(INDEX(#REF!,MATCH(PRORAČUNI!$C34,#REF!,),MATCH("2. Smrznuti proizvodi",#REF!,)),0) -> 0 | N34: =IFERROR(INDEX(#REF!,MATCH(PRORAČUNI!$C34,#REF!,),MATCH("3. Prepađevine",#REF!,)),0) -> 0 | O34: 0 | P34: =KUMULATIV!W36 ->  | Q34: =KUMULATIV!X36 ->  | R34: =KUMULATIV!Y36 ->  | S34: =KUMULATIV!Z36 ->  | T34: 0 | U34: 0 | V34: 0 | W34: 0
B35: =#REF! ->  | C35: =#REF! ->  | D35: =#REF! ->  | E35: =#REF! ->  | F35: =#REF! ->  | G35: =#REF! ->  | K35: =PRORAČUNI!G35/#REF! ->  | L35: =IFERROR(INDEX(#REF!,MATCH(PRORAČUNI!$C35,#REF!,),MATCH("1. Sveži proizvodi",#REF!,)),0) -> 0 | M35: =IFERROR(INDEX(#REF!,MATCH(PRORAČUNI!$C35,#REF!,),MATCH("2. Smrznuti proizvodi",#REF!,)),0) -> 0 | N35: =IFERROR(INDEX(#REF!,MATCH(PRORAČUNI!$C35,#REF!,),MATCH("3. Prepađevine",#REF!,)),0) -> 0 | O35: 0 | P35: =KUMULATIV!W37 ->  | Q35: =KUMULATIV!X37 ->  | R35: =KUMULATIV!Y37 ->  | S35: =KUMULATIV!Z37 ->  | T35: 0 | U35: 0 | V35: 0 | W35: 0
B36: =#REF! ->  | C36: =#REF! ->  | D36: =#REF! ->  | E36: =#REF! ->  | F36: =#REF! ->  | G36: =#REF! ->  | K36: =PRORAČUNI!G36/#REF! ->  | L36: =IFERROR(INDEX(#REF!,MATCH(PRORAČUNI!$C36,#REF!,),MATCH("1. Sveži proizvodi",#REF!,)),0) -> 0 | M36: =IFERROR(INDEX(#REF!,MATCH(PRORAČUNI!$C36,#REF!,),MATCH("2. Smrznuti proizvodi",#REF!,)),0) -> 0 | N36: =IFERROR(INDEX(#REF!,MATCH(PRORAČUNI!$C36,#REF!,),MATCH("3. Prepađevine",#REF!,)),0) -> 0 | O36: 0 | P36: =KUMULATIV!W38 ->  | Q36: =KUMULATIV!X38 ->  | R36: =KUMULATIV!Y38 ->  | S36: =KUMULATIV!Z38 ->  | T36: 0 | U36: 0 | V36: 0 | W36: 0
B37: =#REF! ->  | C37: =#REF! ->  | D37: =#REF! ->  | E37: =#REF! ->  | F37: =#REF! ->  | G37: =#REF! ->  | K37: =PRORAČUNI!G37/#REF! ->  | L37: =IFERROR(INDEX(#REF!,MATCH(PRORAČUNI!$C37,#REF!,),MATCH("1. Sveži proizvodi",#REF!,)),0) -> 0 | M37: =IFERROR(INDEX(#REF!,MATCH(PRORAČUNI!$C37,#REF!,),MATCH("2. Smrznuti proizvodi",#REF!,)),0) -> 0 | N37: =IFERROR(INDEX(#REF!,MATCH(PRORAČUNI!$C37,#REF!,),MATCH("3. Prepađevine",#REF!,)),0) -> 0 | O37: 0 | P37: =KUMULATIV!W39 ->  | Q37: =KUMULATIV!X39 ->  | R37: =KUMULATIV!Y39 ->  | S37: =KUMULATIV!Z39 ->  | T37: 0 | U37: 0 | V37: 0 | W37: 0
B38: =#REF! ->  | C38: =#REF! ->  | D38: =#REF! ->  | E38: =#REF! ->  | F38: =#REF! ->  | G38: =#REF! ->  | K38: =PRORAČUNI!G38/#REF! ->  | L38: =IFERROR(INDEX(#REF!,MATCH(PRORAČUNI!$C38,#REF!,),MATCH("1. Sveži proizvodi",#REF!,)),0) -> 0 | M38: =IFERROR(INDEX(#REF!,MATCH(PRORAČUNI!$C38,#REF!,),MATCH("2. Smrznuti proizvodi",#REF!,)),0) -> 0 | N38: =IFERROR(INDEX(#REF!,MATCH(PRORAČUNI!$C38,#REF!,),MATCH("3. Prepađevine",#REF!,)),0) -> 0 | O38: 0 | P38: =KUMULATIV!W40 ->  | Q38: =KUMULATIV!X40 ->  | R38: =KUMULATIV!Y40 ->  | S38: =KUMULATIV!Z40 ->  | T38: 0 | U38: 0 | V38: 0 | W38: 0
B39: =#REF! ->  | C39: =#REF! ->  | D39: =#REF! ->  | E39: =#REF! ->  | F39: =#REF! ->  | G39: =#REF! ->  | K39: =PRORAČUNI!G39/#REF! ->  | L39: =IFERROR(INDEX(#REF!,MATCH(PRORAČUNI!$C39,#REF!,),MATCH("1. Sveži proizvodi",#REF!,)),0) -> 0 | M39: =IFERROR(INDEX(#REF!,MATCH(PRORAČUNI!$C39,#REF!,),MATCH("2. Smrznuti proizvodi",#REF!,)),0) -> 0 | N39: =IFERROR(INDEX(#REF!,MATCH(PRORAČUNI!$C39,#REF!,),MATCH("3. Prepađevine",#REF!,)),0) -> 0 | O39: 0 | P39: =KUMULATIV!W41 ->  | Q39: =KUMULATIV!X41 ->  | R39: =KUMULATIV!Y41 ->  | S39: =KUMULATIV!Z41 ->  | T39: 0 | U39: 0 | V39: 0 | W39: 0
B40: =#REF! ->  | C40: =#REF! ->  | D40: =#REF! ->  | E40: =#REF! ->  | F40: =#REF! ->  | G40: =#REF! ->  | K40: =PRORAČUNI!G40/#REF! ->  | L40: =IFERROR(INDEX(#REF!,MATCH(PRORAČUNI!$C40,#REF!,),MATCH("1. Sveži proizvodi",#REF!,)),0) -> 0 | M40: =IFERROR(INDEX(#REF!,MATCH(PRORAČUNI!$C40,#REF!,),MATCH("2. Smrznuti proizvodi",#REF!,)),0) -> 0 | N40: =IFERROR(INDEX(#REF!,MATCH(PRORAČUNI!$C40,#REF!,),MATCH("3. Prepađevine",#REF!,)),0) -> 0 | O40: 0 | P40: =KUMULATIV!W42 ->  | Q40: =KUMULATIV!X42 ->  | R40: =KUMULATIV!Y42 ->  | S40: =KUMULATIV!Z42 ->  | T40: 0 | U40: 0 | V40: 0 | W40: 0
B41: =#REF! ->  | C41: =#REF! ->  | D41: =#REF! ->  | E41: =#REF! ->  | F41: =#REF! ->  | G41: =#REF! ->  | K41: =PRORAČUNI!G41/#REF! ->  | L41: =IFERROR(INDEX(#REF!,MATCH(PRORAČUNI!$C41,#REF!,),MATCH("1. Sveži proizvodi",#REF!,)),0) -> 0 | M41: =IFERROR(INDEX(#REF!,MATCH(PRORAČUNI!$C41,#REF!,),MATCH("2. Smrznuti proizvodi",#REF!,)),0) -> 0 | N41: =IFERROR(INDEX(#REF!,MATCH(PRORAČUNI!$C41,#REF!,),MATCH("3. Prepađevine",#REF!,)),0) -> 0 | O41: 0 | P41: =KUMULATIV!W43 ->  | Q41: =KUMULATIV!X43 ->  | R41: =KUMULATIV!Y43 ->  | S41: =KUMULATIV!Z43 ->  | T41: 0 | U41: 0 | V41: 0 | W41: 0
B42: =#REF! ->  | C42: =#REF! ->  | D42: =#REF! ->  | E42: =#REF! ->  | F42: =#REF! ->  | G42: =#REF! ->  | K42: =PRORAČUNI!G42/#REF! ->  | L42: =IFERROR(INDEX(#REF!,MATCH(PRORAČUNI!$C42,#REF!,),MATCH("1. Sveži proizvodi",#REF!,)),0) -> 0 | M42: =IFERROR(INDEX(#REF!,MATCH(PRORAČUNI!$C42,#REF!,),MATCH("2. Smrznuti proizvodi",#REF!,)),0) -> 0 | N42: =IFERROR(INDEX(#REF!,MATCH(PRORAČUNI!$C42,#REF!,),MATCH("3. Prepađevine",#REF!,)),0) -> 0 | O42: 0 | P42: =KUMULATIV!W44 ->  | Q42: =KUMULATIV!X44 ->  | R42: =KUMULATIV!Y44 ->  | S42: =KUMULATIV!Z44 ->  | T42: 0 | U42: 0 | V42: 0 | W42: 0
A43: =#REF! ->  | B43: =#REF! ->  | C43: =#REF! ->  | D43: =#REF! ->  | E43: =#REF! ->  | F43: =#REF! ->  | G43: =#REF! ->  | K43: =G43/#REF! ->  | L43: =IFERROR(INDEX(#REF!,MATCH(PRORAČUNI!$C43,#REF!,),MATCH("1. Sveži proizvodi",#REF!,)),0) -> 0 | M43: =IFERROR(INDEX(#REF!,MATCH(PRORAČUNI!$C43,#REF!,),MATCH("2. Smrznuti proizvodi",#REF!,)),0) -> 0 | N43: =IFERROR(INDEX(#REF!,MATCH(PRORAČUNI!$C43,#REF!,),MATCH("3. Prepađevine",#REF!,)),0) -> 0 | O43: =SUM(L43:N43) -> 0 | P43: =KUMULATIV!W45 ->  | Q43: =KUMULATIV!X45 ->  | R43: =KUMULATIV!Y45 ->  | S43: =KUMULATIV!Z45 ->  | T43: 0 | U43: 0 | V43: 0 | W43: 0
B44: =#REF! ->  | C44: =#REF! ->  | D44: =#REF! ->  | E44: =#REF! ->  | F44: =#REF! ->  | G44: =#REF! ->  | K44: =G44/#REF! ->  | L44: =IFERROR(INDEX(#REF!,MATCH(PRORAČUNI!$C44,#REF!,),MATCH("1. Sveži proizvodi",#REF!,)),0) -> 0 | M44: =IFERROR(INDEX(#REF!,MATCH(PRORAČUNI!$C44,#REF!,),MATCH("2. Smrznuti proizvodi",#REF!,)),0) -> 0 | N44: =IFERROR(INDEX(#REF!,MATCH(PRORAČUNI!$C44,#REF!,),MATCH("3. Prepađevine",#REF!,)),0) -> 0 | O44: =SUM(L44:N44) -> 0 | P44: =KUMULATIV!W46 ->  | Q44: =KUMULATIV!X46 ->  | R44: =KUMULATIV!Y46 ->  | S44: =KUMULATIV!Z46 ->  | T44: 0 | U44: 0 | V44: 0 | W44: 0
B45: =#REF! ->  | C45: =#REF! ->  | D45: =#REF! ->  | E45: =#REF! ->  | F45: =#REF! ->  | G45: =#REF! ->  | K45: =G45/#REF! ->  | L45: =IFERROR(INDEX(#REF!,MATCH(PRORAČUNI!$C45,#REF!,),MATCH("1. Sveži proizvodi",#REF!,)),0) -> 0 | M45: =IFERROR(INDEX(#REF!,MATCH(PRORAČUNI!$C45,#REF!,),MATCH("2. Smrznuti proizvodi",#REF!,)),0) -> 0 | N45: =IFERROR(INDEX(#REF!,MATCH(PRORAČUNI!$C45,#REF!,),MATCH("3. Prepađevine",#REF!,)),0) -> 0 | O45: 0 | P45: =KUMULATIV!W47 ->  | Q45: =KUMULATIV!X47 ->  | R45: =KUMULATIV!Y47 ->  | S45: =KUMULATIV!Z47 ->  | T45: 0 | U45: 0 | V45: 0 | W45: 0
B46: =#REF! ->  | C46: =#REF! ->  | D46: =#REF! ->  | E46: =#REF! ->  | F46: =#REF! ->  | G46: =#REF! ->  | K46: =G46/#REF! ->  | L46: =IFERROR(INDEX(#REF!,MATCH(PRORAČUNI!$C46,#REF!,),MATCH("1. Sveži proizvodi",#REF!,)),0) -> 0 | M46: =IFERROR(INDEX(#REF!,MATCH(PRORAČUNI!$C46,#REF!,),MATCH("2. Smrznuti proizvodi",#REF!,)),0) -> 0 | N46: =IFERROR(INDEX(#REF!,MATCH(PRORAČUNI!$C46,#REF!,),MATCH("3. Prepađevine",#REF!,)),0) -> 0 | O46: 0 | P46: =KUMULATIV!W48 ->  | Q46: =KUMULATIV!X48 ->  | R46: =KUMULATIV!Y48 ->  | S46: =KUMULATIV!Z48 ->  | T46: 0 | U46: 0 | V46: 0 | W46: 0
B47: =#REF! ->  | C47: =#REF! ->  | D47: =#REF! ->  | E47: =#REF! ->  | F47: =#REF! ->  | G47: =#REF! ->  | K47: =G47/#REF! ->  | L47: =IFERROR(INDEX(#REF!,MATCH(PRORAČUNI!$C47,#REF!,),MATCH("1. Sveži proizvodi",#REF!,)),0) -> 0 | M47: =IFERROR(INDEX(#REF!,MATCH(PRORAČUNI!$C47,#REF!,),MATCH("2. Smrznuti proizvodi",#REF!,)),0) -> 0 | N47: =IFERROR(INDEX(#REF!,MATCH(PRORAČUNI!$C47,#REF!,),MATCH("3. Prepađevine",#REF!,)),0) -> 0 | O47: 0 | P47: =KUMULATIV!W49 ->  | Q47: =KUMULATIV!X49 ->  | R47: =KUMULATIV!Y49 ->  | S47: =KUMULATIV!Z49 ->  | T47: 0 | U47: 0 | V47: 0 | W47: 0
B48: =#REF! ->  | C48: =#REF! ->  | D48: =#REF! ->  | E48: =#REF! ->  | F48: =#REF! ->  | G48: =#REF! ->  | K48: =G48/#REF! ->  | L48: =IFERROR(INDEX(#REF!,MATCH(PRORAČUNI!$C48,#REF!,),MATCH("1. Sveži proizvodi",#REF!,)),0) -> 0 | M48: =IFERROR(INDEX(#REF!,MATCH(PRORAČUNI!$C48,#REF!,),MATCH("2. Smrznuti proizvodi",#REF!,)),0) -> 0 | N48: =IFERROR(INDEX(#REF!,MATCH(PRORAČUNI!$C48,#REF!,),MATCH("3. Prepađevine",#REF!,)),0) -> 0 | O48: 0 | P48: =KUMULATIV!W50 ->  | Q48: =KUMULATIV!X50 ->  | R48: =KUMULATIV!Y50 ->  | S48: =KUMULATIV!Z50 ->  | T48: 0 | U48: 0 | V48: 0 | W48: 0
B49: =#REF! ->  | C49: =#REF! ->  | D49: =#REF! ->  | E49: =#REF! ->  | F49: =#REF! ->  | G49: =#REF! ->  | K49: =G49/#REF! ->  | L49: =IFERROR(INDEX(#REF!,MATCH(PRORAČUNI!$C49,#REF!,),MATCH("1. Sveži proizvodi",#REF!,)),0) -> 0 | M49: =IFERROR(INDEX(#REF!,MATCH(PRORAČUNI!$C49,#REF!,),MATCH("2. Smrznuti proizvodi",#REF!,)),0) -> 0 | N49: =IFERROR(INDEX(#REF!,MATCH(PRORAČUNI!$C49,#REF!,),MATCH("3. Prepađevine",#REF!,)),0) -> 0 | O49: 0 | P49: =KUMULATIV!W51 ->  | Q49: =KUMULATIV!X51 ->  | R49: =KUMULATIV!Y51 ->  | S49: =KUMULATIV!Z51 ->  | T49: 0 | U49: 0 | V49: 0 | W49: 0
B50: =#REF! ->  | C50: =#REF! ->  | D50: =#REF! ->  | E50: =#REF! ->  | F50: =#REF! ->  | G50: =#REF! ->  | K50: =G50/#REF! ->  | L50: =IFERROR(INDEX(#REF!,MATCH(PRORAČUNI!$C50,#REF!,),MATCH("1. Sveži proizvodi",#REF!,)),0) -> 0 | M50: =IFERROR(INDEX(#REF!,MATCH(PRORAČUNI!$C50,#REF!,),MATCH("2. Smrznuti proizvodi",#REF!,)),0) -> 0 | N50: =IFERROR(INDEX(#REF!,MATCH(PRORAČUNI!$C50,#REF!,),MATCH("3. Prepađevine",#REF!,)),0) -> 0 | O50: 0 | P50: =KUMULATIV!W52 ->  | Q50: =KUMULATIV!X52 ->  | R50: =KUMULATIV!Y52 ->  | S50: =KUMULATIV!Z52 ->  | T50: 0 | U50: 0 | V50: 0 | W50: 0
B51: =#REF! ->  | C51: =#REF! ->  | D51: =#REF! ->  | E51: =#REF! ->  | F51: =#REF! ->  | G51: =#REF! ->  | K51: =G51/#REF! ->  | L51: =IFERROR(INDEX(#REF!,MATCH(PRORAČUNI!$C51,#REF!,),MATCH("1. Sveži proizvodi",#REF!,)),0) -> 0 | M51: =IFERROR(INDEX(#REF!,MATCH(PRORAČUNI!$C51,#REF!,),MATCH("2. Smrznuti proizvodi",#REF!,)),0) -> 0 | N51: =IFERROR(INDEX(#REF!,MATCH(PRORAČUNI!$C51,#REF!,),MATCH("3. Prepađevine",#REF!,)),0) -> 0 | O51: 0 | P51: =KUMULATIV!W53 ->  | Q51: =KUMULATIV!X53 ->  | R51: =KUMULATIV!Y53 ->  | S51: =KUMULATIV!Z53 ->  | T51: 0 | U51: 0 | V51: 0 | W51: 0
B52: =#REF! ->  | C52: =#REF! ->  | D52: =#REF! ->  | E52: =#REF! ->  | F52: =#REF! ->  | G52: =#REF! ->  | K52: =G52/#REF! ->  | L52: =IFERROR(INDEX(#REF!,MATCH(PRORAČUNI!$C52,#REF!,),MATCH("1. Sveži proizvodi",#REF!,)),0) -> 0 | M52: =IFERROR(INDEX(#REF!,MATCH(PRORAČUNI!$C52,#REF!,),MATCH("2. Smrznuti proizvodi",#REF!,)),0) -> 0 | N52: =IFERROR(INDEX(#REF!,MATCH(PRORAČUNI!$C52,#REF!,),MATCH("3. Prepađevine",#REF!,)),0) -> 0 | O52: 0 | P52: =KUMULATIV!W54 ->  | Q52: =KUMULATIV!X54 ->  | R52: =KUMULATIV!Y54 ->  | S52: =KUMULATIV!Z54 ->  | T52: 0 | U52: 0 | V52: 0 | W52: 0
B53: =#REF! ->  | C53: =#REF! ->  | D53: =#REF! ->  | E53: =#REF! ->  | F53: =#REF! ->  | G53: =#REF! ->  | K53: =G53/#REF! ->  | L53: =IFERROR(INDEX(#REF!,MATCH(PRORAČUNI!$C53,#REF!,),MATCH("1. Sveži proizvodi",#REF!,)),0) -> 0 | M53: =IFERROR(INDEX(#REF!,MATCH(PRORAČUNI!$C53,#REF!,),MATCH("2. Smrznuti proizvodi",#REF!,)),0) -> 0 | N53: =IFERROR(INDEX(#REF!,MATCH(PRORAČUNI!$C53,#REF!,),MATCH("3. Prepađevine",#REF!,)),0) -> 0 | O53: 0 | P53: =KUMULATIV!W55 ->  | Q53: =KUMULATIV!X55 ->  | R53: =KUMULATIV!Y55 ->  | S53: =KUMULATIV!Z55 ->  | T53: 0 | U53: 0 | V53: 0 | W53: 0
B54: =#REF! ->  | C54: =#REF! ->  | D54: =#REF! ->  | E54: =#REF! ->  | F54: =#REF! ->  | G54: =#REF! ->  | K54: =G54/#REF! ->  | L54: =IFERROR(INDEX(#REF!,MATCH(PRORAČUNI!$C54,#REF!,),MATCH("1. Sveži proizvodi",#REF!,)),0) -> 0 | M54: =IFERROR(INDEX(#REF!,MATCH(PRORAČUNI!$C54,#REF!,),MATCH("2. Smrznuti proizvodi",#REF!,)),0) -> 0 | N54: =IFERROR(INDEX(#REF!,MATCH(PRORAČUNI!$C54,#REF!,),MATCH("3. Prepađevine",#REF!,)),0) -> 0 | O54: 0 | P54: =KUMULATIV!W56 ->  | Q54: =KUMULATIV!X56 ->  | R54: =KUMULATIV!Y56 ->  | S54: =KUMULATIV!Z56 ->  | T54: 0 | U54: 0 | V54: 0 | W54: 0
B55: =#REF! ->  | C55: =#REF! ->  | D55: =#REF! ->  | E55: =#REF! ->  | F55: =#REF! ->  | G55: =#REF! ->  | K55: =G55/#REF! ->  | L55: =IFERROR(INDEX(#REF!,MATCH(PRORAČUNI!$C55,#REF!,),MATCH("1. Sveži proizvodi",#REF!,)),0) -> 0 | M55: =IFERROR(INDEX(#REF!,MATCH(PRORAČUNI!$C55,#REF!,),MATCH("2. Smrznuti proizvodi",#REF!,)),0) -> 0 | N55: =IFERROR(INDEX(#REF!,MATCH(PRORAČUNI!$C55,#REF!,),MATCH("3. Prepađevine",#REF!,)),0) -> 0 | O55: 0 | P55: =KUMULATIV!W57 ->  | Q55: =KUMULATIV!X57 ->  | R55: =KUMULATIV!Y57 ->  | S55: =KUMULATIV!Z57 ->  | T55: 0 | U55: 0 | V55: 0 | W55: 0
B56: =#REF! ->  | C56: =#REF! ->  | D56: =#REF! ->  | E56: =#REF! ->  | F56: =#REF! ->  | G56: =#REF! ->  | K56: =G56/#REF! ->  | L56: =IFERROR(INDEX(#REF!,MATCH(PRORAČUNI!$C56,#REF!,),MATCH("1. Sveži proizvodi",#REF!,)),0) -> 0 | M56: =IFERROR(INDEX(#REF!,MATCH(PRORAČUNI!$C56,#REF!,),MATCH("2. Smrznuti proizvodi",#REF!,)),0) -> 0 | N56: =IFERROR(INDEX(#REF!,MATCH(PRORAČUNI!$C56,#REF!,),MATCH("3. Prepađevine",#REF!,)),0) -> 0 | O56: 0 | P56: =KUMULATIV!W58 ->  | Q56: =KUMULATIV!X58 ->  | R56: =KUMULATIV!Y58 ->  | S56: =KUMULATIV!Z58 ->  | T56: 0 | U56: 0 | V56: 0 | W56: 0
B57: =#REF! ->  | C57: =#REF! ->  | D57: =#REF! ->  | E57: =#REF! ->  | F57: =#REF! ->  | G57: =#REF! ->  | K57: =G57/#REF! ->  | L57: =IFERROR(INDEX(#REF!,MATCH(PRORAČUNI!$C57,#REF!,),MATCH("1. Sveži proizvodi",#REF!,)),0) -> 0 | M57: =IFERROR(INDEX(#REF!,MATCH(PRORAČUNI!$C57,#REF!,),MATCH("2. Smrznuti proizvodi",#REF!,)),0) -> 0 | N57: =IFERROR(INDEX(#REF!,MATCH(PRORAČUNI!$C57,#REF!,),MATCH("3. Prepađevine",#REF!,)),0) -> 0 | O57: 0 | P57: =KUMULATIV!W59 ->  | Q57: =KUMULATIV!X59 ->  | R57: =KUMULATIV!Y59 ->  | S57: =KUMULATIV!Z59 ->  | T57: 0 | U57: 0 | V57: 0 | W57: 0
B58: =#REF! ->  | C58: =#REF! ->  | D58: =#REF! ->  | E58: =#REF! ->  | F58: =#REF! ->  | G58: =#REF! ->  | K58: =G58/#REF! ->  | L58: =IFERROR(INDEX(#REF!,MATCH(PRORAČUNI!$C58,#REF!,),MATCH("1. Sveži proizvodi",#REF!,)),0) -> 0 | M58: =IFERROR(INDEX(#REF!,MATCH(PRORAČUNI!$C58,#REF!,),MATCH("2. Smrznuti proizvodi",#REF!,)),0) -> 0 | N58: =IFERROR(INDEX(#REF!,MATCH(PRORAČUNI!$C58,#REF!,),MATCH("3. Prepađevine",#REF!,)),0) -> 0 | O58: 0 | P58: =KUMULATIV!W60 ->  | Q58: =KUMULATIV!X60 ->  | R58: =KUMULATIV!Y60 ->  | S58: =KUMULATIV!Z60 ->  | T58: 0 | U58: 0 | V58: 0 | W58: 0
B59: =#REF! ->  | C59: =#REF! ->  | D59: =#REF! ->  | E59: =#REF! ->  | F59: =#REF! ->  | G59: =#REF! ->  | K59: =G59/#REF! ->  | L59: =IFERROR(INDEX(#REF!,MATCH(PRORAČUNI!$C59,#REF!,),MATCH("1. Sveži proizvodi",#REF!,)),0) -> 0 | M59: =IFERROR(INDEX(#REF!,MATCH(PRORAČUNI!$C59,#REF!,),MATCH("2. Smrznuti proizvodi",#REF!,)),0) -> 0 | N59: =IFERROR(INDEX(#REF!,MATCH(PRORAČUNI!$C59,#REF!,),MATCH("3. Prepađevine",#REF!,)),0) -> 0 | O59: 0 | P59: =KUMULATIV!W61 ->  | Q59: =KUMULATIV!X61 ->  | R59: =KUMULATIV!Y61 ->  | S59: =KUMULATIV!Z61 ->  | T59: 0 | U59: 0 | V59: 0 | W59: 0
B60: =#REF! ->  | C60: =#REF! ->  | D60: =#REF! ->  | E60: =#REF! ->  | F60: =#REF! ->  | G60: =#REF! ->  | K60: =G60/#REF! ->  | L60: =IFERROR(INDEX(#REF!,MATCH(PRORAČUNI!$C60,#REF!,),MATCH("1. Sveži proizvodi",#REF!,)),0) -> 0 | M60: =IFERROR(INDEX(#REF!,MATCH(PRORAČUNI!$C60,#REF!,),MATCH("2. Smrznuti proizvodi",#REF!,)),0) -> 0 | N60: =IFERROR(INDEX(#REF!,MATCH(PRORAČUNI!$C60,#REF!,),MATCH("3. Prepađevine",#REF!,)),0) -> 0 | O60: 0 | P60: =KUMULATIV!W62 ->  | Q60: =KUMULATIV!X62 ->  | R60: =KUMULATIV!Y62 ->  | S60: =KUMULATIV!Z62 ->  | T60: 0 | U60: 0 | V60: 0 | W60: 0
B61: =#REF! ->  | C61: =#REF! ->  | D61: =#REF! ->  | E61: =#REF! ->  | F61: =#REF! ->  | G61: =#REF! ->  | K61: =G61/#REF! ->  | L61: =IFERROR(INDEX(#REF!,MATCH(PRORAČUNI!$C61,#REF!,),MATCH("1. Sveži proizvodi",#REF!,)),0) -> 0 | M61: =IFERROR(INDEX(#REF!,MATCH(PRORAČUNI!$C61,#REF!,),MATCH("2. Smrznuti proizvodi",#REF!,)),0) -> 0 | N61: =IFERROR(INDEX(#REF!,MATCH(PRORAČUNI!$C61,#REF!,),MATCH("3. Prepađevine",#REF!,)),0) -> 0 | O61: 0 | P61: =KUMULATIV!W63 ->  | Q61: =KUMULATIV!X63 ->  | R61: =KUMULATIV!Y63 ->  | S61: =KUMULATIV!Z63 ->  | T61: 0 | U61: 0 | V61: 0 | W61: 0
B62: =#REF! ->  | C62: =#REF! ->  | D62: =#REF! ->  | E62: =#REF! ->  | F62: =#REF! ->  | G62: =#REF! ->  | K62: =G62/#REF! ->  | L62: =IFERROR(INDEX(#REF!,MATCH(PRORAČUNI!$C62,#REF!,),MATCH("1. Sveži proizvodi",#REF!,)),0) -> 0 | M62: =IFERROR(INDEX(#REF!,MATCH(PRORAČUNI!$C62,#REF!,),MATCH("2. Smrznuti proizvodi",#REF!,)),0) -> 0 | N62: =IFERROR(INDEX(#REF!,MATCH(PRORAČUNI!$C62,#REF!,),MATCH("3. Prepađevine",#REF!,)),0) -> 0 | O62: 0 | P62: =KUMULATIV!W64 ->  | Q62: =KUMULATIV!X64 ->  | R62: =KUMULATIV!Y64 ->  | S62: =KUMULATIV!Z64 ->  | T62: 0 | U62: 0 | V62: 0 | W62: 0

Sheet PRORAČUN 2
E1: PROD/PLAN
A2: KC | B2: RB | C2: KUPAC | D2: Values | E2: PRODAJA | F2: PLAN
A3: KC Beograd | B3: 1 | C3: DELHAIZE SERBIA DOO | D3: Sum of 1. Sveži proizvodi | E3: 1484.734 | F3: 2070.661655
D4: Sum of 2. Smrznuti proizvodi | E4: 0 | F4: 0
D5: Sum of 3. Prepađevine | E5: 50.921 | F5: 294.0175561
D6: Sum of Grand Total | E6: 1535.655 | F6: 2364.679211
B7: 2 | C7: IDEA DOO | D7: Sum of 1. Sveži proizvodi | E7: 1723.186 | F7: 1278.807067
D8: Sum of 2. Smrznuti proizvodi | E8: 0 | F8: 0
D9: Sum of 3. Prepađevine | E9: 246.182 | F9: 17.83241307
D10: Sum of Grand Total | E10: 1969.368 | F10: 1296.63948
B11: 3 | C11: MERCATOR S | D11: Sum of 1. Sveži proizvodi | E11: 493.585 | F11: 708.7756813
D12: Sum of 2. Smrznuti proizvodi | E12: 19.133 | F12: 15.105379
D13: Sum of 3. Prepađevine | E13: 68.067 | F13: 147.6372179
D14: Sum of Grand Total | E14: 580.785 | F14: 871.5182782
B15: 4 | C15: ŠTRAND DOO | D15: Sum of 1. Sveži proizvodi | E15: 678.838 | F15: 676.2114184
D16: Sum of 2. Smrznuti proizvodi | E16: 0 | F16: 0
D17: Sum of 3. Prepađevine | E17: 0 | F17: 0
D18: Sum of Grand Total | E18: 678.838 | F18: 676.2114184
B19: 5 | C19: METRO CASH & CARRY DOO | D19: Sum of 1. Sveži proizvodi | E19: 162.405 | F19: 519.0688859
D20: Sum of 2. Smrznuti proizvodi | E20: 0 | F20: 6.374934114
D21: Sum of 3. Prepađevine | E21: 0 | F21: 103.2978949
D22: Sum of Grand Total | E22: 162.405 | F22: 628.7417149
B23: 6 | C23: UNIVEREXPORT DOO | D23: Sum of 1. Sveži proizvodi | E23: 896.674 | F23: 447.2198166
D24: Sum of 2. Smrznuti proizvodi | E24: 0 | F24: 0
D25: Sum of 3. Prepađevine | E25: 92.25 | F25: 44.92650651
D26: Sum of Grand Total | E26: 988.924 | F26: 492.1463231
B27: 7 | C27: AMAN DOO | D27: Sum of 1. Sveži proizvodi | E27: 12.135 | F27: 302.9464215
D28: Sum of 2. Smrznuti proizvodi | E28: 0 | F28: 0
D29: Sum of 3. Prepađevine | E29: 236.255 | F29: 138.6966425
D30: Sum of Grand Total | E30: 248.39 | F30: 441.6430639
B31: 8 | C31: MESO-MARKET | D31: Sum of 1. Sveži proizvodi | E31: 251.475 | F31: 308.2799194
D32: Sum of 2. Smrznuti proizvodi | E32: 0 | F32: 0
D33: Sum of 3. Prepađevine | E33: 0 | F33: 3.344089088
D34: Sum of Grand Total | E34: 251.475 | F34: 311.6240084
B35: 9 | C35: MUP UPRAVA ZA POSLOVE ISHRANE I SMEŠTAJA | D35: Sum of 1. Sveži proizvodi | E35: 0 | F35: 0
D36: Sum of 2. Smrznuti proizvodi | E36: 239.268 | F36: 177.0353195
D37: Sum of 3. Prepađevine | E37: 0 | F37: 0
D38: Sum of Grand Total | E38: 239.268 | F38: 177.0353195
B39: 10 | C39: ĐERIĆ STR | D39: Sum of 1. Sveži proizvodi | E39: 61.097 | F39: 164.4196832
D40: Sum of 2. Smrznuti proizvodi | E40: 0 | F40: 0
D41: Sum of 3. Prepađevine | E41: 0 | F41: 0
D42: Sum of Grand Total | E42: 61.097 | F42: 164.4196832
B43: 11 | C43: TP DOO TREND COMERCCE ŠID | D43: Sum of 1. Sveži proizvodi | E43: 0 | F43: 0
D44: Sum of 2. Smrznuti proizvodi | E44: 60.995 | F44: 25.68650104
D45: Sum of 3. Prepađevine | E45: 141 | F45: 78.94531046
D46: Sum of Grand Total | E46: 201.995 | F46: 104.6318115
B47: 12 | C47: VINDIJA D.O.O. LAJKOVAC - VLASTITA POTROŠNJA | D47: Sum of 1. Sveži proizvodi | E47: 0 | F47: 47.21273277
D48: Sum of 2. Smrznuti proizvodi | E48: 0 | F48: 29.18629054
D49: Sum of 3. Prepađevine | E49: 0 | F49: 20.92289265
D50: Sum of Grand Total | E50: 0 | F50: 97.32191596
B51: 13 | C51: PODUNAVLJE AD, BEOGRAD | D51: Sum of 1. Sveži proizvodi | E51: 7.986 | F51: 32.67024977
D52: Sum of 2. Smrznuti proizvodi | E52: 136.509 | F52: 47.56560671
D53: Sum of 3. Prepađevine | E53: 29.863 | F53: 9.872229799
D54: Sum of Grand Total | E54: 174.358 | F54: 90.10808628
B55: 14 | C55: POINT MARTINOVIĆ DOO | D55: Sum of 1. Sveži proizvodi | E55: 0 | F55: 83.21167507
D56: Sum of 2. Smrznuti proizvodi | E56: 0 | F56: 0.6068087213
D57: Sum of 3. Prepađevine | E57: 0 | F57: 0
D58: Sum of Grand Total | E58: 0 | F58: 83.81848379
B59: 15 | C59: MIS CHILLI DOO | D59: Sum of 1. Sveži proizvodi | E59: 0 | F59: 45.72132672
D60: Sum of 2. Smrznuti proizvodi | E60: 0 | F60: 0
D61: Sum of 3. Prepađevine | E61: 0 | F61: 37.45147746
D62: Sum of Grand Total | E62: 0 | F62: 83.17280418
B63: 16 | C63: VEROPOULOS DOO | D63: Sum of 1. Sveži proizvodi | E63: 12.215 | F63: 55.95797788
D64: Sum of 2. Smrznuti proizvodi | E64: 0 | F64: 0.521260239
D65: Sum of 3. Prepađevine | E65: 92.843 | F65: 16.85131619
D66: Sum of Grand Total | E66: 105.058 | F66: 73.3305543
B67: 17 | C67: JOVANA STR | D67: Sum of 1. Sveži proizvodi | E67: 46.154 | F67: 53.96770165
D68: Sum of 2. Smrznuti proizvodi | E68: 0 | F68: 0
D69: Sum of 3. Prepađevine | E69: 7.2 | F69: 9.990956781
D70: Sum of Grand Total | E70: 53.354 | F70: 63.95865843
B71: 18 | C71: SLAVONAC STUR, ISMETA MUJEZINOVIĆA | D71: Sum of 1. Sveži proizvodi | E71: 0 | F71: 57.19002782
D72: Sum of 2. Smrznuti proizvodi | E72: 0 | F72: 0
D73: Sum of 3. Prepađevine | E73: 0 | F73: 0
D74: Sum of Grand Total | E74: 0 | F74: 57.19002782
B75: 19 | C75: MEDIUS DOO | D75: Sum of 1. Sveži proizvodi | E75: 0 | F75: 8.934015582
D76: Sum of 2. Smrznuti proizvodi | E76: 0 | F76: 0
D77: Sum of 3. Prepađevine | E77: 0 | F77: 46.52140562
D78: Sum of Grand Total | E78: 0 | F78: 55.4554212
B79: 20 | C79: FAMOSO | D79: Sum of 1. Sveži proizvodi | E79: 0 | F79: 50.54283485
D80: Sum of 2. Smrznuti proizvodi | E80: 0 | F80: 0
D81: Sum of 3. Prepađevine | E81: 0 | F81: 0
D82: Sum of Grand Total | E82: 0 | F82: 50.54283485
A83: KC Beograd Sum of 1. Sveži proizvodi | E83: 5830.484 | F83: 6911.79909
A84: KC Beograd Sum of 2. Smrznuti proizvodi | E84: 455.905 | F84: 302.0820999
A85: KC Beograd Sum of 3. Prepađevine | E85: 964.581 | F85: 970.307909
A86: KC Beograd Sum of Grand Total | E86: 7250.97 | F86: 8184.189099
A87: Total Sum of 1. Sveži proizvodi | E87: 5830.484 | F87: 6911.79909
A88: Total Sum of 2. Smrznuti proizvodi | E88: 455.905 | F88: 302.0820999
A89: Total Sum of 3. Prepađevine | E89: 964.581 | F89: 970.307909
A90: Total Sum of Grand Total | E90: 7250.97 | F90: 8184.189099

Sheet PRORACUN 3
E1: PROD/PLAN
A2: KC | B2: Values | C2: RB | D2: KUPAC | E2: PRODAJA | F2: PLAN
A3: KC Beograd | B3: Sum of 1. Sveži proizvodi | C3: 1 | D3: DELHAIZE SERBIA DOO | E3: 1484.734 | F3: 2070.661655
C4: 2 | D4: IDEA DOO | E4: 1723.186 | F4: 1278.807067
C5: 3 | D5: MERCATOR S | E5: 493.585 | F5: 708.7756813
C6: 4 | D6: ŠTRAND DOO | E6: 678.838 | F6: 676.2114184
C7: 5 | D7: METRO CASH & CARRY DOO | E7: 162.405 | F7: 519.0688859
C8: 6 | D8: UNIVEREXPORT DOO | E8: 896.674 | F8: 447.2198166
C9: 7 | D9: AMAN DOO | E9: 12.135 | F9: 302.9464215
C10: 8 | D10: MESO-MARKET | E10: 251.475 | F10: 308.2799194
C11: 9 | D11: MUP UPRAVA ZA POSLOVE ISHRANE I SMEŠTAJA | E11: 0 | F11: 0
C12: 10 | D12: ĐERIĆ STR | E12: 61.097 | F12: 164.4196832
C13: 11 | D13: TP DOO TREND COMERCCE ŠID | E13: 0 | F13: 0
C14: 12 | D14: VINDIJA D.O.O. LAJKOVAC - VLASTITA POTROŠNJA | E14: 0 | F14: 47.21273277
C15: 13 | D15: PODUNAVLJE AD, BEOGRAD | E15: 7.986 | F15: 32.67024977
C16: 14 | D16: POINT MARTINOVIĆ DOO | E16: 0 | F16: 83.21167507
C17: 15 | D17: MIS CHILLI DOO | E17: 0 | F17: 45.72132672
C18: 16 | D18: VEROPOULOS DOO | E18: 12.215 | F18: 55.95797788
C19: 17 | D19: JOVANA STR | E19: 46.154 | F19: 53.96770165
C20: 18 | D20: SLAVONAC STUR, ISMETA MUJEZINOVIĆA | E20: 0 | F20: 57.19002782
C21: 19 | D21: MEDIUS DOO | E21: 0 | F21: 8.934015582
C22: 20 | D22: FAMOSO | E22: 0 | F22: 50.54283485
B23: Sum of 2. Smrznuti proizvodi | C23: 1 | D23: DELHAIZE SERBIA DOO | E23: 0 | F23: 0
C24: 2 | D24: IDEA DOO | E24: 0 | F24: 0
C25: 3 | D25: MERCATOR S | E25: 19.133 | F25: 15.105379
C26: 4 | D26: ŠTRAND DOO | E26: 0 | F26: 0
C27: 5 | D27: METRO CASH & CARRY DOO | E27: 0 | F27: 6.374934114
C28: 6 | D28: UNIVEREXPORT DOO | E28: 0 | F28: 0
C29: 7 | D29: AMAN DOO | E29: 0 | F29: 0
C30: 8 | D30: MESO-MARKET | E30: 0 | F30: 0
C31: 9 | D31: MUP UPRAVA ZA POSLOVE ISHRANE I SMEŠTAJA | E31: 239.268 | F31: 177.0353195
C32: 10 | D32: ĐERIĆ STR | E32: 0 | F32: 0
C33: 11 | D33: TP DOO TREND COMERCCE ŠID | E33: 60.995 | F33: 25.68650104
C34: 12 | D34: VINDIJA D.O.O. LAJKOVAC - VLASTITA POTROŠNJA | E34: 0 | F34: 29.18629054
C35: 13 | D35: PODUNAVLJE AD, BEOGRAD | E35: 136.509 | F35: 47.56560671
C36: 14 | D36: POINT MARTINOVIĆ DOO | E36: 0 | F36: 0.6068087213
C37: 15 | D37: MIS CHILLI DOO | E37: 0 | F37: 0
C38: 16 | D38: VEROPOULOS DOO | E38: 0 | F38: 0.521260239
C39: 17 | D39: JOVANA STR | E39: 0 | F39: 0
C40: 18 | D40: SLAVONAC STUR, ISMETA MUJEZINOVIĆA | E40: 0 | F40: 0
C41: 19 | D41: MEDIUS DOO | E41: 0 | F41: 0
C42: 20 | D42: FAMOSO | E42: 0 | F42: 0
B43: Sum of 3. Prepađevine | C43: 1 | D43: DELHAIZE SERBIA DOO | E43: 50.921 | F43: 294.0175561
C44: 2 | D44: IDEA DOO | E44: 246.182 | F44: 17.83241307
C45: 3 | D45: MERCATOR S | E45: 68.067 | F45: 147.6372179
C46: 4 | D46: ŠTRAND DOO | E46: 0 | F46: 0
C47: 5 | D47: METRO CASH & CARRY DOO | E47: 0 | F47: 103.2978949
C48: 6 | D48: UNIVEREXPORT DOO | E48: 92.25 | F48: 44.92650651
C49: 7 | D49: AMAN DOO | E49: 236.255 | F49: 138.6966425
C50: 8 | D50: MESO-MARKET | E50: 0 | F50: 3.344089088
C51: 9 | D51: MUP UPRAVA ZA POSLOVE ISHRANE I SMEŠTAJA | E51: 0 | F51: 0
C52: 10 | D52: ĐERIĆ STR | E52: 0 | F52: 0
C53: 11 | D53: TP DOO TREND COMERCCE ŠID | E53: 141 | F53: 78.94531046
C54: 12 | D54: VINDIJA D.O.O. LAJKOVAC - VLASTITA POTROŠNJA | E54: 0 | F54: 20.92289265
C55: 13 | D55: PODUNAVLJE AD, BEOGRAD | E55: 29.863 | F55: 9.872229799
C56: 14 | D56: POINT MARTINOVIĆ DOO | E56: 0 | F56: 0
C57: 15 | D57: MIS CHILLI DOO | E57: 0 | F57: 37.45147746
C58: 16 | D58: VEROPOULOS DOO | E58: 92.843 | F58: 16.85131619
C59: 17 | D59: JOVANA STR | E59: 7.2 | F59: 9.990956781
C60: 18 | D60: SLAVONAC STUR, ISMETA MUJEZINOVIĆA | E60: 0 | F60: 0
C61: 19 | D61: MEDIUS DOO | E61: 0 | F61: 46.52140562
C62: 20 | D62: FAMOSO | E62: 0 | F62: 0
B63: Sum of Grand Total | C63: 1 | D63: DELHAIZE SERBIA DOO | E63: 1535.655 | F63: 2364.679211
C64: 2 | D64: IDEA DOO | E64: 1969.368 | F64: 1296.63948
C65: 3 | D65: MERCATOR S | E65: 580.785 | F65: 871.5182782
C66: 4 | D66: ŠTRAND DOO | E66: 678.838 | F66: 676.2114184
C67: 5 | D67: METRO CASH & CARRY DOO | E67: 162.405 | F67: 628.7417149
C68: 6 | D68: UNIVEREXPORT DOO | E68: 988.924 | F68: 492.1463231
C69: 7 | D69: AMAN DOO | E69: 248.39 | F69: 441.6430639
C70: 8 | D70: MESO-MARKET | E70: 251.475 | F70: 311.6240084
C71: 9 | D71: MUP UPRAVA ZA POSLOVE ISHRANE I SMEŠTAJA | E71: 239.268 | F71: 177.0353195
C72: 10 | D72: ĐERIĆ STR | E72: 61.097 | F72: 164.4196832
C73: 11 | D73: TP DOO TREND COMERCCE ŠID | E73: 201.995 | F73: 104.6318115
C74: 12 | D74: VINDIJA D.O.O. LAJKOVAC - VLASTITA POTROŠNJA | E74: 0 | F74: 97.32191596
C75: 13 | D75: PODUNAVLJE AD, BEOGRAD | E75: 174.358 | F75: 90.10808628
C76: 14 | D76: POINT MARTINOVIĆ DOO | E76: 0 | F76: 83.81848379
C77: 15 | D77: MIS CHILLI DOO | E77: 0 | F77: 83.17280418
C78: 16 | D78: VEROPOULOS DOO | E78: 105.058 | F78: 73.3305543
C79: 17 | D79: JOVANA STR | E79: 53.354 | F79: 63.95865843
C80: 18 | D80: SLAVONAC STUR, ISMETA MUJEZINOVIĆA | E80: 0 | F80: 57.19002782
C81: 19 | D81: MEDIUS DOO | E81: 0 | F81: 55.4554212
C82: 20 | D82: FAMOSO | E82: 0 | F82: 50.54283485
A83: KC Beograd Sum of 1. Sveži proizvodi | E83: 5830.484 | F83: 6911.79909
A84: KC Beograd Sum of 2. Smrznuti proizvodi | E84: 455.905 | F84: 302.0820999
A85: KC Beograd Sum of 3. Prepađevine | E85: 964.581 | F85: 970.307909
A86: KC Beograd Sum of Grand Total | E86: 7250.97 | F86: 8184.189099
A87: Total Sum of 1. Sveži proizvodi | E87: 5830.484 | F87: 6911.79909
A88: Total Sum of 2. Smrznuti proizvodi | E88: 455.905 | F88: 302.0820999
A89: Total Sum of 3. Prepađevine | E89: 964.581 | F89: 970.307909
A90: Total Sum of Grand Total | E90: 7250.97 | F90: 8184.189099

Sheet RAZRADA UKUPNO
A1: VINDIJA | B1: ="Dnevna prodaja od"&TEXT(A4," dd.mm.")& " i kumulativ dnevnog plana i prodaje za 01.-" &TEXT(A4," dd.mm.yyyy") -> Dnevna prodaja od 08.08. i kumulativ dnevnog plana i prodaje za 01.- 08.08.2013
B3: =Podaci!A2 -> 2013-08-01 | C3: =Podaci!A4 -> 2013-08-31 | D3: Izvještaj za | G3: =PROPER(TEXT((Podaci!C33),"MMMM"))&"/"&PROPER(TEXT((Podaci!D33),"MMMM")) -> Kolovoz/Avgust | K3: =Podaci!A7 -> 2013-01-01
A4: =Podaci!A3 -> 2013-08-08 | D4: =NETWORKDAYS(B3,A4,(K3:K12)) -> 6 | E4: dana + | G4: =NETWORKDAYS(B3,C3,(K3:K12)) -> 22 | H4: dana + | K4: =Podaci!A8 -> 2013-01-02
A5: SRBIJA | D5: =SUM(ISNA(MATCH(ROW(INDIRECT(B3&":"&A4)),(R3:R12),0))* (WEEKDAY(ROW(INDIRECT(B3&":"&A4)))=7)) -> 1 | E5: =IF(OR(D5=2,D5=3,D5=4),"subote","subota") -> subota | G5: =SUM(ISNA(MATCH(ROW(INDIRECT(B3&":"&C3)),(K3:K12),0))* (WEEKDAY(ROW(INDIRECT(B3&":"&C3)))=7)) -> 5 | H5: =IF(OR(G5=2,G5=3,G5=4),"subote","subota") -> subota | K5: =Podaci!A9 -> 2013-01-07
A6: KC BEOGRAD | K6: =Podaci!A10 -> 2013-05-06
A7: NAZIV KUPCA | B7: 1:Dnevna prodaja | C7: 2:Dnevni plan | D7: IND. prodaja / plan | E7: Razlika 1-2 | F7: 3: Kum. prodaje 2013 | G7: 4: Kum. plana 2013 | H7: IND. kum. prod 2013 / kum. plana 2013 | I7: Razlika 3-4 | K7: =Podaci!A11 -> 2013-05-01
A8: =PRORAČUNI!B3 ->  | B8: =PRORAČUNI!O3 -> 0 | C8: =PRORAČUNI!S3 ->  | D8: =B8/C8 ->  | E8: =B8-C8 ->  | F8: =KUMULATIV!H5 -> 15263.807 | G8: =KUMULATIV!L5 -> 0 | H8: =F8/G8 ->  | I8: =F8-G8 -> 15263.807 | K8: =Podaci!A12 -> 00:00:00
A9: =PRORAČUNI!B4 ->  | B9: =PRORAČUNI!O4 -> 0 | C9: =PRORAČUNI!S4 ->  | D9: =B9/C9 ->  | E9: =B9-C9 ->  | F9: =KUMULATIV!H6 -> 10027.657 | G9: =KUMULATIV!L6 -> 0 | H9: =F9/G9 ->  | I9: =F9-G9 -> 10027.657 | K9: =Podaci!A13 -> 00:00:00
A10: =PRORAČUNI!B5 ->  | B10: =PRORAČUNI!O5 -> 0 | C10: =PRORAČUNI!S5 ->  | F10: =KUMULATIV!H7 -> 3557.81 | G10: =KUMULATIV!L7 -> 0 | I10: 3557.81 | K10: =Podaci!A14 -> 00:00:00
A11: =PRORAČUNI!B6 ->  | B11: =PRORAČUNI!O6 -> 0 | C11: =PRORAČUNI!S6 ->  | F11: =KUMULATIV!H8 -> 4341.214 | G11: =KUMULATIV!L8 -> 0 | I11: 4341.214 | K11: =Podaci!A15 -> 00:00:00
A12: =PRORAČUNI!B7 ->  | B12: =PRORAČUNI!O7 -> 0 | C12: =PRORAČUNI!S7 ->  | F12: =KUMULATIV!H9 -> 1422.777 | G12: =KUMULATIV!L9 -> 0 | I12: 1422.777 | K12: =Podaci!A16 -> 00:00:00
A13: =PRORAČUNI!B8 ->  | B13: =PRORAČUNI!O8 -> 0 | C13: =PRORAČUNI!S8 ->  | F13: =KUMULATIV!H10 -> 3563.249 | G13: =KUMULATIV!L10 -> 0 | I13: 3563.249
A14: =PRORAČUNI!B9 ->  | B14: =PRORAČUNI!O9 -> 0 | C14: =PRORAČUNI!S9 ->  | F14: =KUMULATIV!H11 -> 1720.2 | G14: =KUMULATIV!L11 -> 0 | I14: 1720.2
A15: =PRORAČUNI!B10 ->  | B15: =PRORAČUNI!O10 -> 0 | C15: =PRORAČUNI!S10 ->  | F15: =KUMULATIV!H12 -> 1544.206 | G15: =KUMULATIV!L12 -> 0 | I15: 1544.206
A16: =PRORAČUNI!B11 ->  | B16: =PRORAČUNI!O11 -> 0 | C16: =PRORAČUNI!S11 ->  | F16: =KUMULATIV!H13 -> 1012.721 | G16: =KUMULATIV!L13 -> 0 | I16: 1012.721
A17: =PRORAČUNI!B12 ->  | B17: =PRORAČUNI!O12 -> 0 | C17: =PRORAČUNI!S12 ->  | F17: =KUMULATIV!H14 -> 335.241 | G17: =KUMULATIV!L14 -> 0 | I17: 335.241
A18: =PRORAČUNI!B13 ->  | B18: =PRORAČUNI!O13 -> 0 | C18: =PRORAČUNI!S13 ->  | F18: =KUMULATIV!H15 -> 560.43 | G18: =KUMULATIV!L15 -> 0 | I18: 560.43
A19: =PRORAČUNI!B14 ->  | B19: =PRORAČUNI!O14 -> 0 | C19: =PRORAČUNI!S14 ->  | F19: =KUMULATIV!H16 -> 0 | G19: =KUMULATIV!L16 -> 0 | I19: 0
A20: =PRORAČUNI!B15 ->  | B20: =PRORAČUNI!O15 -> 0 | C20: =PRORAČUNI!S15 ->  | F20: =KUMULATIV!H17 -> 1039.637 | G20: =KUMULATIV!L17 -> 0 | I20: 1039.637
A21: =PRORAČUNI!B16 ->  | B21: =PRORAČUNI!O16 -> 0 | C21: =PRORAČUNI!S16 ->  | F21: =KUMULATIV!H18 -> 0 | G21: =KUMULATIV!L18 -> 0 | I21: 0
A22: =PRORAČUNI!B17 ->  | B22: =PRORAČUNI!O17 -> 0 | C22: =PRORAČUNI!S17 ->  | F22: =KUMULATIV!H19 -> 418.437 | G22: =KUMULATIV!L19 -> 0 | I22: 418.437
A23: =PRORAČUNI!B18 ->  | B23: =PRORAČUNI!O18 -> 0 | C23: =PRORAČUNI!S18 ->  | F23: =KUMULATIV!H20 -> 281.589 | G23: =KUMULATIV!L20 -> 0 | I23: 281.589
A24: =PRORAČUNI!B19 ->  | B24: =PRORAČUNI!O19 -> 0 | C24: =PRORAČUNI!S19 ->  | F24: =KUMULATIV!H21 -> 245.687 | G24: =KUMULATIV!L21 -> 0 | I24: 245.687
A25: =PRORAČUNI!B20 ->  | B25: =PRORAČUNI!O20 -> 0 | C25: =PRORAČUNI!S20 ->  | F25: =KUMULATIV!H22 -> 0 | G25: =KUMULATIV!L22 -> 0 | I25: 0
A26: =PRORAČUNI!B21 ->  | B26: =PRORAČUNI!O21 -> 0 | C26: =PRORAČUNI!S21 ->  | F26: =KUMULATIV!H23 -> 226.737 | G26: =KUMULATIV!L23 -> 0 | I26: 226.737
A27: =PRORAČUNI!B22 ->  | B27: =PRORAČUNI!O22 -> 0 | C27: =PRORAČUNI!S22 ->  | F27: =KUMULATIV!H24 -> 0 | G27: =KUMULATIV!L24 -> 0 | I27: 0
A29: KC LAJKOVAC
A30: NAZIV KUPCA | B30: 1:Dnevna prodaja | C30: 2:Dnevni plan | D30: IND. prodaja / plan | E30: Razlika 1-2 | F30: 3: Kum. prodaje 2013 | G30: 4: Kum. plana 2013 | H30: IND. kum. prod 2013 / kum. plana 2013 | I30: Razlika 3-4
A31: =PRORAČUNI!B23 ->  | B31: =PRORAČUNI!O23 -> 0 | C31: =PRORAČUNI!S23 ->  | D31: =B31/C31 ->  | E31: =B31-C31 ->  | F31: =KUMULATIV!H25 -> 1883.426 | G31: =KUMULATIV!L25 -> 0 | H31: =F31/G31 ->  | I31: =F31-G31 -> 1883.426
A32: =PRORAČUNI!B24 ->  | B32: =PRORAČUNI!O24 -> 0 | C32: =PRORAČUNI!S24 ->  | D32: =B32/C32 ->  | E32: =B32-C32 ->  | F32: =KUMULATIV!H26 -> 2344.926 | G32: =KUMULATIV!L26 -> 0 | H32: =F32/G32 ->  | I32: =F32-G32 -> 2344.926
A33: =PRORAČUNI!B25 ->  | B33: =PRORAČUNI!O25 -> 0 | C33: =PRORAČUNI!S25 ->  | F33: =KUMULATIV!H27 -> 1370.285 | G33: =KUMULATIV!L27 -> 0 | I33: 1370.285
A34: =PRORAČUNI!B26 ->  | B34: =PRORAČUNI!O26 -> 0 | C34: =PRORAČUNI!S26 ->  | F34: =KUMULATIV!H28 -> 1524.348 | G34: =KUMULATIV!L28 -> 0 | I34: 1524.348
A35: =PRORAČUNI!B27 ->  | B35: =PRORAČUNI!O27 -> 0 | C35: =PRORAČUNI!S27 ->  | F35: =KUMULATIV!H29 -> 764.508 | G35: =KUMULATIV!L29 -> 0 | I35: 764.508
A36: =PRORAČUNI!B28 ->  | B36: =PRORAČUNI!O28 -> 0 | C36: =PRORAČUNI!S28 ->  | F36: =KUMULATIV!H30 -> 871.475 | G36: =KUMULATIV!L30 -> 0 | I36: 871.475
A37: =PRORAČUNI!B29 ->  | B37: =PRORAČUNI!O29 -> 0 | C37: =PRORAČUNI!S29 ->  | F37: =KUMULATIV!H31 -> 0 | G37: =KUMULATIV!L31 -> 0 | I37: 0
A38: =PRORAČUNI!B30 ->  | B38: =PRORAČUNI!O30 -> 0 | C38: =PRORAČUNI!S30 ->  | F38: =KUMULATIV!H32 -> 109.182 | G38: =KUMULATIV!L32 -> 0 | I38: 109.182
A39: =PRORAČUNI!B31 ->  | B39: =PRORAČUNI!O31 -> 0 | C39: =PRORAČUNI!S31 ->  | F39: =KUMULATIV!H33 -> 283.636 | G39: =KUMULATIV!L33 -> 0 | I39: 283.636
A40: =PRORAČUNI!B32 ->  | B40: =PRORAČUNI!O32 -> 0 | C40: =PRORAČUNI!S32 ->  | F40: =KUMULATIV!H34 -> 168.302 | G40: =KUMULATIV!L34 -> 0 | I40: 168.302
A41: =PRORAČUNI!B33 ->  | B41: =PRORAČUNI!O33 -> 0 | C41: =PRORAČUNI!S33 ->  | F41: =KUMULATIV!H35 -> 341.28 | G41: =KUMULATIV!L35 -> 0 | I41: 341.28
A42: =PRORAČUNI!B34 ->  | B42: =PRORAČUNI!O34 -> 0 | C42: =PRORAČUNI!S34 ->  | F42: =KUMULATIV!H36 -> 202.147 | G42: =KUMULATIV!L36 -> 0 | I42: 202.147
A43: =PRORAČUNI!B35 ->  | B43: =PRORAČUNI!O35 -> 0 | C43: =PRORAČUNI!S35 ->  | F43: =KUMULATIV!H37 -> 18.081 | G43: =KUMULATIV!L37 -> 0 | I43: 18.081
A44: =PRORAČUNI!B36 ->  | B44: =PRORAČUNI!O36 -> 0 | C44: =PRORAČUNI!S36 ->  | F44: =KUMULATIV!H38 -> 210.574 | G44: =KUMULATIV!L38 -> 0 | I44: 210.574
A45: =PRORAČUNI!B37 ->  | B45: =PRORAČUNI!O37 -> 0 | C45: =PRORAČUNI!S37 ->  | F45: =KUMULATIV!H39 -> 0 | G45: =KUMULATIV!L39 -> 0 | I45: 0
A46: =PRORAČUNI!B38 ->  | B46: =PRORAČUNI!O38 -> 0 | C46: =PRORAČUNI!S38 ->  | F46: =KUMULATIV!H40 -> 0 | G46: =KUMULATIV!L40 -> 0 | I46: 0
A47: =PRORAČUNI!B39 ->  | B47: =PRORAČUNI!O39 -> 0 | C47: =PRORAČUNI!S39 ->  | F47: =KUMULATIV!H41 -> 340.663 | G47: =KUMULATIV!L41 -> 0 | I47: 340.663
A48: =PRORAČUNI!B40 ->  | B48: =PRORAČUNI!O40 -> 0 | C48: =PRORAČUNI!S40 ->  | F48: =KUMULATIV!H42 -> 0 | G48: =KUMULATIV!L42 -> 0 | I48: 0
A49: =PRORAČUNI!B41 ->  | B49: =PRORAČUNI!O41 -> 0 | C49: =PRORAČUNI!S41 ->  | F49: =KUMULATIV!H43 -> 97.282 | G49: =KUMULATIV!L43 -> 0 | I49: 97.282
A50: =PRORAČUNI!B42 ->  | B50: =PRORAČUNI!O42 -> 0 | C50: =PRORAČUNI!S42 ->  | F50: =KUMULATIV!H44 -> 197.192 | G50: =KUMULATIV!L44 -> 0 | I50: 197.192
A52: KC NIŠ
A53: NAZIV KUPCA | B53: 1:Dnevna prodaja | C53: 2:Dnevni plan | D53: IND. prodaja / plan | E53: Razlika 1-2 | F53: 3: Kum. prodaje 2013 | G53: 4: Kum. plana 2013 | H53: IND. kum. prod 2013 / kum. plana 2013 | I53: Razlika 3-4
A54: =PRORAČUNI!B43 ->  | B54: =PRORAČUNI!O43 -> 0 | C54: =PRORAČUNI!S43 ->  | D54: =B54/C54 ->  | E54: =B54-C54 ->  | F54: =KUMULATIV!H45 -> 708.135 | G54: =KUMULATIV!L45 -> 0 | H54: =F54/G54 ->  | I54: =F54-G54 -> 708.135
A55: =PRORAČUNI!B44 ->  | B55: =PRORAČUNI!O44 -> 0 | C55: =PRORAČUNI!S44 ->  | D55: =B55/C55 ->  | E55: =B55-C55 ->  | F55: =KUMULATIV!H46 -> 1651.053 | G55: =KUMULATIV!L46 -> 0 | H55: =F55/G55 ->  | I55: =F55-G55 -> 1651.053
A56: =PRORAČUNI!B45 ->  | B56: =PRORAČUNI!O45 -> 0 | C56: =PRORAČUNI!S45 ->  | F56: =KUMULATIV!H47 -> 9453.68 | G56: =KUMULATIV!L47 -> 0 | I56: 9453.68
A57: =PRORAČUNI!B46 ->  | B57: =PRORAČUNI!O46 -> 0 | C57: =PRORAČUNI!S46 ->  | F57: =KUMULATIV!H48 -> 1438.13 | G57: =KUMULATIV!L48 -> 0 | I57: 1438.13
A58: =PRORAČUNI!B47 ->  | B58: =PRORAČUNI!O47 -> 0 | C58: =PRORAČUNI!S47 ->  | F58: =KUMULATIV!H49 -> 301.877 | G58: =KUMULATIV!L49 -> 0 | I58: 301.877
A59: =PRORAČUNI!B48 ->  | B59: =PRORAČUNI!O48 -> 0 | C59: =PRORAČUNI!S48 ->  | F59: =KUMULATIV!H50 -> 0 | G59: =KUMULATIV!L50 -> 0 | I59: 0
A60: =PRORAČUNI!B49 ->  | B60: =PRORAČUNI!O49 -> 0 | C60: =PRORAČUNI!S49 ->  | F60: =KUMULATIV!H51 -> 270.11 | G60: =KUMULATIV!L51 -> 0 | I60: 270.11
A61: =PRORAČUNI!B50 ->  | B61: =PRORAČUNI!O50 -> 0 | C61: =PRORAČUNI!S50 ->  | F61: =KUMULATIV!H52 -> 0 | G61: =KUMULATIV!L52 -> 0 | I61: 0
A62: =PRORAČUNI!B51 ->  | B62: =PRORAČUNI!O51 -> 0 | C62: =PRORAČUNI!S51 ->  | F62: =KUMULATIV!H53 -> 756.757 | G62: =KUMULATIV!L53 -> 0 | I62: 756.757
A63: =PRORAČUNI!B52 ->  | B63: =PRORAČUNI!O52 -> 0 | C63: =PRORAČUNI!S52 ->  | F63: =KUMULATIV!H54 -> 638.149 | G63: =KUMULATIV!L54 -> 0 | I63: 638.149
A64: =PRORAČUNI!B53 ->  | B64: =PRORAČUNI!O53 -> 0 | C64: =PRORAČUNI!S53 ->  | F64: =KUMULATIV!H55 -> 417.437 | G64: =KUMULATIV!L55 -> 0 | I64: 417.437
A65: =PRORAČUNI!B54 ->  | B65: =PRORAČUNI!O54 -> 0 | C65: =PRORAČUNI!S54 ->  | F65: =KUMULATIV!H56 -> 429 | G65: =KUMULATIV!L56 -> 0 | I65: 429
A66: =PRORAČUNI!B55 ->  | B66: =PRORAČUNI!O55 -> 0 | C66: =PRORAČUNI!S55 ->  | F66: =KUMULATIV!H57 -> 213.295 | G66: =KUMULATIV!L57 -> 0 | I66: 213.295
A67: =PRORAČUNI!B56 ->  | B67: =PRORAČUNI!O56 -> 0 | C67: =PRORAČUNI!S56 ->  | F67: =KUMULATIV!H58 -> 495.088 | G67: =KUMULATIV!L58 -> 0 | I67: 495.088
A68: =PRORAČUNI!B57 ->  | B68: =PRORAČUNI!O57 -> 0 | C68: =PRORAČUNI!S57 ->  | F68: =KUMULATIV!H59 -> 0 | G68: =KUMULATIV!L59 -> 0 | I68: 0
A69: =PRORAČUNI!B58 ->  | B69: =PRORAČUNI!O58 -> 0 | C69: =PRORAČUNI!S58 ->  | F69: =KUMULATIV!H60 -> 409.345 | G69: =KUMULATIV!L60 -> 0 | I69: 409.345
A70: =PRORAČUNI!B59 ->  | B70: =PRORAČUNI!O59 -> 0 | C70: =PRORAČUNI!S59 ->  | F70: =KUMULATIV!H61 -> 292.254 | G70: =KUMULATIV!L61 -> 0 | I70: 292.254
A71: =PRORAČUNI!B60 ->  | B71: =PRORAČUNI!O60 -> 0 | C71: =PRORAČUNI!S60 ->  | F71: =KUMULATIV!H62 -> 243.778 | G71: =KUMULATIV!L62 -> 0 | I71: 243.778
A72: =PRORAČUNI!B61 ->  | B72: =PRORAČUNI!O61 -> 0 | C72: =PRORAČUNI!S61 ->  | F72: =KUMULATIV!H63 -> 215.174 | G72: =KUMULATIV!L63 -> 0 | I72: 215.174
A73: =PRORAČUNI!B62 ->  | B73: =PRORAČUNI!O62 -> 0 | C73: =PRORAČUNI!S62 ->  | F73: =KUMULATIV!H64 -> 136.544 | G73: =KUMULATIV!L64 -> 0 | I73: 136.544

Sheet RAZRADA KUPCI BG
A1: ='RAZRADA UKUPNO'!A1 -> VINDIJA | B1: ='RAZRADA UKUPNO'!B1:I1 -> Dnevna prodaja od 08.08. i kumulativ dnevnog plana i prodaje za 01.- 08.08.2013
D3: ='RAZRADA UKUPNO'!D3:E3 -> Izvještaj za | G3: ='RAZRADA UKUPNO'!G3:H3 -> Kolovoz/Avgust
D4: ='RAZRADA UKUPNO'!D4 -> 6 | E4: ='RAZRADA UKUPNO'!E4 -> dana + | G4: ='RAZRADA UKUPNO'!G4 -> 22 | H4: ='RAZRADA UKUPNO'!H4 -> dana +
A5: KC BEOGRAD | D5: ='RAZRADA UKUPNO'!D5 -> 1 | E5: ='RAZRADA UKUPNO'!E5 -> subota | G5: ='RAZRADA UKUPNO'!G5 -> 5 | H5: ='RAZRADA UKUPNO'!H5 -> subota
A7: KUPAC | B7: GRUPA PROIZVODA | C7: 1:Dnevna prodaja | D7: 2:Dnevni plan | E7: IND. prodaja / plan | F7: Razlika 1-2 | G7: 3: Kum. prodaje 2013 | H7: 4: Kum. plana 2013 | I7: IND. kum. prod 2013 / kum. plana 2013 | J7: Razlika 3-4
A8: ='PRORAČUN 2'!C3 -> DELHAIZE SERBIA DOO | B8: 1. Sveži proizvodi | C8: ='PRORAČUN 2'!E3 -> 1484.734 | D8: ='PRORAČUN 2'!F3 -> 2070.661655 | E8: =IFERROR(C8/D8,0) -> 0.7170336093 | F8: =IFERROR(C8-D8,0) -> -585.9276548 | G8: ='KUMULATIV 2'!E3 -> 16466.733 | H8: ='KUMULATIV 2'!F3 -> 14494.63158 | I8: =IFERROR(G8/H8,0) -> 1.136057368 | J8: =IFERROR(G8-H8,0) -> 1972.101416
B9: 2. Smrznuti proizvodi | C9: ='PRORAČUN 2'!E4 -> 0 | D9: ='PRORAČUN 2'!F4 -> 0 | E9: =IFERROR(C9/D9,0) -> 0 | F9: =IFERROR(C9-D9,0) -> 0 | G9: ='KUMULATIV 2'!E4 -> 0 | H9: ='KUMULATIV 2'!F4 -> 0 | I9: =IFERROR(G9/H9,0) -> 0 | J9: =IFERROR(G9-H9,0) -> 0
B10: 3. Prerađevine | C10: ='PRORAČUN 2'!E5 -> 50.921 | D10: ='PRORAČUN 2'!F5 -> 294.0175561 | E10: 0.1731903383 | F10: -243.0965561 | G10: ='KUMULATIV 2'!E5 -> 332.729 | H10: ='KUMULATIV 2'!F5 -> 2058.122893 | I10: 0.1616662451 | J10: -1725.393893
B11: Grand Total | C11: ='PRORAČUN 2'!E6 -> 1535.655 | D11: ='PRORAČUN 2'!F6 -> 2364.679211 | E11: 0.649413668 | F11: -829.024211 | G11: ='KUMULATIV 2'!E6 -> 16799.462 | H11: ='KUMULATIV 2'!F6 -> 16552.75448 | I11: 1.014904318 | J11: 246.7075233
A12: ='PRORAČUN 2'!C7 -> IDEA DOO | B12: =$B$8 -> 1. Sveži proizvodi | C12: ='PRORAČUN 2'!E7 -> 1723.186 | D12: ='PRORAČUN 2'!F7 -> 1278.807067 | E12: 1.3474949 | F12: 444.3789333 | G12: ='KUMULATIV 2'!E7 -> 10500.77 | H12: ='KUMULATIV 2'!F7 -> 8951.649467 | I12: 1.1730542 | J12: 1549.120533
B13: =$B$9 -> 2. Smrznuti proizvodi | C13: ='PRORAČUN 2'!E8 -> 0 | D13: ='PRORAČUN 2'!F8 -> 0 | E13: 0 | F13: 0 | G13: ='KUMULATIV 2'!E8 -> 0 | H13: ='KUMULATIV 2'!F8 -> 0 | I13: 0 | J13: 0
B14: 3. Prerađevine | C14: ='PRORAČUN 2'!E9 -> 246.182 | D14: ='PRORAČUN 2'!F9 -> 17.83241307 | E14: 13.80531053 | F14: 228.3495869 | G14: ='KUMULATIV 2'!E9 -> 1496.255 | H14: ='KUMULATIV 2'!F9 -> 124.8268915 | I14: 11.98663991 | J14: 1371.428109
B15: =$B$11 -> Grand Total | C15: ='PRORAČUN 2'!E10 -> 1969.368 | D15: ='PRORAČUN 2'!F10 -> 1296.63948 | E15: 1.518824647 | F15: 672.7285203 | G15: ='KUMULATIV 2'!E10 -> 11997.025 | H15: ='KUMULATIV 2'!F10 -> 9076.476358 | I15: 1.321771195 | J15: 2920.548642
A16: ='PRORAČUN 2'!C11 -> MERCATOR S | B16: =$B$8 -> 1. Sveži proizvodi | C16: ='PRORAČUN 2'!E11 -> 493.585 | D16: ='PRORAČUN 2'!F11 -> 708.7756813 | E16: 0.6963909923 | F16: -215.1906813 | G16: ='KUMULATIV 2'!E11 -> 3493.502 | H16: ='KUMULATIV 2'!F11 -> 4961.429769 | I16: 0.7041321076 | J16: -1467.927769
B17: =$B$9 -> 2. Smrznuti proizvodi | C17: ='PRORAČUN 2'!E12 -> 19.133 | D17: ='PRORAČUN 2'!F12 -> 15.105379 | E17: 1.266634885 | F17: 4.027620995 | G17: ='KUMULATIV 2'!E12 -> 46.536 | H17: ='KUMULATIV 2'!F12 -> 105.737653 | I17: 0.4401081229 | J17: -59.20165303
B18: =$B$10 -> 3. Prerađevine | C18: ='PRORAČUN 2'!E13 -> 68.067 | D18: ='PRORAČUN 2'!F13 -> 147.6372179 | E18: 0.4610422831 | F18: -79.57021787 | G18: ='KUMULATIV 2'!E13 -> 598.557 | H18: ='KUMULATIV 2'!F13 -> 1033.460525 | I18: 0.5791774194 | J18: -434.9035251
B19: =$B$11 -> Grand Total | C19: ='PRORAČUN 2'!E14 -> 580.785 | D19: ='PRORAČUN 2'!F14 -> 871.5182782 | E19: 0.6664059889 | F19: -290.7332782 | G19: ='KUMULATIV 2'!E14 -> 4138.595 | H19: ='KUMULATIV 2'!F14 -> 6100.627947 | I19: 0.678388362 | J19: -1962.032947
A20: ='PRORAČUN 2'!C15 -> ŠTRAND DOO | B20: =$B$8 -> 1. Sveži proizvodi | C20: ='PRORAČUN 2'!E15 -> 678.838 | D20: ='PRORAČUN 2'!F15 -> 676.2114184 | E20: 1.003884261 | F20: 2.626581606 | G20: ='KUMULATIV 2'!E15 -> 5020.052 | H20: ='KUMULATIV 2'!F15 -> 4733.479929 | I20: 1.06054152 | J20: 286.5720712
B21: =$B$9 -> 2. Smrznuti proizvodi | C21: ='PRORAČUN 2'!E16 -> 0 | D21: ='PRORAČUN 2'!F16 -> 0 | E21: 0 | F21: 0 | G21: ='KUMULATIV 2'!E16 -> 0 | H21: ='KUMULATIV 2'!F16 -> 0 | I21: 0 | J21: 0
B22: =$B$10 -> 3. Prerađevine | C22: ='PRORAČUN 2'!E17 -> 0 | D22: ='PRORAČUN 2'!F17 -> 0 | E22: 0 | F22: 0 | G22: ='KUMULATIV 2'!E17 -> 0 | H22: ='KUMULATIV 2'!F17 -> 0 | I22: 0 | J22: 0
B23: =$B$11 -> Grand Total | C23: ='PRORAČUN 2'!E18 -> 678.838 | D23: ='PRORAČUN 2'!F18 -> 676.2114184 | E23: 1.003884261 | F23: 2.626581606 | G23: ='KUMULATIV 2'!E18 -> 5020.052 | H23: ='KUMULATIV 2'!F18 -> 4733.479929 | I23: 1.06054152 | J23: 286.5720712
A24: ='PRORAČUN 2'!C19 -> METRO CASH & CARRY DOO | B24: =$B$8 -> 1. Sveži proizvodi | C24: ='PRORAČUN 2'!E19 -> 162.405 | D24: ='PRORAČUN 2'!F19 -> 519.0688859 | E24: 0.3128775475 | F24: -356.6638859 | G24: ='KUMULATIV 2'!E19 -> 1324.682 | H24: ='KUMULATIV 2'!F19 -> 3633.482201 | I24: 0.3645764384 | J24: -2308.800201
B25: =$B$9 -> 2. Smrznuti proizvodi | C25: ='PRORAČUN 2'!E20 -> 0 | D25: ='PRORAČUN 2'!F20 -> 6.374934114 | E25: 0 | F25: -6.374934114 | G25: ='KUMULATIV 2'!E20 -> 0 | H25: ='KUMULATIV 2'!F20 -> 44.6245388 | I25: 0 | J25: -44.6245388
B26: =$B$10 -> 3. Prerađevine | C26: ='PRORAČUN 2'!E21 -> 0 | D26: ='PRORAČUN 2'!F21 -> 103.2978949 | E26: 0 | F26: -103.2978949 | G26: ='KUMULATIV 2'!E21 -> 260.5 | H26: ='KUMULATIV 2'!F21 -> 723.0852642 | I26: 0.3602618016 | J26: -462.5852642
B27: =$B$11 -> Grand Total | C27: ='PRORAČUN 2'!E22 -> 162.405 | D27: ='PRORAČUN 2'!F22 -> 628.7417149 | E27: 0.2583016144 | F27: -466.3367149 | G27: ='KUMULATIV 2'!E22 -> 1585.182 | H27: ='KUMULATIV 2'!F22 -> 4401.192004 | I27: 0.3601710624 | J27: -2816.010004
A28: ='PRORAČUN 2'!C23 -> UNIVEREXPORT DOO | B28: =$B$8 -> 1. Sveži proizvodi | C28: ='PRORAČUN 2'!E23 -> 896.674 | D28: ='PRORAČUN 2'!F23 -> 447.2198166 | E28: 2.004996126 | F28: 449.4541834 | G28: ='KUMULATIV 2'!E23 -> 4018.273 | H28: ='KUMULATIV 2'!F23 -> 3130.538716 | I28: 1.28357237 | J28: 887.7342837
B29: =$B$9 -> 2. Smrznuti proizvodi | C29: ='PRORAČUN 2'!E24 -> 0 | D29: ='PRORAČUN 2'!F24 -> 0 | E29: 0 | F29: 0 | G29: ='KUMULATIV 2'!E24 -> 0 | H29: ='KUMULATIV 2'!F24 -> 0 | I29: 0 | J29: 0
B30: =$B$10 -> 3. Prerađevine | C30: ='PRORAČUN 2'!E25 -> 92.25 | D30: ='PRORAČUN 2'!F25 -> 44.92650651 | E30: 2.053353514 | F30: 47.32349349 | G30: ='KUMULATIV 2'!E25 -> 533.9 | H30: ='KUMULATIV 2'!F25 -> 314.4855455 | I30: 1.697693289 | J30: 219.4144545
B31: =$B$11 -> Grand Total | C31: ='PRORAČUN 2'!E26 -> 988.924 | D31: ='PRORAČUN 2'!F26 -> 492.1463231 | E31: 2.009410522 | F31: 496.7776769 | G31: ='KUMULATIV 2'!E26 -> 4552.173 | H31: ='KUMULATIV 2'!F26 -> 3445.024262 | I31: 1.32137618 | J31: 1107.148738
A32: ='PRORAČUN 2'!C27 -> AMAN DOO | B32: =$B$8 -> 1. Sveži proizvodi | C32: ='PRORAČUN 2'!E27 -> 12.135 | D32: ='PRORAČUN 2'!F27 -> 302.9464215 | E32: 0.04005658803 | F32: -290.8114215 | G32: ='KUMULATIV 2'!E27 -> 127.496 | H32: ='KUMULATIV 2'!F27 -> 2120.62495 | I32: 0.06012189944 | J32: -1993.12895
B33: =$B$9 -> 2. Smrznuti proizvodi | C33: ='PRORAČUN 2'!E28 -> 0 | D33: ='PRORAČUN 2'!F28 -> 0 | E33: 0 | F33: 0 | G33: ='KUMULATIV 2'!E28 -> 0 | H33: ='KUMULATIV 2'!F28 -> 0 | I33: 0 | J33: 0
B34: =$B$10 -> 3. Prerađevine | C34: ='PRORAČUN 2'!E29 -> 236.255 | D34: ='PRORAČUN 2'!F29 -> 138.6966425 | E34: 1.703393794 | F34: 97.55835752 | G34: ='KUMULATIV 2'!E29 -> 1841.094 | H34: ='KUMULATIV 2'!F29 -> 970.8764974 | I34: 1.896321525 | J34: 870.2175026
B35: =$B$11 -> Grand Total | C35: ='PRORAČUN 2'!E30 -> 248.39 | D35: ='PRORAČUN 2'!F30 -> 441.6430639 | E35: 0.5624225088 | F35: -193.2530639 | G35: ='KUMULATIV 2'!E30 -> 1968.59 | H35: ='KUMULATIV 2'!F30 -> 3091.501448 | I35: 0.6367747301 | J35: -1122.911448
A36: ='PRORAČUN 2'!C31 -> MESO-MARKET | B36: =$B$8 -> 1. Sveži proizvodi | C36: ='PRORAČUN 2'!E31 -> 251.475 | D36: ='PRORAČUN 2'!F31 -> 308.2799194 | E36: 0.8157359082 | F36: -56.80491936 | G36: ='KUMULATIV 2'!E31 -> 1782.396 | H36: ='KUMULATIV 2'!F31 -> 2157.959436 | I36: 0.8259636259 | J36: -375.5634355
B37: =$B$9 -> 2. Smrznuti proizvodi | C37: ='PRORAČUN 2'!E32 -> 0 | D37: ='PRORAČUN 2'!F32 -> 0 | E37: 0 | F37: 0 | G37: ='KUMULATIV 2'!E32 -> 0 | H37: ='KUMULATIV 2'!F32 -> 0 | I37: 0 | J37: 0
B38: =$B$10 -> 3. Prerađevine | C38: ='PRORAČUN 2'!E33 -> 0 | D38: ='PRORAČUN 2'!F33 -> 3.344089088 | E38: 0 | F38: -3.344089088 | G38: ='KUMULATIV 2'!E33 -> 13.285 | H38: ='KUMULATIV 2'!F33 -> 23.40862362 | I38: 0.5675258921 | J38: -10.12362362
B39: =$B$11 -> Grand Total | C39: ='PRORAČUN 2'!E34 -> 251.475 | D39: ='PRORAČUN 2'!F34 -> 311.6240084 | E39: 0.8069821104 | F39: -60.14900845 | G39: ='KUMULATIV 2'!E34 -> 1795.681 | H39: ='KUMULATIV 2'!F34 -> 2181.368059 | I39: 0.8231902876 | J39: -385.6870591
A40: ='PRORAČUN 2'!C35 -> MUP UPRAVA ZA POSLOVE ISHRANE I SMEŠTAJA | B40: =$B$8 -> 1. Sveži proizvodi | C40: ='PRORAČUN 2'!E35 -> 0 | D40: ='PRORAČUN 2'!F35 -> 0 | E40: 0 | F40: 0 | G40: ='KUMULATIV 2'!E35 -> 0 | H40: ='KUMULATIV 2'!F35 -> 0 | I40: 0 | J40: 0
B41: =$B$9 -> 2. Smrznuti proizvodi | C41: ='PRORAČUN 2'!E36 -> 239.268 | D41: ='PRORAČUN 2'!F36 -> 177.0353195 | E41: 1.351526919 | F41: 62.23268049 | G41: ='KUMULATIV 2'!E36 -> 1251.989 | H41: ='KUMULATIV 2'!F36 -> 1239.247237 | I41: 1.010281857 | J41: 12.74176344
B42: =$B$10 -> 3. Prerađevine | C42: ='PRORAČUN 2'!E37 -> 0 | D42: ='PRORAČUN 2'!F37 -> 0 | E42: 0 | F42: 0 | G42: ='KUMULATIV 2'!E37 -> 0 | H42: ='KUMULATIV 2'!F37 -> 0 | I42: 0 | J42: 0
B43: =$B$11 -> Grand Total | C43: ='PRORAČUN 2'!E38 -> 239.268 | D43: ='PRORAČUN 2'!F38 -> 177.0353195 | E43: 1.351526919 | F43: 62.23268049 | G43: ='KUMULATIV 2'!E38 -> 1251.989 | H43: ='KUMULATIV 2'!F38 -> 1239.247237 | I43: 1.010281857 | J43: 12.74176344
A44: ='PRORAČUN 2'!C39 -> ĐERIĆ STR | B44: =$B$8 -> 1. Sveži proizvodi | C44: ='PRORAČUN 2'!E39 -> 61.097 | D44: ='PRORAČUN 2'!F39 -> 164.4196832 | E44: 0.3715917632 | F44: -103.3226832 | G44: ='KUMULATIV 2'!E39 -> 383.338 | H44: ='KUMULATIV 2'!F39 -> 1150.937783 | I44: 0.3330657884 | J44: -767.5997827
B45: =$B$9 -> 2. Smrznuti proizvodi | C45: ='PRORAČUN 2'!E40 -> 0 | D45: ='PRORAČUN 2'!F40 -> 0 | E45: 0 | F45: 0 | G45: ='KUMULATIV 2'!E40 -> 0 | H45: ='KUMULATIV 2'!F40 -> 0 | I45: 0 | J45: 0
B46: =$B$10 -> 3. Prerađevine | C46: ='PRORAČUN 2'!E41 -> 0 | D46: ='PRORAČUN 2'!F41 -> 0 | E46: 0 | F46: 0 | G46: ='KUMULATIV 2'!E41 -> 13 | H46: ='KUMULATIV 2'!F41 -> 0 | I46: 0 | J46: 13
B47: =$B$11 -> Grand Total | C47: ='PRORAČUN 2'!E42 -> 61.097 | D47: ='PRORAČUN 2'!F42 -> 164.4196832 | E47: 0.3715917632 | F47: -103.3226832 | G47: ='KUMULATIV 2'!E42 -> 396.338 | H47: ='KUMULATIV 2'!F42 -> 1150.937783 | I47: 0.3443609255 | J47: -754.5997827
A48: ='PRORAČUN 2'!C43 -> TP DOO TREND COMERCCE ŠID | B48: =$B$8 -> 1. Sveži proizvodi | C48: ='PRORAČUN 2'!E43 -> 0 | D48: ='PRORAČUN 2'!F43 -> 0 | E48: 0 | F48: 0 | G48: ='KUMULATIV 2'!E43 -> 0 | H48: ='KUMULATIV 2'!F43 -> 0 | I48: 0 | J48: 0
B49: =$B$9 -> 2. Smrznuti proizvodi | C49: ='PRORAČUN 2'!E44 -> 60.995 | D49: ='PRORAČUN 2'!F44 -> 25.68650104 | E49: 2.374593562 | F49: 35.30849896 | G49: ='KUMULATIV 2'!E44 -> 230.79 | H49: ='KUMULATIV 2'!F44 -> 179.8055073 | I49: 1.283553565 | J49: 50.98449269
B50: =$B$10 -> 3. Prerađevine | C50: ='PRORAČUN 2'!E45 -> 141 | D50: ='PRORAČUN 2'!F45 -> 78.94531046 | E50: 1.786046558 | F50: 62.05468954 | G50: ='KUMULATIV 2'!E45 -> 531.635 | H50: ='KUMULATIV 2'!F45 -> 552.6171732 | I50: 0.9620312683 | J50: -20.98217319
B51: =$B$11 -> Grand Total | C51: ='PRORAČUN 2'!E46 -> 201.995 | D51: ='PRORAČUN 2'!F46 -> 104.6318115 | E51: 1.930531424 | F51: 97.3631885 | G51: ='KUMULATIV 2'!E46 -> 762.425 | H51: ='KUMULATIV 2'!F46 -> 732.4226805 | I51: 1.040963122 | J51: 30.0023195
A52: ='PRORAČUN 2'!C47 -> VINDIJA D.O.O. LAJKOVAC - VLASTITA POTROŠNJA | B52: =$B$8 -> 1. Sveži proizvodi | C52: ='PRORAČUN 2'!E47 -> 0 | D52: ='PRORAČUN 2'!F47 -> 47.21273277 | E52: 0 | F52: -47.21273277 | G52: ='KUMULATIV 2'!E47 -> 0 | H52: ='KUMULATIV 2'!F47 -> 330.4891294 | I52: 0 | J52: -330.4891294
B53: =$B$9 -> 2. Smrznuti proizvodi | C53: ='PRORAČUN 2'!E48 -> 0 | D53: ='PRORAČUN 2'!F48 -> 29.18629054 | E53: 0 | F53: -29.18629054 | G53: ='KUMULATIV 2'!E48 -> 0 | H53: ='KUMULATIV 2'!F48 -> 204.3040338 | I53: 0 | J53: -204.3040338
B54: =$B$10 -> 3. Prerađevine | C54: ='PRORAČUN 2'!E49 -> 0 | D54: ='PRORAČUN 2'!F49 -> 20.92289265 | E54: 0 | F54: -20.92289265 | G54: ='KUMULATIV 2'!E49 -> 0 | H54: ='KUMULATIV 2'!F49 -> 146.4602486 | I54: 0 | J54: -146.4602486
B55: =$B$11 -> Grand Total | C55: ='PRORAČUN 2'!E50 -> 0 | D55: ='PRORAČUN 2'!F50 -> 97.32191596 | E55: 0 | F55: -97.32191596 | G55: ='KUMULATIV 2'!E50 -> 0 | H55: ='KUMULATIV 2'!F50 -> 681.2534117 | I55: 0 | J55: -681.2534117
A56: ='PRORAČUN 2'!C51 -> PODUNAVLJE AD, BEOGRAD | B56: =$B$8 -> 1. Sveži proizvodi | C56: ='PRORAČUN 2'!E51 -> 7.986 | D56: ='PRORAČUN 2'!F51 -> 32.67024977 | E56: 0.2444425756 | F56: -24.68424977 | G56: ='KUMULATIV 2'!E51 -> 459.229 | H56: ='KUMULATIV 2'!F51 -> 228.6917484 | I56: 2.008069829 | J56: 230.5372516
B57: =$B$9 -> 2. Smrznuti proizvodi | C57: ='PRORAČUN 2'!E52 -> 136.509 | D57: ='PRORAČUN 2'!F52 -> 47.56560671 | E57: 2.869909782 | F57: 88.94339329 | G57: ='KUMULATIV 2'!E52 -> 613.117 | H57: ='KUMULATIV 2'!F52 -> 332.959247 | I57: 1.841417548 | J57: 280.157753
B58: =$B$10 -> 3. Prerađevine | C58: ='PRORAČUN 2'!E53 -> 29.863 | D58: ='PRORAČUN 2'!F53 -> 9.872229799 | E58: 3.024949845 | F58: 19.9907702 | G58: ='KUMULATIV 2'!E53 -> 141.649 | H58: ='KUMULATIV 2'!F53 -> 69.1056086 | I58: 2.049746799 | J58: 72.5433914
B59: =$B$11 -> Grand Total | C59: ='PRORAČUN 2'!E54 -> 174.358 | D59: ='PRORAČUN 2'!F54 -> 90.10808628 | E59: 1.934987271 | F59: 84.24991372 | G59: ='KUMULATIV 2'!E54 -> 1213.995 | H59: ='KUMULATIV 2'!F54 -> 630.7566039 | I59: 1.924664748 | J59: 583.2383961
A60: ='PRORAČUN 2'!C55 -> POINT MARTINOVIĆ DOO | B60: =$B$8 -> 1. Sveži proizvodi | C60: ='PRORAČUN 2'!E55 -> 0 | D60: ='PRORAČUN 2'!F55 -> 83.21167507 | E60: 0 | F60: -83.21167507 | G60: ='KUMULATIV 2'!E55 -> 0 | H60: ='KUMULATIV 2'!F55 -> 582.4817255 | I60: 0 | J60: -582.4817255
B61: =$B$9 -> 2. Smrznuti proizvodi | C61: ='PRORAČUN 2'!E56 -> 0 | D61: ='PRORAČUN 2'!F56 -> 0.6068087213 | E61: 0 | F61: -0.6068087213 | G61: ='KUMULATIV 2'!E56 -> 0 | H61: ='KUMULATIV 2'!F56 -> 4.247661049 | I61: 0 | J61: -4.247661049
B62: =$B$10 -> 3. Prerađevine | C62: ='PRORAČUN 2'!E57 -> 0 | D62: ='PRORAČUN 2'!F57 -> 0 | E62: 0 | F62: 0 | G62: ='KUMULATIV 2'!E57 -> 0 | H62: ='KUMULATIV 2'!F57 -> 0 | I62: 0 | J62: 0
B63: =$B$11 -> Grand Total | C63: ='PRORAČUN 2'!E58 -> 0 | D63: ='PRORAČUN 2'!F58 -> 83.81848379 | E63: 0 | F63: -83.81848379 | G63: ='KUMULATIV 2'!E58 -> 0 | H63: ='KUMULATIV 2'!F58 -> 586.7293865 | I63: 0 | J63: -586.7293865
A64: ='PRORAČUN 2'!C59 -> MIS CHILLI DOO | B64: =$B$8 -> 1. Sveži proizvodi | C64: ='PRORAČUN 2'!E59 -> 0 | D64: ='PRORAČUN 2'!F59 -> 45.72132672 | E64: 0 | F64: -45.72132672 | G64: ='KUMULATIV 2'!E59 -> 190.82 | H64: ='KUMULATIV 2'!F59 -> 320.049287 | I64: 0.5962206689 | J64: -129.229287
B65: =$B$9 -> 2. Smrznuti proizvodi | C65: ='PRORAČUN 2'!E60 -> 0 | D65: ='PRORAČUN 2'!F60 -> 0 | E65: 0 | F65: 0 | G65: ='KUMULATIV 2'!E60 -> 0 | H65: ='KUMULATIV 2'!F60 -> 0 | I65: 0 | J65: 0
B66: =$B$10 -> 3. Prerađevine | C66: ='PRORAČUN 2'!E61 -> 0 | D66: ='PRORAČUN 2'!F61 -> 37.45147746 | E66: 0 | F66: -37.45147746 | G66: ='KUMULATIV 2'!E61 -> 227.617 | H66: ='KUMULATIV 2'!F61 -> 262.1603422 | I66: 0.8682358211 | J66: -34.54334222
B67: =$B$11 -> Grand Total | C67: ='PRORAČUN 2'!E62 -> 0 | D67: ='PRORAČUN 2'!F62 -> 83.17280418 | E67: 0 | F67: -83.17280418 | G67: ='KUMULATIV 2'!E62 -> 418.437 | H67: ='KUMULATIV 2'!F62 -> 582.2096293 | I67: 0.7187050488 | J67: -163.7726293
A68: ='PRORAČUN 2'!C63 -> VEROPOULOS DOO | B68: =$B$8 -> 1. Sveži proizvodi | C68: ='PRORAČUN 2'!E63 -> 12.215 | D68: ='PRORAČUN 2'!F63 -> 55.95797788 | E68: 0.2182888028 | F68: -43.74297788 | G68: ='KUMULATIV 2'!E63 -> 134.984 | H68: ='KUMULATIV 2'!F63 -> 391.7058451 | I68: 0.3446055291 | J68: -256.7218451
B69: =$B$9 -> 2. Smrznuti proizvodi | C69: ='PRORAČUN 2'!E64 -> 0 | D69: ='PRORAČUN 2'!F64 -> 0.521260239 | E69: 0 | F69: -0.521260239 | G69: ='KUMULATIV 2'!E64 -> 0 | H69: ='KUMULATIV 2'!F64 -> 3.648821673 | I69: 0 | J69: -3.648821673
B70: =$B$10 -> 3. Prerađevine | C70: ='PRORAČUN 2'!E65 -> 92.843 | D70: ='PRORAČUN 2'!F65 -> 16.85131619 | E70: 5.509539966 | F70: 75.99168381 | G70: ='KUMULATIV 2'!E65 -> 251.663 | H70: ='KUMULATIV 2'!F65 -> 117.9592133 | I70: 2.133474724 | J70: 133.7037867
B71: =$B$11 -> Grand Total | C71: ='PRORAČUN 2'!E66 -> 105.058 | D71: ='PRORAČUN 2'!F66 -> 73.3305543 | E71: 1.432663383 | F71: 31.7274457 | G71: ='KUMULATIV 2'!E66 -> 386.647 | H71: ='KUMULATIV 2'!F66 -> 513.3138801 | I71: 0.7532369862 | J71: -126.6668801
A72: ='PRORAČUN 2'!C67 -> JOVANA STR | B72: =$B$8 -> 1. Sveži proizvodi | C72: ='PRORAČUN 2'!E67 -> 46.154 | D72: ='PRORAČUN 2'!F67 -> 53.96770165 | E72: 0.855215223 | F72: -7.813701651 | G72: ='KUMULATIV 2'!E67 -> 250.93 | H72: ='KUMULATIV 2'!F67 -> 377.7739116 | I72: 0.6642332684 | J72: -126.8439116
B73: =$B$9 -> 2. Smrznuti proizvodi | C73: ='PRORAČUN 2'!E68 -> 0 | D73: ='PRORAČUN 2'!F68 -> 0 | E73: =IFERROR(C73/D73,0) -> 0 | F73: =IFERROR(C73-D73,0) -> 0 | G73: ='KUMULATIV 2'!E68 -> 0 | H73: ='KUMULATIV 2'!F68 -> 0 | I73: =IFERROR(G73/H73,0) -> 0 | J73: =IFERROR(G73-H73,0) -> 0
B74: =$B$10 -> 3. Prerađevine | C74: ='PRORAČUN 2'!E69 -> 7.2 | D74: ='PRORAČUN 2'!F69 -> 9.990956781 | E74: 0.7206517011 | F74: -2.790956781 | G74: ='KUMULATIV 2'!E69 -> 48.111 | H74: ='KUMULATIV 2'!F69 -> 69.93669746 | I74: 0.6879221031 | J74: -21.82569746
B75: =$B$11 -> Grand Total | C75: ='PRORAČUN 2'!E70 -> 53.354 | D75: ='PRORAČUN 2'!F70 -> 63.95865843 | E75: 0.8341951083 | F75: -10.60465843 | G75: ='KUMULATIV 2'!E70 -> 299.041 | H75: ='KUMULATIV 2'!F70 -> 447.710609 | I75: 0.6679336919 | J75: -148.669609
A76: ='PRORAČUN 2'!C71 -> SLAVONAC STUR, ISMETA MUJEZINOVIĆA | B76: =$B$8 -> 1. Sveži proizvodi | C76: ='PRORAČUN 2'!E71 -> 0 | D76: ='PRORAČUN 2'!F71 -> 57.19002782 | E76: 0 | F76: -57.19002782 | G76: ='KUMULATIV 2'!E71 -> 0 | H76: ='KUMULATIV 2'!F71 -> 400.3301947 | I76: 0 | J76: -400.3301947
B77: =$B$9 -> 2. Smrznuti proizvodi | C77: ='PRORAČUN 2'!E72 -> 0 | D77: ='PRORAČUN 2'!F72 -> 0 | E77: 0 | F77: 0 | G77: ='KUMULATIV 2'!E72 -> 0 | H77: ='KUMULATIV 2'!F72 -> 0 | I77: 0 | J77: 0
B78: =$B$10 -> 3. Prerađevine | C78: ='PRORAČUN 2'!E73 -> 0 | D78: ='PRORAČUN 2'!F73 -> 0 | E78: 0 | F78: 0 | G78: ='KUMULATIV 2'!E73 -> 0 | H78: ='KUMULATIV 2'!F73 -> 0 | I78: 0 | J78: 0
B79: =$B$11 -> Grand Total | C79: ='PRORAČUN 2'!E74 -> 0 | D79: ='PRORAČUN 2'!F74 -> 57.19002782 | E79: 0 | F79: -57.19002782 | G79: ='KUMULATIV 2'!E74 -> 0 | H79: ='KUMULATIV 2'!F74 -> 400.3301947 | I79: 0 | J79: -400.3301947
A80: ='PRORAČUN 2'!C75 -> MEDIUS DOO | B80: =$B$8 -> 1. Sveži proizvodi | C80: ='PRORAČUN 2'!E75 -> 0 | D80: ='PRORAČUN 2'!F75 -> 8.934015582 | E80: 0 | F80: -8.934015582 | G80: ='KUMULATIV 2'!E75 -> 10.173 | H80: ='KUMULATIV 2'!F75 -> 62.53810908 | I80: 0.1626688135 | J80: -52.36510908
B81: =$B$9 -> 2. Smrznuti proizvodi | C81: ='PRORAČUN 2'!E76 -> 0 | D81: ='PRORAČUN 2'!F76 -> 0 | E81: 0 | F81: 0 | G81: ='KUMULATIV 2'!E76 -> 0 | H81: ='KUMULATIV 2'!F76 -> 0 | I81: 0 | J81: 0
B82: =$B$10 -> 3. Prerađevine | C82: ='PRORAČUN 2'!E77 -> 0 | D82: ='PRORAČUN 2'!F77 -> 46.52140562 | E82: 0 | F82: -46.52140562 | G82: ='KUMULATIV 2'!E77 -> 216.564 | H82: ='KUMULATIV 2'!F77 -> 325.6498393 | I82: 0.6650210559 | J82: -109.0858393
B83: =$B$11 -> Grand Total | C83: ='PRORAČUN 2'!E78 -> 0 | D83: ='PRORAČUN 2'!F78 -> 55.4554212 | E83: 0 | F83: -55.4554212 | G83: ='KUMULATIV 2'!E78 -> 226.737 | H83: ='KUMULATIV 2'!F78 -> 388.1879484 | I83: 0.5840907759 | J83: -161.4509484
A84: ='PRORAČUN 2'!C79 -> FAMOSO | B84: =$B$8 -> 1. Sveži proizvodi | C84: ='PRORAČUN 2'!E79 -> 0 | D84: ='PRORAČUN 2'!F79 -> 50.54283485 | E84: 0 | F84: -50.54283485 | G84: ='KUMULATIV 2'!E79 -> 0 | H84: ='KUMULATIV 2'!F79 -> 353.7998439 | I84: 0 | J84: -353.7998439
B85: =$B$9 -> 2. Smrznuti proizvodi | C85: ='PRORAČUN 2'!E80 -> 0 | D85: ='PRORAČUN 2'!F80 -> 0 | E85: 0 | F85: 0 | G85: ='KUMULATIV 2'!E80 -> 0 | H85: ='KUMULATIV 2'!F80 -> 0 | I85: 0 | J85: 0
B86: =$B$10 -> 3. Prerađevine | C86: ='PRORAČUN 2'!E81 -> 0 | D86: ='PRORAČUN 2'!F81 -> 0 | E86: 0 | F86: 0 | G86: ='KUMULATIV 2'!E81 -> 0 | H86: ='KUMULATIV 2'!F81 -> 0 | I86: 0 | J86: 0
B87: =$B$11 -> Grand Total | C87: ='PRORAČUN 2'!E82 -> 0 | D87: ='PRORAČUN 2'!F82 -> 50.54283485 | E87: 0 | F87: -50.54283485 | G87: ='KUMULATIV 2'!E82 -> 0 | H87: ='KUMULATIV 2'!F82 -> 353.7998439 | I87: 0 | J87: -353.7998439

Sheet RAZRADA KUPCI LA
A1: ='RAZRADA UKUPNO'!A1 -> VINDIJA | B1: ='RAZRADA UKUPNO'!B1:I1 -> Dnevna prodaja od 08.08. i kumulativ dnevnog plana i prodaje za 01.- 08.08.2013
D3: ='RAZRADA UKUPNO'!D3:E3 -> Izvještaj za | G3: ='RAZRADA UKUPNO'!G3:H3 -> Kolovoz/Avgust
D4: ='RAZRADA UKUPNO'!D4 -> 6 | E4: ='RAZRADA UKUPNO'!E4 -> dana + | G4: ='RAZRADA UKUPNO'!G4 -> 22 | H4: ='RAZRADA UKUPNO'!H4 -> dana +
A5: KC LAJKOVAC | D5: ='RAZRADA UKUPNO'!D5 -> 1 | E5: ='RAZRADA UKUPNO'!E5 -> subota | G5: ='RAZRADA UKUPNO'!G5 -> 5 | H5: ='RAZRADA UKUPNO'!H5 -> subota
A7: KUPAC | B7: GRUPA PROIZVODA | C7: 1:Dnevna prodaja | D7: 2:Dnevni plan | E7: IND. prodaja / plan | F7: Razlika 1-2 | G7: 3: Kum. prodaje 2013 | H7: 4: Kum. plana 2013 | I7: IND. kum. prod 2013 / kum. plana 2013 | J7: Razlika 3-4
A8: ='PRORAČUN 2'!C87 -> 0 | B8: 1. Sveži proizvodi | C8: ='PRORAČUN 2'!E87 -> 5830.484 | D8: ='PRORAČUN 2'!F87 -> 6911.79909 | E8: =IFERROR(C8/D8,0) -> 0.8435551908 | F8: =IFERROR(C8-D8,0) -> -1081.31509 | G8: ='KUMULATIV 2'!E87 -> 2022.194 | H8: ='KUMULATIV 2'!F87 -> 2970.34809 | I8: =IFERROR(G8/H8,0) -> 0.6807936103 | J8: =IFERROR(G8-H8,0) -> -948.1540898
B9: 2. Smrznuti proizvodi | C9: ='PRORAČUN 2'!E88 -> 455.905 | D9: ='PRORAČUN 2'!F88 -> 302.0820999 | E9: =IFERROR(C9/D9,0) -> 1.509208921 | F9: =IFERROR(C9-D9,0) -> 153.8229001 | G9: ='KUMULATIV 2'!E88 -> 11.108 | H9: ='KUMULATIV 2'!F88 -> 35.86607664 | I9: =IFERROR(G9/H9,0) -> 0.3097076971 | J9: =IFERROR(G9-H9,0) -> -24.75807664
B10: 3. Prerađevine | C10: ='PRORAČUN 2'!E89 -> 964.581 | D10: ='PRORAČUN 2'!F89 -> 970.307909 | E10: 0.9940978436 | F10: -5.726908994 | G10: ='KUMULATIV 2'!E89 -> 389.999 | H10: ='KUMULATIV 2'!F89 -> 345.14261 | I10: 1.129964799 | J10: 44.85639002
B11: Grand Total | C11: ='PRORAČUN 2'!E90 -> 7250.97 | D11: ='PRORAČUN 2'!F90 -> 8184.189099 | E11: 0.8859729306 | F11: -933.2190987 | G11: ='KUMULATIV 2'!E90 -> 2423.301 | H11: ='KUMULATIV 2'!F90 -> 3351.356776 | I11: 0.7230805795 | J11: -928.0557764
A12: ='PRORAČUN 2'!C91 -> 0 | B12: =$B$8 -> 1. Sveži proizvodi | C12: ='PRORAČUN 2'!E91 -> 0 | D12: ='PRORAČUN 2'!F91 -> 0 | E12: 0 | F12: 0 | G12: ='KUMULATIV 2'!E91 -> 2605.372 | H12: ='KUMULATIV 2'!F91 -> 3215.660539 | I12: 0.8102136305 | J12: -610.2885393
B13: =$B$9 -> 2. Smrznuti proizvodi | C13: ='PRORAČUN 2'!E92 -> 0 | D13: ='PRORAČUN 2'!F92 -> 0 | E13: 0 | F13: 0 | G13: ='KUMULATIV 2'!E92 -> 0 | H13: ='KUMULATIV 2'!F92 -> 0 | I13: 0 | J13: 0
B14: =$B$10 -> 3. Prerađevine | C14: ='PRORAČUN 2'!E93 -> 0 | D14: ='PRORAČUN 2'!F93 -> 0 | E14: 0 | F14: 0 | G14: ='KUMULATIV 2'!E93 -> 238.653 | H14: ='KUMULATIV 2'!F93 -> 10.35887982 | I14: 23.0384949 | J14: 228.2941202
B15: =$B$11 -> Grand Total | C15: ='PRORAČUN 2'!E94 -> 0 | D15: ='PRORAČUN 2'!F94 -> 0 | E15: 0 | F15: 0 | G15: ='KUMULATIV 2'!E94 -> 2844.025 | H15: ='KUMULATIV 2'!F94 -> 3226.019419 | I15: 0.8815895475 | J15: -381.9944191
A16: ='PRORAČUN 2'!C95 -> 0 | B16: =$B$8 -> 1. Sveži proizvodi | C16: ='PRORAČUN 2'!E95 -> 0 | D16: ='PRORAČUN 2'!F95 -> 0 | E16: 0 | F16: 0 | G16: ='KUMULATIV 2'!E95 -> 652.574 | H16: ='KUMULATIV 2'!F95 -> 1257.383005 | I16: 0.5189938131 | J16: -604.8090045
B17: =$B$9 -> 2. Smrznuti proizvodi | C17: ='PRORAČUN 2'!E96 -> 0 | D17: ='PRORAČUN 2'!F96 -> 0 | E17: 0 | F17: 0 | G17: ='KUMULATIV 2'!E96 -> 0 | H17: ='KUMULATIV 2'!F96 -> 0 | I17: 0 | J17: 0
B18: =$B$10 -> 3. Prerađevine | C18: ='PRORAČUN 2'!E97 -> 0 | D18: ='PRORAČUN 2'!F97 -> 0 | E18: 0 | F18: 0 | G18: ='KUMULATIV 2'!E97 -> 717.711 | H18: ='KUMULATIV 2'!F97 -> 1189.398221 | I18: 0.6034236365 | J18: -471.6872215
B19: =$B$11 -> Grand Total | C19: ='PRORAČUN 2'!E98 -> 0 | D19: ='PRORAČUN 2'!F98 -> 0 | E19: 0 | F19: 0 | G19: ='KUMULATIV 2'!E98 -> 1370.285 | H19: ='KUMULATIV 2'!F98 -> 2446.781226 | I19: 0.5600357668 | J19: -1076.496226
A20: ='PRORAČUN 2'!C99 -> 0 | B20: =$B$8 -> 1. Sveži proizvodi | C20: ='PRORAČUN 2'!E99 -> 0 | D20: ='PRORAČUN 2'!F99 -> 0 | E20: 0 | F20: 0 | G20: ='KUMULATIV 2'!E99 -> 1041.574 | H20: ='KUMULATIV 2'!F99 -> 1582.623117 | I20: 0.6581314205 | J20: -541.0491169
B21: =$B$9 -> 2. Smrznuti proizvodi | C21: ='PRORAČUN 2'!E100 -> 0 | D21: ='PRORAČUN 2'!F100 -> 0 | E21: 0 | F21: 0 | G21: ='KUMULATIV 2'!E100 -> 91.924 | H21: ='KUMULATIV 2'!F100 -> 376.5616377 | I21: 0.244114086 | J21: -284.6376377
B22: =$B$10 -> 3. Prerađevine | C22: ='PRORAČUN 2'!E101 -> 0 | D22: ='PRORAČUN 2'!F101 -> 0 | E22: 0 | F22: 0 | G22: ='KUMULATIV 2'!E101 -> 390.85 | H22: ='KUMULATIV 2'!F101 -> 322.9426218 | I22: 1.210276915 | J22: 67.90737816
B23: =$B$11 -> Grand Total | C23: ='PRORAČUN 2'!E102 -> 0 | D23: ='PRORAČUN 2'!F102 -> 0 | E23: 0 | F23: 0 | G23: ='KUMULATIV 2'!E102 -> 1524.348 | H23: ='KUMULATIV 2'!F102 -> 2282.127376 | I23: 0.6679504465 | J23: -757.7793764
A24: ='PRORAČUN 2'!C103 -> 0 | B24: =$B$8 -> 1. Sveži proizvodi | C24: ='PRORAČUN 2'!E103 -> 0 | D24: ='PRORAČUN 2'!F103 -> 0 | E24: 0 | F24: 0 | G24: ='KUMULATIV 2'!E103 -> 787.493 | H24: ='KUMULATIV 2'!F103 -> 1436.634151 | I24: 0.5481513851 | J24: -649.1411514
B25: =$B$9 -> 2. Smrznuti proizvodi | C25: ='PRORAČUN 2'!E104 -> 0 | D25: ='PRORAČUN 2'!F104 -> 0 | E25: 0 | F25: 0 | G25: ='KUMULATIV 2'!E104 -> 0 | H25: ='KUMULATIV 2'!F104 -> 27.54480665 | I25: 0 | J25: -27.54480665
B26: =$B$10 -> 3. Prerađevine | C26: ='PRORAČUN 2'!E105 -> 0 | D26: ='PRORAČUN 2'!F105 -> 0 | E26: 0 | F26: 0 | G26: ='KUMULATIV 2'!E105 -> 147.312 | H26: ='KUMULATIV 2'!F105 -> 84.26021889 | I26: 1.74829833 | J26: 63.05178111
B27: =$B$11 -> Grand Total | C27: ='PRORAČUN 2'!E106 -> 0 | D27: ='PRORAČUN 2'!F106 -> 0 | E27: 0 | F27: 0 | G27: ='KUMULATIV 2'!E106 -> 934.805 | H27: ='KUMULATIV 2'!F106 -> 1548.439177 | I27: 0.6037079234 | J27: -613.6341769
A28: ='PRORAČUN 2'!C107 -> 0 | B28: =$B$8 -> 1. Sveži proizvodi | C28: ='PRORAČUN 2'!E107 -> 0 | D28: ='PRORAČUN 2'!F107 -> 0 | E28: 0 | F28: 0 | G28: ='KUMULATIV 2'!E107 -> 414.009 | H28: ='KUMULATIV 2'!F107 -> 788.2009867 | I28: 0.52525816 | J28: -374.1919867
B29: =$B$9 -> 2. Smrznuti proizvodi | C29: ='PRORAČUN 2'!E108 -> 0 | D29: ='PRORAČUN 2'!F108 -> 0 | E29: 0 | F29: 0 | G29: ='KUMULATIV 2'!E108 -> 108.146 | H29: ='KUMULATIV 2'!F108 -> 304.8233054 | I29: 0.3547825841 | J29: -196.6773054
B30: =$B$10 -> 3. Prerađevine | C30: ='PRORAČUN 2'!E109 -> 0 | D30: ='PRORAČUN 2'!F109 -> 0 | E30: 0 | F30: 0 | G30: ='KUMULATIV 2'!E109 -> 349.32 | H30: ='KUMULATIV 2'!F109 -> 361.0233179 | I30: 0.9675829306 | J30: -11.70331795
B31: =$B$11 -> Grand Total | C31: ='PRORAČUN 2'!E110 -> 0 | D31: ='PRORAČUN 2'!F110 -> 0 | E31: 0 | F31: 0 | G31: ='KUMULATIV 2'!E110 -> 871.475 | H31: ='KUMULATIV 2'!F110 -> 1454.04761 | I31: 0.5993441989 | J31: -582.5726101
A32: ='PRORAČUN 2'!C111 -> 0 | B32: =$B$8 -> 1. Sveži proizvodi | C32: ='PRORAČUN 2'!E111 -> 0 | D32: ='PRORAČUN 2'!F111 -> 0 | E32: 0 | F32: 0 | G32: ='KUMULATIV 2'!E111 -> 0 | H32: ='KUMULATIV 2'!F111 -> 957.1183332 | I32: 0 | J32: -957.1183332
B33: =$B$9 -> 2. Smrznuti proizvodi | C33: ='PRORAČUN 2'!E112 -> 0 | D33: ='PRORAČUN 2'!F112 -> 0 | E33: 0 | F33: 0 | G33: ='KUMULATIV 2'!E112 -> 0 | H33: ='KUMULATIV 2'!F112 -> 104.8125999 | I33: 0 | J33: -104.8125999
B34: =$B$10 -> 3. Prerađevine | C34: ='PRORAČUN 2'!E113 -> 0 | D34: ='PRORAČUN 2'!F113 -> 0 | E34: 0 | F34: 0 | G34: ='KUMULATIV 2'!E113 -> 0 | H34: ='KUMULATIV 2'!F113 -> 273.8655205 | I34: 0 | J34: -273.8655205
B35: =$B$11 -> Grand Total | C35: ='PRORAČUN 2'!E114 -> 0 | D35: ='PRORAČUN 2'!F114 -> 0 | E35: 0 | F35: 0 | G35: ='KUMULATIV 2'!E114 -> 0 | H35: ='KUMULATIV 2'!F114 -> 1335.796454 | I35: 0 | J35: -1335.796454
A36: ='PRORAČUN 2'!C115 -> 0 | B36: =$B$8 -> 1. Sveži proizvodi | C36: ='PRORAČUN 2'!E115 -> 0 | D36: ='PRORAČUN 2'!F115 -> 0 | E36: 0 | F36: 0 | G36: ='KUMULATIV 2'!E115 -> 73.782 | H36: ='KUMULATIV 2'!F115 -> 802.7361307 | I36: 0.09191314203 | J36: -728.9541307
B37: =$B$9 -> 2. Smrznuti proizvodi | C37: ='PRORAČUN 2'!E116 -> 0 | D37: ='PRORAČUN 2'!F116 -> 0 | E37: 0 | F37: 0 | G37: ='KUMULATIV 2'!E116 -> 0 | H37: ='KUMULATIV 2'!F116 -> 3.3784487 | I37: 0 | J37: -3.3784487
B38: =$B$10 -> 3. Prerađevine | C38: ='PRORAČUN 2'!E117 -> 0 | D38: ='PRORAČUN 2'!F117 -> 0 | E38: 0 | F38: 0 | G38: ='KUMULATIV 2'!E117 -> 35.4 | H38: ='KUMULATIV 2'!F117 -> 47.8125911 | I38: 0.7403907462 | J38: -12.4125911
B39: =$B$11 -> Grand Total | C39: ='PRORAČUN 2'!E118 -> 0 | D39: ='PRORAČUN 2'!F118 -> 0 | E39: 0 | F39: 0 | G39: ='KUMULATIV 2'!E118 -> 109.182 | H39: ='KUMULATIV 2'!F118 -> 853.9271705 | I39: 0.127858679 | J39: -744.7451705
A40: ='PRORAČUN 2'!C119 -> 0 | B40: =$B$8 -> 1. Sveži proizvodi | C40: ='PRORAČUN 2'!E119 -> 0 | D40: ='PRORAČUN 2'!F119 -> 0 | E40: 0 | F40: 0 | G40: ='KUMULATIV 2'!E119 -> 283.636 | H40: ='KUMULATIV 2'!F119 -> 644.6817963 | I40: 0.4399627873 | J40: -361.0457963
B41: =$B$9 -> 2. Smrznuti proizvodi | C41: ='PRORAČUN 2'!E120 -> 0 | D41: ='PRORAČUN 2'!F120 -> 0 | E41: 0 | F41: 0 | G41: ='KUMULATIV 2'!E120 -> 0 | H41: ='KUMULATIV 2'!F120 -> 0 | I41: 0 | J41: 0
B42: =$B$10 -> 3. Prerađevine | C42: ='PRORAČUN 2'!E121 -> 0 | D42: ='PRORAČUN 2'!F121 -> 0 | E42: 0 | F42: 0 | G42: ='KUMULATIV 2'!E121 -> 0 | H42: ='KUMULATIV 2'!F121 -> 2.180816805 | I42: 0 | J42: -2.180816805
B43: =$B$11 -> Grand Total | C43: ='PRORAČUN 2'!E122 -> 0 | D43: ='PRORAČUN 2'!F122 -> 0 | E43: 0 | F43: 0 | G43: ='KUMULATIV 2'!E122 -> 283.636 | H43: ='KUMULATIV 2'!F122 -> 646.8626131 | I43: 0.4384795075 | J43: -363.2266131
A44: ='PRORAČUN 2'!C123 -> 0 | B44: =$B$8 -> 1. Sveži proizvodi | C44: ='PRORAČUN 2'!E123 -> 0 | D44: ='PRORAČUN 2'!F123 -> 0 | E44: 0 | F44: 0 | G44: ='KUMULATIV 2'!E123 -> 97.597 | H44: ='KUMULATIV 2'!F123 -> 502.2133961 | I44: 0.194333725 | J44: -404.6163961
B45: =$B$9 -> 2. Smrznuti proizvodi | C45: ='PRORAČUN 2'!E124 -> 0 | D45: ='PRORAČUN 2'!F124 -> 0 | E45: 0 | F45: 0 | G45: ='KUMULATIV 2'!E124 -> 0 | H45: ='KUMULATIV 2'!F124 -> 0 | I45: 0 | J45: 0
B46: =$B$10 -> 3. Prerađevine | C46: ='PRORAČUN 2'!E125 -> 0 | D46: ='PRORAČUN 2'!F125 -> 0 | E46: 0 | F46: 0 | G46: ='KUMULATIV 2'!E125 -> 70.705 | H46: ='KUMULATIV 2'!F125 -> 117.0655191 | I46: 0.6039780161 | J46: -46.36051914
B47: =$B$11 -> Grand Total | C47: ='PRORAČUN 2'!E126 -> 0 | D47: ='PRORAČUN 2'!F126 -> 0 | E47: 0 | F47: 0 | G47: ='KUMULATIV 2'!E126 -> 168.302 | H47: ='KUMULATIV 2'!F126 -> 619.2789152 | I47: 0.2717709192 | J47: -450.9769152
A48: ='PRORAČUN 2'!C127 -> 0 | B48: =$B$8 -> 1. Sveži proizvodi | C48: ='PRORAČUN 2'!E127 -> 0 | D48: ='PRORAČUN 2'!F127 -> 0 | E48: 0 | F48: 0 | G48: ='KUMULATIV 2'!E127 -> 374.729 | H48: ='KUMULATIV 2'!F127 -> 440.9578867 | I48: 0.8498067759 | J48: -66.2288867
B49: =$B$9 -> 2. Smrznuti proizvodi | C49: ='PRORAČUN 2'!E128 -> 0 | D49: ='PRORAČUN 2'!F128 -> 0 | E49: 0 | F49: 0 | G49: ='KUMULATIV 2'!E128 -> 0 | H49: ='KUMULATIV 2'!F128 -> 0 | I49: 0 | J49: 0
B50: =$B$10 -> 3. Prerađevine | C50: ='PRORAČUN 2'!E129 -> 0 | D50: ='PRORAČUN 2'!F129 -> 0 | E50: 0 | F50: 0 | G50: ='KUMULATIV 2'!E129 -> 60.5 | H50: ='KUMULATIV 2'!F129 -> 174.6972379 | I50: 0.3463134319 | J50: -114.1972379
B51: =$B$11 -> Grand Total | C51: ='PRORAČUN 2'!E130 -> 0 | D51: ='PRORAČUN 2'!F130 -> 0 | E51: 0 | F51: 0 | G51: ='KUMULATIV 2'!E130 -> 435.229 | H51: ='KUMULATIV 2'!F130 -> 615.6551246 | I51: 0.7069363717 | J51: -180.4261246
A52: ='PRORAČUN 2'!C131 -> 0 | B52: =$B$8 -> 1. Sveži proizvodi | C52: ='PRORAČUN 2'!E131 -> 0 | D52: ='PRORAČUN 2'!F131 -> 0 | E52: 0 | F52: 0 | G52: ='KUMULATIV 2'!E131 -> 266.354 | H52: ='KUMULATIV 2'!F131 -> 407.6419118 | I52: 0.6534019007 | J52: -141.2879118
B53: =$B$9 -> 2. Smrznuti proizvodi | C53: ='PRORAČUN 2'!E132 -> 0 | D53: ='PRORAČUN 2'!F132 -> 0 | E53: 0 | F53: 0 | G53: ='KUMULATIV 2'!E132 -> 0 | H53: ='KUMULATIV 2'!F132 -> 64.00988098 | I53: 0 | J53: -64.00988098
B54: =$B$10 -> 3. Prerađevine | C54: ='PRORAČUN 2'!E133 -> 0 | D54: ='PRORAČUN 2'!F133 -> 0 | E54: 0 | F54: 0 | G54: ='KUMULATIV 2'!E133 -> 17.25 | H54: ='KUMULATIV 2'!F133 -> 25.53373009 | I54: 0.6755769697 | J54: -8.283730089
B55: =$B$11 -> Grand Total | C55: ='PRORAČUN 2'!E134 -> 0 | D55: ='PRORAČUN 2'!F134 -> 0 | E55: 0 | F55: 0 | G55: ='KUMULATIV 2'!E134 -> 283.604 | H55: ='KUMULATIV 2'!F134 -> 497.1855229 | I55: 0.5704188616 | J55: -213.5815229
A56: ='PRORAČUN 2'!C135 -> 0 | B56: =$B$8 -> 1. Sveži proizvodi | C56: ='PRORAČUN 2'!E135 -> 0 | D56: ='PRORAČUN 2'!F135 -> 0 | E56: 0 | F56: 0 | G56: ='KUMULATIV 2'!E135 -> 24.037 | H56: ='KUMULATIV 2'!F135 -> 419.1689825 | I56: 0.05734441479 | J56: -395.1319825
B57: =$B$9 -> 2. Smrznuti proizvodi | C57: ='PRORAČUN 2'!E136 -> 0 | D57: ='PRORAČUN 2'!F136 -> 0 | E57: 0 | F57: 0 | G57: ='KUMULATIV 2'!E136 -> 0 | H57: ='KUMULATIV 2'!F136 -> 0 | I57: 0 | J57: 0
B58: =$B$10 -> 3. Prerađevine | C58: ='PRORAČUN 2'!E137 -> 0 | D58: ='PRORAČUN 2'!F137 -> 0 | E58: 0 | F58: 0 | G58: ='KUMULATIV 2'!E137 -> 0 | H58: ='KUMULATIV 2'!F137 -> 25.24767962 | I58: 0 | J58: -25.24767962
B59: =$B$11 -> Grand Total | C59: ='PRORAČUN 2'!E138 -> 0 | D59: ='PRORAČUN 2'!F138 -> 0 | E59: 0 | F59: 0 | G59: ='KUMULATIV 2'!E138 -> 24.037 | H59: ='KUMULATIV 2'!F138 -> 444.4166622 | I59: 0.05408663096 | J59: -420.3796622
A60: ='PRORAČUN 2'!C139 -> 0 | B60: =$B$8 -> 1. Sveži proizvodi | C60: ='PRORAČUN 2'!E139 -> 0 | D60: ='PRORAČUN 2'!F139 -> 0 | E60: 0 | F60: 0 | G60: ='KUMULATIV 2'!E139 -> 99.88 | H60: ='KUMULATIV 2'!F139 -> 262.3497173 | I60: 0.3807131985 | J60: -162.4697173
B61: =$B$9 -> 2. Smrznuti proizvodi | C61: ='PRORAČUN 2'!E140 -> 0 | D61: ='PRORAČUN 2'!F140 -> 0 | E61: 0 | F61: 0 | G61: ='KUMULATIV 2'!E140 -> 24.318 | H61: ='KUMULATIV 2'!F140 -> 73.90315641 | I61: 0.3290522514 | J61: -49.58515641
B62: =$B$10 -> 3. Prerađevine | C62: ='PRORAČUN 2'!E141 -> 0 | D62: ='PRORAČUN 2'!F141 -> 0 | E62: 0 | F62: 0 | G62: ='KUMULATIV 2'!E141 -> 140.147 | H62: ='KUMULATIV 2'!F141 -> 95.11378065 | I62: 1.473466821 | J62: 45.03321935
B63: =$B$11 -> Grand Total | C63: ='PRORAČUN 2'!E142 -> 0 | D63: ='PRORAČUN 2'!F142 -> 0 | E63: 0 | F63: 0 | G63: ='KUMULATIV 2'!E142 -> 264.345 | H63: ='KUMULATIV 2'!F142 -> 431.3666544 | I63: 0.6128081466 | J63: -167.0216544
A64: ='PRORAČUN 2'!C143 -> 0 | B64: =$B$8 -> 1. Sveži proizvodi | C64: ='PRORAČUN 2'!E143 -> 0 | D64: ='PRORAČUN 2'!F143 -> 0 | E64: 0 | F64: 0 | G64: ='KUMULATIV 2'!E143 -> 0 | H64: ='KUMULATIV 2'!F143 -> 137.8232604 | I64: 0 | J64: -137.8232604
B65: =$B$9 -> 2. Smrznuti proizvodi | C65: ='PRORAČUN 2'!E144 -> 0 | D65: ='PRORAČUN 2'!F144 -> 0 | E65: 0 | F65: 0 | G65: ='KUMULATIV 2'!E144 -> 0 | H65: ='KUMULATIV 2'!F144 -> 67.73471608 | I65: 0 | J65: -67.73471608
B66: =$B$10 -> 3. Prerađevine | C66: ='PRORAČUN 2'!E145 -> 0 | D66: ='PRORAČUN 2'!F145 -> 0 | E66: 0 | F66: 0 | G66: ='KUMULATIV 2'!E145 -> 0 | H66: ='KUMULATIV 2'!F145 -> 223.8517583 | I66: 0 | J66: -223.8517583
B67: =$B$11 -> Grand Total | C67: ='PRORAČUN 2'!E146 -> 0 | D67: ='PRORAČUN 2'!F146 -> 0 | E67: 0 | F67: 0 | G67: ='KUMULATIV 2'!E146 -> 0 | H67: ='KUMULATIV 2'!F146 -> 429.4097348 | I67: 0 | J67: -429.4097348
A68: ='PRORAČUN 2'!C147 -> 0 | B68: =$B$8 -> 1. Sveži proizvodi | C68: ='PRORAČUN 2'!E147 -> 0 | D68: ='PRORAČUN 2'!F147 -> 0 | E68: 0 | F68: 0 | G68: ='KUMULATIV 2'!E147 -> 0 | H68: ='KUMULATIV 2'!F147 -> 412.3899135 | I68: 0 | J68: -412.3899135
B69: =$B$9 -> 2. Smrznuti proizvodi | C69: ='PRORAČUN 2'!E148 -> 0 | D69: ='PRORAČUN 2'!F148 -> 0 | E69: 0 | F69: 0 | G69: ='KUMULATIV 2'!E148 -> 0 | H69: ='KUMULATIV 2'!F148 -> 8.950435636 | I69: 0 | J69: -8.950435636
B70: =$B$10 -> 3. Prerađevine | C70: ='PRORAČUN 2'!E149 -> 0 | D70: ='PRORAČUN 2'!F149 -> 0 | E70: 0 | F70: 0 | G70: ='KUMULATIV 2'!E149 -> 0 | H70: ='KUMULATIV 2'!F149 -> 4.198072349 | I70: 0 | J70: -4.198072349
B71: =$B$11 -> Grand Total | C71: ='PRORAČUN 2'!E150 -> 0 | D71: ='PRORAČUN 2'!F150 -> 0 | E71: 0 | F71: 0 | G71: ='KUMULATIV 2'!E150 -> 0 | H71: ='KUMULATIV 2'!F150 -> 425.5384215 | I71: 0 | J71: -425.5384215
A72: ='PRORAČUN 2'!C151 -> 0 | B72: =$B$8 -> 1. Sveži proizvodi | C72: ='PRORAČUN 2'!E151 -> 0 | D72: ='PRORAČUN 2'!F151 -> 0 | E72: 0 | F72: 0 | G72: ='KUMULATIV 2'!E151 -> 217.595 | H72: ='KUMULATIV 2'!F151 -> 239.3308325 | I72: 0.9091808094 | J72: -21.73583249
B73: =$B$9 -> 2. Smrznuti proizvodi | C73: ='PRORAČUN 2'!E152 -> 0 | D73: ='PRORAČUN 2'!F152 -> 0 | E73: =IFERROR(C73/D73,0) -> 0 | F73: =IFERROR(C73-D73,0) -> 0 | G73: ='KUMULATIV 2'!E152 -> 123.068 | H73: ='KUMULATIV 2'!F152 -> 146.9579751 | I73: =IFERROR(G73/H73,0) -> 0.8374366885 | J73: =IFERROR(G73-H73,0) -> -23.88997509
B74: =$B$10 -> 3. Prerađevine | C74: ='PRORAČUN 2'!E153 -> 0 | D74: ='PRORAČUN 2'!F153 -> 0 | E74: 0 | F74: 0 | G74: ='KUMULATIV 2'!E153 -> 0 | H74: ='KUMULATIV 2'!F153 -> 0 | I74: 0 | J74: 0
B75: =$B$11 -> Grand Total | C75: ='PRORAČUN 2'!E154 -> 0 | D75: ='PRORAČUN 2'!F154 -> 0 | E75: 0 | F75: 0 | G75: ='KUMULATIV 2'!E154 -> 340.663 | H75: ='KUMULATIV 2'!F154 -> 386.2888076 | I75: 0.881886799 | J75: -45.62580757
A76: ='PRORAČUN 2'!C155 -> 0 | B76: =$B$8 -> 1. Sveži proizvodi | C76: ='PRORAČUN 2'!E155 -> 0 | D76: ='PRORAČUN 2'!F155 -> 0 | E76: 0 | F76: 0 | G76: ='KUMULATIV 2'!E155 -> 0 | H76: ='KUMULATIV 2'!F155 -> 276.4014469 | I76: 0 | J76: -276.4014469
B77: =$B$9 -> 2. Smrznuti proizvodi | C77: ='PRORAČUN 2'!E156 -> 0 | D77: ='PRORAČUN 2'!F156 -> 0 | E77: 0 | F77: 0 | G77: ='KUMULATIV 2'!E156 -> 0 | H77: ='KUMULATIV 2'!F156 -> 0 | I77: 0 | J77: 0
B78: =$B$10 -> 3. Prerađevine | C78: ='PRORAČUN 2'!E157 -> 0 | D78: ='PRORAČUN 2'!F157 -> 0 | E78: 0 | F78: 0 | G78: ='KUMULATIV 2'!E157 -> 0 | H78: ='KUMULATIV 2'!F157 -> 85.67048042 | I78: 0 | J78: -85.67048042
B79: =$B$11 -> Grand Total | C79: ='PRORAČUN 2'!E158 -> 0 | D79: ='PRORAČUN 2'!F158 -> 0 | E79: 0 | F79: 0 | G79: ='KUMULATIV 2'!E158 -> 0 | H79: ='KUMULATIV 2'!F158 -> 362.0719274 | I79: 0 | J79: -362.0719274
A80: ='PRORAČUN 2'!C159 -> 0 | B80: =$B$8 -> 1. Sveži proizvodi | C80: ='PRORAČUN 2'!E159 -> 0 | D80: ='PRORAČUN 2'!F159 -> 0 | E80: 0 | F80: 0 | G80: ='KUMULATIV 2'!E159 -> 18.712 | H80: ='KUMULATIV 2'!F159 -> 200.2349662 | I80: 0.09345021181 | J80: -181.5229662
B81: =$B$9 -> 2. Smrznuti proizvodi | C81: ='PRORAČUN 2'!E160 -> 0 | D81: ='PRORAČUN 2'!F160 -> 0 | E81: 0 | F81: 0 | G81: ='KUMULATIV 2'!E160 -> 13.376 | H81: ='KUMULATIV 2'!F160 -> 42.01997819 | I81: 0.3183247725 | J81: -28.64397819
B82: =$B$10 -> 3. Prerađevine | C82: ='PRORAČUN 2'!E161 -> 0 | D82: ='PRORAČUN 2'!F161 -> 0 | E82: 0 | F82: 0 | G82: ='KUMULATIV 2'!E161 -> 65.194 | H82: ='KUMULATIV 2'!F161 -> 95.56302892 | I82: 0.6822094354 | J82: -30.36902892
B83: =$B$11 -> Grand Total | C83: ='PRORAČUN 2'!E162 -> 0 | D83: ='PRORAČUN 2'!F162 -> 0 | E83: 0 | F83: 0 | G83: ='KUMULATIV 2'!E162 -> 97.282 | H83: ='KUMULATIV 2'!F162 -> 337.8179733 | I83: 0.2879716525 | J83: -240.5359733
A84: ='PRORAČUN 2'!C163 -> 0 | B84: =$B$8 -> 1. Sveži proizvodi | C84: ='PRORAČUN 2'!E163 -> 0 | D84: ='PRORAČUN 2'!F163 -> 0 | E84: 0 | F84: 0 | G84: ='KUMULATIV 2'!E163 -> 6.152 | H84: ='KUMULATIV 2'!F163 -> 3.804434916 | I84: 1.617060125 | J84: 2.347565084
B85: =$B$9 -> 2. Smrznuti proizvodi | C85: ='PRORAČUN 2'!E164 -> 0 | D85: ='PRORAČUN 2'!F164 -> 0 | E85: 0 | F85: 0 | G85: ='KUMULATIV 2'!E164 -> 149.04 | H85: ='KUMULATIV 2'!F164 -> 276.5693698 | I85: 0.5388883089 | J85: -127.5293698
B86: =$B$10 -> 3. Prerađevine | C86: ='PRORAČUN 2'!E165 -> 0 | D86: ='PRORAČUN 2'!F165 -> 0 | E86: 0 | F86: 0 | G86: ='KUMULATIV 2'!E165 -> 42 | H86: ='KUMULATIV 2'!F165 -> 43.77989736 | I86: 0.9593444146 | J86: -1.779897356
B87: =$B$11 -> Grand Total | C87: ='PRORAČUN 2'!E166 -> 0 | D87: ='PRORAČUN 2'!F166 -> 0 | E87: 0 | F87: 0 | G87: ='KUMULATIV 2'!E166 -> 197.192 | H87: ='KUMULATIV 2'!F166 -> 324.1537021 | I87: 0.6083286994 | J87: -126.9617021

Sheet RAZRADA KUPCI NI
A1: ='RAZRADA UKUPNO'!A1 -> VINDIJA | B1: ='RAZRADA UKUPNO'!B1:I1 -> Dnevna prodaja od 08.08. i kumulativ dnevnog plana i prodaje za 01.- 08.08.2013
D3: ='RAZRADA UKUPNO'!D3:E3 -> Izvještaj za | G3: ='RAZRADA UKUPNO'!G3:H3 -> Kolovoz/Avgust
D4: ='RAZRADA UKUPNO'!D4 -> 6 | E4: ='RAZRADA UKUPNO'!E4 -> dana + | G4: ='RAZRADA UKUPNO'!G4 -> 22 | H4: ='RAZRADA UKUPNO'!H4 -> dana +
A5: KC NIŠ | D5: ='RAZRADA UKUPNO'!D5 -> 1 | E5: ='RAZRADA UKUPNO'!E5 -> subota | G5: ='RAZRADA UKUPNO'!G5 -> 5 | H5: ='RAZRADA UKUPNO'!H5 -> subota
A7: KUPAC | B7: GRUPA PROIZVODA | C7: 1:Dnevna prodaja | D7: 2:Dnevni plan | E7: IND. prodaja / plan | F7: Razlika 1-2 | G7: 3: Kum. prodaje 2013 | H7: 4: Kum. plana 2013 | I7: IND. kum. prod 2013 / kum. plana 2013 | J7: Razlika 3-4
A8: ='PRORAČUN 2'!C171 -> 0 | B8: 1. Sveži proizvodi | C8: ='PRORAČUN 2'!E171 -> 0 | D8: ='PRORAČUN 2'!F171 -> 0 | E8: =IFERROR(C8/D8,0) -> 0 | F8: =IFERROR(C8-D8,0) -> 0 | G8: ='KUMULATIV 2'!E171 -> 183.41 | H8: ='KUMULATIV 2'!F171 -> 5312.867938 | I8: =IFERROR(G8/H8,0) -> 0.03452184435 | J8: =IFERROR(G8-H8,0) -> -5129.457938
B9: 2. Smrznuti proizvodi | C9: ='PRORAČUN 2'!E172 -> 0 | D9: ='PRORAČUN 2'!F172 -> 0 | E9: =IFERROR(C9/D9,0) -> 0 | F9: =IFERROR(C9-D9,0) -> 0 | G9: ='KUMULATIV 2'!E172 -> 60 | H9: ='KUMULATIV 2'!F172 -> 150.373902 | I9: =IFERROR(G9/H9,0) -> 0.3990054071 | J9: =IFERROR(G9-H9,0) -> -90.37390202
B10: 3. Prerađevine | C10: ='PRORAČUN 2'!E173 -> 0 | D10: ='PRORAČUN 2'!F173 -> 0 | E10: 0 | F10: 0 | G10: ='KUMULATIV 2'!E173 -> 474.298 | H10: ='KUMULATIV 2'!F173 -> 2490.285166 | I10: 0.1904593123 | J10: -2015.987166
B11: Grand Total | C11: ='PRORAČUN 2'!E174 -> 0 | D11: ='PRORAČUN 2'!F174 -> 0 | E11: 0 | F11: 0 | G11: ='KUMULATIV 2'!E174 -> 717.708 | H11: ='KUMULATIV 2'!F174 -> 7953.527006 | I11: 0.09023770203 | J11: -7235.819006
A12: ='PRORAČUN 2'!C175 -> 0 | B12: =$B$8 -> 1. Sveži proizvodi | C12: ='PRORAČUN 2'!E175 -> 0 | D12: ='PRORAČUN 2'!F175 -> 0 | E12: 0 | F12: 0 | G12: ='KUMULATIV 2'!E175 -> 1409.719 | H12: ='KUMULATIV 2'!F175 -> 7205.906062 | I12: 0.1956338298 | J12: -5796.187062
B13: =$B$9 -> 2. Smrznuti proizvodi | C13: ='PRORAČUN 2'!E176 -> 0 | D13: ='PRORAČUN 2'!F176 -> 0 | E13: 0 | F13: 0 | G13: ='KUMULATIV 2'!E176 -> 0 | H13: ='KUMULATIV 2'!F176 -> 0 | I13: 0 | J13: 0
B14: =$B$10 -> 3. Prerađevine | C14: ='PRORAČUN 2'!E177 -> 0 | D14: ='PRORAČUN 2'!F177 -> 0 | E14: 0 | F14: 0 | G14: ='KUMULATIV 2'!E177 -> 376.71 | H14: ='KUMULATIV 2'!F177 -> 194.3389468 | I14: 1.938417421 | J14: 182.3710532
B15: =$B$11 -> Grand Total | C15: ='PRORAČUN 2'!E178 -> 0 | D15: ='PRORAČUN 2'!F178 -> 0 | E15: 0 | F15: 0 | G15: ='KUMULATIV 2'!E178 -> 1786.429 | H15: ='KUMULATIV 2'!F178 -> 7400.245009 | I15: 0.2414013317 | J15: -5613.816009
A16: ='PRORAČUN 2'!C179 -> 0 | B16: =$B$8 -> 1. Sveži proizvodi | C16: ='PRORAČUN 2'!E179 -> 0 | D16: ='PRORAČUN 2'!F179 -> 0 | E16: 0 | F16: 0 | G16: ='KUMULATIV 2'!E179 -> 12889.468 | H16: ='KUMULATIV 2'!F179 -> 6535.397182 | I16: 1.972254729 | J16: 6354.070818
B17: =$B$9 -> 2. Smrznuti proizvodi | C17: ='PRORAČUN 2'!E180 -> 0 | D17: ='PRORAČUN 2'!F180 -> 0 | E17: 0 | F17: 0 | G17: ='KUMULATIV 2'!E180 -> 0 | H17: ='KUMULATIV 2'!F180 -> 0 | I17: 0 | J17: 0
B18: =$B$10 -> 3. Prerađevine | C18: ='PRORAČUN 2'!E181 -> 0 | D18: ='PRORAČUN 2'!F181 -> 0 | E18: 0 | F18: 0 | G18: ='KUMULATIV 2'!E181 -> 0 | H18: ='KUMULATIV 2'!F181 -> 0 | I18: 0 | J18: 0
B19: =$B$11 -> Grand Total | C19: ='PRORAČUN 2'!E182 -> 0 | D19: ='PRORAČUN 2'!F182 -> 0 | E19: 0 | F19: 0 | G19: ='KUMULATIV 2'!E182 -> 12889.468 | H19: ='KUMULATIV 2'!F182 -> 6535.397182 | I19: 1.972254729 | J19: 6354.070818
A20: ='PRORAČUN 2'!C183 -> 0 | B20: =$B$8 -> 1. Sveži proizvodi | C20: ='PRORAČUN 2'!E183 -> 0 | D20: ='PRORAČUN 2'!F183 -> 0 | E20: 0 | F20: 0 | G20: ='KUMULATIV 2'!E183 -> 28.513 | H20: ='KUMULATIV 2'!F183 -> 151.5804591 | I20: 0.1881047212 | J20: -123.0674591
B21: =$B$9 -> 2. Smrznuti proizvodi | C21: ='PRORAČUN 2'!E184 -> 0 | D21: ='PRORAČUN 2'!F184 -> 0 | E21: 0 | F21: 0 | G21: ='KUMULATIV 2'!E184 -> 231.726 | H21: ='KUMULATIV 2'!F184 -> 1121.295005 | I21: 0.2066592636 | J21: -889.5690049
B22: =$B$10 -> 3. Prerađevine | C22: ='PRORAČUN 2'!E185 -> 0 | D22: ='PRORAČUN 2'!F185 -> 0 | E22: 0 | F22: 0 | G22: ='KUMULATIV 2'!E185 -> 1844.929 | H22: ='KUMULATIV 2'!F185 -> 4459.955035 | I22: 0.4136653812 | J22: -2615.026035
B23: =$B$11 -> Grand Total | C23: ='PRORAČUN 2'!E186 -> 0 | D23: ='PRORAČUN 2'!F186 -> 0 | E23: 0 | F23: 0 | G23: ='KUMULATIV 2'!E186 -> 2105.168 | H23: ='KUMULATIV 2'!F186 -> 5732.830499 | I23: 0.367212671 | J23: -3627.662499
A24: ='PRORAČUN 2'!C187 -> 0 | B24: =$B$8 -> 1. Sveži proizvodi | C24: ='PRORAČUN 2'!E187 -> 0 | D24: ='PRORAČUN 2'!F187 -> 0 | E24: 0 | F24: 0 | G24: ='KUMULATIV 2'!E187 -> 157.21 | H24: ='KUMULATIV 2'!F187 -> 2355.983321 | I24: 0.06672797663 | J24: -2198.773321
B25: =$B$9 -> 2. Smrznuti proizvodi | C25: ='PRORAČUN 2'!E188 -> 0 | D25: ='PRORAČUN 2'!F188 -> 0 | E25: 0 | F25: 0 | G25: ='KUMULATIV 2'!E188 -> 40.267 | H25: ='KUMULATIV 2'!F188 -> 969.1560969 | I25: 0.04154851848 | J25: -928.8890969
B26: =$B$10 -> 3. Prerađevine | C26: ='PRORAČUN 2'!E189 -> 0 | D26: ='PRORAČUN 2'!F189 -> 0 | E26: 0 | F26: 0 | G26: ='KUMULATIV 2'!E189 -> 104.4 | H26: ='KUMULATIV 2'!F189 -> 405.7080243 | I26: 0.257327915 | J26: -301.3080243
B27: =$B$11 -> Grand Total | C27: ='PRORAČUN 2'!E190 -> 0 | D27: ='PRORAČUN 2'!F190 -> 0 | E27: 0 | F27: 0 | G27: ='KUMULATIV 2'!E190 -> 301.877 | H27: ='KUMULATIV 2'!F190 -> 3730.847442 | I27: 0.08091378826 | J27: -3428.970442
A28: ='PRORAČUN 2'!C191 -> 0 | B28: =$B$8 -> 1. Sveži proizvodi | C28: ='PRORAČUN 2'!E191 -> 0 | D28: ='PRORAČUN 2'!F191 -> 0 | E28: 0 | F28: 0 | G28: ='KUMULATIV 2'!E191 -> 0 | H28: ='KUMULATIV 2'!F191 -> 2821.804018 | I28: 0 | J28: -2821.804018
B29: =$B$9 -> 2. Smrznuti proizvodi | C29: ='PRORAČUN 2'!E192 -> 0 | D29: ='PRORAČUN 2'!F192 -> 0 | E29: 0 | F29: 0 | G29: ='KUMULATIV 2'!E192 -> 0 | H29: ='KUMULATIV 2'!F192 -> 0 | I29: 0 | J29: 0
B30: =$B$10 -> 3. Prerađevine | C30: ='PRORAČUN 2'!E193 -> 0 | D30: ='PRORAČUN 2'!F193 -> 0 | E30: 0 | F30: 0 | G30: ='KUMULATIV 2'!E193 -> 0 | H30: ='KUMULATIV 2'!F193 -> 473.2214259 | I30: 0 | J30: -473.2214259
B31: =$B$11 -> Grand Total | C31: ='PRORAČUN 2'!E194 -> 0 | D31: ='PRORAČUN 2'!F194 -> 0 | E31: 0 | F31: 0 | G31: ='KUMULATIV 2'!E194 -> 0 | H31: ='KUMULATIV 2'!F194 -> 3295.025444 | I31: 0 | J31: -3295.025444
A32: ='PRORAČUN 2'!C195 -> 0 | B32: =$B$8 -> 1. Sveži proizvodi | C32: ='PRORAČUN 2'!E195 -> 0 | D32: ='PRORAČUN 2'!F195 -> 0 | E32: 0 | F32: 0 | G32: ='KUMULATIV 2'!E195 -> 331.547 | H32: ='KUMULATIV 2'!F195 -> 2744.507513 | I32: 0.1208038231 | J32: -2412.960513
B33: =$B$9 -> 2. Smrznuti proizvodi | C33: ='PRORAČUN 2'!E196 -> 0 | D33: ='PRORAČUN 2'!F196 -> 0 | E33: 0 | F33: 0 | G33: ='KUMULATIV 2'!E196 -> 0 | H33: ='KUMULATIV 2'!F196 -> 0 | I33: 0 | J33: 0
B34: =$B$10 -> 3. Prerađevine | C34: ='PRORAČUN 2'!E197 -> 0 | D34: ='PRORAČUN 2'!F197 -> 0 | E34: 0 | F34: 0 | G34: ='KUMULATIV 2'!E197 -> 42.55 | H34: ='KUMULATIV 2'!F197 -> 402.2164376 | I34: 0.1057888142 | J34: -359.6664376
B35: =$B$11 -> Grand Total | C35: ='PRORAČUN 2'!E198 -> 0 | D35: ='PRORAČUN 2'!F198 -> 0 | E35: 0 | F35: 0 | G35: ='KUMULATIV 2'!E198 -> 374.097 | H35: ='KUMULATIV 2'!F198 -> 3146.723951 | I35: 0.1188845942 | J35: -2772.626951
A36: ='PRORAČUN 2'!C199 -> 0 | B36: =$B$8 -> 1. Sveži proizvodi | C36: ='PRORAČUN 2'!E199 -> 0 | D36: ='PRORAČUN 2'!F199 -> 0 | E36: 0 | F36: 0 | G36: ='KUMULATIV 2'!E199 -> 0 | H36: ='KUMULATIV 2'!F199 -> 2012.457817 | I36: 0 | J36: -2012.457817
B37: =$B$9 -> 2. Smrznuti proizvodi | C37: ='PRORAČUN 2'!E200 -> 0 | D37: ='PRORAČUN 2'!F200 -> 0 | E37: 0 | F37: 0 | G37: ='KUMULATIV 2'!E200 -> 0 | H37: ='KUMULATIV 2'!F200 -> 806.0172819 | I37: 0 | J37: -806.0172819
B38: =$B$10 -> 3. Prerađevine | C38: ='PRORAČUN 2'!E201 -> 0 | D38: ='PRORAČUN 2'!F201 -> 0 | E38: 0 | F38: 0 | G38: ='KUMULATIV 2'!E201 -> 0 | H38: ='KUMULATIV 2'!F201 -> 0 | I38: 0 | J38: 0
B39: =$B$11 -> Grand Total | C39: ='PRORAČUN 2'!E202 -> 0 | D39: ='PRORAČUN 2'!F202 -> 0 | E39: 0 | F39: 0 | G39: ='KUMULATIV 2'!E202 -> 0 | H39: ='KUMULATIV 2'!F202 -> 2818.475099 | I39: 0 | J39: -2818.475099
A40: ='PRORAČUN 2'!C203 -> 0 | B40: =$B$8 -> 1. Sveži proizvodi | C40: ='PRORAČUN 2'!E203 -> 0 | D40: ='PRORAČUN 2'!F203 -> 0 | E40: 0 | F40: 0 | G40: ='KUMULATIV 2'!E203 -> 37.691 | H40: ='KUMULATIV 2'!F203 -> 696.2231483 | I40: 0.05413637868 | J40: -658.5321483
B41: =$B$9 -> 2. Smrznuti proizvodi | C41: ='PRORAČUN 2'!E204 -> 0 | D41: ='PRORAČUN 2'!F204 -> 0 | E41: 0 | F41: 0 | G41: ='KUMULATIV 2'!E204 -> 183.926 | H41: ='KUMULATIV 2'!F204 -> 237.4125226 | I41: 0.774710609 | J41: -53.48652264
B42: =$B$10 -> 3. Prerađevine | C42: ='PRORAČUN 2'!E205 -> 0 | D42: ='PRORAČUN 2'!F205 -> 0 | E42: 0 | F42: 0 | G42: ='KUMULATIV 2'!E205 -> 535.14 | H42: ='KUMULATIV 2'!F205 -> 1625.535963 | I42: 0.3292083424 | J42: -1090.395963
B43: =$B$11 -> Grand Total | C43: ='PRORAČUN 2'!E206 -> 0 | D43: ='PRORAČUN 2'!F206 -> 0 | E43: 0 | F43: 0 | G43: ='KUMULATIV 2'!E206 -> 756.757 | H43: ='KUMULATIV 2'!F206 -> 2559.171634 | I43: 0.2957038871 | J43: -1802.414634
A44: ='PRORAČUN 2'!C207 -> 0 | B44: =$B$8 -> 1. Sveži proizvodi | C44: ='PRORAČUN 2'!E207 -> 0 | D44: ='PRORAČUN 2'!F207 -> 0 | E44: 0 | F44: 0 | G44: ='KUMULATIV 2'!E207 -> 323.896 | H44: ='KUMULATIV 2'!F207 -> 1722.082305 | I44: 0.1880839255 | J44: -1398.186305
B45: =$B$9 -> 2. Smrznuti proizvodi | C45: ='PRORAČUN 2'!E208 -> 0 | D45: ='PRORAČUN 2'!F208 -> 0 | E45: 0 | F45: 0 | G45: ='KUMULATIV 2'!E208 -> 156.018 | H45: ='KUMULATIV 2'!F208 -> 282.7198942 | I45: 0.5518465563 | J45: -126.7018942
B46: =$B$10 -> 3. Prerađevine | C46: ='PRORAČUN 2'!E209 -> 0 | D46: ='PRORAČUN 2'!F209 -> 0 | E46: 0 | F46: 0 | G46: ='KUMULATIV 2'!E209 -> 158.235 | H46: ='KUMULATIV 2'!F209 -> 469.2956324 | I46: 0.3371755224 | J46: -311.0606324
B47: =$B$11 -> Grand Total | C47: ='PRORAČUN 2'!E210 -> 0 | D47: ='PRORAČUN 2'!F210 -> 0 | E47: 0 | F47: 0 | G47: ='KUMULATIV 2'!E210 -> 638.149 | H47: ='KUMULATIV 2'!F210 -> 2474.097832 | I47: 0.2579319992 | J47: -1835.948832
A48: ='PRORAČUN 2'!C211 -> 0 | B48: =$B$8 -> 1. Sveži proizvodi | C48: ='PRORAČUN 2'!E211 -> 0 | D48: ='PRORAČUN 2'!F211 -> 0 | E48: 0 | F48: 0 | G48: ='KUMULATIV 2'!E211 -> 247.537 | H48: ='KUMULATIV 2'!F211 -> 1453.05978 | I48: 0.170355689 | J48: -1205.52278
B49: =$B$9 -> 2. Smrznuti proizvodi | C49: ='PRORAČUN 2'!E212 -> 0 | D49: ='PRORAČUN 2'!F212 -> 0 | E49: 0 | F49: 0 | G49: ='KUMULATIV 2'!E212 -> 0 | H49: ='KUMULATIV 2'!F212 -> 24.38474938 | I49: 0 | J49: -24.38474938
B50: =$B$10 -> 3. Prerađevine | C50: ='PRORAČUN 2'!E213 -> 0 | D50: ='PRORAČUN 2'!F213 -> 0 | E50: 0 | F50: 0 | G50: ='KUMULATIV 2'!E213 -> 169.9 | H50: ='KUMULATIV 2'!F213 -> 741.3537631 | I50: 0.229175339 | J50: -571.4537631
B51: =$B$11 -> Grand Total | C51: ='PRORAČUN 2'!E214 -> 0 | D51: ='PRORAČUN 2'!F214 -> 0 | E51: 0 | F51: 0 | G51: ='KUMULATIV 2'!E214 -> 417.437 | H51: ='KUMULATIV 2'!F214 -> 2218.798292 | I51: 0.1881365248 | J51: -1801.361292
A52: ='PRORAČUN 2'!C215 -> 0 | B52: =$B$8 -> 1. Sveži proizvodi | C52: ='PRORAČUN 2'!E215 -> 0 | D52: ='PRORAČUN 2'!F215 -> 0 | E52: 0 | F52: 0 | G52: ='KUMULATIV 2'!E215 -> 0 | H52: ='KUMULATIV 2'!F215 -> 0 | I52: 0 | J52: 0
B53: =$B$9 -> 2. Smrznuti proizvodi | C53: ='PRORAČUN 2'!E216 -> 0 | D53: ='PRORAČUN 2'!F216 -> 0 | E53: 0 | F53: 0 | G53: ='KUMULATIV 2'!E216 -> 0 | H53: ='KUMULATIV 2'!F216 -> 337.567008 | I53: 0 | J53: -337.567008
B54: =$B$10 -> 3. Prerađevine | C54: ='PRORAČUN 2'!E217 -> 0 | D54: ='PRORAČUN 2'!F217 -> 0 | E54: 0 | F54: 0 | G54: ='KUMULATIV 2'!E217 -> 858 | H54: ='KUMULATIV 2'!F217 -> 1772.883226 | I54: 0.4839574245 | J54: -914.8832259
B55: =$B$11 -> Grand Total | C55: ='PRORAČUN 2'!E218 -> 0 | D55: ='PRORAČUN 2'!F218 -> 0 | E55: 0 | F55: 0 | G55: ='KUMULATIV 2'!E218 -> 858 | H55: ='KUMULATIV 2'!F218 -> 2110.450234 | I55: 0.4065483214 | J55: -1252.450234
A56: ='PRORAČUN 2'!C219 -> 0 | B56: =$B$8 -> 1. Sveži proizvodi | C56: ='PRORAČUN 2'!E219 -> 0 | D56: ='PRORAČUN 2'!F219 -> 0 | E56: 0 | F56: 0 | G56: ='KUMULATIV 2'!E219 -> 82.231 | H56: ='KUMULATIV 2'!F219 -> 1131.334277 | I56: 0.07268497177 | J56: -1049.103277
B57: =$B$9 -> 2. Smrznuti proizvodi | C57: ='PRORAČUN 2'!E220 -> 0 | D57: ='PRORAČUN 2'!F220 -> 0 | E57: 0 | F57: 0 | G57: ='KUMULATIV 2'!E220 -> 79.078 | H57: ='KUMULATIV 2'!F220 -> 324.2679823 | I57: 0.2438661981 | J57: -245.1899823
B58: =$B$10 -> 3. Prerađevine | C58: ='PRORAČUN 2'!E221 -> 0 | D58: ='PRORAČUN 2'!F221 -> 0 | E58: 0 | F58: 0 | G58: ='KUMULATIV 2'!E221 -> 59.2 | H58: ='KUMULATIV 2'!F221 -> 403.3627949 | I58: 0.1467661389 | J58: -344.1627949
B59: =$B$11 -> Grand Total | C59: ='PRORAČUN 2'!E222 -> 0 | D59: ='PRORAČUN 2'!F222 -> 0 | E59: 0 | F59: 0 | G59: ='KUMULATIV 2'!E222 -> 220.509 | H59: ='KUMULATIV 2'!F222 -> 1858.965054 | I59: 0.1186192282 | J59: -1638.456054
A60: ='PRORAČUN 2'!C223 -> 0 | B60: =$B$8 -> 1. Sveži proizvodi | C60: ='PRORAČUN 2'!E223 -> 0 | D60: ='PRORAČUN 2'!F223 -> 0 | E60: 0 | F60: 0 | G60: ='KUMULATIV 2'!E223 -> 0 | H60: ='KUMULATIV 2'!F223 -> 0 | I60: 0 | J60: 0
B61: =$B$9 -> 2. Smrznuti proizvodi | C61: ='PRORAČUN 2'!E224 -> 0 | D61: ='PRORAČUN 2'!F224 -> 0 | E61: 0 | F61: 0 | G61: ='KUMULATIV 2'!E224 -> 83.097 | H61: ='KUMULATIV 2'!F224 -> 604.9013781 | I61: 0.1373728066 | J61: -521.8043781
B62: =$B$10 -> 3. Prerađevine | C62: ='PRORAČUN 2'!E225 -> 0 | D62: ='PRORAČUN 2'!F225 -> 0 | E62: 0 | F62: 0 | G62: ='KUMULATIV 2'!E225 -> 551.784 | H62: ='KUMULATIV 2'!F225 -> 1137.342727 | I62: 0.4851519134 | J62: -585.5587266
B63: =$B$11 -> Grand Total | C63: ='PRORAČUN 2'!E226 -> 0 | D63: ='PRORAČUN 2'!F226 -> 0 | E63: 0 | F63: 0 | G63: ='KUMULATIV 2'!E226 -> 634.881 | H63: ='KUMULATIV 2'!F226 -> 1742.244105 | I63: 0.3644041603 | J63: -1107.363105
A64: ='PRORAČUN 2'!C227 -> 0 | B64: =$B$8 -> 1. Sveži proizvodi | C64: ='PRORAČUN 2'!E227 -> 0 | D64: ='PRORAČUN 2'!F227 -> 0 | E64: 0 | F64: 0 | G64: ='KUMULATIV 2'!E227 -> 0 | H64: ='KUMULATIV 2'!F227 -> 1441.076183 | I64: 0 | J64: -1441.076183
B65: =$B$9 -> 2. Smrznuti proizvodi | C65: ='PRORAČUN 2'!E228 -> 0 | D65: ='PRORAČUN 2'!F228 -> 0 | E65: 0 | F65: 0 | G65: ='KUMULATIV 2'!E228 -> 0 | H65: ='KUMULATIV 2'!F228 -> 0 | I65: 0 | J65: 0
B66: =$B$10 -> 3. Prerađevine | C66: ='PRORAČUN 2'!E229 -> 0 | D66: ='PRORAČUN 2'!F229 -> 0 | E66: 0 | F66: 0 | G66: ='KUMULATIV 2'!E229 -> 0 | H66: ='KUMULATIV 2'!F229 -> 0 | I66: 0 | J66: 0
B67: =$B$11 -> Grand Total | C67: ='PRORAČUN 2'!E230 -> 0 | D67: ='PRORAČUN 2'!F230 -> 0 | E67: 0 | F67: 0 | G67: ='KUMULATIV 2'!E230 -> 0 | H67: ='KUMULATIV 2'!F230 -> 1441.076183 | I67: 0 | J67: -1441.076183
A68: ='PRORAČUN 2'!C231 -> 0 | B68: =$B$8 -> 1. Sveži proizvodi | C68: ='PRORAČUN 2'!E231 -> 0 | D68: ='PRORAČUN 2'!F231 -> 0 | E68: 0 | F68: 0 | G68: ='KUMULATIV 2'!E231 -> 0 | H68: ='KUMULATIV 2'!F231 -> 0 | I68: 0 | J68: 0
B69: =$B$9 -> 2. Smrznuti proizvodi | C69: ='PRORAČUN 2'!E232 -> 0 | D69: ='PRORAČUN 2'!F232 -> 0 | E69: 0 | F69: 0 | G69: ='KUMULATIV 2'!E232 -> 464.76 | H69: ='KUMULATIV 2'!F232 -> 1285.851717 | I69: 0.3614413653 | J69: -821.0917166
B70: =$B$10 -> 3. Prerađevine | C70: ='PRORAČUN 2'!E233 -> 0 | D70: ='PRORAČUN 2'!F233 -> 0 | E70: 0 | F70: 0 | G70: ='KUMULATIV 2'!E233 -> 0 | H70: ='KUMULATIV 2'!F233 -> 0 | I70: 0 | J70: 0
B71: =$B$11 -> Grand Total | C71: ='PRORAČUN 2'!E234 -> 0 | D71: ='PRORAČUN 2'!F234 -> 0 | E71: 0 | F71: 0 | G71: ='KUMULATIV 2'!E234 -> 464.76 | H71: ='KUMULATIV 2'!F234 -> 1285.851717 | I71: 0.3614413653 | J71: -821.0917166
A72: ='PRORAČUN 2'!C235 -> 0 | B72: =$B$8 -> 1. Sveži proizvodi | C72: ='PRORAČUN 2'!E235 -> 0 | D72: ='PRORAČUN 2'!F235 -> 0 | E72: 0 | F72: 0 | G72: ='KUMULATIV 2'!E235 -> 0 | H72: ='KUMULATIV 2'!F235 -> 474.3793108 | I72: 0 | J72: -474.3793108
B73: =$B$9 -> 2. Smrznuti proizvodi | C73: ='PRORAČUN 2'!E236 -> 0 | D73: ='PRORAČUN 2'!F236 -> 0 | E73: =IFERROR(C73/D73,0) -> 0 | F73: =IFERROR(C73-D73,0) -> 0 | G73: ='KUMULATIV 2'!E236 -> 21 | H73: ='KUMULATIV 2'!F236 -> 0 | I73: =IFERROR(G73/H73,0) -> 0 | J73: =IFERROR(G73-H73,0) -> 21
B74: =$B$10 -> 3. Prerađevine | C74: ='PRORAČUN 2'!E237 -> 0 | D74: ='PRORAČUN 2'!F237 -> 0 | E74: 0 | F74: 0 | G74: ='KUMULATIV 2'!E237 -> 271.254 | H74: ='KUMULATIV 2'!F237 -> 792.8565875 | I74: 0.3421224018 | J74: -521.6025875
B75: =$B$11 -> Grand Total | C75: ='PRORAČUN 2'!E238 -> 0 | D75: ='PRORAČUN 2'!F238 -> 0 | E75: 0 | F75: 0 | G75: ='KUMULATIV 2'!E238 -> 292.254 | H75: ='KUMULATIV 2'!F238 -> 1267.235898 | I75: 0.2306232016 | J75: -974.9818984
A76: ='PRORAČUN 2'!C239 -> 0 | B76: =$B$8 -> 1. Sveži proizvodi | C76: ='PRORAČUN 2'!E239 -> 0 | D76: ='PRORAČUN 2'!F239 -> 0 | E76: 0 | F76: 0 | G76: ='KUMULATIV 2'!E239 -> 222.985 | H76: ='KUMULATIV 2'!F239 -> 724.2583092 | I76: 0.3078804857 | J76: -501.2733092
B77: =$B$9 -> 2. Smrznuti proizvodi | C77: ='PRORAČUN 2'!E240 -> 0 | D77: ='PRORAČUN 2'!F240 -> 0 | E77: 0 | F77: 0 | G77: ='KUMULATIV 2'!E240 -> 21.606 | H77: ='KUMULATIV 2'!F240 -> 22.46732266 | I77: 0.9616633154 | J77: -0.8613226636
B78: =$B$10 -> 3. Prerađevine | C78: ='PRORAČUN 2'!E241 -> 0 | D78: ='PRORAČUN 2'!F241 -> 0 | E78: 0 | F78: 0 | G78: ='KUMULATIV 2'!E241 -> 66.1 | H78: ='KUMULATIV 2'!F241 -> 438.1774747 | I78: 0.1508521177 | J78: -372.0774747
B79: =$B$11 -> Grand Total | C79: ='PRORAČUN 2'!E242 -> 0 | D79: ='PRORAČUN 2'!F242 -> 0 | E79: 0 | F79: 0 | G79: ='KUMULATIV 2'!E242 -> 310.691 | H79: ='KUMULATIV 2'!F242 -> 1184.903107 | I79: 0.2622079377 | J79: -874.2121066
A80: ='PRORAČUN 2'!C243 -> 0 | B80: =$B$8 -> 1. Sveži proizvodi | C80: ='PRORAČUN 2'!E243 -> 0 | D80: ='PRORAČUN 2'!F243 -> 0 | E80: 0 | F80: 0 | G80: ='KUMULATIV 2'!E243 -> 0 | H80: ='KUMULATIV 2'!F243 -> 0 | I80: 0 | J80: 0
B81: =$B$9 -> 2. Smrznuti proizvodi | C81: ='PRORAČUN 2'!E244 -> 0 | D81: ='PRORAČUN 2'!F244 -> 0 | E81: 0 | F81: 0 | G81: ='KUMULATIV 2'!E244 -> 430.348 | H81: ='KUMULATIV 2'!F244 -> 1070.366 | I81: 0.4020568667 | J81: -640.0179995
B82: =$B$10 -> 3. Prerađevine | C82: ='PRORAČUN 2'!E245 -> 0 | D82: ='PRORAČUN 2'!F245 -> 0 | E82: 0 | F82: 0 | G82: ='KUMULATIV 2'!E245 -> 0 | H82: ='KUMULATIV 2'!F245 -> 0 | I82: 0 | J82: 0
B83: =$B$11 -> Grand Total | C83: ='PRORAČUN 2'!E246 -> 0 | D83: ='PRORAČUN 2'!F246 -> 0 | E83: 0 | F83: 0 | G83: ='KUMULATIV 2'!E246 -> 430.348 | H83: ='KUMULATIV 2'!F246 -> 1070.366 | I83: 0.4020568667 | J83: -640.0179995
A84: ='PRORAČUN 2'!C247 -> 0 | B84: =$B$8 -> 1. Sveži proizvodi | C84: ='PRORAČUN 2'!E247 -> 0 | D84: ='PRORAČUN 2'!F247 -> 0 | E84: 0 | F84: 0 | G84: ='KUMULATIV 2'!E247 -> 136.544 | H84: ='KUMULATIV 2'!F247 -> 869.9904247 | I84: 0.1569488538 | J84: -733.4464247
B85: =$B$9 -> 2. Smrznuti proizvodi | C85: ='PRORAČUN 2'!E248 -> 0 | D85: ='PRORAČUN 2'!F248 -> 0 | E85: 0 | F85: 0 | G85: ='KUMULATIV 2'!E248 -> 0 | H85: ='KUMULATIV 2'!F248 -> 23.48431452 | I85: 0 | J85: -23.48431452
B86: =$B$10 -> 3. Prerađevine | C86: ='PRORAČUN 2'!E249 -> 0 | D86: ='PRORAČUN 2'!F249 -> 0 | E86: 0 | F86: 0 | G86: ='KUMULATIV 2'!E249 -> 0 | H86: ='KUMULATIV 2'!F249 -> 13.44888478 | I86: 0 | J86: -13.44888478
B87: =$B$11 -> Grand Total | C87: ='PRORAČUN 2'!E250 -> 0 | D87: ='PRORAČUN 2'!F250 -> 0 | E87: 0 | F87: 0 | G87: ='KUMULATIV 2'!E250 -> 136.544 | H87: ='KUMULATIV 2'!F250 -> 906.923624 | I87: 0.1505573307 | J87: -770.379624

Sheet RAZRADA GRUPA BG
A1: ='RAZRADA UKUPNO'!A1 -> VINDIJA | B1: ='RAZRADA UKUPNO'!B1:I1 -> Dnevna prodaja od 08.08. i kumulativ dnevnog plana i prodaje za 01.- 08.08.2013
D3: ='RAZRADA UKUPNO'!D3:E3 -> Izvještaj za | G3: ='RAZRADA UKUPNO'!G3:H3 -> Kolovoz/Avgust
D4: ='RAZRADA UKUPNO'!D4 -> 6 | E4: ='RAZRADA UKUPNO'!E4 -> dana + | G4: ='RAZRADA UKUPNO'!G4 -> 22 | H4: ='RAZRADA UKUPNO'!H4 -> dana +
A5: KC BEOGRAD | D5: ='RAZRADA UKUPNO'!D5 -> 1 | E5: ='RAZRADA UKUPNO'!E5 -> subota | G5: ='RAZRADA UKUPNO'!G5 -> 5 | H5: ='RAZRADA UKUPNO'!H5 -> subota
A7: GRUPA PROIZVODA | B7: KUPAC | C7: 1:Dnevna prodaja | D7: 2:Dnevni plan | E7: IND. prodaja / plan | F7: Razlika 1-2 | G7: 3: Kum. prodaje 2013 | H7: 4: Kum. plana 2013 | I7: IND. kum. prod 2013 / kum. plana 2013 | J7: Razlika 3-4
A8: 1. Sveži proizvodi | B8: ='PRORACUN 3'!D3 -> DELHAIZE SERBIA DOO | C8: ='PRORACUN 3'!E3 -> 1484.734 | D8: ='PRORACUN 3'!F3 -> 2070.661655 | E8: =IFERROR(C8/D8,0) -> 0.7170336093 | F8: =IFERROR(C8-D8,0) -> -585.9276548 | G8: ='KUMULATIV 3'!E3 -> 16466.733 | H8: ='KUMULATIV 3'!F3 -> 14494.63158 | I8: =IFERROR(G8/H8,0) -> 1.136057368 | J8: =IFERROR(G8-H8,0) -> 1972.101416
B9: ='PRORACUN 3'!D4 -> IDEA DOO | C9: ='PRORACUN 3'!E4 -> 1723.186 | D9: ='PRORACUN 3'!F4 -> 1278.807067 | E9: =IFERROR(C9/D9,0) -> 1.3474949 | F9: =IFERROR(C9-D9,0) -> 444.3789333 | G9: ='KUMULATIV 3'!E4 -> 10500.77 | H9: ='KUMULATIV 3'!F4 -> 8951.649467 | I9: =IFERROR(G9/H9,0) -> 1.1730542 | J9: =IFERROR(G9-H9,0) -> 1549.120533
B10: ='PRORACUN 3'!D5 -> MERCATOR S | C10: ='PRORACUN 3'!E5 -> 493.585 | D10: ='PRORACUN 3'!F5 -> 708.7756813 | E10: 0.6963909923 | F10: -215.1906813 | G10: ='KUMULATIV 3'!E5 -> 3493.502 | H10: ='KUMULATIV 3'!F5 -> 4961.429769 | I10: 0.7041321076 | J10: -1467.927769
B11: ='PRORACUN 3'!D6 -> ŠTRAND DOO | C11: ='PRORACUN 3'!E6 -> 678.838 | D11: ='PRORACUN 3'!F6 -> 676.2114184 | E11: 1.003884261 | F11: 2.626581606 | G11: ='KUMULATIV 3'!E6 -> 5020.052 | H11: ='KUMULATIV 3'!F6 -> 4733.479929 | I11: 1.06054152 | J11: 286.5720712
B12: ='PRORACUN 3'!D7 -> METRO CASH & CARRY DOO | C12: ='PRORACUN 3'!E7 -> 162.405 | D12: ='PRORACUN 3'!F7 -> 519.0688859 | E12: 0.3128775475 | F12: -356.6638859 | G12: ='KUMULATIV 3'!E7 -> 1324.682 | H12: ='KUMULATIV 3'!F7 -> 3633.482201 | I12: 0.3645764384 | J12: -2308.800201
B13: ='PRORACUN 3'!D8 -> UNIVEREXPORT DOO | C13: ='PRORACUN 3'!E8 -> 896.674 | D13: ='PRORACUN 3'!F8 -> 447.2198166 | E13: 2.004996126 | F13: 449.4541834 | G13: ='KUMULATIV 3'!E8 -> 4018.273 | H13: ='KUMULATIV 3'!F8 -> 3130.538716 | I13: 1.28357237 | J13: 887.7342837
B14: ='PRORACUN 3'!D9 -> AMAN DOO | C14: ='PRORACUN 3'!E9 -> 12.135 | D14: ='PRORACUN 3'!F9 -> 302.9464215 | E14: 0.04005658803 | F14: -290.8114215 | G14: ='KUMULATIV 3'!E9 -> 127.496 | H14: ='KUMULATIV 3'!F9 -> 2120.62495 | I14: 0.06012189944 | J14: -1993.12895
B15: ='PRORACUN 3'!D10 -> MESO-MARKET | C15: ='PRORACUN 3'!E10 -> 251.475 | D15: ='PRORACUN 3'!F10 -> 308.2799194 | E15: 0.8157359082 | F15: -56.80491936 | G15: ='KUMULATIV 3'!E10 -> 1782.396 | H15: ='KUMULATIV 3'!F10 -> 2157.959436 | I15: 0.8259636259 | J15: -375.5634355
B16: ='PRORACUN 3'!D11 -> MUP UPRAVA ZA POSLOVE ISHRANE I SMEŠTAJA | C16: ='PRORACUN 3'!E11 -> 0 | D16: ='PRORACUN 3'!F11 -> 0 | E16: 0 | F16: 0 | G16: ='KUMULATIV 3'!E11 -> 0 | H16: ='KUMULATIV 3'!F11 -> 0 | I16: 0 | J16: 0
B17: ='PRORACUN 3'!D12 -> ĐERIĆ STR | C17: ='PRORACUN 3'!E12 -> 61.097 | D17: ='PRORACUN 3'!F12 -> 164.4196832 | E17: 0.3715917632 | F17: -103.3226832 | G17: ='KUMULATIV 3'!E12 -> 383.338 | H17: ='KUMULATIV 3'!F12 -> 1150.937783 | I17: 0.3330657884 | J17: -767.5997827
B18: ='PRORACUN 3'!D13 -> TP DOO TREND COMERCCE ŠID | C18: ='PRORACUN 3'!E13 -> 0 | D18: ='PRORACUN 3'!F13 -> 0 | E18: 0 | F18: 0 | G18: ='KUMULATIV 3'!E13 -> 0 | H18: ='KUMULATIV 3'!F13 -> 0 | I18: 0 | J18: 0
B19: ='PRORACUN 3'!D14 -> VINDIJA D.O.O. LAJKOVAC - VLASTITA POTROŠNJA | C19: ='PRORACUN 3'!E14 -> 0 | D19: ='PRORACUN 3'!F14 -> 47.21273277 | E19: 0 | F19: -47.21273277 | G19: ='KUMULATIV 3'!E14 -> 0 | H19: ='KUMULATIV 3'!F14 -> 330.4891294 | I19: 0 | J19: -330.4891294
B20: ='PRORACUN 3'!D15 -> PODUNAVLJE AD, BEOGRAD | C20: ='PRORACUN 3'!E15 -> 7.986 | D20: ='PRORACUN 3'!F15 -> 32.67024977 | E20: 0.2444425756 | F20: -24.68424977 | G20: ='KUMULATIV 3'!E15 -> 459.229 | H20: ='KUMULATIV 3'!F15 -> 228.6917484 | I20: 2.008069829 | J20: 230.5372516
B21: ='PRORACUN 3'!D16 -> POINT MARTINOVIĆ DOO | C21: ='PRORACUN 3'!E16 -> 0 | D21: ='PRORACUN 3'!F16 -> 83.21167507 | E21: 0 | F21: -83.21167507 | G21: ='KUMULATIV 3'!E16 -> 0 | H21: ='KUMULATIV 3'!F16 -> 582.4817255 | I21: 0 | J21: -582.4817255
B22: ='PRORACUN 3'!D17 -> MIS CHILLI DOO | C22: ='PRORACUN 3'!E17 -> 0 | D22: ='PRORACUN 3'!F17 -> 45.72132672 | E22: 0 | F22: -45.72132672 | G22: ='KUMULATIV 3'!E17 -> 190.82 | H22: ='KUMULATIV 3'!F17 -> 320.049287 | I22: 0.5962206689 | J22: -129.229287
B23: ='PRORACUN 3'!D18 -> VEROPOULOS DOO | C23: ='PRORACUN 3'!E18 -> 12.215 | D23: ='PRORACUN 3'!F18 -> 55.95797788 | E23: 0.2182888028 | F23: -43.74297788 | G23: ='KUMULATIV 3'!E18 -> 134.984 | H23: ='KUMULATIV 3'!F18 -> 391.7058451 | I23: 0.3446055291 | J23: -256.7218451
B24: ='PRORACUN 3'!D19 -> JOVANA STR | C24: ='PRORACUN 3'!E19 -> 46.154 | D24: ='PRORACUN 3'!F19 -> 53.96770165 | E24: 0.855215223 | F24: -7.813701651 | G24: ='KUMULATIV 3'!E19 -> 250.93 | H24: ='KUMULATIV 3'!F19 -> 377.7739116 | I24: 0.6642332684 | J24: -126.8439116
B25: ='PRORACUN 3'!D20 -> SLAVONAC STUR, ISMETA MUJEZINOVIĆA | C25: ='PRORACUN 3'!E20 -> 0 | D25: ='PRORACUN 3'!F20 -> 57.19002782 | E25: 0 | F25: -57.19002782 | G25: ='KUMULATIV 3'!E20 -> 0 | H25: ='KUMULATIV 3'!F20 -> 400.3301947 | I25: 0 | J25: -400.3301947
B26: ='PRORACUN 3'!D21 -> MEDIUS DOO | C26: ='PRORACUN 3'!E21 -> 0 | D26: ='PRORACUN 3'!F21 -> 8.934015582 | E26: 0 | F26: -8.934015582 | G26: ='KUMULATIV 3'!E21 -> 10.173 | H26: ='KUMULATIV 3'!F21 -> 62.53810908 | I26: 0.1626688135 | J26: -52.36510908
B27: ='PRORACUN 3'!D22 -> FAMOSO | C27: ='PRORACUN 3'!E22 -> 0 | D27: ='PRORACUN 3'!F22 -> 50.54283485 | E27: 0 | F27: -50.54283485 | G27: ='KUMULATIV 3'!E22 -> 0 | H27: ='KUMULATIV 3'!F22 -> 353.7998439 | I27: 0 | J27: -353.7998439
A28: Ukupno Sveži proizvodi | C28: =SUM(C8:C27) -> 5830.484 | D28: =SUM(D8:D27) -> 6911.79909 | E28: =IFERROR(C28/D28,0) -> 0.8435551908 | F28: =IFERROR(C28-D28,0) -> -1081.31509 | G28: =SUM(G8:G27) -> 44163.378 | H28: =SUM(H8:H27) -> 48382.59363 | I28: =IFERROR(G28/H28,0) -> 0.9127947612 | J28: =IFERROR(G28-H28,0) -> -4219.215629
A29: 2. Smrznuti proizvodi | B29: ='PRORACUN 3'!D23 -> DELHAIZE SERBIA DOO | C29: ='PRORACUN 3'!E23 -> 0 | D29: ='PRORACUN 3'!F23 -> 0 | E29: 0 | F29: 0 | G29: ='KUMULATIV 3'!E23 -> 0 | H29: ='KUMULATIV 3'!F23 -> 0 | I29: 0 | J29: 0
B30: ='PRORACUN 3'!D24 -> IDEA DOO | C30: ='PRORACUN 3'!E24 -> 0 | D30: ='PRORACUN 3'!F24 -> 0 | E30: 0 | F30: 0 | G30: ='KUMULATIV 3'!E24 -> 0 | H30: ='KUMULATIV 3'!F24 -> 0 | I30: 0 | J30: 0
B31: ='PRORACUN 3'!D25 -> MERCATOR S | C31: ='PRORACUN 3'!E25 -> 19.133 | D31: ='PRORACUN 3'!F25 -> 15.105379 | E31: 1.266634885 | F31: 4.027620995 | G31: ='KUMULATIV 3'!E25 -> 46.536 | H31: ='KUMULATIV 3'!F25 -> 105.737653 | I31: 0.4401081229 | J31: -59.20165303
B32: ='PRORACUN 3'!D26 -> ŠTRAND DOO | C32: ='PRORACUN 3'!E26 -> 0 | D32: ='PRORACUN 3'!F26 -> 0 | E32: 0 | F32: 0 | G32: ='KUMULATIV 3'!E26 -> 0 | H32: ='KUMULATIV 3'!F26 -> 0 | I32: 0 | J32: 0
B33: ='PRORACUN 3'!D27 -> METRO CASH & CARRY DOO | C33: ='PRORACUN 3'!E27 -> 0 | D33: ='PRORACUN 3'!F27 -> 6.374934114 | E33: 0 | F33: -6.374934114 | G33: ='KUMULATIV 3'!E27 -> 0 | H33: ='KUMULATIV 3'!F27 -> 44.6245388 | I33: 0 | J33: -44.6245388
B34: ='PRORACUN 3'!D28 -> UNIVEREXPORT DOO | C34: ='PRORACUN 3'!E28 -> 0 | D34: ='PRORACUN 3'!F28 -> 0 | E34: 0 | F34: 0 | G34: ='KUMULATIV 3'!E28 -> 0 | H34: ='KUMULATIV 3'!F28 -> 0 | I34: 0 | J34: 0
B35: ='PRORACUN 3'!D29 -> AMAN DOO | C35: ='PRORACUN 3'!E29 -> 0 | D35: ='PRORACUN 3'!F29 -> 0 | E35: 0 | F35: 0 | G35: ='KUMULATIV 3'!E29 -> 0 | H35: ='KUMULATIV 3'!F29 -> 0 | I35: 0 | J35: 0
B36: ='PRORACUN 3'!D30 -> MESO-MARKET | C36: ='PRORACUN 3'!E30 -> 0 | D36: ='PRORACUN 3'!F30 -> 0 | E36: 0 | F36: 0 | G36: ='KUMULATIV 3'!E30 -> 0 | H36: ='KUMULATIV 3'!F30 -> 0 | I36: 0 | J36: 0
B37: ='PRORACUN 3'!D31 -> MUP UPRAVA ZA POSLOVE ISHRANE I SMEŠTAJA | C37: ='PRORACUN 3'!E31 -> 239.268 | D37: ='PRORACUN 3'!F31 -> 177.0353195 | E37: 1.351526919 | F37: 62.23268049 | G37: ='KUMULATIV 3'!E31 -> 1251.989 | H37: ='KUMULATIV 3'!F31 -> 1239.247237 | I37: 1.010281857 | J37: 12.74176344
B38: ='PRORACUN 3'!D32 -> ĐERIĆ STR | C38: ='PRORACUN 3'!E32 -> 0 | D38: ='PRORACUN 3'!F32 -> 0 | E38: 0 | F38: 0 | G38: ='KUMULATIV 3'!E32 -> 0 | H38: ='KUMULATIV 3'!F32 -> 0 | I38: 0 | J38: 0
B39: ='PRORACUN 3'!D33 -> TP DOO TREND COMERCCE ŠID | C39: ='PRORACUN 3'!E33 -> 60.995 | D39: ='PRORACUN 3'!F33 -> 25.68650104 | E39: 2.374593562 | F39: 35.30849896 | G39: ='KUMULATIV 3'!E33 -> 230.79 | H39: ='KUMULATIV 3'!F33 -> 179.8055073 | I39: 1.283553565 | J39: 50.98449269
B40: ='PRORACUN 3'!D34 -> VINDIJA D.O.O. LAJKOVAC - VLASTITA POTROŠNJA | C40: ='PRORACUN 3'!E34 -> 0 | D40: ='PRORACUN 3'!F34 -> 29.18629054 | E40: 0 | F40: -29.18629054 | G40: ='KUMULATIV 3'!E34 -> 0 | H40: ='KUMULATIV 3'!F34 -> 204.3040338 | I40: 0 | J40: -204.3040338
B41: ='PRORACUN 3'!D35 -> PODUNAVLJE AD, BEOGRAD | C41: ='PRORACUN 3'!E35 -> 136.509 | D41: ='PRORACUN 3'!F35 -> 47.56560671 | E41: 2.869909782 | F41: 88.94339329 | G41: ='KUMULATIV 3'!E35 -> 613.117 | H41: ='KUMULATIV 3'!F35 -> 332.959247 | I41: 1.841417548 | J41: 280.157753
B42: ='PRORACUN 3'!D36 -> POINT MARTINOVIĆ DOO | C42: ='PRORACUN 3'!E36 -> 0 | D42: ='PRORACUN 3'!F36 -> 0.6068087213 | E42: 0 | F42: -0.6068087213 | G42: ='KUMULATIV 3'!E36 -> 0 | H42: ='KUMULATIV 3'!F36 -> 4.247661049 | I42: 0 | J42: -4.247661049
B43: ='PRORACUN 3'!D37 -> MIS CHILLI DOO | C43: ='PRORACUN 3'!E37 -> 0 | D43: ='PRORACUN 3'!F37 -> 0 | E43: 0 | F43: 0 | G43: ='KUMULATIV 3'!E37 -> 0 | H43: ='KUMULATIV 3'!F37 -> 0 | I43: 0 | J43: 0
B44: ='PRORACUN 3'!D38 -> VEROPOULOS DOO | C44: ='PRORACUN 3'!E38 -> 0 | D44: ='PRORACUN 3'!F38 -> 0.521260239 | E44: 0 | F44: -0.521260239 | G44: ='KUMULATIV 3'!E38 -> 0 | H44: ='KUMULATIV 3'!F38 -> 3.648821673 | I44: 0 | J44: -3.648821673
B45: ='PRORACUN 3'!D39 -> JOVANA STR | C45: ='PRORACUN 3'!E39 -> 0 | D45: ='PRORACUN 3'!F39 -> 0 | E45: 0 | F45: 0 | G45: ='KUMULATIV 3'!E39 -> 0 | H45: ='KUMULATIV 3'!F39 -> 0 | I45: 0 | J45: 0
B46: ='PRORACUN 3'!D40 -> SLAVONAC STUR, ISMETA MUJEZINOVIĆA | C46: ='PRORACUN 3'!E40 -> 0 | D46: ='PRORACUN 3'!F40 -> 0 | E46: 0 | F46: 0 | G46: ='KUMULATIV 3'!E40 -> 0 | H46: ='KUMULATIV 3'!F40 -> 0 | I46: 0 | J46: 0
B47: ='PRORACUN 3'!D41 -> MEDIUS DOO | C47: ='PRORACUN 3'!E41 -> 0 | D47: ='PRORACUN 3'!F41 -> 0 | E47: 0 | F47: 0 | G47: ='KUMULATIV 3'!E41 -> 0 | H47: ='KUMULATIV 3'!F41 -> 0 | I47: 0 | J47: 0
B48: ='PRORACUN 3'!D42 -> FAMOSO | C48: ='PRORACUN 3'!E42 -> 0 | D48: ='PRORACUN 3'!F42 -> 0 | E48: 0 | F48: 0 | G48: ='KUMULATIV 3'!E42 -> 0 | H48: ='KUMULATIV 3'!F42 -> 0 | I48: 0 | J48: 0
A49: Ukupno Smrznuti proizvodi | C49: =SUM(C29:C48) -> 455.905 | D49: =SUM(D29:D48) -> 302.0820999 | E49: =IFERROR(C49/D49,0) -> 1.509208921 | F49: =IFERROR(C49-D49,0) -> 153.8229001 | G49: =SUM(G29:G48) -> 2142.432 | H49: =SUM(H29:H48) -> 2114.574699 | I49: =IFERROR(G49/H49,0) -> 1.01317395 | J49: =IFERROR(G49-H49,0) -> 27.85730086
A50: 3. Prerađevine | B50: ='PRORACUN 3'!D43 -> DELHAIZE SERBIA DOO | C50: ='PRORACUN 3'!E43 -> 50.921 | D50: ='PRORACUN 3'!F43 -> 294.0175561 | E50: 0.1731903383 | F50: -243.0965561 | G50: ='KUMULATIV 3'!E43 -> 332.729 | H50: ='KUMULATIV 3'!F43 -> 2058.122893 | I50: 0.1616662451 | J50: -1725.393893
B51: ='PRORACUN 3'!D44 -> IDEA DOO | C51: ='PRORACUN 3'!E44 -> 246.182 | D51: ='PRORACUN 3'!F44 -> 17.83241307 | E51: 13.80531053 | F51: 228.3495869 | G51: ='KUMULATIV 3'!E44 -> 1496.255 | H51: ='KUMULATIV 3'!F44 -> 124.8268915 | I51: 11.98663991 | J51: 1371.428109
B52: ='PRORACUN 3'!D45 -> MERCATOR S | C52: ='PRORACUN 3'!E45 -> 68.067 | D52: ='PRORACUN 3'!F45 -> 147.6372179 | E52: 0.4610422831 | F52: -79.57021787 | G52: ='KUMULATIV 3'!E45 -> 598.557 | H52: ='KUMULATIV 3'!F45 -> 1033.460525 | I52: 0.5791774194 | J52: -434.9035251
B53: ='PRORACUN 3'!D46 -> ŠTRAND DOO | C53: ='PRORACUN 3'!E46 -> 0 | D53: ='PRORACUN 3'!F46 -> 0 | E53: 0 | F53: 0 | G53: ='KUMULATIV 3'!E46 -> 0 | H53: ='KUMULATIV 3'!F46 -> 0 | I53: 0 | J53: 0
B54: ='PRORACUN 3'!D47 -> METRO CASH & CARRY DOO | C54: ='PRORACUN 3'!E47 -> 0 | D54: ='PRORACUN 3'!F47 -> 103.2978949 | E54: 0 | F54: -103.2978949 | G54: ='KUMULATIV 3'!E47 -> 260.5 | H54: ='KUMULATIV 3'!F47 -> 723.0852642 | I54: 0.3602618016 | J54: -462.5852642
B55: ='PRORACUN 3'!D48 -> UNIVEREXPORT DOO | C55: ='PRORACUN 3'!E48 -> 92.25 | D55: ='PRORACUN 3'!F48 -> 44.92650651 | E55: 2.053353514 | F55: 47.32349349 | G55: ='KUMULATIV 3'!E48 -> 533.9 | H55: ='KUMULATIV 3'!F48 -> 314.4855455 | I55: 1.697693289 | J55: 219.4144545
B56: ='PRORACUN 3'!D49 -> AMAN DOO | C56: ='PRORACUN 3'!E49 -> 236.255 | D56: ='PRORACUN 3'!F49 -> 138.6966425 | E56: 1.703393794 | F56: 97.55835752 | G56: ='KUMULATIV 3'!E49 -> 1841.094 | H56: ='KUMULATIV 3'!F49 -> 970.8764974 | I56: 1.896321525 | J56: 870.2175026
B57: ='PRORACUN 3'!D50 -> MESO-MARKET | C57: ='PRORACUN 3'!E50 -> 0 | D57: ='PRORACUN 3'!F50 -> 3.344089088 | E57: 0 | F57: -3.344089088 | G57: ='KUMULATIV 3'!E50 -> 13.285 | H57: ='KUMULATIV 3'!F50 -> 23.40862362 | I57: 0.5675258921 | J57: -10.12362362
B58: ='PRORACUN 3'!D51 -> MUP UPRAVA ZA POSLOVE ISHRANE I SMEŠTAJA | C58: ='PRORACUN 3'!E51 -> 0 | D58: ='PRORACUN 3'!F51 -> 0 | E58: 0 | F58: 0 | G58: ='KUMULATIV 3'!E51 -> 0 | H58: ='KUMULATIV 3'!F51 -> 0 | I58: 0 | J58: 0
B59: ='PRORACUN 3'!D52 -> ĐERIĆ STR | C59: ='PRORACUN 3'!E52 -> 0 | D59: ='PRORACUN 3'!F52 -> 0 | E59: 0 | F59: 0 | G59: ='KUMULATIV 3'!E52 -> 13 | H59: ='KUMULATIV 3'!F52 -> 0 | I59: 0 | J59: 13
B60: ='PRORACUN 3'!D53 -> TP DOO TREND COMERCCE ŠID | C60: ='PRORACUN 3'!E53 -> 141 | D60: ='PRORACUN 3'!F53 -> 78.94531046 | E60: 1.786046558 | F60: 62.05468954 | G60: ='KUMULATIV 3'!E53 -> 531.635 | H60: ='KUMULATIV 3'!F53 -> 552.6171732 | I60: 0.9620312683 | J60: -20.98217319
B61: ='PRORACUN 3'!D54 -> VINDIJA D.O.O. LAJKOVAC - VLASTITA POTROŠNJA | C61: ='PRORACUN 3'!E54 -> 0 | D61: ='PRORACUN 3'!F54 -> 20.92289265 | E61: 0 | F61: -20.92289265 | G61: ='KUMULATIV 3'!E54 -> 0 | H61: ='KUMULATIV 3'!F54 -> 146.4602486 | I61: 0 | J61: -146.4602486
B62: ='PRORACUN 3'!D55 -> PODUNAVLJE AD, BEOGRAD | C62: ='PRORACUN 3'!E55 -> 29.863 | D62: ='PRORACUN 3'!F55 -> 9.872229799 | E62: 3.024949845 | F62: 19.9907702 | G62: ='KUMULATIV 3'!E55 -> 141.649 | H62: ='KUMULATIV 3'!F55 -> 69.1056086 | I62: 2.049746799 | J62: 72.5433914
B63: ='PRORACUN 3'!D56 -> POINT MARTINOVIĆ DOO | C63: ='PRORACUN 3'!E56 -> 0 | D63: ='PRORACUN 3'!F56 -> 0 | E63: 0 | F63: 0 | G63: ='KUMULATIV 3'!E56 -> 0 | H63: ='KUMULATIV 3'!F56 -> 0 | I63: 0 | J63: 0
B64: ='PRORACUN 3'!D57 -> MIS CHILLI DOO | C64: ='PRORACUN 3'!E57 -> 0 | D64: ='PRORACUN 3'!F57 -> 37.45147746 | E64: 0 | F64: -37.45147746 | G64: ='KUMULATIV 3'!E57 -> 227.617 | H64: ='KUMULATIV 3'!F57 -> 262.1603422 | I64: 0.8682358211 | J64: -34.54334222
B65: ='PRORACUN 3'!D58 -> VEROPOULOS DOO | C65: ='PRORACUN 3'!E58 -> 92.843 | D65: ='PRORACUN 3'!F58 -> 16.85131619 | E65: 5.509539966 | F65: 75.99168381 | G65: ='KUMULATIV 3'!E58 -> 251.663 | H65: ='KUMULATIV 3'!F58 -> 117.9592133 | I65: 2.133474724 | J65: 133.7037867
B66: ='PRORACUN 3'!D59 -> JOVANA STR | C66: ='PRORACUN 3'!E59 -> 7.2 | D66: ='PRORACUN 3'!F59 -> 9.990956781 | E66: 0.7206517011 | F66: -2.790956781 | G66: ='KUMULATIV 3'!E59 -> 48.111 | H66: ='KUMULATIV 3'!F59 -> 69.93669746 | I66: 0.6879221031 | J66: -21.82569746
B67: ='PRORACUN 3'!D60 -> SLAVONAC STUR, ISMETA MUJEZINOVIĆA | C67: ='PRORACUN 3'!E60 -> 0 | D67: ='PRORACUN 3'!F60 -> 0 | E67: 0 | F67: 0 | G67: ='KUMULATIV 3'!E60 -> 0 | H67: ='KUMULATIV 3'!F60 -> 0 | I67: 0 | J67: 0
B68: ='PRORACUN 3'!D61 -> MEDIUS DOO | C68: ='PRORACUN 3'!E61 -> 0 | D68: ='PRORACUN 3'!F61 -> 46.52140562 | E68: 0 | F68: -46.52140562 | G68: ='KUMULATIV 3'!E61 -> 216.564 | H68: ='KUMULATIV 3'!F61 -> 325.6498393 | I68: 0.6650210559 | J68: -109.0858393
B69: ='PRORACUN 3'!D62 -> FAMOSO | C69: ='PRORACUN 3'!E62 -> 0 | D69: ='PRORACUN 3'!F62 -> 0 | E69: 0 | F69: 0 | G69: ='KUMULATIV 3'!E62 -> 0 | H69: ='KUMULATIV 3'!F62 -> 0 | I69: 0 | J69: 0
A70: Ukupno Prerađevine | C70: =SUM(C50:C69) -> 964.581 | D70: =SUM(D50:D69) -> 970.307909 | E70: =IFERROR(C70/D70,0) -> 0.9940978436 | F70: =IFERROR(C70-D70,0) -> -5.726908994 | G70: =SUM(G50:G69) -> 6506.559 | H70: =SUM(H50:H69) -> 6792.155363 | I70: =IFERROR(G70/H70,0) -> 0.9579520273 | J70: =IFERROR(G70-H70,0) -> -285.596363

Sheet RAZRADA GRUPA LA
A1: ='RAZRADA UKUPNO'!A1 -> VINDIJA | B1: ='RAZRADA UKUPNO'!B1:I1 -> Dnevna prodaja od 08.08. i kumulativ dnevnog plana i prodaje za 01.- 08.08.2013
D3: ='RAZRADA UKUPNO'!D3:E3 -> Izvještaj za | G3: ='RAZRADA UKUPNO'!G3:H3 -> Kolovoz/Avgust
D4: ='RAZRADA UKUPNO'!D4 -> 6 | E4: ='RAZRADA UKUPNO'!E4 -> dana + | G4: ='RAZRADA UKUPNO'!G4 -> 22 | H4: ='RAZRADA UKUPNO'!H4 -> dana +
A5: KC LAJKOVAC | D5: ='RAZRADA UKUPNO'!D5 -> 1 | E5: ='RAZRADA UKUPNO'!E5 -> subota | G5: ='RAZRADA UKUPNO'!G5 -> 5 | H5: ='RAZRADA UKUPNO'!H5 -> subota
A7: GRUPA PROIZVODA | B7: KUPAC | C7: 1:Dnevna prodaja | D7: 2:Dnevni plan | E7: IND. prodaja / plan | F7: Razlika 1-2 | G7: 3: Kum. prodaje 2013 | H7: 4: Kum. plana 2013 | I7: IND. kum. prod 2013 / kum. plana 2013 | J7: Razlika 3-4
A8: 1. Sveži proizvodi | B8: ='PRORACUN 3'!D87 -> 0 | C8: ='PRORACUN 3'!E87 -> 5830.484 | D8: ='PRORACUN 3'!F87 -> 6911.79909 | E8: =IFERROR(C8/D8,0) -> 0.8435551908 | F8: =IFERROR(C8-D8,0) -> -1081.31509 | G8: ='KUMULATIV 3'!E87 -> 2022.194 | H8: ='KUMULATIV 3'!F87 -> 2970.34809 | I8: =IFERROR(G8/H8,0) -> 0.6807936103 | J8: =IFERROR(G8-H8,0) -> -948.1540898
B9: ='PRORACUN 3'!D88 -> 0 | C9: ='PRORACUN 3'!E88 -> 455.905 | D9: ='PRORACUN 3'!F88 -> 302.0820999 | E9: =IFERROR(C9/D9,0) -> 1.509208921 | F9: =IFERROR(C9-D9,0) -> 153.8229001 | G9: ='KUMULATIV 3'!E88 -> 2605.372 | H9: ='KUMULATIV 3'!F88 -> 3215.660539 | I9: =IFERROR(G9/H9,0) -> 0.8102136305 | J9: =IFERROR(G9-H9,0) -> -610.2885393
B10: ='PRORACUN 3'!D89 -> 0 | C10: ='PRORACUN 3'!E89 -> 964.581 | D10: ='PRORACUN 3'!F89 -> 970.307909 | E10: 0.9940978436 | F10: -5.726908994 | G10: ='KUMULATIV 3'!E89 -> 652.574 | H10: ='KUMULATIV 3'!F89 -> 1257.383005 | I10: 0.5189938131 | J10: -604.8090045
B11: ='PRORACUN 3'!D90 -> 0 | C11: ='PRORACUN 3'!E90 -> 7250.97 | D11: ='PRORACUN 3'!F90 -> 8184.189099 | E11: 0.8859729306 | F11: -933.2190987 | G11: ='KUMULATIV 3'!E90 -> 1041.574 | H11: ='KUMULATIV 3'!F90 -> 1582.623117 | I11: 0.6581314205 | J11: -541.0491169
B12: ='PRORACUN 3'!D91 -> 0 | C12: ='PRORACUN 3'!E91 -> 0 | D12: ='PRORACUN 3'!F91 -> 0 | E12: 0 | F12: 0 | G12: ='KUMULATIV 3'!E91 -> 787.493 | H12: ='KUMULATIV 3'!F91 -> 1436.634151 | I12: 0.5481513851 | J12: -649.1411514
B13: ='PRORACUN 3'!D92 -> 0 | C13: ='PRORACUN 3'!E92 -> 0 | D13: ='PRORACUN 3'!F92 -> 0 | E13: 0 | F13: 0 | G13: ='KUMULATIV 3'!E92 -> 414.009 | H13: ='KUMULATIV 3'!F92 -> 788.2009867 | I13: 0.52525816 | J13: -374.1919867
B14: ='PRORACUN 3'!D93 -> 0 | C14: ='PRORACUN 3'!E93 -> 0 | D14: ='PRORACUN 3'!F93 -> 0 | E14: 0 | F14: 0 | G14: ='KUMULATIV 3'!E93 -> 0 | H14: ='KUMULATIV 3'!F93 -> 957.1183332 | I14: 0 | J14: -957.1183332
B15: ='PRORACUN 3'!D94 -> 0 | C15: ='PRORACUN 3'!E94 -> 0 | D15: ='PRORACUN 3'!F94 -> 0 | E15: 0 | F15: 0 | G15: ='KUMULATIV 3'!E94 -> 73.782 | H15: ='KUMULATIV 3'!F94 -> 802.7361307 | I15: 0.09191314203 | J15: -728.9541307
B16: ='PRORACUN 3'!D95 -> 0 | C16: ='PRORACUN 3'!E95 -> 0 | D16: ='PRORACUN 3'!F95 -> 0 | E16: 0 | F16: 0 | G16: ='KUMULATIV 3'!E95 -> 283.636 | H16: ='KUMULATIV 3'!F95 -> 644.6817963 | I16: 0.4399627873 | J16: -361.0457963
B17: ='PRORACUN 3'!D96 -> 0 | C17: ='PRORACUN 3'!E96 -> 0 | D17: ='PRORACUN 3'!F96 -> 0 | E17: 0 | F17: 0 | G17: ='KUMULATIV 3'!E96 -> 97.597 | H17: ='KUMULATIV 3'!F96 -> 502.2133961 | I17: 0.194333725 | J17: -404.6163961
B18: ='PRORACUN 3'!D97 -> 0 | C18: ='PRORACUN 3'!E97 -> 0 | D18: ='PRORACUN 3'!F97 -> 0 | E18: 0 | F18: 0 | G18: ='KUMULATIV 3'!E97 -> 374.729 | H18: ='KUMULATIV 3'!F97 -> 440.9578867 | I18: 0.8498067759 | J18: -66.2288867
B19: ='PRORACUN 3'!D98 -> 0 | C19: ='PRORACUN 3'!E98 -> 0 | D19: ='PRORACUN 3'!F98 -> 0 | E19: 0 | F19: 0 | G19: ='KUMULATIV 3'!E98 -> 266.354 | H19: ='KUMULATIV 3'!F98 -> 407.6419118 | I19: 0.6534019007 | J19: -141.2879118
B20: ='PRORACUN 3'!D99 -> 0 | C20: ='PRORACUN 3'!E99 -> 0 | D20: ='PRORACUN 3'!F99 -> 0 | E20: 0 | F20: 0 | G20: ='KUMULATIV 3'!E99 -> 24.037 | H20: ='KUMULATIV 3'!F99 -> 419.1689825 | I20: 0.05734441479 | J20: -395.1319825
B21: ='PRORACUN 3'!D100 -> 0 | C21: ='PRORACUN 3'!E100 -> 0 | D21: ='PRORACUN 3'!F100 -> 0 | E21: 0 | F21: 0 | G21: ='KUMULATIV 3'!E100 -> 99.88 | H21: ='KUMULATIV 3'!F100 -> 262.3497173 | I21: 0.3807131985 | J21: -162.4697173
B22: ='PRORACUN 3'!D101 -> 0 | C22: ='PRORACUN 3'!E101 -> 0 | D22: ='PRORACUN 3'!F101 -> 0 | E22: 0 | F22: 0 | G22: ='KUMULATIV 3'!E101 -> 0 | H22: ='KUMULATIV 3'!F101 -> 137.8232604 | I22: 0 | J22: -137.8232604
B23: ='PRORACUN 3'!D102 -> 0 | C23: ='PRORACUN 3'!E102 -> 0 | D23: ='PRORACUN 3'!F102 -> 0 | E23: 0 | F23: 0 | G23: ='KUMULATIV 3'!E102 -> 0 | H23: ='KUMULATIV 3'!F102 -> 412.3899135 | I23: 0 | J23: -412.3899135
B24: ='PRORACUN 3'!D103 -> 0 | C24: ='PRORACUN 3'!E103 -> 0 | D24: ='PRORACUN 3'!F103 -> 0 | E24: 0 | F24: 0 | G24: ='KUMULATIV 3'!E103 -> 217.595 | H24: ='KUMULATIV 3'!F103 -> 239.3308325 | I24: 0.9091808094 | J24: -21.73583249
B25: ='PRORACUN 3'!D104 -> 0 | C25: ='PRORACUN 3'!E104 -> 0 | D25: ='PRORACUN 3'!F104 -> 0 | E25: 0 | F25: 0 | G25: ='KUMULATIV 3'!E104 -> 0 | H25: ='KUMULATIV 3'!F104 -> 276.4014469 | I25: 0 | J25: -276.4014469
B26: ='PRORACUN 3'!D105 -> 0 | C26: ='PRORACUN 3'!E105 -> 0 | D26: ='PRORACUN 3'!F105 -> 0 | E26: 0 | F26: 0 | G26: ='KUMULATIV 3'!E105 -> 18.712 | H26: ='KUMULATIV 3'!F105 -> 200.2349662 | I26: 0.09345021181 | J26: -181.5229662
B27: ='PRORACUN 3'!D106 -> 0 | C27: ='PRORACUN 3'!E106 -> 0 | D27: ='PRORACUN 3'!F106 -> 0 | E27: 0 | F27: 0 | G27: ='KUMULATIV 3'!E106 -> 6.152 | H27: ='KUMULATIV 3'!F106 -> 3.804434916 | I27: 1.617060125 | J27: 2.347565084
A28: Ukupno Sveži proizvodi | C28: =SUM(C8:C27) -> 14501.94 | D28: =SUM(D8:D27) -> 16368.3782 | E28: =IFERROR(C28/D28,0) -> 0.8859729306 | F28: =IFERROR(C28-D28,0) -> -1866.438197 | G28: =SUM(G8:G27) -> 8985.69 | H28: =SUM(H8:H27) -> 16957.7029 | I28: =IFERROR(G28/H28,0) -> 0.5298883967 | J28: =IFERROR(G28-H28,0) -> -7972.012898
A29: 2. Smrznuti proizvodi | B29: ='PRORACUN 3'!D107 -> 0 | C29: ='PRORACUN 3'!E107 -> 0 | D29: ='PRORACUN 3'!F107 -> 0 | E29: 0 | F29: 0 | G29: ='KUMULATIV 3'!E107 -> 11.108 | H29: ='KUMULATIV 3'!F107 -> 35.86607664 | I29: 0.3097076971 | J29: -24.75807664
B30: ='PRORACUN 3'!D108 -> 0 | C30: ='PRORACUN 3'!E108 -> 0 | D30: ='PRORACUN 3'!F108 -> 0 | E30: =IFERROR(C30/D30,0) -> 0 | F30: =IFERROR(C30-D30,0) -> 0 | G30: ='KUMULATIV 3'!E108 -> 0 | H30: ='KUMULATIV 3'!F108 -> 0 | I30: =IFERROR(G30/H30,0) -> 0 | J30: =IFERROR(G30-H30,0) -> 0
B31: ='PRORACUN 3'!D109 -> 0 | C31: ='PRORACUN 3'!E109 -> 0 | D31: ='PRORACUN 3'!F109 -> 0 | E31: 0 | F31: 0 | G31: ='KUMULATIV 3'!E109 -> 0 | H31: ='KUMULATIV 3'!F109 -> 0 | I31: 0 | J31: 0
B32: ='PRORACUN 3'!D110 -> 0 | C32: ='PRORACUN 3'!E110 -> 0 | D32: ='PRORACUN 3'!F110 -> 0 | E32: 0 | F32: 0 | G32: ='KUMULATIV 3'!E110 -> 91.924 | H32: ='KUMULATIV 3'!F110 -> 376.5616377 | I32: 0.244114086 | J32: -284.6376377
B33: ='PRORACUN 3'!D111 -> 0 | C33: ='PRORACUN 3'!E111 -> 0 | D33: ='PRORACUN 3'!F111 -> 0 | E33: 0 | F33: 0 | G33: ='KUMULATIV 3'!E111 -> 0 | H33: ='KUMULATIV 3'!F111 -> 27.54480665 | I33: 0 | J33: -27.54480665
B34: ='PRORACUN 3'!D112 -> 0 | C34: ='PRORACUN 3'!E112 -> 0 | D34: ='PRORACUN 3'!F112 -> 0 | E34: 0 | F34: 0 | G34: ='KUMULATIV 3'!E112 -> 108.146 | H34: ='KUMULATIV 3'!F112 -> 304.8233054 | I34: 0.3547825841 | J34: -196.6773054
B35: ='PRORACUN 3'!D113 -> 0 | C35: ='PRORACUN 3'!E113 -> 0 | D35: ='PRORACUN 3'!F113 -> 0 | E35: 0 | F35: 0 | G35: ='KUMULATIV 3'!E113 -> 0 | H35: ='KUMULATIV 3'!F113 -> 104.8125999 | I35: 0 | J35: -104.8125999
B36: ='PRORACUN 3'!D114 -> 0 | C36: ='PRORACUN 3'!E114 -> 0 | D36: ='PRORACUN 3'!F114 -> 0 | E36: 0 | F36: 0 | G36: ='KUMULATIV 3'!E114 -> 0 | H36: ='KUMULATIV 3'!F114 -> 3.3784487 | I36: 0 | J36: -3.3784487
B37: ='PRORACUN 3'!D115 -> 0 | C37: ='PRORACUN 3'!E115 -> 0 | D37: ='PRORACUN 3'!F115 -> 0 | E37: 0 | F37: 0 | G37: ='KUMULATIV 3'!E115 -> 0 | H37: ='KUMULATIV 3'!F115 -> 0 | I37: 0 | J37: 0
B38: ='PRORACUN 3'!D116 -> 0 | C38: ='PRORACUN 3'!E116 -> 0 | D38: ='PRORACUN 3'!F116 -> 0 | E38: 0 | F38: 0 | G38: ='KUMULATIV 3'!E116 -> 0 | H38: ='KUMULATIV 3'!F116 -> 0 | I38: 0 | J38: 0
B39: ='PRORACUN 3'!D117 -> 0 | C39: ='PRORACUN 3'!E117 -> 0 | D39: ='PRORACUN 3'!F117 -> 0 | E39: 0 | F39: 0 | G39: ='KUMULATIV 3'!E117 -> 0 | H39: ='KUMULATIV 3'!F117 -> 0 | I39: 0 | J39: 0
B40: ='PRORACUN 3'!D118 -> 0 | C40: ='PRORACUN 3'!E118 -> 0 | D40: ='PRORACUN 3'!F118 -> 0 | E40: 0 | F40: 0 | G40: ='KUMULATIV 3'!E118 -> 0 | H40: ='KUMULATIV 3'!F118 -> 64.00988098 | I40: 0 | J40: -64.00988098
B41: ='PRORACUN 3'!D119 -> 0 | C41: ='PRORACUN 3'!E119 -> 0 | D41: ='PRORACUN 3'!F119 -> 0 | E41: 0 | F41: 0 | G41: ='KUMULATIV 3'!E119 -> 0 | H41: ='KUMULATIV 3'!F119 -> 0 | I41: 0 | J41: 0
B42: ='PRORACUN 3'!D120 -> 0 | C42: ='PRORACUN 3'!E120 -> 0 | D42: ='PRORACUN 3'!F120 -> 0 | E42: 0 | F42: 0 | G42: ='KUMULATIV 3'!E120 -> 24.318 | H42: ='KUMULATIV 3'!F120 -> 73.90315641 | I42: 0.3290522514 | J42: -49.58515641
B43: ='PRORACUN 3'!D121 -> 0 | C43: ='PRORACUN 3'!E121 -> 0 | D43: ='PRORACUN 3'!F121 -> 0 | E43: 0 | F43: 0 | G43: ='KUMULATIV 3'!E121 -> 0 | H43: ='KUMULATIV 3'!F121 -> 67.73471608 | I43: 0 | J43: -67.73471608
B44: ='PRORACUN 3'!D122 -> 0 | C44: ='PRORACUN 3'!E122 -> 0 | D44: ='PRORACUN 3'!F122 -> 0 | E44: 0 | F44: 0 | G44: ='KUMULATIV 3'!E122 -> 0 | H44: ='KUMULATIV 3'!F122 -> 8.950435636 | I44: 0 | J44: -8.950435636
B45: ='PRORACUN 3'!D123 -> 0 | C45: ='PRORACUN 3'!E123 -> 0 | D45: ='PRORACUN 3'!F123 -> 0 | E45: 0 | F45: 0 | G45: ='KUMULATIV 3'!E123 -> 123.068 | H45: ='KUMULATIV 3'!F123 -> 146.9579751 | I45: 0.8374366885 | J45: -23.88997509
B46: ='PRORACUN 3'!D124 -> 0 | C46: ='PRORACUN 3'!E124 -> 0 | D46: ='PRORACUN 3'!F124 -> 0 | E46: 0 | F46: 0 | G46: ='KUMULATIV 3'!E124 -> 0 | H46: ='KUMULATIV 3'!F124 -> 0 | I46: 0 | J46: 0
B47: ='PRORACUN 3'!D125 -> 0 | C47: ='PRORACUN 3'!E125 -> 0 | D47: ='PRORACUN 3'!F125 -> 0 | E47: 0 | F47: 0 | G47: ='KUMULATIV 3'!E125 -> 13.376 | H47: ='KUMULATIV 3'!F125 -> 42.01997819 | I47: 0.3183247725 | J47: -28.64397819
B48: ='PRORACUN 3'!D126 -> 0 | C48: ='PRORACUN 3'!E126 -> 0 | D48: ='PRORACUN 3'!F126 -> 0 | E48: 0 | F48: 0 | G48: ='KUMULATIV 3'!E126 -> 149.04 | H48: ='KUMULATIV 3'!F126 -> 276.5693698 | I48: 0.5388883089 | J48: -127.5293698
A49: Ukupno Smrznuti proizvodi | C49: =SUM(C29:C48) -> 0 | D49: =SUM(D29:D48) -> 0 | E49: 0 | F49: 0 | G49: =SUM(G29:G48) -> 520.98 | H49: =SUM(H29:H48) -> 1533.132387 | I49: 0.3398140985 | J49: -1012.152387
A50: 3. Prerađevine | B50: ='PRORACUN 3'!D127 -> 0 | C50: ='PRORACUN 3'!E127 -> 0 | D50: ='PRORACUN 3'!F127 -> 0 | E50: 0 | F50: 0 | G50: ='KUMULATIV 3'!E127 -> 389.999 | H50: ='KUMULATIV 3'!F127 -> 345.14261 | I50: 1.129964799 | J50: 44.85639002
B51: ='PRORACUN 3'!D128 -> 0 | C51: ='PRORACUN 3'!E128 -> 0 | D51: ='PRORACUN 3'!F128 -> 0 | E51: =IFERROR(C51/D51,0) -> 0 | F51: =IFERROR(C51-D51,0) -> 0 | G51: ='KUMULATIV 3'!E128 -> 238.653 | H51: ='KUMULATIV 3'!F128 -> 10.35887982 | I51: =IFERROR(G51/H51,0) -> 23.0384949 | J51: =IFERROR(G51-H51,0) -> 228.2941202
B52: ='PRORACUN 3'!D129 -> 0 | C52: ='PRORACUN 3'!E129 -> 0 | D52: ='PRORACUN 3'!F129 -> 0 | E52: 0 | F52: 0 | G52: ='KUMULATIV 3'!E129 -> 717.711 | H52: ='KUMULATIV 3'!F129 -> 1189.398221 | I52: 0.6034236365 | J52: -471.6872215
B53: ='PRORACUN 3'!D130 -> 0 | C53: ='PRORACUN 3'!E130 -> 0 | D53: ='PRORACUN 3'!F130 -> 0 | E53: 0 | F53: 0 | G53: ='KUMULATIV 3'!E130 -> 390.85 | H53: ='KUMULATIV 3'!F130 -> 322.9426218 | I53: 1.210276915 | J53: 67.90737816
B54: ='PRORACUN 3'!D131 -> 0 | C54: ='PRORACUN 3'!E131 -> 0 | D54: ='PRORACUN 3'!F131 -> 0 | E54: 0 | F54: 0 | G54: ='KUMULATIV 3'!E131 -> 147.312 | H54: ='KUMULATIV 3'!F131 -> 84.26021889 | I54: 1.74829833 | J54: 63.05178111
B55: ='PRORACUN 3'!D132 -> 0 | C55: ='PRORACUN 3'!E132 -> 0 | D55: ='PRORACUN 3'!F132 -> 0 | E55: 0 | F55: 0 | G55: ='KUMULATIV 3'!E132 -> 349.32 | H55: ='KUMULATIV 3'!F132 -> 361.0233179 | I55: 0.9675829306 | J55: -11.70331795
B56: ='PRORACUN 3'!D133 -> 0 | C56: ='PRORACUN 3'!E133 -> 0 | D56: ='PRORACUN 3'!F133 -> 0 | E56: 0 | F56: 0 | G56: ='KUMULATIV 3'!E133 -> 0 | H56: ='KUMULATIV 3'!F133 -> 273.8655205 | I56: 0 | J56: -273.8655205
B57: ='PRORACUN 3'!D134 -> 0 | C57: ='PRORACUN 3'!E134 -> 0 | D57: ='PRORACUN 3'!F134 -> 0 | E57: 0 | F57: 0 | G57: ='KUMULATIV 3'!E134 -> 35.4 | H57: ='KUMULATIV 3'!F134 -> 47.8125911 | I57: 0.7403907462 | J57: -12.4125911
B58: ='PRORACUN 3'!D135 -> 0 | C58: ='PRORACUN 3'!E135 -> 0 | D58: ='PRORACUN 3'!F135 -> 0 | E58: 0 | F58: 0 | G58: ='KUMULATIV 3'!E135 -> 0 | H58: ='KUMULATIV 3'!F135 -> 2.180816805 | I58: 0 | J58: -2.180816805
B59: ='PRORACUN 3'!D136 -> 0 | C59: ='PRORACUN 3'!E136 -> 0 | D59: ='PRORACUN 3'!F136 -> 0 | E59: 0 | F59: 0 | G59: ='KUMULATIV 3'!E136 -> 70.705 | H59: ='KUMULATIV 3'!F136 -> 117.0655191 | I59: 0.6039780161 | J59: -46.36051914
B60: ='PRORACUN 3'!D137 -> 0 | C60: ='PRORACUN 3'!E137 -> 0 | D60: ='PRORACUN 3'!F137 -> 0 | E60: 0 | F60: 0 | G60: ='KUMULATIV 3'!E137 -> 60.5 | H60: ='KUMULATIV 3'!F137 -> 174.6972379 | I60: 0.3463134319 | J60: -114.1972379
B61: ='PRORACUN 3'!D138 -> 0 | C61: ='PRORACUN 3'!E138 -> 0 | D61: ='PRORACUN 3'!F138 -> 0 | E61: 0 | F61: 0 | G61: ='KUMULATIV 3'!E138 -> 17.25 | H61: ='KUMULATIV 3'!F138 -> 25.53373009 | I61: 0.6755769697 | J61: -8.283730089
B62: ='PRORACUN 3'!D139 -> 0 | C62: ='PRORACUN 3'!E139 -> 0 | D62: ='PRORACUN 3'!F139 -> 0 | E62: 0 | F62: 0 | G62: ='KUMULATIV 3'!E139 -> 0 | H62: ='KUMULATIV 3'!F139 -> 25.24767962 | I62: 0 | J62: -25.24767962
B63: ='PRORACUN 3'!D140 -> 0 | C63: ='PRORACUN 3'!E140 -> 0 | D63: ='PRORACUN 3'!F140 -> 0 | E63: 0 | F63: 0 | G63: ='KUMULATIV 3'!E140 -> 140.147 | H63: ='KUMULATIV 3'!F140 -> 95.11378065 | I63: 1.473466821 | J63: 45.03321935
B64: ='PRORACUN 3'!D141 -> 0 | C64: ='PRORACUN 3'!E141 -> 0 | D64: ='PRORACUN 3'!F141 -> 0 | E64: 0 | F64: 0 | G64: ='KUMULATIV 3'!E141 -> 0 | H64: ='KUMULATIV 3'!F141 -> 223.8517583 | I64: 0 | J64: -223.8517583
B65: ='PRORACUN 3'!D142 -> 0 | C65: ='PRORACUN 3'!E142 -> 0 | D65: ='PRORACUN 3'!F142 -> 0 | E65: 0 | F65: 0 | G65: ='KUMULATIV 3'!E142 -> 0 | H65: ='KUMULATIV 3'!F142 -> 4.198072349 | I65: 0 | J65: -4.198072349
B66: ='PRORACUN 3'!D143 -> 0 | C66: ='PRORACUN 3'!E143 -> 0 | D66: ='PRORACUN 3'!F143 -> 0 | E66: 0 | F66: 0 | G66: ='KUMULATIV 3'!E143 -> 0 | H66: ='KUMULATIV 3'!F143 -> 0 | I66: 0 | J66: 0
B67: ='PRORACUN 3'!D144 -> 0 | C67: ='PRORACUN 3'!E144 -> 0 | D67: ='PRORACUN 3'!F144 -> 0 | E67: 0 | F67: 0 | G67: ='KUMULATIV 3'!E144 -> 0 | H67: ='KUMULATIV 3'!F144 -> 85.67048042 | I67: 0 | J67: -85.67048042
B68: ='PRORACUN 3'!D145 -> 0 | C68: ='PRORACUN 3'!E145 -> 0 | D68: ='PRORACUN 3'!F145 -> 0 | E68: 0 | F68: 0 | G68: ='KUMULATIV 3'!E145 -> 65.194 | H68: ='KUMULATIV 3'!F145 -> 95.56302892 | I68: 0.6822094354 | J68: -30.36902892
B69: ='PRORACUN 3'!D146 -> 0 | C69: ='PRORACUN 3'!E146 -> 0 | D69: ='PRORACUN 3'!F146 -> 0 | E69: 0 | F69: 0 | G69: ='KUMULATIV 3'!E146 -> 42 | H69: ='KUMULATIV 3'!F146 -> 43.77989736 | I69: 0.9593444146 | J69: -1.779897356
A70: Ukupno Prerađevine | C70: =SUM(C50:C69) -> 0 | D70: =SUM(D50:D69) -> 0 | E70: 0 | F70: 0 | G70: =SUM(G50:G69) -> 2665.041 | H70: =SUM(H50:H69) -> 3527.705983 | I70: 0.7554600675 | J70: -862.664983

Sheet RAZRADA GRUPA NI
A1: ='RAZRADA UKUPNO'!A1 -> VINDIJA | B1: ='RAZRADA UKUPNO'!B1:I1 -> Dnevna prodaja od 08.08. i kumulativ dnevnog plana i prodaje za 01.- 08.08.2013
D3: ='RAZRADA UKUPNO'!D3:E3 -> Izvještaj za | G3: ='RAZRADA UKUPNO'!G3:H3 -> Kolovoz/Avgust
D4: ='RAZRADA UKUPNO'!D4 -> 6 | E4: ='RAZRADA UKUPNO'!E4 -> dana + | G4: ='RAZRADA UKUPNO'!G4 -> 22 | H4: ='RAZRADA UKUPNO'!H4 -> dana +
A5: KC NIŠ | D5: ='RAZRADA UKUPNO'!D5 -> 1 | E5: ='RAZRADA UKUPNO'!E5 -> subota | G5: ='RAZRADA UKUPNO'!G5 -> 5 | H5: ='RAZRADA UKUPNO'!H5 -> subota
A7: GRUPA PROIZVODA | B7: KUPAC | C7: 1:Dnevna prodaja | D7: 2:Dnevni plan | E7: IND. prodaja / plan | F7: Razlika 1-2 | G7: 3: Kum. prodaje 2013 | H7: 4: Kum. plana 2013 | I7: IND. kum. prod 2013 / kum. plana 2013 | J7: Razlika 3-4
A8: 1. Sveži proizvodi | B8: ='PRORACUN 3'!D171 -> 0 | C8: ='PRORACUN 3'!E171 -> 0 | D8: ='PRORACUN 3'!F171 -> 0 | E8: =IFERROR(C8/D8,0) -> 0 | F8: =IFERROR(C8-D8,0) -> 0 | G8: ='KUMULATIV 3'!E171 -> 183.41 | H8: ='KUMULATIV 3'!F171 -> 5312.867938 | I8: =IFERROR(G8/H8,0) -> 0.03452184435 | J8: =IFERROR(G8-H8,0) -> -5129.457938
B9: ='PRORACUN 3'!D172 -> 0 | C9: ='PRORACUN 3'!E172 -> 0 | D9: ='PRORACUN 3'!F172 -> 0 | E9: =IFERROR(C9/D9,0) -> 0 | F9: =IFERROR(C9-D9,0) -> 0 | G9: ='KUMULATIV 3'!E172 -> 1409.719 | H9: ='KUMULATIV 3'!F172 -> 7205.906062 | I9: =IFERROR(G9/H9,0) -> 0.1956338298 | J9: =IFERROR(G9-H9,0) -> -5796.187062
B10: ='PRORACUN 3'!D173 -> 0 | C10: ='PRORACUN 3'!E173 -> 0 | D10: ='PRORACUN 3'!F173 -> 0 | E10: 0 | F10: 0 | G10: ='KUMULATIV 3'!E173 -> 12889.468 | H10: ='KUMULATIV 3'!F173 -> 6535.397182 | I10: 1.972254729 | J10: 6354.070818
B11: ='PRORACUN 3'!D174 -> 0 | C11: ='PRORACUN 3'!E174 -> 0 | D11: ='PRORACUN 3'!F174 -> 0 | E11: 0 | F11: 0 | G11: ='KUMULATIV 3'!E174 -> 28.513 | H11: ='KUMULATIV 3'!F174 -> 151.5804591 | I11: 0.1881047212 | J11: -123.0674591
B12: ='PRORACUN 3'!D175 -> 0 | C12: ='PRORACUN 3'!E175 -> 0 | D12: ='PRORACUN 3'!F175 -> 0 | E12: 0 | F12: 0 | G12: ='KUMULATIV 3'!E175 -> 157.21 | H12: ='KUMULATIV 3'!F175 -> 2355.983321 | I12: 0.06672797663 | J12: -2198.773321
B13: ='PRORACUN 3'!D176 -> 0 | C13: ='PRORACUN 3'!E176 -> 0 | D13: ='PRORACUN 3'!F176 -> 0 | E13: 0 | F13: 0 | G13: ='KUMULATIV 3'!E176 -> 0 | H13: ='KUMULATIV 3'!F176 -> 2821.804018 | I13: 0 | J13: -2821.804018
B14: ='PRORACUN 3'!D177 -> 0 | C14: ='PRORACUN 3'!E177 -> 0 | D14: ='PRORACUN 3'!F177 -> 0 | E14: 0 | F14: 0 | G14: ='KUMULATIV 3'!E177 -> 331.547 | H14: ='KUMULATIV 3'!F177 -> 2744.507513 | I14: 0.1208038231 | J14: -2412.960513
B15: ='PRORACUN 3'!D178 -> 0 | C15: ='PRORACUN 3'!E178 -> 0 | D15: ='PRORACUN 3'!F178 -> 0 | E15: 0 | F15: 0 | G15: ='KUMULATIV 3'!E178 -> 0 | H15: ='KUMULATIV 3'!F178 -> 2012.457817 | I15: 0 | J15: -2012.457817
B16: ='PRORACUN 3'!D179 -> 0 | C16: ='PRORACUN 3'!E179 -> 0 | D16: ='PRORACUN 3'!F179 -> 0 | E16: 0 | F16: 0 | G16: ='KUMULATIV 3'!E179 -> 37.691 | H16: ='KUMULATIV 3'!F179 -> 696.2231483 | I16: 0.05413637868 | J16: -658.5321483
B17: ='PRORACUN 3'!D180 -> 0 | C17: ='PRORACUN 3'!E180 -> 0 | D17: ='PRORACUN 3'!F180 -> 0 | E17: 0 | F17: 0 | G17: ='KUMULATIV 3'!E180 -> 323.896 | H17: ='KUMULATIV 3'!F180 -> 1722.082305 | I17: 0.1880839255 | J17: -1398.186305
B18: ='PRORACUN 3'!D181 -> 0 | C18: ='PRORACUN 3'!E181 -> 0 | D18: ='PRORACUN 3'!F181 -> 0 | E18: 0 | F18: 0 | G18: ='KUMULATIV 3'!E181 -> 247.537 | H18: ='KUMULATIV 3'!F181 -> 1453.05978 | I18: 0.170355689 | J18: -1205.52278
B19: ='PRORACUN 3'!D182 -> 0 | C19: ='PRORACUN 3'!E182 -> 0 | D19: ='PRORACUN 3'!F182 -> 0 | E19: 0 | F19: 0 | G19: ='KUMULATIV 3'!E182 -> 0 | H19: ='KUMULATIV 3'!F182 -> 0 | I19: 0 | J19: 0
B20: ='PRORACUN 3'!D183 -> 0 | C20: ='PRORACUN 3'!E183 -> 0 | D20: ='PRORACUN 3'!F183 -> 0 | E20: 0 | F20: 0 | G20: ='KUMULATIV 3'!E183 -> 82.231 | H20: ='KUMULATIV 3'!F183 -> 1131.334277 | I20: 0.07268497177 | J20: -1049.103277
B21: ='PRORACUN 3'!D184 -> 0 | C21: ='PRORACUN 3'!E184 -> 0 | D21: ='PRORACUN 3'!F184 -> 0 | E21: 0 | F21: 0 | G21: ='KUMULATIV 3'!E184 -> 0 | H21: ='KUMULATIV 3'!F184 -> 0 | I21: 0 | J21: 0
B22: ='PRORACUN 3'!D185 -> 0 | C22: ='PRORACUN 3'!E185 -> 0 | D22: ='PRORACUN 3'!F185 -> 0 | E22: 0 | F22: 0 | G22: ='KUMULATIV 3'!E185 -> 0 | H22: ='KUMULATIV 3'!F185 -> 1441.076183 | I22: 0 | J22: -1441.076183
B23: ='PRORACUN 3'!D186 -> 0 | C23: ='PRORACUN 3'!E186 -> 0 | D23: ='PRORACUN 3'!F186 -> 0 | E23: 0 | F23: 0 | G23: ='KUMULATIV 3'!E186 -> 0 | H23: ='KUMULATIV 3'!F186 -> 0 | I23: 0 | J23: 0
B24: ='PRORACUN 3'!D187 -> 0 | C24: ='PRORACUN 3'!E187 -> 0 | D24: ='PRORACUN 3'!F187 -> 0 | E24: 0 | F24: 0 | G24: ='KUMULATIV 3'!E187 -> 0 | H24: ='KUMULATIV 3'!F187 -> 474.3793108 | I24: 0 | J24: -474.3793108
B25: ='PRORACUN 3'!D188 -> 0 | C25: ='PRORACUN 3'!E188 -> 0 | D25: ='PRORACUN 3'!F188 -> 0 | E25: 0 | F25: 0 | G25: ='KUMULATIV 3'!E188 -> 222.985 | H25: ='KUMULATIV 3'!F188 -> 724.2583092 | I25: 0.3078804857 | J25: -501.2733092
B26: ='PRORACUN 3'!D189 -> 0 | C26: ='PRORACUN 3'!E189 -> 0 | D26: ='PRORACUN 3'!F189 -> 0 | E26: 0 | F26: 0 | G26: ='KUMULATIV 3'!E189 -> 0 | H26: ='KUMULATIV 3'!F189 -> 0 | I26: 0 | J26: 0
B27: ='PRORACUN 3'!D190 -> 0 | C27: ='PRORACUN 3'!E190 -> 0 | D27: ='PRORACUN 3'!F190 -> 0 | E27: 0 | F27: 0 | G27: ='KUMULATIV 3'!E190 -> 136.544 | H27: ='KUMULATIV 3'!F190 -> 869.9904247 | I27: 0.1569488538 | J27: -733.4464247
A28: Ukupno Sveži proizvodi | C28: =SUM(C8:C27) -> 0 | D28: =SUM(D8:D27) -> 0 | E28: =IFERROR(C28/D28,0) -> 0 | F28: =IFERROR(C28-D28,0) -> 0 | G28: =SUM(G8:G27) -> 16050.751 | H28: =SUM(H8:H27) -> 37652.90805 | I28: =IFERROR(G28/H28,0) -> 0.426281842 | J28: =IFERROR(G28-H28,0) -> -21602.15705
A29: 2. Smrznuti proizvodi | B29: ='PRORACUN 3'!D191 -> 0 | C29: ='PRORACUN 3'!E191 -> 0 | D29: ='PRORACUN 3'!F191 -> 0 | E29: 0 | F29: =IFERROR(C29-D29,0) -> 0 | G29: ='KUMULATIV 3'!E191 -> 60 | H29: ='KUMULATIV 3'!F191 -> 150.373902 | I29: 0.3990054071 | J29: -90.37390202
B30: ='PRORACUN 3'!D192 -> 0 | C30: ='PRORACUN 3'!E192 -> 0 | D30: ='PRORACUN 3'!F192 -> 0 | E30: =IFERROR(C30/D30,0) -> 0 | F30: =IFERROR(C30-D30,0) -> 0 | G30: ='KUMULATIV 3'!E192 -> 0 | H30: ='KUMULATIV 3'!F192 -> 0 | I30: =IFERROR(G30/H30,0) -> 0 | J30: =IFERROR(G30-H30,0) -> 0
B31: ='PRORACUN 3'!D193 -> 0 | C31: ='PRORACUN 3'!E193 -> 0 | D31: ='PRORACUN 3'!F193 -> 0 | E31: 0 | F31: 0 | G31: ='KUMULATIV 3'!E193 -> 0 | H31: ='KUMULATIV 3'!F193 -> 0 | I31: 0 | J31: 0
B32: ='PRORACUN 3'!D194 -> 0 | C32: ='PRORACUN 3'!E194 -> 0 | D32: ='PRORACUN 3'!F194 -> 0 | E32: 0 | F32: 0 | G32: ='KUMULATIV 3'!E194 -> 231.726 | H32: ='KUMULATIV 3'!F194 -> 1121.295005 | I32: 0.2066592636 | J32: -889.5690049
B33: ='PRORACUN 3'!D195 -> 0 | C33: ='PRORACUN 3'!E195 -> 0 | D33: ='PRORACUN 3'!F195 -> 0 | E33: 0 | F33: 0 | G33: ='KUMULATIV 3'!E195 -> 40.267 | H33: ='KUMULATIV 3'!F195 -> 969.1560969 | I33: 0.04154851848 | J33: -928.8890969
B34: ='PRORACUN 3'!D196 -> 0 | C34: ='PRORACUN 3'!E196 -> 0 | D34: ='PRORACUN 3'!F196 -> 0 | E34: 0 | F34: 0 | G34: ='KUMULATIV 3'!E196 -> 0 | H34: ='KUMULATIV 3'!F196 -> 0 | I34: 0 | J34: 0
B35: ='PRORACUN 3'!D197 -> 0 | C35: ='PRORACUN 3'!E197 -> 0 | D35: ='PRORACUN 3'!F197 -> 0 | E35: 0 | F35: 0 | G35: ='KUMULATIV 3'!E197 -> 0 | H35: ='KUMULATIV 3'!F197 -> 0 | I35: 0 | J35: 0
B36: ='PRORACUN 3'!D198 -> 0 | C36: ='PRORACUN 3'!E198 -> 0 | D36: ='PRORACUN 3'!F198 -> 0 | E36: 0 | F36: 0 | G36: ='KUMULATIV 3'!E198 -> 0 | H36: ='KUMULATIV 3'!F198 -> 806.0172819 | I36: 0 | J36: -806.0172819
B37: ='PRORACUN 3'!D199 -> 0 | C37: ='PRORACUN 3'!E199 -> 0 | D37: ='PRORACUN 3'!F199 -> 0 | E37: 0 | F37: 0 | G37: ='KUMULATIV 3'!E199 -> 183.926 | H37: ='KUMULATIV 3'!F199 -> 237.4125226 | I37: 0.774710609 | J37: -53.48652264
B38: ='PRORACUN 3'!D200 -> 0 | C38: ='PRORACUN 3'!E200 -> 0 | D38: ='PRORACUN 3'!F200 -> 0 | E38: 0 | F38: 0 | G38: ='KUMULATIV 3'!E200 -> 156.018 | H38: ='KUMULATIV 3'!F200 -> 282.7198942 | I38: 0.5518465563 | J38: -126.7018942
B39: ='PRORACUN 3'!D201 -> 0 | C39: ='PRORACUN 3'!E201 -> 0 | D39: ='PRORACUN 3'!F201 -> 0 | E39: 0 | F39: 0 | G39: ='KUMULATIV 3'!E201 -> 0 | H39: ='KUMULATIV 3'!F201 -> 24.38474938 | I39: 0 | J39: -24.38474938
B40: ='PRORACUN 3'!D202 -> 0 | C40: ='PRORACUN 3'!E202 -> 0 | D40: ='PRORACUN 3'!F202 -> 0 | E40: 0 | F40: 0 | G40: ='KUMULATIV 3'!E202 -> 0 | H40: ='KUMULATIV 3'!F202 -> 337.567008 | I40: 0 | J40: -337.567008
B41: ='PRORACUN 3'!D203 -> 0 | C41: ='PRORACUN 3'!E203 -> 0 | D41: ='PRORACUN 3'!F203 -> 0 | E41: 0 | F41: 0 | G41: ='KUMULATIV 3'!E203 -> 79.078 | H41: ='KUMULATIV 3'!F203 -> 324.2679823 | I41: 0.2438661981 | J41: -245.1899823
B42: ='PRORACUN 3'!D204 -> 0 | C42: ='PRORACUN 3'!E204 -> 0 | D42: ='PRORACUN 3'!F204 -> 0 | E42: 0 | F42: 0 | G42: ='KUMULATIV 3'!E204 -> 83.097 | H42: ='KUMULATIV 3'!F204 -> 604.9013781 | I42: 0.1373728066 | J42: -521.8043781
B43: ='PRORACUN 3'!D205 -> 0 | C43: ='PRORACUN 3'!E205 -> 0 | D43: ='PRORACUN 3'!F205 -> 0 | E43: 0 | F43: 0 | G43: ='KUMULATIV 3'!E205 -> 0 | H43: ='KUMULATIV 3'!F205 -> 0 | I43: 0 | J43: 0
B44: ='PRORACUN 3'!D206 -> 0 | C44: ='PRORACUN 3'!E206 -> 0 | D44: ='PRORACUN 3'!F206 -> 0 | E44: 0 | F44: 0 | G44: ='KUMULATIV 3'!E206 -> 464.76 | H44: ='KUMULATIV 3'!F206 -> 1285.851717 | I44: 0.3614413653 | J44: -821.0917166
B45: ='PRORACUN 3'!D207 -> 0 | C45: ='PRORACUN 3'!E207 -> 0 | D45: ='PRORACUN 3'!F207 -> 0 | E45: 0 | F45: 0 | G45: ='KUMULATIV 3'!E207 -> 21 | H45: ='KUMULATIV 3'!F207 -> 0 | I45: 0 | J45: 21
B46: ='PRORACUN 3'!D208 -> 0 | C46: ='PRORACUN 3'!E208 -> 0 | D46: ='PRORACUN 3'!F208 -> 0 | E46: 0 | F46: 0 | G46: ='KUMULATIV 3'!E208 -> 21.606 | H46: ='KUMULATIV 3'!F208 -> 22.46732266 | I46: 0.9616633154 | J46: -0.8613226636
B47: ='PRORACUN 3'!D209 -> 0 | C47: ='PRORACUN 3'!E209 -> 0 | D47: ='PRORACUN 3'!F209 -> 0 | E47: 0 | F47: 0 | G47: ='KUMULATIV 3'!E209 -> 430.348 | H47: ='KUMULATIV 3'!F209 -> 1070.366 | I47: 0.4020568667 | J47: -640.0179995
B48: ='PRORACUN 3'!D210 -> 0 | C48: ='PRORACUN 3'!E210 -> 0 | D48: ='PRORACUN 3'!F210 -> 0 | E48: 0 | F48: 0 | G48: ='KUMULATIV 3'!E210 -> 0 | H48: ='KUMULATIV 3'!F210 -> 23.48431452 | I48: 0 | J48: -23.48431452
A49: Ukupno Smrznuti proizvodi | C49: =SUM(C29:C48) -> 0 | D49: =SUM(D29:D48) -> 0 | E49: 0 | F49: 0 | G49: =SUM(G29:G48) -> 1771.826 | H49: =SUM(H29:H48) -> 7260.265174 | I49: 0.2440442543 | J49: -5488.439174
A50: 3. Prerađevine | B50: ='PRORACUN 3'!D211 -> 0 | C50: ='PRORACUN 3'!E211 -> 0 | D50: ='PRORACUN 3'!F211 -> 0 | E50: 0 | F50: 0 | G50: ='KUMULATIV 3'!E211 -> 474.298 | H50: ='KUMULATIV 3'!F211 -> 2490.285166 | I50: 0.1904593123 | J50: -2015.987166
B51: ='PRORACUN 3'!D212 -> 0 | C51: ='PRORACUN 3'!E212 -> 0 | D51: ='PRORACUN 3'!F212 -> 0 | E51: =IFERROR(C51/D51,0) -> 0 | F51: =IFERROR(C51-D51,0) -> 0 | G51: ='KUMULATIV 3'!E212 -> 376.71 | H51: ='KUMULATIV 3'!F212 -> 194.3389468 | I51: =IFERROR(G51/H51,0) -> 1.938417421 | J51: =IFERROR(G51-H51,0) -> 182.3710532
B52: ='PRORACUN 3'!D213 -> 0 | C52: ='PRORACUN 3'!E213 -> 0 | D52: ='PRORACUN 3'!F213 -> 0 | E52: 0 | F52: 0 | G52: ='KUMULATIV 3'!E213 -> 0 | H52: ='KUMULATIV 3'!F213 -> 0 | I52: 0 | J52: 0
B53: ='PRORACUN 3'!D214 -> 0 | C53: ='PRORACUN 3'!E214 -> 0 | D53: ='PRORACUN 3'!F214 -> 0 | E53: 0 | F53: 0 | G53: ='KUMULATIV 3'!E214 -> 1844.929 | H53: ='KUMULATIV 3'!F214 -> 4459.955035 | I53: 0.4136653812 | J53: -2615.026035
B54: ='PRORACUN 3'!D215 -> 0 | C54: ='PRORACUN 3'!E215 -> 0 | D54: ='PRORACUN 3'!F215 -> 0 | E54: 0 | F54: 0 | G54: ='KUMULATIV 3'!E215 -> 104.4 | H54: ='KUMULATIV 3'!F215 -> 405.7080243 | I54: 0.257327915 | J54: -301.3080243
B55: ='PRORACUN 3'!D216 -> 0 | C55: ='PRORACUN 3'!E216 -> 0 | D55: ='PRORACUN 3'!F216 -> 0 | E55: 0 | F55: 0 | G55: ='KUMULATIV 3'!E216 -> 0 | H55: ='KUMULATIV 3'!F216 -> 473.2214259 | I55: 0 | J55: -473.2214259
B56: ='PRORACUN 3'!D217 -> 0 | C56: ='PRORACUN 3'!E217 -> 0 | D56: ='PRORACUN 3'!F217 -> 0 | E56: 0 | F56: 0 | G56: ='KUMULATIV 3'!E217 -> 42.55 | H56: ='KUMULATIV 3'!F217 -> 402.2164376 | I56: 0.1057888142 | J56: -359.6664376
B57: ='PRORACUN 3'!D218 -> 0 | C57: ='PRORACUN 3'!E218 -> 0 | D57: ='PRORACUN 3'!F218 -> 0 | E57: 0 | F57: 0 | G57: ='KUMULATIV 3'!E218 -> 0 | H57: ='KUMULATIV 3'!F218 -> 0 | I57: 0 | J57: 0
B58: ='PRORACUN 3'!D219 -> 0 | C58: ='PRORACUN 3'!E219 -> 0 | D58: ='PRORACUN 3'!F219 -> 0 | E58: 0 | F58: 0 | G58: ='KUMULATIV 3'!E219 -> 535.14 | H58: ='KUMULATIV 3'!F219 -> 1625.535963 | I58: 0.3292083424 | J58: -1090.395963
B59: ='PRORACUN 3'!D220 -> 0 | C59: ='PRORACUN 3'!E220 -> 0 | D59: ='PRORACUN 3'!F220 -> 0 | E59: 0 | F59: 0 | G59: ='KUMULATIV 3'!E220 -> 158.235 | H59: ='KUMULATIV 3'!F220 -> 469.2956324 | I59: 0.3371755224 | J59: -311.0606324
B60: ='PRORACUN 3'!D221 -> 0 | C60: ='PRORACUN 3'!E221 -> 0 | D60: ='PRORACUN 3'!F221 -> 0 | E60: 0 | F60: 0 | G60: ='KUMULATIV 3'!E221 -> 169.9 | H60: ='KUMULATIV 3'!F221 -> 741.3537631 | I60: 0.229175339 | J60: -571.4537631
B61: ='PRORACUN 3'!D222 -> 0 | C61: ='PRORACUN 3'!E222 -> 0 | D61: ='PRORACUN 3'!F222 -> 0 | E61: 0 | F61: 0 | G61: ='KUMULATIV 3'!E222 -> 858 | H61: ='KUMULATIV 3'!F222 -> 1772.883226 | I61: 0.4839574245 | J61: -914.8832259
B62: ='PRORACUN 3'!D223 -> 0 | C62: ='PRORACUN 3'!E223 -> 0 | D62: ='PRORACUN 3'!F223 -> 0 | E62: 0 | F62: 0 | G62: ='KUMULATIV 3'!E223 -> 59.2 | H62: ='KUMULATIV 3'!F223 -> 403.3627949 | I62: 0.1467661389 | J62: -344.1627949
B63: ='PRORACUN 3'!D224 -> 0 | C63: ='PRORACUN 3'!E224 -> 0 | D63: ='PRORACUN 3'!F224 -> 0 | E63: 0 | F63: 0 | G63: ='KUMULATIV 3'!E224 -> 551.784 | H63: ='KUMULATIV 3'!F224 -> 1137.342727 | I63: 0.4851519134 | J63: -585.5587266
B64: ='PRORACUN 3'!D225 -> 0 | C64: ='PRORACUN 3'!E225 -> 0 | D64: ='PRORACUN 3'!F225 -> 0 | E64: 0 | F64: 0 | G64: ='KUMULATIV 3'!E225 -> 0 | H64: ='KUMULATIV 3'!F225 -> 0 | I64: 0 | J64: 0
B65: ='PRORACUN 3'!D226 -> 0 | C65: ='PRORACUN 3'!E226 -> 0 | D65: ='PRORACUN 3'!F226 -> 0 | E65: 0 | F65: 0 | G65: ='KUMULATIV 3'!E226 -> 0 | H65: ='KUMULATIV 3'!F226 -> 0 | I65: 0 | J65: 0
B66: ='PRORACUN 3'!D227 -> 0 | C66: ='PRORACUN 3'!E227 -> 0 | D66: ='PRORACUN 3'!F227 -> 0 | E66: 0 | F66: 0 | G66: ='KUMULATIV 3'!E227 -> 271.254 | H66: ='KUMULATIV 3'!F227 -> 792.8565875 | I66: 0.3421224018 | J66: -521.6025875
B67: ='PRORACUN 3'!D228 -> 0 | C67: ='PRORACUN 3'!E228 -> 0 | D67: ='PRORACUN 3'!F228 -> 0 | E67: 0 | F67: 0 | G67: ='KUMULATIV 3'!E228 -> 66.1 | H67: ='KUMULATIV 3'!F228 -> 438.1774747 | I67: 0.1508521177 | J67: -372.0774747
B68: ='PRORACUN 3'!D229 -> 0 | C68: ='PRORACUN 3'!E229 -> 0 | D68: ='PRORACUN 3'!F229 -> 0 | E68: 0 | F68: 0 | G68: ='KUMULATIV 3'!E229 -> 0 | H68: ='KUMULATIV 3'!F229 -> 0 | I68: 0 | J68: 0
B69: ='PRORACUN 3'!D230 -> 0 | C69: ='PRORACUN 3'!E230 -> 0 | D69: ='PRORACUN 3'!F230 -> 0 | E69: 0 | F69: 0 | G69: ='KUMULATIV 3'!E230 -> 0 | H69: ='KUMULATIV 3'!F230 -> 13.44888478 | I69: 0 | J69: -13.44888478
A70: Ukupno Prerađevine | C70: =SUM(C50:C69) -> 0 | D70: =SUM(D50:D69) -> 0 | E70: 0 | F70: 0 | G70: =SUM(G50:G69) -> 5512.5 | H70: =SUM(H50:H69) -> 15819.98209 | I70: 0.348451722 | J70: -10307.48209
